{"text_format":"1","workbook":"xlsx","n_sheets":22,"sheets":["Start","Ant1","Ant2","Ant3","Ant4","Ant5","Ant6","Hilfe","Anh2","Anh3","AusgOrga","AusgStartbeih","AusgStratEuA","AusgStratSach","AusgGAKImmo","AusgGAKMasch","AusgGAKallg.Auf","AusgQuali","KreisGemeindeListe","Gebietskulisse ländl. Raum","Liste1","Betreuer"],"not_rendered":{"charts":0,"images":60,"macros":1,"external_links":1,"defined_names":518,"comments":6,"pivot_tables":0},"unopened":[],"bounds":{"document_bytes":16777216,"sheet_cells":100000,"rows_first":2000,"rows_last":500,"rows_between":2000,"halvings":0,"cell_chars":16384,"cell_head_chars":4096},"cells_cut":0,"cells_raw":0,"read":"whole","date_system":"1900"}

{"sheet":"Start","index":0,"n_rows":23,"n_cols":2,"rows_kept":23,"cut":false,"hidden":false,"merged":[[0,0,0,5],[2,1,2,6],[1,1,1,6],[3,1,3,6],[24,1,24,6],[19,1,19,6],[22,1,22,6],[4,1,4,6],[18,1,18,6],[8,1,8,6],[9,1,10,6],[11,1,11,6],[12,1,12,6],[5,1,5,6],[7,1,7,6]]}
["Der Direktor der \nLandwirtschaftskammer Nordrhein-Westfalen \nals Landesbeauftragter"]
[]
[null,"ANTRAG"]
[null,"auf Gewährung von Zuwendungen zur Förderung der"]
[null," Diversifizierung "]
[null,"der Tätigkeiten im landwirtschaftlichen und landwirtschaftsnahen Bereich"]
[]
[null,"gemäß den Landesrichtlinien \ndes Ministeriums für Umwelt und Naturschutz, Landwirtschaft und Verbraucherschutz – II–7 – 2570.01 vom 21. Mai 2007 in der aktuellen Fassung"]
[null,"für Nordrhein-Westfalen"]
[null,"an den "]
[]
[null,"Direktor der Landwirtschaftskammer NRW"]
[null," als Landesbeauftragten"]
[]
[]
[]
[]
[]
[]
[]
[]
[]
[null,"gültig ab Tag nach der Veröffentlichung im Ministerialblatt"]

{"sheet":"Ant1","index":1,"n_rows":30,"n_cols":13,"rows_kept":30,"cut":false,"hidden":false,"merged":[[38,1,38,7],[28,5,28,6],[2,6,2,7],[16,3,16,4],[29,1,29,4],[29,5,29,7],[27,5,27,7],[10,6,10,7],[11,6,11,7],[6,6,6,7],[35,2,35,7],[36,2,36,7],[37,2,37,7],[26,3,26,4],[23,5,23,7],[23,3,23,4],[27,1,27,4],[23,1,23,2],[1,1,1,4],[12,5,12,7],[12,3,12,4],[6,1,6,5],[7,6,9,7],[15,1,15,4],[15,5,15,7],[13,5,13,7],[13,1,13,2],[13,3,13,4],[14,1,14,4],[14,5,14,7],[26,1,26,2],[19,5,19,7],[22,3,22,4],[22,5,22,7],[17,1,17,2],[18,3,18,4],[17,3,17,5],[18,5,18,7],[19,1,19,2],[19,3,19,4]]}
[]
[null,"Der Direktor der \nLandwirtschaftskammer Nordrhein-Westfalen \nals Landesbeauftragter"]
[null,null,null,null,null,null,"Eingangsstempel"]
[null,"Antrag auf Gewährung einer Zuwendung"]
[null,"zur Förderung der Diversifizierung der Tätigkeiten"]
[null,"im landwirtschaftlichen und landwirtschaftsnahen Bereich"]
[null,"nach den Richtlinien des MUNLV (– II–7 – 2570.01) vom 21. Mai 2007 in der aktuellen Fassung",null,null,null,null,"Hinweis:"]
[null,"An den Direktor der Landwirtschaftskammer NRW als",null,null,null,null,"Der Antrag kann nur bearbeitet werden, wenn die Angaben vollständig sind. Die Bearbeitung des Antrages erfolgt mit Hilfe der EDV."]
[null,"Landesbeauftragter über die Verwaltungseinheit"]
[null,"Kreisstellen Rhein-Erft-Kreis, Rhein-Kreis Neuss, Rhein-Sieg-Kreis"]
[null,"in",{"$f":"VLOOKUP(B10,Liste1!B10:C40,2,0)","v":"50765 Köln-Auweiler, Gartenstraße 11"},null,null,null,"Unternehmer-Nr. (LWK)"]
[null,"1.1 Antragstellerin / Antragsteller",null,null,null,null,null,null,null,null,null,null,true]
[null,"Name/Unternehmensbezeichnung",null,"Vorname",null,"Bevollmächtigter (Anrede, Vorname, Name)"]
[null,"",null,"",null,""]
[null,"Straße, Hausnummer"]
[]
[null,"PLZ",null,"Wohnort",null,null,"Rechtsform",null,{"$f":"IF(G18=\"Einzelunternehmen\",1,\"\")","v":1}]
[null,null,null,"",null,null,"Einzelunternehmen",null,false]
[null,"Telefon",null,"Telefax",null,"e-Mail-Adresse",null,null,true]
[null,"",null,"",null,null,null,null,true]
[null,"mein Unternehmen ist ein einzige Unternehmen im Sinne der Verordnung (EU) Nr. 1407/2013",null,null,null,null,null,null,true]
[null,null,"ja","nein",null,null,null,null,false]
[null,"Alter",null,"Geschlecht",null,"Status Antragsteller/in",null,null,false]
[null,null,null,null,null,null,null,null,true]
[null,null,null,null,null,null,null,null,false]
[null,"Mithilfe/Beratung im Antragsverfahren durch:",null,null,null,null,null,null,false]
[null,"Organisation, Name",null,null,null,"Tel.-Nr.",null,null,false]
[]
[null,"Betreuer/in",null,null,null,"e-Mail-Adresse"]
[null,"BSt. Münster - Frau Göcke",null,null,null,null,null,null,{"$f":"VLOOKUP(B30,Betreuer!B2:J25,9,0)","v":{"$error":"#N/A"}}]

{"sheet":"Ant2","index":2,"n_rows":30,"n_cols":13,"rows_kept":30,"cut":false,"hidden":false,"merged":[[3,2,3,9],[4,2,4,9],[8,2,8,9],[10,2,10,9],[6,2,6,5],[6,6,6,7],[5,2,5,5],[5,6,5,9],[7,2,7,9],[23,2,23,3],[11,2,11,9],[12,2,12,9],[13,2,13,9],[29,2,29,9],[27,2,27,3],[28,2,28,3],[14,2,14,9],[26,2,26,3],[24,2,24,3],[25,2,25,3],[19,6,20,9]]}
[null,false,true,false,true,false,false,false,false,false,true]
[null,null,null,null,null,null,null,"Unternehmer-Nr.",null,{"$f":"'Ant1'!G12","v":0}]
[null,"Bei dem Antragsteller oder den Antragstellern handelt es sich um "]
[null,"1.2.1","Inhaber eines landwirtschaftlichen Einzelunternehmens im Sinne des Gesetzes über die Alterssicherung der Landwirte (ALG) und ggf. dessen Ehegatten gemäß Ziffer 3.1.1 oder 3.2.3 der Landesrichtlinien. "]
[null,"1.2.2","mitarbeitende Familienangehörige gemäß § 1 Absatz 8 ALG, die in räumlicher Nähe und in einem unmittelbaren organisatorischen und wirtschaftlichen Zusammenhang mit dem unten angegebenen landwirtschaftlichen Betrieb erstmalig eine selbständige Existenz gründen oder entwickeln gemäß Ziffer 3.1.2 oder 3.2.3 der Landesrichtlinien."]
[null,null,"Bezeichnung des Betriebes/Unternehmens",null,null,null,"Unternehmer-Nr. des Betriebes"]
[null,null,"",null,null,null,null,null,null,null,{"$f":"C7<>\"\"","v":false},null,{"$f":"K7=D1","v":true}]
[true,"1.2.3","eine Mitarbeiterin oder einen Mitarbeiter in oben angegebenen Unternehmen gemäß den Ziffern 3.1.1 oder 3.1.2, soweit sie mit der Maßnahme befasst sind, gemäß Ziffer 3.3 der Landesrichtlinien."]
[null,"1.2.4","eine Kooperation \n\n- von Landwirten gemäß Ziffer 3.1.1 oder Unternehmen gemäß Ziffer 3.2.1 (Berechnung der Umsatzerlöse aus bodengebundener Produktion erforderlich) mit Gewerbebetrieben, die in einem unmittelbaren organisatorischen und wirtschaftlichen Zusammenhang (Mitglied des Haushalts des landwirtschaftlichen Betriebes) mit einem landwirtschaftlichen Unternehmen eines Beteiligten geführt werden."]
[]
[null,null,"- von mindestens drei Beteiligten, davon 50 % Landwirte nach Nr. 1.2.1 oder Unternehmen gemäß Nr. 1.2.6 oder 1.2.7. Teilnehmer von Kooperationen können auch Unternehmen des Handwerks oder Gewerbes sowie Einzelpersonen oder Unternehmen sein, die einen landwirtschaftlichen Betrieb bewirtschaften und unmittelbar kirchliche, gemeinnützige oder mildtätige Zwecke verfolgen."]
[null,"1.2.5","einen Landwirt gemäß Ziffer 3.1.5 der Landesrichtlinien, der einen gewerblichen Nebenbetrieb führt, dessen Geschäftstätigkeit zu wesentlichen Teilen (mehr als 25 % der Umsatzerlöse) in landwirtschaftlicher Erzeugung besteht. (Berechnung der Umsatzerlöse aus bodengebundener Produktion erforderlich)"]
[null,"1.2.6","ein Unternehmen gemäß Ziffer 3.2.1 der Landesrichtlinien, dessen Geschäftstätigkeit zu wesentlichen Teilen (mehr als 25 % der Umsatzerlöse) in landwirtschaftlicher Erzeugung besteht und das die in § 1 Absatz 2 des Gesetzes über die Alterssicherung der Landwirte (ALG) genannte Mindestgröße erreicht oder überschreitet. (Berechnung der Umsatzerlöse aus bodengebundener Produktion erforderlich)"]
[true,"1.2.7","ein Unternehmen gemäß Ziffer 3.2.2 der Landesrichtlinien, das einen landwirtschaftlichen Betrieb bewirtschaftet und unmittelbar kirchliche, gemeinnützige oder mildtätige Zwecke verfolgt."]
[false,"1.3","die Kapitalbeteiligung der öffentlichen Hand am Eigenkapital des Unternehmens beträgt:"]
[null,"1.4  Erklärung zu den Einkünften der Antragstellerin / des Antragstellers"]
[false,null,"1. Ich werde / Wir werden steuerlich veranlagt (Wenn nein weiter mit 2. Maßnahme)"]
[]
[null,null,"2. Die Einkünfte aus Land- und Forstwirtschaft betragen aufgrund des letzten Steuerbescheides"]
[null,null,null,"Jahr","in Euro",null,"(wenn unter 4. eine der folgenden Nrn. beantragt: 2.1 2.2, 2.3.1, 2.4 )  "]
[]
[null,null,"3. Die positiven Einkünfte der am antragstellenden Unternehmen beteiligten Personen und deren Ehegatten"]
[null,null,"betragen laut Steuerbescheiden der letzten 3 Jahre (nur bei GAK-Maßnahmen):"]
[null,null,"Jahr /Name (1-4)"]
[]
[null,null,{"$f":"IF(C25>0,C25+1,\"\")","v":""}]
[null,null,{"$f":"IF(C25>0,C25+2,\"\")","v":""}]
[null,null,"Durchschnittlich",null,{"$f":"IF(E25>0,AVERAGE(E25:E27),\"\")","v":""},{"$f":"IF(F25>0,AVERAGE(F25:F27),\"\")","v":""},{"$f":"IF(G25>0,AVERAGE(G25:G27),\"\")","v":""},{"$f":"IF(H25>0,AVERAGE(H25:H27),\"\")","v":""}]
[null,null,"Kapitalanteil"]
[null,null,"Ich versichere hiermit, dass die aktuellsten mir vorliegenden Steuerbescheide beigefügt sind."]

{"sheet":"Ant3","index":3,"n_rows":42,"n_cols":10,"rows_kept":42,"cut":false,"hidden":false,"merged":[[33,1,33,4],[41,1,41,8],[40,1,40,4],[34,1,34,4],[35,1,35,4],[36,1,36,4],[37,1,37,4],[38,1,38,4],[39,1,39,4],[22,1,22,4],[20,1,20,4],[10,1,10,3],[21,1,21,4],[12,1,12,4],[19,1,19,4],[10,4,10,5],[18,1,18,4],[31,3,31,6],[27,3,27,6],[28,3,28,6],[29,3,29,6],[5,1,5,8],[16,1,16,4],[11,4,11,5],[17,1,17,4],[11,6,11,8],[6,1,6,6],[7,2,7,3],[8,2,8,3],[9,2,9,3],[11,2,11,3],[10,6,10,7],[23,1,23,4]]}
[null,null,null,null,null,null,null,"Unternehmer-Nr.",{"$f":"'Ant1'!G12","v":0}]
[null,"2. Maßnahme",null,null,null,null,null,null,null,true]
[null,"Ich beantrage die Gewährung einer Zuwendung nach der Ziffer 2 der Landesrichtlinien zur Förderung der",null,null,null,null,null,null,null,false]
[null,"Diversifizierung der Tätigkeiten im landwirtschaftlichen und landwirtschaftsnahen Bereich"]
[null,"Kurzbezeichnung der Maßnahme (max. 250 Zeichen, sonst gesondertes Blatt beifügen):"]
[null,""]
[null,"  Die Maßnahme ist folgendem Bereich zuzurechnen: ",null,null,null,null,null,null,null,true]
[null,null,null,null,null,null,null,null,null,false]
[null,null,null,null,null,null,null,null,null,false]
[null,null,null,null,null,null,null,null,null,false]
[null,"Ort des Investitionsvorhabens:",null,null,"Gemeinde",null,"Gemarkung (Name_Nummer)",null,null,false]
[null,"Kreis","MünsterStadt_515",null,"MünsterStadt_000",null,"Münster_5001",null,null,false]
[null,"geplanter Durchführungszeitraum \nvon:",null,null,null,null,"bis:",null,null,false]
[null,"3. Gesamtkosten (brutto) in Euro (lt. beiliegender Kostenaufstellung)",null,null,null,null,null,null,null,true]
[null,"bitte zuerst Angabe unter 4. und dann Kostenaufstellungen (\"Ausg…\") ausfüllen !",null,null,null,null,null,null,null,false]
[null,null,null,null,null,null,null,null,null,false]
[null,"Im … Jahr ab Bewilligung",null,null,null,"1.","2.","3.","insgesamt"]
[null,"1. Organisationsausgaben",null,null,null,{"$f":"ROUND(IF('Anh2'!E5>0,'Anh2'!E5,0),2)","v":0},{"$f":"ROUND(IF('Anh2'!F5>0,'Anh2'!F5,0),2)","v":0},{"$f":"ROUND(IF('Anh2'!G5>0,'Anh2'!G5,0),2)","v":0},{"$f":"IF(SUM(F18:H18)>0,SUM(F18:H18),0)","v":0}]
[null,"2. Startbeihilfen",null,null,null,{"$f":"ROUND(IF('Anh2'!E14>0,'Anh2'!E14,0),2)","v":0},{"$f":"ROUND(IF('Anh2'!F14>0,'Anh2'!F14,0),2)","v":0},{"$f":"ROUND(IF('Anh2'!G14>0,'Anh2'!G14,0),2)","v":0},0]
[null,"3. Einrichtung, Ausstattung, sonst. Sach.",null,null,null,{"$f":"ROUND(IF('Anh2'!E30>0,'Anh2'!E30,0),2)","v":0},{"$f":"ROUND(IF('Anh2'!F30>0,'Anh2'!F30,0),2)","v":0},{"$f":"ROUND(IF('Anh2'!G30>0,'Anh2'!G30,0),2)","v":0},0]
[null,"4. Investitionen GAKG",null,null,null,{"$f":"ROUND(IF('Anh3'!E15>0,'Anh3'!E15,0),2)","v":0},{"$f":"ROUND(IF('Anh3'!F15>0,'Anh3'!F15,0),2)","v":0},{"$f":"ROUND(IF('Anh3'!G15>0,'Anh3'!G15,0),2)","v":0},0]
[null,"5. Qualifikationsmaßnahmen",null,null,null,{"$f":"ROUND(IF('Anh2'!E37>0,'Anh2'!E37,0),2)","v":0},{"$f":"ROUND(IF('Anh2'!F37>0,'Anh2'!F37,0),2)","v":0},{"$f":"ROUND(IF('Anh2'!G37>0,'Anh2'!G37,0),2)","v":0},0]
[null,"6. nicht förderfähige Ausgaben",null,null,null,null,null,null,0]
[null,"Gesamtkosten",null,null,null,{"$f":"IF(SUM(F18:F23)>0,SUM(F18:F23),0)","v":0},{"$f":"IF(SUM(G18:G23)>0,SUM(G18:G23),0)","v":0},{"$f":"IF(SUM(H18:H23)>0,SUM(H18:H23),0)","v":0},0]
[]
[null,"4. Beantragte Förderung"]
[null,"  Es wird eine Förderung beantragt gemäß o.g. Landesrichtlinien, Ziffer …"]
[true,null,"2.1","Organisationsausgaben",null,null,null,null,null,false]
[true,null,"2.2","Startbeihilfen für Personalausgaben zur Umsetzung eines\nStrategiekonzepts mit Anzahl Voll-AK (rechn.)",null,null,null,null,null,false]
[true,null,"2.3.1","Investitionen  zur Einrichtung und Ausstattung und sonstige Sachausgaben"]
[true,null,"2.3.2","Investitionen im Rahmen des GAKG",null,null,null,null,null,false]
[true,null,"2.4","Bildungsmaßnahmen und Zusatzqualifikationen"]
[null,"Beantragte Beträge in Euro"]
[null,"Im … Jahr ab Bewilligung",null,null,null,"1.","2.","3.","insgesamt"]
[null,"nach 2.1     Organisationsausgaben",null,null,null,{"$f":"ROUND(IF('Anh2'!E8>0,'Anh2'!E8,0),2)","v":0},{"$f":"ROUND(IF('Anh2'!F8>0,'Anh2'!F8,0),2)","v":0},{"$f":"ROUND(IF('Anh2'!G8>0,'Anh2'!G8,0),2)","v":0},{"$f":"IF(SUM(F35:H35)>0,F35+G35+H35,0)","v":0}]
[null,"nach 2.2.    Startbeihilfen",null,null,null,{"$f":"ROUND(IF('Anh2'!H15>0,'Anh2'!H15,0),2)","v":0},{"$f":"ROUND(IF('Anh2'!H16>0,'Anh2'!H16,0),2)","v":0},{"$f":"ROUND(IF('Anh2'!H17>0,'Anh2'!H17,0),2)","v":0},{"$f":"IF(SUM(F36:H36)>0,F36+G36+H36,0)","v":0}]
[null,"nach 2.3.1  Einrichtung, Ausstattung",null,null,null,{"$f":"ROUND(IF('Anh2'!H25>0,'Anh2'!E25,0),2)","v":0},{"$f":"ROUND(IF('Anh2'!H25>0,'Anh2'!F25,0),2)","v":0},{"$f":"ROUND(IF('Anh2'!G25>0,'Anh2'!G25,0),2)","v":0},{"$f":"IF(SUM(F37:H37)>0,F37+G37+H37,0)","v":0}]
[null,"nach 2.3.1  Marketing, sonst. Sachausg.",null,null,null,{"$f":"ROUND(IF('Anh2'!E29>0,'Anh2'!E29,0),2)","v":0},{"$f":"ROUND(IF('Anh2'!F29>0,'Anh2'!F29,0),2)","v":0},{"$f":"ROUND(IF('Anh2'!G29>0,'Anh2'!G29,0),2)","v":0},{"$f":"IF(SUM(F38:H38)>0,F38+G38+H38,0)","v":0}]
[null,"nach 2.3.2  Investitionen nach GAKG",null,null,null,{"$f":"ROUND(IF('Anh3'!E21>0,'Anh3'!E21,0),2)","v":0},{"$f":"ROUND(IF('Anh3'!F21>0,'Anh3'!F21,0),2)","v":0},{"$f":"ROUND(IF('Anh3'!G21>0,'Anh3'!G21,0),2)","v":0},{"$f":"IF(SUM(F39:H39)>0,F39+G39+H39,0)","v":0}]
[null,"nach 2.4    Qualifikationsmaßnahmen",null,null,null,{"$f":"ROUND(IF('Anh2'!E40>0,'Anh2'!E40,0),2)","v":0},{"$f":"ROUND(IF('Anh2'!F40>0,'Anh2'!F40,0),2)","v":0},{"$f":"ROUND(IF('Anh2'!G40>0,'Anh2'!G40,0),2)","v":0},{"$f":"IF(SUM(F40:H40)>0,SUM(F40:H40),0)","v":0}]
[null,"Beantragte Fördersummen",null,null,null,{"$f":"IF(SUM(F35:F40)>0,SUM(F35:F40),0)","v":0},{"$f":"IF(SUM(G35:G40)>0,SUM(G35:G40),0)","v":0},{"$f":"IF(SUM(H35:H40)>0,SUM(H35:H40),0)","v":0},{"$f":"IF(SUM(I35:I40)>0,SUM(I35:I40),0)","v":0}]
[null,{"$f":"IF(I41>200000,\"Maximal zulässige Fördersumme 200.000 €. Anpassung erforderlich!\",\"\")","v":""}]

{"sheet":"Ant4","index":4,"n_rows":46,"n_cols":9,"rows_kept":46,"cut":false,"hidden":false,"merged":[[63,2,63,4],[64,2,64,4],[54,2,54,4],[55,2,55,4],[56,2,56,4],[57,2,57,4],[58,2,58,4],[62,2,62,4],[60,2,60,4],[61,2,61,4],[59,2,59,4],[22,6,24,6],[44,2,44,6],[53,2,53,4],[47,2,47,4],[52,2,52,4],[42,3,42,6],[31,3,32,3],[31,4,32,4],[48,2,48,4],[49,2,49,4],[50,2,50,4],[29,3,30,3],[29,4,30,4],[16,2,16,6],[19,2,19,6],[51,2,51,4],[34,2,34,6],[25,3,26,3],[25,4,26,4],[25,5,26,5],[25,6,26,6],[27,3,28,3],[29,5,30,5],[29,6,30,6],[27,5,28,5],[27,6,28,6],[27,4,28,4],[31,6,32,6],[31,5,32,5]]}
[null,null,null,null,null,"Unternehmer-Nr.",{"$f":"'Ant1'!G12","v":0}]
[null,"5. Finanzierung in Euro"]
[null,null,"Der Gesamtfinanzierungsbedarf in Höhe von",{"$f":"'Ant3'!I24","v":0},"soll mit folgenden Mitteln gedeckt werden:"]
[null,null,"Im … Jahr ab Bewilligung","1.","2.","3.","insgesamt"]
[null,null,"1.   beantragte Zuwendung",{"$f":"'Ant3'!F41","v":0},{"$f":"'Ant3'!G41","v":0},{"$f":"'Ant3'!H41","v":0},{"$f":"IF(SUM(D5:F5)>0,SUM(D5:F5),0)","v":0}]
[null,null,"2.   Summe Eigenmittel",{"$f":"D7+D8","v":0},{"$f":"E7+E8","v":0},{"$f":"F7+F8","v":0},0]
[null,null,"2.1  davon Barmittel (Guthaben)",null,null,null,0]
[null,null,"2.2  davon sonst. Eigenmittel1)",null,null,null,0]
[null,null,"3.  Fremdkapital",null,null,null,0]
[null,null,"4. Leistungen Dritter 2)",null,null,null,0]
[null,null,"5.  sonstige öffentliche Förderung 3)",null,null,null,0]
[null,null,"Finanzierungsmittel gesamt (vgl. Nr. 3.)",{"$f":"IF(SUM(D5+D7+D8+D9+D10+D11)>0,SUM(D5+D7+D8+D9+D10+D11),0)","v":0},{"$f":"IF(SUM(E5+E7+E8+E9+E10+E11)>0,SUM(E5+E7+E8+E9+E10+E11),0)","v":0},{"$f":"IF(SUM(F5+F7+F8+F9+F10+F11)>0,SUM(F5+F7+F8+F9+F10+F11),0)","v":0},0]
[null,null,"1) zu erwirtschaften, Erstattung Vorsteuer, Eigenleistung, etc."]
[null,null,"2) z.B. Spenden, Versicherungsentschädigung"]
[null,null,"3) bewilligte oder beantragte (ohne Ziffer 1)"]
[null,"6. Begründung"]
[null,null,"Eine ausführliche Beschreibung und Begründung der Maßnahme sowie eine detaillierte Kostenaufstellung sind als Anlage beigefügt."]
[null,"7. Erklärungen, Verpflichtungen, Versicherung und Einverständnis der/des Antragsteller/in"]
[]
[null,"7.1","Das Unternehmen bzw. der Unternehmensverbund im Sinne von Artikel 2 Absatz 2 der Verordnung (EU) Nr. 1407/2013 (\"einziges Unternehmen\") hat im laufenden und den 2 vorangegangenen Jahren De-minimis-Beihilfen (VO EG/EU Nr. 1407/2013(Allg), 1408/2013(A), 717/2014(F), 360/2012(D) in den jeweils geltenden Fassungen) erhalten oder beantragt."]
[true,null,"       nein"," ja, folgende:",null,null,null,false]
[]
[null,null,"Zuwendungsgeber / ","Akten-","Beihilfe-","Datum des ","Allgemein (Allg), Agrar (A), DAWI (D), Fischerei (F)",null,"Allg"]
[null,null,"Beihilfeempfänger","zeichen","wert","Bewilligungs-",null,null,"A"]
[null,null,null,null,"€","bescheides",null,null,"D"]
[null,null,null,null,null,null,null,null,"F"]
[]
[]
[]
[]
[]
[]
[null,null,null,null,null,null,null,{"$f":"SUM(E26:E33)","v":0}]
[]
[null,null,"Die hier beantragte De-minimis-Beihilfe (beantragte Zuwendung) wird mit weiteren Beihilfen für dieselben förderfähigen Ausgaben kumuliert"]
[true,null,"      nein"," ja, folgende (siehe Ergänzung zu Anlage 14)",null,null,null,false]
[]
[null,"7.2","Für das Vorhaben sind / werden Mittel aus anderen öffentlichen Förderprogrammen beantragt."]
[null,null,"(z.B. bei der Bundesagentur für Arbeit, Bezirksregierung, Kammer, Stadt/Gemeinde) "]
[]
[true,null,"       nein","ja und zwar",null,null,null,false]
[]
[null,null,null,"Mit der Maßnahme darf ggf. nicht begonnen werden, bevor die Bewilligung aller beantragten Fördermittel bekannt gegeben wurde."]
[]
[null,"7.3","Mit dem Vorhaben werden Anlagen beantragt, die nach dem Eneuerbaren Energien Gesetz förderfähig sind bzw. für deren Biomasse eine Vergütung in Anspruch genommen wird."]
[true,null,"       nein","ja",null,null,null,false]

{"sheet":"Ant5","index":5,"n_rows":37,"n_cols":8,"rows_kept":37,"cut":false,"hidden":false,"merged":[[0,2,0,4],[1,2,1,7],[4,2,4,7],[2,2,2,7],[19,2,19,7],[5,2,5,7],[17,2,17,6],[12,2,12,7],[14,2,14,7],[18,2,18,7],[15,2,15,7],[11,2,11,6],[3,2,3,7],[13,2,13,7],[10,2,10,7],[6,2,6,7],[8,2,8,7],[9,2,9,7],[30,2,30,7],[28,2,28,7],[7,2,7,7],[21,2,21,7],[36,2,36,7],[35,2,35,7],[29,2,29,7],[16,2,16,7],[32,2,32,7],[24,2,24,7],[27,2,27,7],[26,2,26,7],[25,2,25,7],[20,2,20,7],[34,2,34,7],[31,2,31,7],[33,2,33,7],[23,2,23,6],[22,2,22,7]]}
[null,"7.4","Ich erkläre / wir erklären, dass ",null,null,null,"Unternehmer-Nr.",{"$f":"'Ant1'!G12","v":0}]
[null,"7.4.1","mir / uns die Landesrichtlinien über die Gewährung von Zuwendungen zur Förderung der Diversifizierung der Tätigkeiten im landwirtschaftlichen und landwirtschaftsnahen Bereich in der gültigen Fassung sowie die dazugehörigen Rechtsgrundlagen bekannt sind (Der Wortlaut ist einsehbar über folgende Internetseiten: EU -  www.eur-lex.europa.eu, Bund - www.gesetze-im-internet.de, Land - www.lv.recht.nrw.de), "]
[null,"7.4.2","die Angaben in diesem Antrag (einschließlich der Antragsunterlagen) vollständig und richtig sind,"]
[null,"7.4.3","die Angaben zur Person und zur Sache zum Zwecke einer zügigen Bearbeitung des Antrages sowie zu statistischen Zwecken gespeichert werden und eine Belehrung über die Bedeutung und Wirkung der Erklärung sowie über deren Widerrufbarkeit erfolgt ist,"]
[null,"7.4.4","mit der Maßnahme noch nicht begonnen wurde und vor der Bekanntgabe des Zuwendungsbescheides nicht begonnen wird. Als Maßnahmebeginn ist grundsätzlich der Abschluss eines der Ausführung zuzurechnenden Lieferungs- oder Leistungsvertrages zu werten,"]
[null,"7.4.5","ich bin / wir sind damit einverstanden, dass die Einhaltung der eingegangenen Verpflichtungen und die Angaben in und zum Antrag auch an Ort und Stelle durch die zuständigen Prüfungsorgane der Bewilligungsbehörde, des Landes und des Bundes kontrolliert werden kann,"]
[null,"7.4.6","ich / wir oder meine / unsere Vertreter / -in werden im Falle einer Prüfung dem beauftragten Kontrollpersonal das Betretungsrecht und das Recht auf die angemessene Verweildauer auf den Grundstücken und in den Betriebs- und Geschäftsräumen sowie die Einsichtnahme in die für die Beurteilung der Zuwendungsvoraussetzungen notwendigen Unterlagen einräumen und die notwendigen Auskünfte erteilen,"]
[null,"7.4.7","das Unternehmen sich nicht in Schwierigkeiten gemäß jeweils gültigen Fassung der Mitteilung der Kommission \"Leitlinien der Gemeinschaft für staatliche Beihilfen zur Rettung und Umstrukturierung von Unternehmen in Schwierigkeiten\" (Abl. C 244 vom 1.10.2004, S. 2) befinden,"]
[null,"7.4.8","ich / wir in einem von mir/uns kontrollierten Unternehmen keine schwebende Rückforderung nach einer vorherigen Entscheidung der Europäischen Kommission erhalten habe/n, wonach eine Beihilfe als unrechtmäßig und nicht vereinbar mit dem Gemeinsamen Markt erklärt wurde,"]
[null,"7.4.9","das antragstellende Unternehmen einKleinstunternehmen oder kleines Unternehmen nach der Definition in Verordnung (EU) Nr. 651/2014 Anhang I ist."]
[null,"7.4.10","meine Daten zum Zwecke einer zügigen Bearbeitung des Antrages und für eine betriebswirtschaftliche Auswertung sowie für Zwecke der Evaluierung gespeichert und anonymisiert verwendet werden dürfen.\nDie mit den Daten befassten Stellen sind zur Geheimhaltung der Daten verpflichtet."]
[null,"7.5","Ich verpflichte mich /  wir verpflichten uns,"]
[null,"7.5.1","die in den Landesrichtlinien über die Gewährung von Zuwendungen zur Förderung der Diversifizierung der Tätigkeiten im landwirtschaftlichen und landwirtschaftsnahen Bereich (in gültiger Fassung) genannten Bedingungen einzuhalten, insbesondere die Verpflichtung, das Vorhaben auf mindestens 5 Jahre anzulegen,"]
[null,"7.5.2","alle für die Evaluierung (Bewertung) erforderlichen und noch nachträglich im Einzelnen festzulegenden Angaben der Bewilligungsbehörde oder Dritten, mit der Evaluierung Beauftragten, mitzuteilen,"]
[null,"7.5.3","jede Änderung schriftlich mitzuteilen und die sich auf die Zuwendung beziehenden Unterlagen bis zum 31.12. des Bewilligungsjahres zuzüglich 16 Jahre aufzubewahren,"]
[null,"7.5.4","jede Abweichung vom Antrag sowie alle Tatsachen, die der Bewilligung, Gewährung, Weitergewährung, Inanspruchnahme oder dem Belassen der Zuwendung entgegenstehen oder für die Rückforderung der Zuwendung erheblich sind, unverzüglich schriftlich mitzuteilen,"]
[null,"7.5.5","alle Änderungen hinsichtlich meiner in InVeKoS gespeicherten Adressdaten, einschließlich der Bankverbindung, unverzüglich der für mich / uns zuständigen Kreisstelle beim Direktor der Landwirtschaftskammer NRW als Landesbeauftragter anzuzeigen."]
[null,"7.6","Ich versichere / wir versichern,"]
[null,"7.6.1","dass gegen mich / uns in den letzten fünf Jahren weder eine Geldbuße von wenigstens 2.500 Euro nach § 404 Abs. 2 Nr. 3 des Dritten Buches Sozialgesetzbuch rechtskräftig verhängt, noch dass ich / wir rechtskräftig nach den §§ 10, 10a oder 11 des Schwarzarbeitsbekämpfungsgesetzes zu einer Freiheitsstrafe von mehr als drei Monaten oder einer Geldstrafe von mehr als 90 Tagessätzen verurteilt wurde/n."]
[null,"7.6.2","dass die beihilferechtlichen Förderhöchstgrenzen nicht überschritten werden. Eine Kumulation nur mit Mitteln der Landwirtschaftlichen Rentenbank oder der Förderbanken der Länder ist möglich. Änderungen zu den Angaben der De-minimis-Beihilfen werden mitgeteilt, sofern mir vor sie mir/uns vor der Zusage für die hier beantragte Förderung bekannt werden."]
[null,"7.6.3","mit der dargestellten Investition die baulichen und technischen Anforderungen für eine besonders tiergerechte Haltung von Pferden zu erfüllen. Die entsprechenden Kriterien nach der Anlage 1 zu den Richtlinien wurden mir bekannt gegeben. Alle Kriterien werden bis zum Ende des Zweckbindungszeitraums erfüllt.     "]
[null,"7.6.4","ich / wir zur Vermeidung von Interessenkonflikten keine Aufträge an meine / unsere Angehörigen bzw. Angehörigen meiner Mitarbeitenden vergebe/n (Angehörige sind der Verlobte, der Ehegatte, Lebenspartner, Verwandte und Verschwägerte gerader Linie, Geschwister, Kinder der Geschwister, Ehegatten und Lebenspartner der Geschwister und Geschwister der Ehegatten und Lebenspartner, Geschwister der Eltern sowie Pflegeeltern und Pflegekinder)."]
[null,"7.6.5","dass die Zuwendungen nicht zur Finanzierung terroristischer Aktivitäten eingesetzt werden und dass ich / wir keine terroristische Vereinigung bin / sind oder terroristische Vereinigungen unterstütze/unterstützen."]
[null,"7.7","Mir / Uns ist bekannt, dass"]
[null,"7.7.1","die Bewilligungsbehörde die ihr vorliegenden Unterlagen des Betriebes zur Entscheidung über diesen Antrag heranziehen kann,"]
[null,"7.7.2","die Erhebung vorstehender Angaben auf § 26 Abs. 2 Satz 1 und 2 des Verwaltungsverfahrensgesetzes des Landes NRW beruht, die Kenntnis der erbetenen Angaben der Überprüfung der Voraussetzungen für eine Zuschussgewährung dient und dass eine Berücksichtigung nur möglich ist, wenn die Angaben in diesem Antragsvordruck enthalten sind,"]
[null,"7.7.3","die Angaben in und zum Antrag an die zuständigen Organe des Landes, des Bundes und der EU übermittelt werden können,"]
[null,"7.7.4","von der Bewilligungsbehörde weitere Unterlagen, die zur Beurteilung der Antragsberechtigung, der Antragsvoraussetzungen sowie zur Feststellung der Höhe der Zuwendung erforderlich sind, anfordert werden können,"]
[null,"7.7.5","falsche Angaben und / oder die Nichteinhaltung der Verpflichtungen Erstattungsansprüche auslösen und der Erstattungsanspruch mit dem in § 49a VwVfG in jeweils gültiger Fassung angegebenen Prozentwert über dem jeweiligen Basiszinssatz nach § 247 BGB jährlich zu verzinsen ist,"]
[null,"7.7.6","die Bewilligung der Zuwendung nach festgesetzten Prioritäten vorgenommen wird,"]
[null,"7.7.7","Vorhaben die aus Mitteln anderer öffentlicher Förderungsprogramme gefördert werden, nicht gleichzeitig nach dem Diversifizierungsprogramm gefördert werden dürfen,"]
[null,"7.7.8","ein Anspruch auf Gewährung einer Zuwendung nicht besteht, vielmehr entscheidet die Bewilligungsbehörde aufgrund ihres pflichtgemäßen Ermessens im Rahmen verfügbarer Haushaltsmittel, "]
[null,"7.7.9","alle Angaben dieses Antrages, von denen Bewilligung, Gewährung, Weitergewährung oder das Belassen der Zuwendung abhängig ist, subventionserheblich im Sinne § 264 Strafgesetzbuch (Erstes Gesetz zur Bekämpfung der Wirtschaftskriminalität, 1. WiKG) in Verbindung mit § 1 des Gesetzes über die Vergabe von Subventionen nach Landesrecht (Landessubventionsgesetz) in der jeweils gültigen Fassung sind, "]
[null,"7.7.10","bei Erhalt einer Bescheinigung der Förderunschädlichkeit des Beginns vor der Bewilligung den Maßnahmebeginn mittels des vorgegebenen Formblattes unverzüglich mitzuteilen ist, da damit der Beginn des maximal dreijährigen Durchführungszeitraums festgelegt wird,"]
[null,"7.7.11","alle Zuschusszahlungen ausschließlich auf die von mir / uns angezeigte und im InVeKoS gespeichete Bankverbindung erfolgen,"]
[null,"7.7.12","eine Förderung unter dem Vorbehalt des Widerrufs für den Fall erfolgt, dass geförderte Bauten und bauliche Anlagen innerhalb von 12 Jahren ab Fertigstellung (endgültige Bauabnahme) und Maschinen, technische Einrichtungen und Geräte innerhalb eines Zeitraums von 5 Jahren ab Lieferung veräußert oder nicht mehr dem Zuwendungszweck entsprechend verwendet werden,"]
[null,"7.7.13","jede Veränderung der Betriebsform oder zu den Unternehmern/Gesellschaftern unverzüglich und unaufgefordert anzuzeigen ist. In jedem Einzelfall entscheidet die Bewilligungsbehörde über die Zulässigkeit der Übertragung. Innerhalb der ersten Hälfte der Zweckbindung hat der Übernehmer alle Kriterien zu erfüllen, als wäre er selbst der Antragsteller. Die entstehenden Kosten für die Nachweise (z.B. Investitionskonzept) trägt der Antragsteller. Falls der Übertragung nicht zugestimmt werden kann, kann außer in begründeten Ausnahmefällen der bereits ausgezahlte Zuschuss ganz oder teilweise zurückgefordert werden."]

{"sheet":"Ant6","index":6,"n_rows":41,"n_cols":11,"rows_kept":41,"cut":false,"hidden":false,"merged":[[30,1,30,6],[34,0,34,3],[34,5,34,9],[38,0,38,3],[40,0,40,3],[40,5,40,9],[38,5,38,9],[36,0,36,3],[36,5,36,9],[0,8,0,9],[6,1,6,6],[10,1,10,6],[11,1,11,6],[12,1,12,6],[9,1,9,6],[4,1,4,6],[5,1,5,6],[1,9,2,9],[13,1,13,7],[14,1,14,7],[15,1,15,6],[1,8,2,8],[3,1,3,6],[7,1,7,6],[8,1,8,6],[18,1,18,6],[20,1,20,6],[22,1,22,6],[17,1,17,6],[16,1,16,6],[29,1,29,6],[23,1,23,6],[21,1,21,6],[24,1,24,6],[19,1,19,6]]}
["8. Anlagen",null,null,null,null,"Unternehmer-Nr.",{"$f":"'Ant1'!G12","v":0},null,"nur für Kreisstelle"]
[null,null,null,null,null,null,null,null,"liegt vor","geprüft/ aner-kannt"]
["(Die beigefügten und ggf. nachgereichten Anlagen sind Bestandteil meines / unseres Antrages)"]
["1.","Ergänzungsblätter (Kostenaufstellungen / Zuschussberechnung - immer erforderlich)",null,null,null,null,null,null,"¨","¨",false]
["2.","Betriebsspiegel (immer erforderlich)",null,null,null,null,null,null,"¨","¨",false]
["3.","Investitionskonzept (DIV) mit Maßnahmenbeschreibung (immer erforderlich)",null,null,null,null,null,null,"¨","¨",false]
["4.","Nachweis/e zur Mitgliedschaft in der Landwirtschaftl. Alterskasse (erforderlich)",null,null,null,null,null,null,"¨","¨",false]
["5.","letzter Steuerbescheid bzw. der letzten drei Jahre (bei GAK) (erforderlich)",null,null,null,null,null,null,"¨","¨",false]
["6.\n\n","Buchführungsabschlüsse der beiden letzten Jahre (Bilanz, G+V, Einlagen/Entnahmen, Inventarliste) falls nicht vorhanden, muss ggf. über andere Unterlagen die Wirtschaftlichkeit des Unternehmens nachgewiesen werden",null,null,null,null,null,null,"¨","¨",false]
["7.","Berechnung der Umsatzerlöse aus bodengebundener Produktion",null,null,null,null,null,null,"¨","¨",false]
["8.","Kreditbereitschaftserklärung (bei Kreditaufnahme immer erforderlich)",null,null,null,null,null,null,"¨","¨",false]
["9.","Nachweis der baren Eigenmittel (bei über 20.000 Euro baren Eigenmitteln erforderlich)",null,null,null,null,null,null,"¨","¨",false]
["10.","Kooperationsvereinbarung (bei Kooperationen erforderlich)",null,null,null,null,null,null,"¨","¨",false]
["11.","Gewerbeanmeldung/Gewerberegisterauskunft (bei Kooperation + Gewerbe erforderlich)",null,null,null,null,null,null,"¨","¨",false]
["12.","Kopie des Gesellschaftsvertrags, der Satzung (bei Gesellschaft, Verein etc. erforderlich)",null,null,null,null,null,null,"¨","¨",false]
["13.","Kopie des Pachtvertrags (bei Maßnahmen auf Pachtfläche erforderlich)",null,null,null,null,null,null,"¨","¨",false]
["14.\n","Bescheinigung/Antrag sonstige öffentliche Förderung, ggf. Ergänzung zur Anlage z.B. De-minimis, Beihilfewert, Beihilfen derselben förderf. Ausgaben (sofern erforderlich)",null,null,null,null,null,null,"¨","¨",false]
["15.","Baurechtliche Genehmigung inkl. 2-fachen Bauplänen (sofern erforderlich)",null,null,null,null,null,null,"¨","¨",false]
["16.","Skizze / Lageplan zur durchzuführenden Maßnahme (sofern erforderlich)",null,null,null,null,null,null,"¨","¨",false]
["17.\n","Kostenvoranschläge/Kostenschätzung Architekt (Ziffer 2.3.2) (bei Einzelkosten ab 7.500 Euro netto), bautechnische Stellungnahme bei bes. tiergerechter Pferdehaltung",null,null,null,null,null,null,"¨","¨",false]
["18.\n","Arbeitsvertrag (erforderlich bei Antragstellern gemäß der Ziffer 3.1.2, ggf. gemäß der Ziffern 3.2.3 und 3.3 der Landesrichtlinien)",null,null,null,null,null,null,"¨","¨",false]
["19.","Vollmacht (bei Gesellschaften, Kooperationen, sonst. Gemeinschaften)",null,null,null,null,null,null,"¨","¨",false]
["20.","Dienstleistungs-, Betreuervertrag / Vereinbarung mit Gebührenrechnung mit Vollmacht",null,null,null,null,null,null,"¨","¨",false]
["21.","Antrag auf Bescheinigung der Förderunschädlichkeit des Beginns vor der Bewilligung",null,null,null,null,null,null,"¨","¨",false]
["22.","Nachweis über zu erbringende Eigenleistung (sofern erforderlich)",null,null,null,null,null,null,"¨","¨",false]
["23.","Darstellung des Bezugs zum ländlicher Raum (sofern erforderlich)",null,null,null,null,null,null,"¨","¨",false]
["24.","Bescheinigung der Gemeinnützigkeit (sofern erforderlich)",null,null,null,null,null,null,"¨","¨",false]
["25.","Flächenverzeichnis (nur bei KUP erforderlich)",null,null,null,null,null,null,"¨","¨",false]
["26.","Nachweis der Verwertungsmöglichkeit des Aufwuchses (nur bei KUP erforderlich)",null,null,null,null,null,null,"¨","¨",false]
["27.","Nachweis Leistungen Dritter (sofern erforderlich)",null,null,null,null,null,null,"¨","¨",false]
["99.",null,null,null,null,null,null,null,"¨","¨",false]
[]
["Ich versichere die Richtigkeit und Vollständigkeit meiner Angaben."]
[]
[]
[]
["Ort, Datum",null,null,null,null,"Ort, Datum"]
[]
[]
[]
["Unterschrift Antragsteller und Ehegatte, Bevollmächtigter",null,null,null,null,"Unterschrift Antragsteller und Ehegatte, Bevollmächtigter"]

{"sheet":"Hilfe","index":7,"n_rows":28,"n_cols":2,"rows_kept":28,"cut":false,"hidden":false,"merged":[]}
[null,"Zur Neuberechnung bitte anklicken:"]
[null,{"$f":"\"Ausfüllkontrolle für Betrieb \"& 'Ant1'!G12 &\" \" & 'Ant1'!B14","v":"Ausfüllkontrolle für Betrieb  "}]
["am",{"$f":"NOW()","v":"2024-07-17T12:15:29.810"}]
[1,"001: Unternehmer-Nr. unplausibel."]
[2,"002: Ziffer 1.1 - Name fehlt."]
[3,"003: Ziffer 1.1 - Anschrift fehlt."]
[4,"004: Ziffer 1.1 - PLZ fehlt oder ist unvollständig."]
[5,"005: Ziffer 1.1 - Wohnort fehlt."]
[6,"010: Ziffer 1.4.1 nicht gewählt, obwohl unter Ziffer 4.  2.1 oder 2.2 oder 2.3.1 oder 2.4 beantragt."]
[7,"018: Ziffer 2 - Maßnahmenbeschreibung fehlt"]
[8,"023: Ziffer 2 - Beginn der Durchführung liegt in der Vergangenheit oder fehlt."]
[9,"025: Ziffer 2 - Ende der Durchführung ist unplausibel."]
[10,"027: Ziffer 3 zu 4 - Angabe Organisationsausgaben ist nicht plausibel"]
[11,"028: Ziffer 3 zu 4 - Angabe Startbeihilfen ist nicht plausibel"]
[12,"029: Ziffer 3 zu 4 - Angabe Einrichtung, Ausstattung, sonst. Sachausgaben ist nicht plausibel"]
[13,"030: Ziffer 3 zu 4 - Angabe Investitionen GAKG - Angabe ist nicht plausibel"]
[14,"031: Ziffer 3 zu 4 - Angabe Bildungsmaßnahmen - Angabe ist nicht plausibel"]
[15,"032: Ziffer 3 - Gesamtkosten unter 2.000 Euro.  - Kann das sein?"]
[16,"033: Ziffer 4 - Angabe Organisationsausgaben ist nicht plausibel bzw. Mindestzuschuss ist nicht erreicht."]
[17,"034: Ziffer 4 - Angabe Startbeihilfen - Angabe ist nicht plausibel bzw. Mindestzuschuss ist nicht erreicht."]
[18,"035: Ziffer 4 - Angabe Einrichtung, Ausstattung, sonst. Sachausgaben ist nicht plausibel bzw. Mindestzuschuss ist nicht erreicht."]
[19,"036: Ziffer 4 - Angabe Investitionen GAKG - Angabe ist nicht plausibel bzw. Mindestzuschuss ist nicht erreicht."]
[20,"037: Ziffer 4 - Angabe Bildungsmaßnahmen - ist nicht plausibel bzw. Mindestzuschuss ist nicht erreicht."]
[21,"038: Ziffer 4 - Gesamtförderung unter 1.000 Euro. - Kann das sein?"]
[22,"075: Anlage - Ergänzungsblätter fehlen!"]
[23,"076: Anlage - Investitionskonzept fehlt!"]
[24,"077: Anlage - Bescheinigung der Alterskasse fehlt!"]
[25,"079: Anlage - Buchführungsabschlüsse fehlen!"]

{"sheet":"Anh2","index":8,"n_rows":40,"n_cols":10,"rows_kept":40,"cut":false,"hidden":false,"merged":[[21,0,22,0],[25,0,26,0],[42,1,42,6],[21,1,22,2],[25,1,26,2],[29,1,30,2],[34,1,34,3],[41,1,41,7],[36,1,37,2],[33,1,33,6],[9,3,9,6],[11,1,11,3],[19,1,19,3],[1,1,1,6],[2,1,2,3],[2,4,2,7],[3,1,3,2],[4,1,5,2],[18,1,18,6],[10,1,10,6]]}
[null,null,null,null,null,null,"Unternehmer-Nr.",{"$f":"'Ant1'!G12","v":0}]
[100,"2.1 Organisationsausgaben für neue Einkommensquellen"]
[null,null,null,null,"Beträge in Euro"]
[null,null,null,"Jahr",1,{"$f":"IF(ISNUMBER(E4),E4+1,\" \")","v":2},{"$f":"IF(ISNUMBER(E4),E4+2,\" \")","v":3},"insgesamt"]
[null,"Beratung, Konzeption, Geschäftsausgaben",null,"brutto",{"$f":"AusgOrga!C31","v":0},{"$f":"AusgOrga!D31","v":0},{"$f":"AusgOrga!E31","v":0},{"$f":"SUM(E5:G5)","v":0}]
[null,null,null,"USt.",{"$f":"AusgOrga!C30","v":0},{"$f":"AusgOrga!D30","v":0},{"$f":"AusgOrga!E30","v":0},{"$f":"SUM(E6:G6)","v":0}]
[180,null,null,"förderfähig",{"$f":"AusgOrga!C29","v":0},{"$f":"AusgOrga!D29","v":0},{"$f":"AusgOrga!E29","v":0},0]
[190,null,"Zuschuss bis zu 50 %",null,{"$f":"IF(AND(H10=2,H7>=2000),ROUNDDOWN(MIN(E7*50%,25000),2),IF(AND(H10=1,H7>=2000),ROUNDDOWN(MIN(E7*50%,50000),2),0))","v":0},{"$f":"IF(AND(H10=2,ISNUMBER(E8),H7>=1000),ROUNDDOWN(MIN(F7*50%,25000-E8),2), IF(AND(H10=1,ISNUMBER(E8),H7>=1000),ROUNDDOWN(MIN(F7*50%,50000-E8),2),0))","v":0},{"$f":"IF(AND(H10=2,H7>=1000,ISNUMBER(E8)),ROUNDDOWN(MIN(G7*50%,25000-E8-F8),2), IF(AND(H10=1,H7>=1000,ISNUMBER(E8)),ROUNDDOWN(MIN(G7*50%,50000-E8-F8),2),0))","v":0},{"$f":"IF(ISNUMBER(E8+F8+G8),E8+F8+G8,0)","v":0},{"$f":"IF(H10=1,\"max.  50.000 Euro\",\"max. 25.000 Euro\")","v":"max.  50.000 Euro"},"min. 1.000 Euro"]
[]
[null,null,null,"Bei Kooperation \"1\", sonst \"2\" eintragen >>",null,null,null,1]
[200,"2.2 Startbeihilfen für neue Einkommensquellen"]
[null,null,null,null,null,null,"Beträge in Euro"]
[null,null,"Jahr",null,1,{"$f":"IF(ISNUMBER(E13),E13+1,\" \")","v":2},{"$f":"IF(ISNUMBER(E13),E13+2,\" \")","v":3},"insgesamt"]
[280,null,"Ausgaben in dem Jahr",null,{"$f":"AusgStartbeih!C29","v":0},{"$f":"AusgStartbeih!D29","v":0},{"$f":"AusgStartbeih!E29","v":0},{"$f":"E14+F14+G14","v":0}]
[291,null,"Zuschuss 1. Jahr","bis zu 60 %",{"$f":"MIN(ROUNDDOWN(E14*60%,2),24000)","v":0},null,null,{"$f":"IF(E15>24000,24000,E15)","v":0},"max. 24.000 Euro"]
[292,null,"Zuschuss 2. Jahr","bis zu 50 %",null,{"$f":"MIN(ROUNDDOWN(F14*50%,2),20000)","v":0},null,{"$f":"IF(F16>20000,20000,F16)","v":0},"max. 20.000 Euro"]
[293,null,"Zuschuss 3. Jahr","bis zu 40 %",null,null,{"$f":"MIN(ROUNDDOWN(G14*40%,2),16000)","v":0},{"$f":"IF(G17>16000,16000,G17)","v":0},"max. 16.000 Euro"]
[null,null,null,null,null,null,"insgesamt",{"$f":"IF(H15+H16+H17>0,IF(H15+H16+H17<1000,0,H15+H16+H17),0)","v":0},null,"min. 1.000 Euro"]
[300,"2.3.1 Sachausgaben für neue Einkommensquellen"]
[null,null,null,null,null,null,"Beträge in Euro"]
[null,null,"Jahr",null,1,{"$f":"IF(ISNUMBER(E21),E21+1,\" \")","v":2},{"$f":"IF(ISNUMBER(E21),E21+2,\" \")","v":3},"insgesamt"]
[310,"1. Einrichtung und Ausstattung",null,"brutto",{"$f":"AusgStratEuA!D31","v":0},{"$f":"AusgStratEuA!E31","v":0},{"$f":"AusgStratEuA!F31","v":0},{"$f":"E22+F22+G22","v":0}]
[null,null,null,"USt. ",{"$f":"AusgStratEuA!D30","v":0},{"$f":"AusgStratEuA!E30","v":0},{"$f":"AusgStratEuA!F30","v":0},0]
[null,null,null,"förderfähig",{"$f":"AusgStratEuA!D29","v":0},{"$f":"AusgStratEuA!E29","v":0},{"$f":"AusgStratEuA!F29","v":0},0]
[319,null,"Zuschuss bis zu 25 %",null,{"$f":"MIN(ROUNDDOWN(E24*25%,2),25000)","v":0},{"$f":"MIN(ROUNDDOWN(F24*25%,2),25000-E25)","v":0},{"$f":"MIN(ROUNDDOWN(G24*25%,2),25000-E25-F25)","v":0},{"$f":"E25+F25+G25","v":0},"max. 25.000 Euro"]
["320\n","2. Marketingmaßnahmen, \n    sonst. Sachausgaben",null,"brutto",{"$f":"AusgStratSach!D31","v":0},{"$f":"AusgStratSach!E31","v":0},{"$f":"AusgStratSach!F31","v":0},0]
[null,null,null,"USt.",{"$f":"AusgStratSach!D30","v":0},{"$f":"AusgStratSach!E30","v":0},{"$f":"AusgStratSach!F30","v":0},0]
[null,null,null,"förderfähig",{"$f":"AusgStratSach!D29","v":0},{"$f":"AusgStratSach!E29","v":0},{"$f":"AusgStratSach!F29","v":0},0]
[329,null,"Zuschuss bis zu 50 %",null,{"$f":"MIN(ROUNDDOWN(E28*50%,2),25000)","v":0},{"$f":"MIN(ROUNDDOWN(F28*50%,2),25000-E29)","v":0},{"$f":"MIN(ROUNDDOWN(G28*50%,2),25000-E29-F29)","v":0},0,"max. 25.000 Euro"]
[null,"3. Ziffer 2.3.1 zusammen",null,"brutto",{"$f":"E22+E26","v":0},0,0,{"$f":"E30+F30+G30","v":0}]
[null,null,null,"USt.",0,0,0,{"$f":"E31+F31+G31","v":0}]
[380,null,null,"förderfähig",0,0,0,{"$f":"E32+F32+G32","v":0}]
[null,null,"Insgesamt",null,{"$f":"IF(H25+H29>=1000,E25+E29,0)","v":0},{"$f":"IF(H25+H29>=1000,F25+F29,0)","v":0},{"$f":"IF(H25+H29>=1000,G25+G29,0)","v":0},{"$f":"E33+F33+G33","v":0},null,"min. 1.000 Euro"]
[400,"2.4 Qualifizierungsmaßnahmen für neue Einkommensquellen"]
[null,null,null,null,null,null,"Beträge in Euro"]
[null,null," Jahr",null,1,{"$f":"IF(ISNUMBER(E36),E36+1,\" \")","v":2},{"$f":"IF(ISNUMBER(E36),E36+2,\" \")","v":3},"insgesamt"]
[null,"Ausgaben für Seminare, Kurse, Lehrgänge",null,"brutto",{"$f":"AusgQuali!C31","v":0},{"$f":"AusgQuali!D31","v":0},{"$f":"AusgQuali!E31","v":0},{"$f":"SUM(E37:G37)","v":0}]
[null,null,null,"USt.",{"$f":"AusgQuali!C30","v":0},{"$f":"AusgQuali!D30","v":0},{"$f":"AusgQuali!E30","v":0},{"$f":"SUM(E38:G38)","v":0}]
[480,null,null,"förderfähig",{"$f":"AusgQuali!C29","v":0},{"$f":"AusgQuali!D29","v":0},{"$f":"AusgQuali!E29","v":0},{"$f":"SUM(E39:G39)","v":0}]
[490,null,"Zuschuss bis zu 80 %",null,{"$f":"IF(H39>=250,ROUNDDOWN(MIN(E39*80%,1000),2),0)","v":0},{"$f":"IF(H39>=250,ROUNDDOWN(MIN(F39*80%,1000-E40),2),0)","v":0},{"$f":"IF(H39>=250,ROUNDDOWN(MIN(G39*80%,1000-E40-F40),2),0)","v":0},{"$f":"E40+F40+G40","v":0},"max. 1.000 Euro","min. 200 Euro"]

{"sheet":"Anh3","index":9,"n_rows":28,"n_cols":10,"rows_kept":28,"cut":false,"hidden":false,"merged":[[1,1,1,6],[25,1,25,7],[26,1,26,7],[27,1,27,7],[2,1,2,3],[2,4,2,7],[3,1,3,2],[23,0,23,7],[19,1,19,3]]}
[null,null,null,null,null,null,"Unternehmer-Nr.",{"$f":"'Ant1'!G12","v":0}]
[500,"2.3.2 Ausgaben für GAK-Maßnahmen"]
[null,null,null,null,"Beträge in Euro"]
[null,null,null,"Jahr",1,2,3,"insgesamt"]
[null,"1.","Errichtung, Modernisierung","brutto",{"$f":"AusgGAKImmo!D31","v":0},{"$f":"AusgGAKImmo!E31","v":0},{"$f":"AusgGAKImmo!F31","v":0},{"$f":"E5+F5+G5","v":0}]
[null,null,null,"USt.",{"$f":"AusgGAKImmo!D30","v":0},{"$f":"AusgGAKImmo!E30","v":0},{"$f":"AusgGAKImmo!F30","v":0},0]
[null,null,null,"förderfähig",{"$f":"AusgGAKImmo!D29","v":0},{"$f":"AusgGAKImmo!E29","v":0},{"$f":"AusgGAKImmo!F29","v":0},0]
[null,"2.","Maschinen und Anlagen","brutto",{"$f":"AusgGAKMasch!D31","v":0},{"$f":"AusgGAKMasch!E31","v":0},{"$f":"AusgGAKMasch!F31","v":0},0]
[null,null,null,"USt.",{"$f":"AusgGAKMasch!D30","v":0},{"$f":"AusgGAKMasch!E30","v":0},{"$f":"AusgGAKMasch!F30","v":0},0]
[null,null,null,"förderfähig",{"$f":"AusgGAKMasch!D29","v":0},{"$f":"AusgGAKMasch!E29","v":0},{"$f":"AusgGAKMasch!F29","v":0},0]
[null,"3.","Allgemeiner Aufwand","brutto",{"$f":"AusgGAKallg.Auf!D31","v":0},{"$f":"AusgGAKallg.Auf!E31","v":0},{"$f":"AusgGAKallg.Auf!F31","v":0},0]
[null,null,null,"USt.",{"$f":"AusgGAKallg.Auf!D30","v":0},{"$f":"AusgGAKallg.Auf!E30","v":0},{"$f":"AusgGAKallg.Auf!F30","v":0},0]
[530,null,null,"netto",{"$f":"AusgGAKallg.Auf!D29","v":0},{"$f":"AusgGAKallg.Auf!E29","v":0},{"$f":"AusgGAKallg.Auf!F29","v":0},0]
[]
[null,"4.","Summen","brutto",{"$f":"E5+E8+E11","v":0},0,0,0]
[null,null,null,"USt.",0,0,0,0]
[540,null,null,"förderfähig",0,0,0,0,null,"min. 10.000 Euro"]
[null,"Förderberechnung bez. Nr. 3"]
[null,null,"anerkennbar von 3.","max. 12%",{"$f":"MIN(E13,H19)","v":0},{"$f":"MIN(F13,H19-E19)","v":0},{"$f":"MIN(G13,H19-E19-F19)","v":0},{"$f":"MIN(H13,ROUNDDOWN(0.12*(H7+H10),2))","v":0}]
[580,"Bemessungsgrundlage",null,null,{"$f":"E7+E10+E19","v":0},{"$f":"F7+F10+F19","v":0},{"$f":"G7+G10+G19","v":0},{"$f":"H7+H10+H19","v":0}]
[590,"5.","Zuwendungsbetrag bei 20 % Zuschuss",null,{"$f":"IF(H17>=10000,ROUNDDOWN(MIN(E20*20%,100000),2),0)","v":0},{"$f":"IF(H17>=10000,IF(E21>=0,ROUNDDOWN(MIN(F20*20%,100000-E21),2)),0)","v":0},{"$f":"IF(H17>10000,IF(E21>=0,ROUNDDOWN(MIN(G20*20%,100000-E21-F21),2)),0)","v":0},{"$f":"IF(ISNUMBER(E21+F21+G21),E21+F21+G21,0)","v":0},"max. 100.000 Euro"]
[]
[]
["Hinweise"]
["2.3.2","Ausgaben für GAK-Maßnahmen"]
[null,"- Errichtung, Erwerb oder Modernisierung von unbeweglichem Vermögen;"]
[null,"- Erstanschaffung von neuen Maschinen und Anlagen, einschließlich Computersoftware bis zum marktüblichen Wert des\n   Wirtschaftsgutes;"]
[null,"- allgemeine Aufwendungen, etwa für Architektur- und Ingenieurleistungen sowie für Beratung, Betreuung von baulichen\n   Investitionen, Durchführbarkeitsstudien, den Erwerb von Patentrechten und Lizenzen, bis zu einem Höchstsatz von\n   insgesamt 12 % der in Punkten 1 und 2 genannten förderfähigen Ausgaben, d.h. ohne Selbstbezug auf diese Position."]

{"sheet":"AusgOrga","index":10,"n_rows":32,"n_cols":7,"rows_kept":32,"cut":false,"hidden":false,"merged":[[1,0,3,0],[1,2,2,5],[1,1,3,1],[1,6,3,6]]}
["2.1  Kostenaufstellung Organisationsausgaben - Beratung, Konzeption, Geschäftsausgaben (ohne USt.)",null,null,null,null,"Unternehmer-Nr.",{"$f":"'Ant1'!G12","v":0}]
["Kostengliederung Organisationsausgaben1)","USt.-Satz","Ausgaben in Euro",null,null,null,"von Kreisstelle geprüft"]
[]
[null,null,"1. Förderjahr","2. Förderjahr","3. Förderjahr","gesamt"]
[null,{"$f":"IF(A5>\"\",0.19,\"\")","v":""},null,null,null,{"$f":"IF(SUM(C5:E5)>0,SUM(C5:E5),\"\")","v":""}]
[null,{"$f":"IF(A6>\"\",0.19,\"\")","v":""},null,null,null,{"$f":"IF(SUM(C6:E6)>0,SUM(C6:E6),\"\")","v":""}]
[null,"",null,null,null,""]
[null,"",null,null,null,""]
[null,"",null,null,null,""]
[null,"",null,null,null,""]
[null,"",null,null,null,""]
[null,"",null,null,null,""]
[null,"",null,null,null,""]
[null,"",null,null,null,""]
[null,"",null,null,null,""]
[null,"",null,null,null,""]
[null,"",null,null,null,""]
[null,"",null,null,null,""]
[null,"",null,null,null,""]
[null,"",null,null,null,""]
[null,"",null,null,null,""]
[null,{"$f":"IF(A22>\"\",0.19,\"\")","v":""},null,null,null,{"$f":"IF(SUM(C22:E22)>0,SUM(C22:E22),\"\")","v":""}]
[null,"",null,null,null,""]
[null,{"$f":"IF(A24>\"\",0.19,\"\")","v":""},null,null,null,{"$f":"IF(SUM(C24:E24)>0,SUM(C24:E24),\"\")","v":""}]
[null,{"$f":"IF(A25>\"\",0.19,\"\")","v":""},null,null,null,{"$f":"IF(SUM(C25:E25)>0,SUM(C25:E25),\"\")","v":""}]
[null,{"$f":"IF(A26>\"\",0.19,\"\")","v":""},null,null,null,{"$f":"IF(SUM(C26:E26)>0,SUM(C26:E26),\"\")","v":""}]
[null,{"$f":"IF(A27>\"\",0.19,\"\")","v":""},null,null,null,{"$f":"IF(SUM(C27:E27)>0,SUM(C27:E27),\"\")","v":""}]
[null,{"$f":"IF(A28>\"\",0.19,\"\")","v":""},null,null,null,{"$f":"IF(SUM(C28:E28)>0,SUM(C28:E28),\"\")","v":""}]
["Summe netto",null,{"$f":"SUM(C5:C28)","v":0},{"$f":"SUM(D5:D28)","v":0},{"$f":"SUM(E5:E28)","v":0},{"$f":"SUM(F5:F28)","v":0}]
["Summe USt.",null,{"$f":"ROUND(SUMPRODUCT(B5:B28,C5:C28),2)","v":0},{"$f":"ROUND(SUMPRODUCT(B5:B28,D5:D28),2)","v":0},{"$f":"ROUND(SUMPRODUCT(B5:B28,E5:E28),2)","v":0},{"$f":"SUM(C30:E30)","v":0}]
["Summe brutto",null,{"$f":"C29+C30","v":0},{"$f":"D29+D30","v":0},{"$f":"E29+E30","v":0},{"$f":"SUM(C31:E31)","v":0}]
["1) für Einzelkosten > 7.500 € netto. Ggf. Position aus Kostenvoranschlag angeben."]

{"sheet":"AusgStartbeih","index":11,"n_rows":31,"n_cols":7,"rows_kept":31,"cut":false,"hidden":false,"merged":[[1,0,3,0],[1,2,2,5],[1,1,3,1],[1,6,3,6]]}
["2.2 Startbeihilfen (ohne USt.)",null,null,null,null,"Unternehmer-Nr.",{"$f":"'Ant1'!G12","v":0}]
["Kostengliederung Startbeihilfen\nStaffelung nach Jahren erforderlich","USt.-Satz","Ausgaben in Euro",null,null,null,"von Kreisstelle geprüft"]
[]
[null,null,"1. Förderjahr","2. Förderjahr","3. Förderjahr","gesamt"]
[null,null,null,null,null,{"$f":"IF(SUM(C5:E5)>0,SUM(C5:E5),\"\")","v":""}]
[null,null,null,null,null,{"$f":"IF(SUM(C6:E6)>0,SUM(C6:E6),\"\")","v":""}]
[null,null,null,null,null,""]
[null,null,null,null,null,""]
[null,null,null,null,null,""]
[null,null,null,null,null,""]
[null,null,null,null,null,""]
[null,null,null,null,null,""]
[null,null,null,null,null,""]
[null,null,null,null,null,{"$f":"IF(SUM(C14:E14)>0,SUM(C14:E14),\"\")","v":""}]
[null,null,null,null,null,""]
[null,null,null,null,null,""]
[null,null,null,null,null,""]
[null,null,null,null,null,""]
[null,null,null,null,null,""]
[null,null,null,null,null,{"$f":"IF(SUM(C20:E20)>0,SUM(C20:E20),\"\")","v":""}]
[null,null,null,null,null,""]
[null,null,null,null,null,""]
[null,null,null,null,null,""]
[null,null,null,null,null,""]
[null,null,null,null,null,""]
[null,null,null,null,null,""]
[null,null,null,null,null,""]
[null,null,null,null,null,""]
["Summe netto",null,{"$f":"SUM(C5:C28)","v":0},{"$f":"SUM(D5:D28)","v":0},{"$f":"SUM(E5:E28)","v":0},{"$f":"SUM(F5:F28)","v":0}]
["Summe USt.",null,{"$f":"ROUND(SUMPRODUCT(B5:B28,C5:C28),2)","v":0},{"$f":"ROUND(SUMPRODUCT(B5:B28,D5:D28),2)","v":0},{"$f":"ROUND(SUMPRODUCT(B5:B28,E5:E28),2)","v":0},{"$f":"SUM(C30:E30)","v":0}]
["Summe brutto",null,{"$f":"C29+C30","v":0},{"$f":"D29+D30","v":0},{"$f":"E29+E30","v":0},{"$f":"SUM(C31:E31)","v":0}]

{"sheet":"AusgStratEuA","index":12,"n_rows":32,"n_cols":8,"rows_kept":32,"cut":false,"hidden":false,"merged":[[1,0,3,0],[1,2,3,2],[1,3,2,6],[1,7,3,7],[1,1,3,1]]}
["2.3.1  Kostenaufstellung Strategiekonzept - Einrichtung / Ausstattung (ohne USt.)",null,null,null,null,null,"Unternehmer-Nr.",{"$f":"'Ant1'!G12","v":0}]
["Kostengliederung Einrichtung / Ausstattung","USt.-Satz","Kostenvor-\nanschlag\nNr.1)","Ausgaben in Euro",null,null,null,"von Kreisstelle geprüft"]
[]
[null,null,null,"1. Förderjahr","2. Förderjahr","3. Förderjahr","gesamt"]
[null,{"$f":"IF(A5>\"\",0.19,\"\")","v":""},null,null,null,null,{"$f":"IF(SUM(D5:F5)>0,SUM(D5:F5),\"\")","v":""}]
[null,{"$f":"IF(A6>\"\",0.19,\"\")","v":""},null,null,null,null,{"$f":"IF(SUM(D6:F6)>0,SUM(D6:F6),\"\")","v":""}]
[null,{"$f":"IF(A7>\"\",0.19,\"\")","v":""},null,null,null,null,""]
[null,{"$f":"IF(A8>\"\",0.19,\"\")","v":""},null,null,null,null,""]
[null,{"$f":"IF(A9>\"\",0.19,\"\")","v":""},null,null,null,null,""]
[null,{"$f":"IF(A10>\"\",0.19,\"\")","v":""},null,null,null,null,""]
[null,"",null,null,null,null,""]
[null,"",null,null,null,null,""]
[null,"",null,null,null,null,""]
[null,{"$f":"IF(A14>\"\",0.19,\"\")","v":""},null,null,null,null,{"$f":"IF(SUM(D14:F14)>0,SUM(D14:F14),\"\")","v":""}]
[null,"",null,null,null,null,{"$f":"IF(SUM(D15:F15)>0,SUM(D15:F15),\"\")","v":""}]
[null,{"$f":"IF(A16>\"\",0.19,\"\")","v":""},null,null,null,null,{"$f":"IF(SUM(D16:F16)>0,SUM(D16:F16),\"\")","v":""}]
[null,"",null,null,null,null,{"$f":"IF(SUM(D17:F17)>0,SUM(D17:F17),\"\")","v":""}]
[null,{"$f":"IF(A18>\"\",0.19,\"\")","v":""},null,null,null,null,{"$f":"IF(SUM(D18:F18)>0,SUM(D18:F18),\"\")","v":""}]
[null,"",null,null,null,null,""]
[null,"",null,null,null,null,""]
[null,{"$f":"IF(A21>\"\",0.19,\"\")","v":""},null,null,null,null,{"$f":"IF(SUM(D21:F21)>0,SUM(D21:F21),\"\")","v":""}]
[null,"",null,null,null,null,""]
[null,"",null,null,null,null,""]
[null,"",null,null,null,null,""]
[null,"",null,null,null,null,""]
[null,"",null,null,null,null,""]
[null,"",null,null,null,null,""]
[null,"",null,null,null,null,""]
["Summe netto",null,null,{"$f":"SUM(D5:D28)","v":0},{"$f":"SUM(E5:E28)","v":0},{"$f":"SUM(F5:F28)","v":0},{"$f":"SUM(G5:G28)","v":0}]
["Summe USt.",null,null,{"$f":"ROUND(SUMPRODUCT(B5:B28,D5:D28),2)","v":0},{"$f":"ROUND(SUMPRODUCT(B5:B28,E5:E28),2)","v":0},{"$f":"ROUND(SUMPRODUCT(B5:B28,F5:F28),2)","v":0},{"$f":"SUM(D30:F30)","v":0}]
["Summe brutto",null,null,{"$f":"D29+D30","v":0},{"$f":"E29+E30","v":0},{"$f":"F29+F30","v":0},{"$f":"SUM(D31:F31)","v":0}]
["1) für Einzelkosten > 7.500 € netto. Ggf. Position aus Kostenvoranschlag angeben."]

{"sheet":"AusgStratSach","index":13,"n_rows":32,"n_cols":8,"rows_kept":32,"cut":false,"hidden":false,"merged":[[1,0,3,0],[1,2,3,2],[1,3,2,6],[1,7,3,7],[1,1,3,1]]}
["2.3.1  Kostenaufstellung Strategiekonzept - Sonstige Sachkosten / Marketing (ohne USt.)",null,null,null,null,null,"Unternehmer-Nr.",{"$f":"'Ant1'!G12","v":0}]
["Kostengliederung Sonstige Sachkosten / Marketing","USt.-Satz","Kostenvor-\nanschlag\nNr.1)","Ausgaben in Euro",null,null,null,"von Kreisstelle geprüft"]
[]
[null,null,null,"1. Förderjahr","2. Förderjahr","3. Förderjahr","gesamt"]
[null,{"$f":"IF(A5>\"\",0.19,\"\")","v":""},null,null,null,null,{"$f":"IF(SUM(D5:F5)>0,SUM(D5:F5),\"\")","v":""}]
[null,{"$f":"IF(A6>\"\",0.19,\"\")","v":""},null,null,null,null,""]
[null,"",null,null,null,null,""]
[null,"",null,null,null,null,""]
[null,"",null,null,null,null,""]
[null,"",null,null,null,null,""]
[null,"",null,null,null,null,{"$f":"IF(SUM(D11:F11)>0,SUM(D11:F11),\"\")","v":""}]
[null,"",null,null,null,null,""]
[null,{"$f":"IF(A13>\"\",0.19,\"\")","v":""},null,null,null,null,{"$f":"IF(SUM(D13:F13)>0,SUM(D13:F13),\"\")","v":""}]
[null,"",null,null,null,null,""]
[null,"",null,null,null,null,""]
[null,{"$f":"IF(A16>\"\",0.19,\"\")","v":""},null,null,null,null,""]
[null,"",null,null,null,null,""]
[null,"",null,null,null,null,""]
[null,{"$f":"IF(A19>\"\",0.19,\"\")","v":""},null,null,null,null,{"$f":"IF(SUM(D19:F19)>0,SUM(D19:F19),\"\")","v":""}]
[null,"",null,null,null,null,""]
[null,"",null,null,null,null,""]
[null,{"$f":"IF(A22>\"\",0.19,\"\")","v":""},null,null,null,null,{"$f":"IF(SUM(D22:F22)>0,SUM(D22:F22),\"\")","v":""}]
[null,"",null,null,null,null,""]
[null,"",null,null,null,null,""]
[null,"",null,null,null,null,""]
[null,"",null,null,null,null,""]
[null,"",null,null,null,null,""]
[null,"",null,null,null,null,""]
["Summe netto",null,null,{"$f":"SUM(D5:D28)","v":0},{"$f":"SUM(E5:E28)","v":0},{"$f":"SUM(F5:F28)","v":0},{"$f":"SUM(G5:G28)","v":0}]
["Summe USt.",null,null,{"$f":"ROUND(SUMPRODUCT(B5:B28,D5:D28),2)","v":0},{"$f":"ROUND(SUMPRODUCT(B5:B28,E5:E28),2)","v":0},{"$f":"ROUND(SUMPRODUCT(B5:B28,F5:F28),2)","v":0},{"$f":"SUM(D30:F30)","v":0}]
["Summe brutto",null,null,{"$f":"D29+D30","v":0},{"$f":"E29+E30","v":0},{"$f":"F29+F30","v":0},{"$f":"SUM(D31:F31)","v":0}]
["1) für Einzelkosten > 7.500 € netto. Ggf. Position aus Kostenvoranschlag angeben."]

{"sheet":"AusgGAKImmo","index":14,"n_rows":33,"n_cols":8,"rows_kept":33,"cut":false,"hidden":false,"merged":[[1,0,3,0],[1,2,3,2],[1,3,2,6],[1,7,3,7],[1,1,3,1]]}
["2.3.2  Kostenaufstellung für GAK-Maßnahmen2) - Errichtung, Modernisierung von Immobilien (ohne USt.)",null,null,null,null,null,"Unternehmer-Nr.",{"$f":"'Ant1'!G12","v":0}]
["Kostengliederung Errichtung, Modernisierung von Immobilien","USt.-Satz","Kostenvor-\nanschlag\nNr.1)","Ausgaben in Euro",null,null,null,"von Kreisstelle geprüft"]
[]
[null,null,null,"1. Förderjahr","2. Förderjahr","3. Förderjahr","gesamt"]
[null,{"$f":"IF(A5>\"\",0.19,\"\")","v":""},null,null,null,null,{"$f":"IF(SUM(D5:F5)>0,SUM(D5:F5),\"\")","v":""}]
[null,{"$f":"IF(A6>\"\",0.19,\"\")","v":""},null,null,null,null,{"$f":"IF(SUM(D6:F6)>0,SUM(D6:F6),\"\")","v":""}]
[null,{"$f":"IF(A7>\"\",0.19,\"\")","v":""},null,null,null,null,{"$f":"IF(SUM(D7:F7)>0,SUM(D7:F7),\"\")","v":""}]
[null,{"$f":"IF(A8>\"\",0.19,\"\")","v":""},null,null,null,null,{"$f":"IF(SUM(D8:F8)>0,SUM(D8:F8),\"\")","v":""}]
[null,{"$f":"IF(A9>\"\",0.19,\"\")","v":""},null,null,null,null,{"$f":"IF(SUM(D9:F9)>0,SUM(D9:F9),\"\")","v":""}]
[null,{"$f":"IF(A10>\"\",0.19,\"\")","v":""},null,null,null,null,{"$f":"IF(SUM(D10:F10)>0,SUM(D10:F10),\"\")","v":""}]
[null,{"$f":"IF(A11>\"\",0.19,\"\")","v":""},null,null,null,null,{"$f":"IF(SUM(D11:F11)>0,SUM(D11:F11),\"\")","v":""}]
[null,"",null,null,null,null,""]
[null,"",null,null,null,null,""]
[null,"",null,null,null,null,""]
[null,"",null,null,null,null,""]
[null,{"$f":"IF(A16>\"\",0.19,\"\")","v":""},null,null,null,null,{"$f":"IF(SUM(D16:F16)>0,SUM(D16:F16),\"\")","v":""}]
[null,"",null,null,null,null,""]
[null,"",null,null,null,null,""]
[null,"",null,null,null,null,""]
[null,{"$f":"IF(A20>\"\",0.19,\"\")","v":""},null,null,null,null,""]
[null,"",null,null,null,null,""]
[null,"",null,null,null,null,{"$f":"IF(SUM(D22:F22)>0,SUM(D22:F22),\"\")","v":""}]
[null,"",null,null,null,null,""]
[null,"",null,null,null,null,""]
[null,"",null,null,null,null,""]
[null,"",null,null,null,null,""]
[null,"",null,null,null,null,""]
[null,"",null,null,null,null,""]
["Summe netto",null,null,{"$f":"SUM(D5:D28)","v":0},{"$f":"SUM(E5:E28)","v":0},{"$f":"SUM(F5:F28)","v":0},{"$f":"SUM(G5:G28)","v":0}]
["Summe USt.",null,null,{"$f":"ROUND(SUMPRODUCT(B5:B28,D5:D28),2)","v":0},{"$f":"ROUND(SUMPRODUCT(B5:B28,E5:E28),2)","v":0},{"$f":"ROUND(SUMPRODUCT(B5:B28,F5:F28),2)","v":0},{"$f":"SUM(D30:F30)","v":0}]
["Summe brutto",null,null,{"$f":"D29+D30","v":0},{"$f":"E29+E30","v":0},{"$f":"F29+F30","v":0},{"$f":"SUM(D31:F31)","v":0}]
["1) für Einzelkosten > 7.500 € netto. Ggf. Position aus Kostenvoranschlag angeben."]
["2) Hinweise siehe Anh3"]

{"sheet":"AusgGAKMasch","index":15,"n_rows":33,"n_cols":8,"rows_kept":33,"cut":false,"hidden":false,"merged":[[1,0,3,0],[1,2,3,2],[1,3,2,6],[1,7,3,7],[1,1,3,1]]}
["2.3.2  Kostenaufstellung für GAK-Maßnahmen2) - Kauf neuer Maschinen und Anlagen (ohne USt.)",null,null,null,null,null,"Unternehmer-Nr.",{"$f":"'Ant1'!G12","v":0}]
["Kostengliederung Kauf neuer Maschinen und Anlagen","USt.-Satz","Kostenvor-\nanschlag\nNr.1)","Ausgaben in Euro",null,null,null,"von Kreisstelle geprüft"]
[]
[null,null,null,"1. Förderjahr","2. Förderjahr","3. Förderjahr","gesamt"]
[null,{"$f":"IF(A5>\"\",0.19,\"\")","v":""},null,null,null,null,{"$f":"IF(SUM(D5:F5)>0,SUM(D5:F5),\"\")","v":""}]
[null,{"$f":"IF(A6>\"\",0.19,\"\")","v":""},null,null,null,null,{"$f":"IF(SUM(D6:F6)>0,SUM(D6:F6),\"\")","v":""}]
[null,{"$f":"IF(A7>\"\",0.19,\"\")","v":""},null,null,null,null,{"$f":"IF(SUM(D7:F7)>0,SUM(D7:F7),\"\")","v":""}]
[null,{"$f":"IF(A8>\"\",0.19,\"\")","v":""},null,null,null,null,{"$f":"IF(SUM(D8:F8)>0,SUM(D8:F8),\"\")","v":""}]
[null,{"$f":"IF(A9>\"\",0.19,\"\")","v":""},null,null,null,null,{"$f":"IF(SUM(D9:F9)>0,SUM(D9:F9),\"\")","v":""}]
[null,{"$f":"IF(A10>\"\",0.19,\"\")","v":""},null,null,null,null,{"$f":"IF(SUM(D10:F10)>0,SUM(D10:F10),\"\")","v":""}]
[null,{"$f":"IF(A11>\"\",0.19,\"\")","v":""},null,null,null,null,""]
[null,{"$f":"IF(A12>\"\",0.19,\"\")","v":""},null,null,null,null,{"$f":"IF(SUM(D12:F12)>0,SUM(D12:F12),\"\")","v":""}]
[null,"",null,null,null,null,""]
[null,{"$f":"IF(A14>\"\",0.19,\"\")","v":""},null,null,null,null,{"$f":"IF(SUM(D14:F14)>0,SUM(D14:F14),\"\")","v":""}]
[null,{"$f":"IF(A15>\"\",0.19,\"\")","v":""},null,null,null,null,{"$f":"IF(SUM(D15:F15)>0,SUM(D15:F15),\"\")","v":""}]
[null,"",null,null,null,null,""]
[null,"",null,null,null,null,""]
[null,"",null,null,null,null,""]
[null,"",null,null,null,null,""]
[null,{"$f":"IF(A20>\"\",0.19,\"\")","v":""},null,null,null,null,{"$f":"IF(SUM(D20:F20)>0,SUM(D20:F20),\"\")","v":""}]
[null,"",null,null,null,null,""]
[null,"",null,null,null,null,""]
[null,"",null,null,null,null,""]
[null,"",null,null,null,null,""]
[null,"",null,null,null,null,""]
[null,"",null,null,null,null,""]
[null,"",null,null,null,null,""]
[null,"",null,null,null,null,""]
["Summe netto",null,null,{"$f":"SUM(D5:D28)","v":0},{"$f":"SUM(E5:E28)","v":0},{"$f":"SUM(F5:F28)","v":0},{"$f":"SUM(G5:G28)","v":0}]
["Summe USt.",null,null,{"$f":"ROUND(SUMPRODUCT(B5:B28,D5:D28),2)","v":0},{"$f":"ROUND(SUMPRODUCT(B5:B28,E5:E28),2)","v":0},{"$f":"ROUND(SUMPRODUCT(B5:B28,F5:F28),2)","v":0},{"$f":"SUM(D30:F30)","v":0}]
["Summe brutto",null,null,{"$f":"D29+D30","v":0},{"$f":"E29+E30","v":0},{"$f":"F29+F30","v":0},{"$f":"SUM(D31:F31)","v":0}]
["1) für Einzelkosten > 7.500 € netto. Ggf. Position aus Kostenvoranschlag angeben."]
["2) Hinweise siehe Anh3"]

{"sheet":"AusgGAKallg.Auf","index":16,"n_rows":33,"n_cols":8,"rows_kept":33,"cut":false,"hidden":false,"merged":[[1,0,3,0],[1,2,3,2],[1,3,2,6],[1,7,3,7],[1,1,3,1]]}
["2.3.2  Kostenaufstellung für GAK-Maßnahmen2) - Allgemeine Aufwendungen (ohne USt.)",null,null,null,null,null,"Unternehmer-Nr.",{"$f":"'Ant1'!G12","v":0}]
["Kostengliederung Allgemeine Aufwendungen\nwie Architekten, Ingenieur-Leistung, Beratung","USt.-Satz","Kostenvor-\nanschlag\nNr.1)","Ausgaben in Euro",null,null,null,"von Kreisstelle geprüft"]
[]
[null,null,null,"1. Förderjahr","2. Förderjahr","3. Förderjahr","gesamt"]
[null,{"$f":"IF(A5>\"\",0.19,\"\")","v":""},null,null,null,null,{"$f":"IF(SUM(D5:F5)>0,SUM(D5:F5),\"\")","v":""}]
[null,"",null,null,null,null,{"$f":"IF(SUM(D6:F6)>0,SUM(D6:F6),\"\")","v":""}]
[null,"",null,null,null,null,{"$f":"IF(SUM(D7:F7)>0,SUM(D7:F7),\"\")","v":""}]
[null,"",null,null,null,null,{"$f":"IF(SUM(D8:F8)>0,SUM(D8:F8),\"\")","v":""}]
[null,"",null,null,null,null,{"$f":"IF(SUM(D9:F9)>0,SUM(D9:F9),\"\")","v":""}]
[null,"",null,null,null,null,""]
[null,"",null,null,null,null,{"$f":"IF(SUM(D11:F11)>0,SUM(D11:F11),\"\")","v":""}]
[null,"",null,null,null,null,{"$f":"IF(SUM(D12:F12)>0,SUM(D12:F12),\"\")","v":""}]
[null,"",null,null,null,null,""]
[null,"",null,null,null,null,""]
[null,"",null,null,null,null,{"$f":"IF(SUM(D15:F15)>0,SUM(D15:F15),\"\")","v":""}]
[null,"",null,null,null,null,{"$f":"IF(SUM(D16:F16)>0,SUM(D16:F16),\"\")","v":""}]
[null,"",null,null,null,null,{"$f":"IF(SUM(D17:F17)>0,SUM(D17:F17),\"\")","v":""}]
[null,"",null,null,null,null,""]
[null,"",null,null,null,null,{"$f":"IF(SUM(D19:F19)>0,SUM(D19:F19),\"\")","v":""}]
[null,"",null,null,null,null,{"$f":"IF(SUM(D20:F20)>0,SUM(D20:F20),\"\")","v":""}]
[null,"",null,null,null,null,{"$f":"IF(SUM(D21:F21)>0,SUM(D21:F21),\"\")","v":""}]
[null,"",null,null,null,null,""]
[null,"",null,null,null,null,{"$f":"IF(SUM(D23:F23)>0,SUM(D23:F23),\"\")","v":""}]
[null,"",null,null,null,null,""]
[null,"",null,null,null,null,""]
[null,"",null,null,null,null,""]
[null,"",null,null,null,null,""]
[null,"",null,null,null,null,""]
["Summe netto",null,null,{"$f":"SUM(D5:D28)","v":0},{"$f":"SUM(E5:E28)","v":0},{"$f":"SUM(F5:F28)","v":0},{"$f":"SUM(G5:G28)","v":0}]
["Summe USt.",null,null,{"$f":"ROUND(SUMPRODUCT(B5:B28,D5:D28),2)","v":0},{"$f":"ROUND(SUMPRODUCT(B5:B28,E5:E28),2)","v":0},{"$f":"ROUND(SUMPRODUCT(B5:B28,F5:F28),2)","v":0},{"$f":"SUM(D30:F30)","v":0}]
["Summe brutto",null,null,{"$f":"D29+D30","v":0},{"$f":"E29+E30","v":0},{"$f":"F29+F30","v":0},{"$f":"SUM(D31:F31)","v":0}]
["1) für Einzelkosten > 7.500 € netto. Ggf. Position aus Kostenvoranschlag angeben."]
["2) Hinweise siehe Anh3"]

{"sheet":"AusgQuali","index":17,"n_rows":34,"n_cols":7,"rows_kept":34,"cut":false,"hidden":false,"merged":[[1,6,3,6],[32,0,32,5],[33,0,33,4],[1,0,3,0],[1,1,3,1],[1,2,2,5]]}
["2.4  Kostenaufstellung Qualifizierungsmaßnahmen (ohne USt.)",null,null,null,null,"Unternehmer-Nr.",{"$f":"'Ant1'!G12","v":0}]
["Kostengliederung Qualifizierungsmaßnahmen 1) 3) 4)","USt.-Satz","Ausgaben in Euro",null,null,null,"von Kreisstelle geprüft"]
[]
[null,null,"1. Förderjahr","2. Förderjahr","3. Förderjahr","gesamt"]
[null,{"$f":"IF(A5>\"\",0.19,\"\")","v":""},null,null,null,{"$f":"IF(SUM(C5:E5)>0,SUM(C5:E5),\"\")","v":""}]
[null,{"$f":"IF(A6>\"\",0.19,\"\")","v":""},null,null,null,{"$f":"IF(SUM(C6:E6)>0,SUM(C6:E6),\"\")","v":""}]
[null,{"$f":"IF(A7>\"\",0.19,\"\")","v":""},null,null,null,{"$f":"IF(SUM(C7:E7)>0,SUM(C7:E7),\"\")","v":""}]
[null,{"$f":"IF(A8>\"\",0.19,\"\")","v":""},null,null,null,{"$f":"IF(SUM(C8:E8)>0,SUM(C8:E8),\"\")","v":""}]
[null,{"$f":"IF(A9>\"\",0.19,\"\")","v":""},null,null,null,{"$f":"IF(SUM(C9:E9)>0,SUM(C9:E9),\"\")","v":""}]
[null,"",null,null,null,""]
[null,{"$f":"IF(A11>\"\",0.19,\"\")","v":""},null,null,null,{"$f":"IF(SUM(C11:E11)>0,SUM(C11:E11),\"\")","v":""}]
[null,"",null,null,null,""]
[null,{"$f":"IF(A13>\"\",0.19,\"\")","v":""},null,null,null,{"$f":"IF(SUM(C13:E13)>0,SUM(C13:E13),\"\")","v":""}]
[null,"",null,null,null,""]
[null,"",null,null,null,""]
[null,"",null,null,null,""]
[null,"",null,null,null,""]
[null,{"$f":"IF(A18>\"\",0.19,\"\")","v":""},null,null,null,{"$f":"IF(SUM(C18:E18)>0,SUM(C18:E18),\"\")","v":""}]
[null,{"$f":"IF(A19>\"\",0.19,\"\")","v":""},null,null,null,{"$f":"IF(SUM(C19:E19)>0,SUM(C19:E19),\"\")","v":""}]
[null,"",null,null,null,""]
[null,{"$f":"IF(A21>\"\",0.19,\"\")","v":""},null,null,null,{"$f":"IF(SUM(C21:E21)>0,SUM(C21:E21),\"\")","v":""}]
[null,"",null,null,null,""]
[null,"",null,null,null,""]
[null,"",null,null,null,""]
[null,"",null,null,null,""]
[null,"",null,null,null,""]
[null,"",null,null,null,""]
[null,"",null,null,null,""]
["Summe netto",null,{"$f":"SUM(C5:C28)","v":0},{"$f":"SUM(D5:D28)","v":0},{"$f":"SUM(E5:E28)","v":0},{"$f":"SUM(F5:F28)","v":0}]
["Summe USt.",null,{"$f":"ROUND(SUMPRODUCT(B5:B28,C5:C28),2)","v":0},{"$f":"ROUND(SUMPRODUCT(B5:B28,D5:D28),2)","v":0},{"$f":"ROUND(SUMPRODUCT(B5:B28,E5:E28),2)","v":0},{"$f":"SUM(C30:E30)","v":0}]
["Summe brutto",null,{"$f":"C29+C30","v":0},{"$f":"D29+D30","v":0},{"$f":"E29+E30","v":0},{"$f":"SUM(C31:E31)","v":0}]
["1) für Einzelkosten > 7.500 € netto. Ggf. Position aus Kostenvoranschlag angeben."]
["3) Betrag inkl. zuzurechnender, ebenfalls förderfähiger Kosten wie Fahrtkosten, Übernachtung, Lernmittel"]
["4) Themen angeben z.B. Lebensmittelhygiene, Marketing, Steuern u. Recht"]

{"sheet":"KreisGemeindeListe","index":18,"n_rows":395,"n_cols":63,"rows_kept":395,"cut":false,"hidden":true,"merged":[]}
[null,null,null,"Kreis","Gemeinde","F_Gemarkung1","G_Gemarkung2","H_Gemarkung3","I_Gemarkung4","J_Gemarkung5","K_Gemarkung6","L_Gemarkung7","M_Gemarkung8","N_Gemarkung9","O_Gemarkung10","P_Gemarkung11","Q_Gemarkung12","R_Gemarkung13","S_Gemarkung14","T_Gemarkung15","U_Gemarkung16","V_Gemarkung17","W_Gemarkung18","X_Gemarkung19","Y_Gemarkung20","Z_Gemarkung21","AA_Gemarkung22","AB_Gemarkung23","AC_Gemarkung24","AD_Gemarkung25","AE_Gemarkung26","AF_Gemarkung27","AG_Gemarkung28","AH_Gemarkung29","AI_Gemarkung30","AJ_Gemarkung31","AK_Gemarkung32","AL_Gemarkung33","AM_Gemarkung34","AN_Gemarkung35","AO_Gemarkung36","AP_Gemarkung37","AQ_Gemarkung38","AR_Gemarkung39","AS_Gemarkung40","AT_Gemarkung41","AU_Gemarkung42","AV_Gemarkung43","AW_Gemarkung44","AX_Gemarkung45","AY_Gemarkung46","AZ_Gemarkung47","BA_Gemarkung48","BB_Gemarkung49","BC_Gemarkung50","BD_Gemarkung51","BE_Gemarkung52","BF_Gemarkung53","BG_Gemarkung54","BH_Gemarkung55","BI_Gemarkung56","BJ_Gemarkung57","BK_Gemarkung58"]
["Kreis","AachenStädteregion_334",null,"AachenStädteregion_334","AachenStadt_002","Aachen_4171","Brand_4172","Burtscheid_4173","Eilendorf_4174","Forst_4175","Haaren_4176","Kornelimünster_4177","Laurensberg_4178","Lichtenbusch_4179","Richterich_4180","Sief_4181","Walheim_4182"]
["Kreis","BielefeldStadt_711",null,"AachenStädteregion_334","AlsdorfStadt_004","Alsdorf_4251","Hoengen_4257","Bettendorf_4270"]
["Kreis","BochumStadt_911",null,"AachenStädteregion_334","BaesweilerStadt_008","Baesweiler_4264","Oidtweiler_4265","Puffendorf_4266","Setterich_4271"]
["Kreis","BonnStadt_314",null,"AachenStädteregion_334","EschweilerStadt_012","Eschweiler_4254","Kinzweiler_4258","Weisweiler_4263","Dürwiss_4267","Laurenzberg_4268","Lohn_4269"]
["Kreis","Borken_554",null,"AachenStädteregion_334","HerzogenrathStadt_016","Herzogenrath_4256","Merkstein_4259","Kohlscheid_4260"]
["Kreis","BottropStadt_512",null,"AachenStädteregion_334","MonschauStadt_020","Höfen_4273","Rohren_4274","Imgenbroich_4275","Konzen_4276","Mützenich_4277","Kalterherberg_4278","Monschau_4282"]
["Kreis","Coesfeld_558",null,"AachenStädteregion_334","Roetgen_024","Roetgen_4283","Rott_4284"]
["Kreis","DortmundStadt_913",null,"AachenStädteregion_334","Simmerath_028","Eicherscheid_4272","Kesternich_4279","Steckenborn_4280","Strauch_4281","Rurberg_4285","Simmerath_4289","Lammersdorf_4290"]
["Kreis","DuisburgStadt_112",null,"AachenStädteregion_334","StolbergRhldStadt_032","Gressenich_4255","Stolberg_4261","Zweifall_4291","Breinig_4293"]
["Kreis","Düren_358",null,"AachenStädteregion_334","WürselenStadt_036","Bardenberg_4252","Broichweiden_4253","Würselen_4262"]
["Kreis","DüsseldorfStadt_111",null,"BielefeldStadt_711","BielefeldStadt_000","Altenhagen_2851","Babenhausen_2852","Bielefeld_2853","Brackwede_2854","Brake_2855","Brönninghausen_2856","Gadderbaum_2857","Großdornberg_2858","Heepen_2859","Hillegossen_2860","Hoberge-Uerentrup_2861","Holtkamp_2862","Jöllenbeck_2864","Kirchdornberg_2865","Lämershagen-Gräfinghagen_2866","Milse_2867","Niederdornberg-Deppendorf_2868","Oldentrup_2869","Quelle_2870","Schröttinghausen_2871","SenneI_2872","Sennestadt_2873","Theesen_2874","Ubbedissen_2875","Ummeln_2876","Vilsendorf_2877"]
["Kreis","EnnepeRuhrKreis_954",null,"BochumStadt_911","BochumStadt_000","Stiepel_1085","Altenbochum_1091","Bergen_1092","Gerthe_1094","Grumme_1096","Hamme_1097","Harpen_1098","Hofstede_1099","Hordel_1100","Laer_1101","Querenburg_1102","Riemke_1103","Weitmar_1105","Wiemelhausen_1106","Bochum_1107","Dahlhausen_1110","Linden_1114","Hiltrop_1133","Langendreer_1139","Werne_1142","Eppendorf_1145","Günnigfeld_1149","Höntrop_1151","Leithe_1154","Munscheid_1155","Sevinghausen_1157","Wattenscheid_1159","Westenfeld_1160"]
["Kreis","EssenStadt_113",null,"BonnStadt_314","BonnStadt_000","Beuel_4301","Bonn_4302","Buschdorf_4303","Dottendorf_4304","Duisdorf_4305","Endenich_4306","Friesdorf_4307","Godesberg_4308","Holzlar_4309","Ippendorf_4310","Kessenich_4311","Lannesdorf_4312","Lengsdorf_4313","Lessenich_4314","Mehlem_4315","Muffendorf_4316","Oberkassel_4317","Plittersdorf_4318","Poppelsdorf_4319","Röttgen_4320","Rüngsdorf_4321"]
["Kreis","Euskirchen_366",null,"Borken_554","AhausStadt_004","Wessum_5177","Alstätte_5178","Ottenstein_5179","Ahaus_5180","Wüllen_5181","Ammeln_5222"]
["Kreis","GelsenkirchenStadt_513",null,"Borken_554","BocholtStadt_008","Bocholt_5142","Barlo_5144","Biemenhorst_5225","Hemden_5226","Holtwick_5228","Liedern_5229","Lowick_5230","Mussum_5231","Spork_5232","Stenern_5233","Suderwick_5234"]
["Kreis","Gütersloh_754",null,"Borken_554","BorkenStadt_012","Borken_5145","Marbeck_5146","Weseke_5151","Gemen_5152","Gemen-Kirchspiel_5227","Grütlohn_5235","Hoxfeld_5237","Rhedebrügge_5238","Westenborken_5239","Borkenwirthe_5240"]
["Kreis","HagenStadt_914",null,"Borken_554","GescherStadt_016","Gescher_5172","Büren_5249","Tungerloh-Capellen_5250","Estern_5251","Harwick_5252","Tungerloh-Pröbsting_5253"]
["Kreis","HammStadt_915",null,"Borken_554","GronauWestfalenStadt_020","Gronau_5189","Epe_5223"]
["Kreis","Heinsberg_370",null,"Borken_554","Heiden_028","Heiden_5153"]
["Kreis","Herford_758",null,"Borken_554","IsselburgStadt_032","Anholt_5140","Werth_5141","Isselburg_5272","Heelden_5273","Vehlingen_5274","Herzebocholt_5275"]
["Kreis","HerneStadt_916",null,"Borken_554","Legden_036","Legden_5182","Asbeck_5183"]
["Kreis","Hochsauerlandkreis_958",null,"Borken_554","Raesfeld_040","Erle_5137","Raesfeld_5148","Homer_5236"]
["Kreis","Höxter_762",null,"Borken_554","Reken_044","Groß-Reken_5154","Klein-Reken_5247","Hülsten_5248"]
["Kreis","Kleve_154",null,"Borken_554","RhedeStadt_048","Rhede_5147","Büngern_5241","Krommert_5242","Krechting_5243","Vardingholt_5244"]
["Kreis","KölnStadt_315",null,"Borken_554","Schöppingen_052","Schöppingen-Stadt_5184","Schöppingen-Kirchspiel_5185","Eggerode_5186"]
["Kreis","KrefeldStadt_114",null,"Borken_554","StadtlohnStadt_056","Stadtlohn_5175","KirchspielStadtlohn_5216"]
["Kreis","LeverkusenStadt_316",null,"Borken_554","Südlohn_060","Südlohn_5176","Oeding_5221"]
["Kreis","Lippe_766",null,"Borken_554","Velen_064","Velen-Dorf_5149","Ramsdorf_5150","Waldvelen_5245","Nordvelen_5246"]
["Kreis","MärkischerKreis_962",null,"Borken_554","VredenStadt_068","Vreden_5173","Ammeloe_5174"]
["Kreis","Mettmann_158",null,"BottropStadt_512","BottropStadt_000","Bottrop_5130","Kirchhellen_5132"]
["Kreis","MindenLübbecke_770",null,"Coesfeld_558","Ascheberg_004","Herbern_5088","Ascheberg_5105"]
["Kreis","MönchengladbachStadt_116",null,"Coesfeld_558","BillerbeckStadt_008","Billerbeck-Stadt_5164","Billerbeck-Kirchspiel_5165","Beerlage_5166"]
["Kreis","MülheimanderRuhrStadt_117",null,"Coesfeld_558","CoesfeldStadt_012","Coesfeld-Stadt_5168","Coesfeld-Kirchspiel_5169","Lette_5276"]
["Kreis","MünsterStadt_515",null,"Coesfeld_558","DülmenStadt_016","Dülmen-Stadt_5155","Buldern_5156","Hiddingsel_5157","Rorup_5158","Dülmen-Kirchspiel_5254","Merfeld_5255"]
["Kreis","OberbergischerKreis_374",null,"Coesfeld_558","Havixbeck_020","Havixbeck_5023","Schonebeck_5277"]
["Kreis","OberhausenStadt_119",null,"Coesfeld_558","LüdinghausenStadt_024","Lüdinghausen-Stadt_5099","Lüdinghausen-Kirchspiel_5100","Seppenrade_5109"]
["Kreis","Olpe_966",null,"Coesfeld_558","Nordkirchen_028","Capelle_5095","Südkirchen_5096","Nordkirchen_5106"]
["Kreis","Paderborn_774",null,"Coesfeld_558","Nottuln_032","Nottuln_5017","Schapdetten_5018","Appelhülsen_5102","Darup_5256","Limbergen_5257"]
["Kreis","Recklinghausen_562",null,"Coesfeld_558","OlfenStadt_036","Olfen-Stadt_5108","Olfen-Kirchspiel_5258"]
["Kreis","RemscheidStadt_120",null,"Coesfeld_558","Rosendahl_040","Darfeld_5167","Osterwick_5170","Holtwick_5171"]
["Kreis","RheinErftKreis_362",null,"Coesfeld_558","Senden_044","Bösensell_5021","Senden_5101","Venne_5103","Ottmarsbocholt_5104"]
["Kreis","RheinischBergischerKreis_378",null,"DortmundStadt_913","DortmundStadt_000","Aplerbeck_1226","Asseln_1227","Berghofen_1228","Kurl_1229","Grevel_1230","Husen_1233","Lanstrop_1234","Schüren_1236","Sölde_1237","Wickede_1238","Dortmund_1239","Barop_1240","Benninghofen_1241","Brackel_1242","Hacheney_1243","Kirchhörde_1244","Wambel_1245","Wellinghofen_1246","Hörde_1247","Bodelschwingh_1249","Deusen_1254","Ellinghausen_1256","Groppenbruch_1259","Mengede_1264","Nette_1266","Oestrich_1268","Schwieringhausen_1270","Westerfilde_1271","Brechten_1274","Derne_1275","Eving_1276","Hostedde_1279","Kirchderne_1280","Lindenhorst_1281","Bövinghausen_1285","Dellwig_1286","Dorstfeld_1287","Eichlinghofen_1288","Huckarde_1289","Kirchlinde_1290","Kley_1291","Lütgendortmund_1292","Marten_1293","Oespel_1294","Rahm_1295","Westrich_1297","Holzen_1301","Lichtendorf_1302","Syburg_1303","Lücklemberg_1900","Niederhofen_1901","Wichlinghofen_1902","Kemminghausen_1903","Holthausen_1904","Holte_1905","Menglinghausen_1906","Persebeck_1907","Salingen_1908"]
["Kreis","RheinKreisNeuss_162",null,"DuisburgStadt_112","DuisburgStadt_000","Walsum_3065","Duisburg_3066","Beeck_3081","Hamborn_3082","Ruhrort_3099","Meiderich_3100","Huckingen_3102","Mündelheim_3104","Baerl_3290","Rheinhausen_3297","Kaldenhausen_3302","Rumeln_3303","Homberg_3306"]
["Kreis","RheinSiegKreis_382",null,"Düren_358","Aldenhoven_004","Aldenhoven_4806","Engelsdorf_4807","Langweiler_4808","Niedermerz_4809","PatternII_4810","Freialdenhoven_4821","Dürboslar_4822","Siersdorf_4848","Schleiden_4851"]
["Kreis","SiegenWittgenstein_970",null,"Düren_358","DürenStadt_008","Niederau_4701","Arnoldsweiler_4726","Birgel_4733","Berzbuir-Kufferath_4734","Gürzenich_4735","Lendersdorf-Krauthausen_4736","Birkesdorf_4738","Düren_4749","Echtz-Konzendorf_4750","Merken_4768","Derichsweiler_4769","Mariaweiler-Hoven_4770"]
["Kreis","Soest_974",null,"Düren_358","HeimbachStadt_012","Hergarten_4715","Vlatten_4721","Heimbach_4723","Hausen_4724"]
["Kreis","SolingenStadt_122",null,"Düren_358","Hürtgenwald_016","Bergstein_4703","Brandenberg_4704","Straß_4706","Gey_4707","Großhau_4708","Hürtgen_4709","Kleinhau_4710","Vossenack_4720"]
["Kreis","Steinfurt_566",null,"Düren_358","Inden_020","Lamersdorf_4765","Frenz_4766","Pier_4790","Lucherberg_4793","Schophoven_4794","Inden_4835","Altdorf_4838"]
["Kreis","Unna_978",null,"Düren_358","JülichStadt_024","Barmen_4811","Merzenhausen_4813","Koslar_4814","Bourheim_4815","Stetternich_4826","Jülich_4836","Kirchberg_4837","Mersch_4840","Broich_4841","Güsten_4842","PatternI_4843","Welldorf_4844"]
["Kreis","Viersen_166",null,"Düren_358","Kreuzau_028","Kreuzau_4700","Winden_4702","Untermaubach_4705","Drove_4743","Boich-Leversbach_4744","Thum_4747","Üdingen_4748","Obermaubach-Schlagstein_4777","Stockheim_4798","Bogheim_4799"]
["Kreis","Warendorf_570",null,"Düren_358","Langerwehe_032","Geich-Obergeich_4751","Merode_4752","Schlich-D'horn_4753","Langerwehe_4767","Wenau_4789","Jüngersdorf_4791","Luchem_4792"]
["Kreis","Wesel_170",null,"Düren_358","LinnichStadt_036","Körrenzig_4716","Gevenich_4717","Glimbach_4718","Floßdorf_4812","Ederen_4819","Gereonsweiler_4820","Hottorf_4827","Boslar_4828","Tetz_4834","Linnich_4839","Rurdorf_4847","Welz_4854"]
["Kreis","WuppertalStadt_124",null,"Düren_358","Merzenich_040","Morschenich_4728","Merzenich_4771","Girbelsrath_4772","Golzheim_4773"]
["Kreis","KreisausserhalbNRW_999",null,"Düren_358","NideggenStadt_044","Wollersheim_4712","Berg-Thuir_4713","Muldenau_4714","Schmidt_4719","Embken_4742","Nideggen_4774","Abenden_4775"]
[null,null,null,"Düren_358","Niederzier_048","Ellen_4727","Huchem-Stammeln_4739","Selhausen_4740","Niederzier_4778","Oberzier_4779","Hambach_4823","Steinstraß_4846"]
[null,null,null,"Düren_358","Nörvenich_052","Dorweiler_4711","Pingsheim_4722","Wissersheim_4725","Binsfeld_4729","Eggersheim_4730","Frauwüllesheim_4731","Irresheim_4732","Nörvenich_4780","EschweilerüberFeld_4781","Hochkirchen_4782","Oberbolheim_4783","Poll_4784","Rath_4785"]
[null,null,null,"Düren_358","Titz_056","Gevelsdorf_4829","Hasselsweiler_4830","Müntz_4832","Rödingen_4845","Garzweiler_4853","Titz_4855"]
[null,null,null,"Düren_358","Vettweiß_060","Jakobwüllesheim_4745","Soller_4746","Froitzheim_4754","Ginnick_4756","Vettweiß_4758","Kelz_4762","Gladbach_4763","Lüxheim_4764","Sievernich_4795","Disternich_4796","Müddersheim_4797"]
[null,null,null,"DüsseldorfStadt_111","DüsseldorfStadt_000","Angermund_3101","Benrath_3105","Garath_3106","Himmelgeist_3107","Itter-Holthausen_3108","Urdenbach_3109","Altstadt_3110","Rath_3115","Gerresheim_3116","Grafenberg_3117","Unterbach_3118","Eller_3119","Lierenfeld_3120","Hubbelrath_3122","Kaiserswerth_3126","Bockum_3127","Kalkum_3128","Lohausen_3129","Wittlaer_3130","Einbrungen_3132","Stockum_3133","Heerdt_3353","Golzheim_3460","Derendorf_3461","Mörsenbroich_3462","Pempelfort_3463","Flingern_3464","Oberbilk_3465","Unterbilk_3466","Neustadt_3467","Hamm_3468","Volmerswerth_3469","Flehe_3470","Stoffeln_3471","Wersten_3472"]
[null,null,null,"EnnepeRuhrKreis_954","BreckerfeldStadt_004","Breckerfeld_1307"]
[null,null,null,"EnnepeRuhrKreis_954","EnnepetalStadt_008","Ennepetal_1314"]
[null,null,null,"EnnepeRuhrKreis_954","GevelsbergStadt_012","Gevelsberg_1310","Asbeck_1343","Berge_1344","Silschede_1348"]
[null,null,null,"EnnepeRuhrKreis_954","HattingenStadt_016","Blankenstein_1079","Baak_1109","Dumberg_1111","Holthausen_1112","Niederbonsfeld_1115","Niederbredenscheid_1116","Niederelfringhausen_1117","Niederstüter_1118","Niederwenigern_1119","Oberbredenscheid_1121","Oberelfringhausen_1122","Oberstüter_1123","Welper_1124","Winz_1125","Hattingen_1126"]
[null,null,null,"EnnepeRuhrKreis_954","HerdeckeStadt_020","Ende_1333","Herdecke_1335"]
[null,null,null,"EnnepeRuhrKreis_954","SchwelmStadt_024","Linderhausen_1332","Schwelm_1339"]
[null,null,null,"EnnepeRuhrKreis_954","SprockhövelStadt_028","Gennebreck_1329","Haßlinghausen_1330","Hiddinghausen_1331","Niedersprockhövel_1341","Obersprockhövel_1342"]
[null,null,null,"EnnepeRuhrKreis_954","WetterRuhrStadt_032","Wetter_1334","Esborn_1346","Grundschöttel_1347","Volmarstein_1349","Wengern_1350"]
[null,null,null,"EnnepeRuhrKreis_954","WittenStadt_036","Buchholz_1081","Durchholz_1082","Heven_1084","Ostherbede_1087","Vormholz_1089","Westherbede_1090","Düren_1138","Stockum_1141","Witten_1161","Annen_1284","Rüdinghausen_1296","Bommern_1345"]
[null,null,null,"EssenStadt_113","EssenStadt_000","Haarzopf_3088","Altenessen_3136","Karnap_3137","Katernberg_3138","Frillendorf_3139","Huttrop_3140","Kray_3141","Leithe_3142","Holsterhausen_3143","Rüttenscheid_3144","Schonnebeck_3145","Stoppenberg_3146","Altendorf_3147","Borbeck_3148","Essen_3149","Kettwig_3150","Heisingen_3151","Bredeney_3152","Steele_3154","Hinsel_3155","Rellinghausen_3156","Werden_3157","Kupferdreh_3158","Byfang_3159","Burgaltendorf_3435","Vogelheim_3441","Gerschede_3442","Dellwig_3443","Frintrop_3444","Bedingrade_3445","Bochold_3446","Schönebeck_3447","Frohnhausen_3448","Fulerum_3449","Bergerhausen_3450","Heide_3451","Freisenbruch_3452","Horst_3453","Holthausen_3454","Fischlaken_3455","Heidhausen_3456","Schuir_3457"]
[null,null,null,"Euskirchen_366","BadMünstereifelStadt_004","Arloff_4402","Effelsberg_4410","Eschweiler_4415","Houverath_4423","Iversheim_4425","Kalkar_4426","Mahlberg_4439","Mutscheid_4442","Münstereifel_4444","Rupperath_4454","Schönau_4456","Hohn_4473","Nöthen_4474"]
[null,null,null,"Euskirchen_366","Blankenheim_008","Blankenheim_4324","Blankenheimerdorf_4325","Mülheim_4326","Reetz_4327","Dollendorf_4341","Alendorf_4342","Hüngersdorf_4343","Ripsdorf_4344","Waldorf_4345","Lindweiler_4369","Rohr_4370","Lommersdorf_4373","Ahrdorf_4374","Freilingen_4375","Uedelhoven_4376"]
[null,null,null,"Euskirchen_366","Dahlem_012","Kronenburg_4338","Baasem_4339","Dahlem_4340","Schmidtheim_4379","Berk_4386"]
[null,null,null,"Euskirchen_366","EuskirchenStadt_016","Billig_4404","Elsig_4411","Dom-Esch_4414","Euenheim_4416","Euskirchen_4417","Flamersheim_4418","Frauenberg_4419","Großbüllesheim_4421","Kirchheim_4428","Kleinbüllesheim_4429","Kreuzweingarten-Rheder_4431","Kuchenheim_4432","Niederkastenholz_4447","Palmersheim_4450","Roitzheim_4452","Schweinheim_4457","Stotzheim_4460","Weidesheim_4465","Wißkirchen_4470","Wüschheim_4471"]
[null,null,null,"Euskirchen_366","Hellenthal_020","Hellenthal_4360","Hollerath_4361","Ländchen_4372","Udenbreth_4385","Losheim_4394"]
[null,null,null,"Euskirchen_366","Kall_024","Kall_4331","Sistig_4335","Sötenich_4336","Golbach_4337","Keldenich_4371","Urft_4380","Wahlen_4395","Wallenthal_4396"]
[null,null,null,"Euskirchen_366","MechernichStadt_028","Bleibuir_4328","Eicks_4347","Berg_4348","Floisdorf_4349","Glehn_4350","Hostel_4351","Vussem-Bergheim_4387","Breitenbenden_4388","Harzheim_4389","Holzheim_4390","Lorbach_4391","Mechernich_4392","Weyer_4397","Kallmuth_4398","Antweiler_4401","Kommern_4430","Lessenich-Rißdorf_4435","Obergartzem_4449","Satzvey-Firmenich_4455","Wachendorf_4464","WeileraBerge_4466"]
[null,null,null,"Euskirchen_366","Nettersheim_032","Holzmülheim_4362","Bouderath_4363","Buir_4364","Engelgau_4365","Frohngau_4366","Roderath_4367","Tondorf_4368","Marmagen_4377","Nettersheim_4378","Pesch_4383","Zingsheim_4399"]
[null,null,null,"Euskirchen_366","SchleidenStadt_036","Dreiborn_4346","Gemünd_4352","Harperscheid_4353","Broich_4354","Bronsfeld_4355","Oberhausen_4356","Schöneseiffen_4357","Schleiden_4384"]
[null,null,null,"Euskirchen_366","Weilerswist_040","Lommersum_4438","Metternich_4441","Müggenhausen_4443","Vernich_4463","Weilerswist_4468"]
[null,null,null,"Euskirchen_366","ZülpichStadt_044","Bessenich_4403","Dürscheven_4409","Enzen_4412","Hoven-Floren_4424","Langendorf_4433","Linzenich-Lövenich_4437","Merzenich_4440","Nemmenich_4445","Oberelvenich_4448","Rövenich_4453","Schwerfen_4458","Sinzenich_4459","Ülpenich_4462","WeileridEbene_4467","Wichterich_4469","Zülpich_4472","Bürvenich-Eppenich_4481","Füssenich_4489","GeichbFüssenich_4490","Juntersdorf_4491"]
[null,null,null,"GelsenkirchenStadt_513","GelsenkirchenStadt_000","Buer_5126","Horst_5128","Bismarck_5143","Rotthausen_5220","Bulmke_5266","Gelsenkirchen_5267","Heßler_5268","Hüllen_5269","Schalke_5270","Ückendorf_5271"]
[null,null,null,"Gütersloh_754","BorgholzhausenStadt_004","Borgholzhausen_2508"]
[null,null,null,"Gütersloh_754","GüterslohStadt_008","Avenwedde_2501","Ebbesloh_2513","Friedrichsdorf_2514","Gütersloh_2516","Hollen_2523","Isselhorst_2524","Niehorst_2535","Spexard_2544"]
[null,null,null,"Gütersloh_754","HalleWestfStadt_012","Tatenhausen_2506","Halle_2517","Hesseln_2520","Hörste_2522","Kölkebeck_2525","Künsebeck_2526"]
[null,null,null,"Gütersloh_754","HarsewinkelStadt_016","Greffen_2515","Harsewinkel_2518","Marienfeld_2531"]
[null,null,null,"Gütersloh_754","HerzebrockClarholz_020","Clarholz_2511","Herzebrock_2519"]
[null,null,null,"Gütersloh_754","Langenberg_024","Langenberg_2527"]
[null,null,null,"Gütersloh_754","RhedaWiedenbrückStadt_028","Batenhorst_2503","Lintel_2529","Nordrheda-Ems_2536","Rheda_2540","SanktVit_2546","Wiedenbrück_2553"]
[null,null,null,"Gütersloh_754","RietbergStadt_032","Bokel_2507","Druffel_2512","Mastholte_2532","Neuenkirchen_2534","Rietberg_2541","Varensell_2548","Westerwiehe_2552"]
[null,null,null,"Gütersloh_754","SchloßHolteStukenbrock_036","SchloßHolte_2542","Stukenbrock_2547"]
[null,null,null,"Gütersloh_754","Steinhagen_040","Amshausen_2502","Brockhagen_2510","Steinhagen_2545"]
[null,null,null,"Gütersloh_754","Verl_044","Bornholte_2509","Liemke_2528","Österwiehe_2538","Sende_2543","Verl_2549"]
[null,null,null,"Gütersloh_754","VersmoldStadt_048","Bockhorst_2505","Hesselteich_2521","Loxten_2530","Österweg_2537","Peckeloh_2539","Versmold_2550"]
[null,null,null,"Gütersloh_754","WertherWestfStadt_052","Werther_2551"]
[null,null,null,"HagenStadt_914","HagenStadt_000","Garenfeld_1299","Dahl_1308","Haspe_1313","Vorhalle_1315","Westerbauer_1317","Boele_1318","Delstern_1319","Eckesey_1320","Eppenhausen_1322","Fley_1323","Halden_1324","Herbeck_1325","Holthausen_1326","Hagen_1328","Berchum_1416","Hohenlimburg_1432"]
[null,null,null,"HammStadt_915","HammStadt_000","Hamm_1356","Herringen_1362","Lerche_1363","Pelkum_1367","Sandbochum_1370","Weetfeld_1371","Wiescherhöfen_1373","Allen_1374","Berge_1375","Braam-Ostwennemar_1376","Freiske_1378","Frielinghausen_1379","Haaren_1380","Norddinker_1384","Osterflierich_1385","Osttünnen_1386","Rhynern_1387","Schmehausen_1388","Süddinker_1390","Uentrop_1391","Vöckinghausen_1392","Wambeln_1393","Werries_1394","Westtünnen_1395","Bockum-Hövel_1865","Heessen_1866"]
[null,null,null,"Heinsberg_370","ErkelenzStadt_004","Granterath_4522","Erkelenz_4526","Gerderath_4527","Immerath_4528","Holzweiler_4529","Keyenberg_4530","Borschemich_4531","Venrath_4532","Golkrath_4533","Kückhoven_4535","Lövenich_4536","Schwanenberg_4538"]
[null,null,null,"Heinsberg_370","Gangelt_008","Schierwaldenrath_4500","Gangelt_4557","Birgden_4558","Breberen-Schümm_4577"]
[null,null,null,"Heinsberg_370","GeilenkirchenStadt_012","Lindern_4555","Geilenkirchen_4559","Immendorf_4560","Teveren_4566","Würm_4567","Beeck_4568","Süggerath_4569"]
[null,null,null,"Heinsberg_370","HeinsbergStadt_016","Randerath_4562","Aphoven_4570","Laffeld_4571","Schafhausen_4572","Dremmen_4578","Horst_4579","Heinsberg_4584","Porselen_4586","Karken_4587","Kempen_4588","Kirchhoven_4589","Oberbruch_4593","Unterbruch_4597","Waldenrath_4598"]
[null,null,null,"Heinsberg_370","HückelhovenStadt_020","Rurich_4519","Doveren_4520","Baal_4521","Hückelhoven-Ratheim_4524","Brachelen_4554"]
[null,null,null,"Heinsberg_370","Selfkant_024","Wehr_4503","Hillensberg_4504","Süsterseel_4505","Havert_4581","Millen_4582","Tüddern_4583","Saeffelen_4595","Höngen_4596"]
[null,null,null,"Heinsberg_370","ÜbachPalenbergStadt_028","Übach-Palenberg_4553"]
[null,null,null,"Heinsberg_370","Waldfeucht_032","Braunsrath_4576","Haaren_4580","Waldfeucht_4599"]
[null,null,null,"Heinsberg_370","WassenbergStadt_036","Wassenberg_4501","Orsbeck_4502","Birgelen_4573","Effeld_4574","Ophoven_4575","Myhl_4590"]
[null,null,null,"Heinsberg_370","WegbergStadt_040","Merbeck_4511","Wegberg_4539","Arsbeck_4591","Wildenrath_4592"]
[null,null,null,"Herford_758","BündeStadt_004","Ahle_2601","Bünde_2606","Bustedt_2607","Dünne_2610","Ennigloh_2615","Holsen_2624","Hüffen_2626","Hunnebrock_2627","Muckum_2635","Spradow_2649","Südlengern-Heide_2653","Werfen_2660"]
[null,null,null,"Herford_758","EngerStadt_008","Belke-Steinbeck_2603","Besenkamp_2604","Dreyen_2609","Enger_2614","Herringhausen-West_2622","Oldinghausen_2638","Pödinghausen_2640","Siele_2647","Westerenger_2661"]
[null,null,null,"Herford_758","HerfordStadt_012","Diebrock_2608","Eickum_2611","Elverdissen_2613","Falkendiek_2617","Herford_2620","Herringhausen-Ost_2621","Laar_2630","Schwarzenmoor_2644","Stedefreund_2650"]
[null,null,null,"Herford_758","Hiddenhausen_016","Eilshausen_2612","Hiddenhausen_2623","Lippinghausen_2632","Oetinghausen_2637","Schweicheln-Bermbeck_2645","Sundern_2654"]
[null,null,null,"Herford_758","Kirchlengern_020","Häver_2619","Kirchlengern_2628","Klosterbauerschaft_2629","Quernheim_2641","Rehmerloh_2642","StiftQuernheim_2651","Südlengern-Dorf_2652"]
[null,null,null,"Herford_758","LöhneStadt_024","Gohfeld_2618","Löhne_2633","Mennighüffen_2634","Obernbeck_2636","Ulenburg_2656"]
[null,null,null,"Herford_758","Rödinghausen_028","Bieren_2605","Ostkilver_2639","Rödinghausen_2643","Schwenningdorf_2646","Westkilver_2662"]
[null,null,null,"Herford_758","SpengeStadt_032","Bardüttingdorf_2602","Hücker-Aschen_2625","Lenzinghausen_2631","Spenge_2648","Wallenbrück_2659"]
[null,null,null,"Herford_758","VlothoStadt_036","Exter_2616","Uffeln_2655","Valdorf_2657","Vlotho_2658"]
[null,null,null,"HerneStadt_916","HerneStadt_000","Baukau_1127","Wanne-Eickel_1128","Herne_1132","Horsthausen_1135","Börnig_1250","Sodingen_1258","Holthausen_1261"]
[null,null,null,"Hochsauerlandkreis_958","ArnsbergStadt_004","Arnsberg_1030","Breitenbruch_1044","Oeventrop_1051","Rumbeck_1052","Uentrop_1053","Bachum_1056","Bruchhausen_1057","Herdringen_1062","Holzen_1063","Müschede_1068","Niedereimer_1069","Voßwinkel_1071","Wennigloh_1072","Neheim-Hüsten_1073"]
[null,null,null,"Hochsauerlandkreis_958","Bestwig_008","Grimlinghausen_1171","Heringhausen_1504","Ramsbeck_1505","Velmede_1506","Nuttlar_1921","Ostwig_1922"]
[null,null,null,"Hochsauerlandkreis_958","BrilonStadt_012","Altenbüren_1162","Eßhoff_1170","Brilon_1177","Bontkirchen_1212","Hoppecke_1213","Madfeld_1214","Messinghausen_1215","Nehden_1216","Alme_1217","Radlinghausen_1219","Rixen_1220","Rösenbeck_1221","Scharfenberg_1222","Thülen_1223","Wülfte_1224"]
[null,null,null,"Hochsauerlandkreis_958","EsloheSauerland_016","Cobbenrode_1496","Eslohe_1497","Isingheim_1498","Reiste_1499","Salwey_1500","Wenholthausen_1501","Landenbeck_1527"]
[null,null,null,"Hochsauerlandkreis_958","HallenbergStadt_020","Hallenberg_1178","Braunshausen_1179","Hesborn_1180","Liesen_1181"]
[null,null,null,"Hochsauerlandkreis_958","MarsbergStadt_024","Beringhausen_1193","Borntosten_1194","Erlinghausen_1195","Giershagen_1196","Heddinghausen_1197","Helminghausen_1198","Canstein_1199","Leitmar_1200","Niedermarsberg_1201","Padberg_1202","Udorf_1203","Obermarsberg_1211","Essentho_1875","Meerhof_1876","Oesdorf_1877","Westheim_1878","Bredelar_1912"]
[null,null,null,"Hochsauerlandkreis_958","MedebachStadt_028","Berge_1183","Deifeld_1184","Dreislar_1185","Düdinghausen_1186","Küstelberg_1187","Medebach_1188","Medelon_1189","Oberschledorn_1190","Referinghausen_1191","Titmaringhausen_1192"]
[null,null,null,"Hochsauerlandkreis_958","MeschedeStadt_032","Freienohl_1045","Grevenstein_1046","Visbeck_1054","Eversberg_1502","Berge_1515","Calle_1516","Drasenbeck_1517","Enkhausen_1518","Löllinghausen_1519","Meschede-Land_1520","Meschede-Stadt_1521","Remblinghausen_1522","Wennemen_1523"]
[null,null,null,"Hochsauerlandkreis_958","OlsbergStadt_036","Antfeld_1163","Assinghausen_1164","Bigge_1165","Bruchhausen_1166","Brunskappel_1167","Elleringhausen_1168","Elpe_1169","Helmeringhausen_1172","Olsberg_1173","Wiemeringhausen_1175","Wulmeringhausen_1176","Gevelinghausen_1503"]
[null,null,null,"Hochsauerlandkreis_958","SchmallenbergStadt_040","Berghausen_1507","Bödefeld-Freiheit_1508","Brabecke_1509","Dorlar_1510","Fredeburg_1511","Gellinghausen_1512","Rarbach_1514","Bracht_1524","Grafschaft_1525","Fleckenberg_1529","Oberkirchen_1530","Schmallenberg_1531","Werpe_1533","Wormbach_1535","Lenne_1560"]
[null,null,null,"Hochsauerlandkreis_958","SundernSauerlandStadt_044","Allendorf_1022","Amecke_1023","Endorf_1024","Hagen_1025","Stockum_1027","Sundern_1028","Wildewiese_1029","Altenhellefeld_1043","Hellefeld_1047","Herblinghausen_1048","Linnepe_1049","Meinkenbracht_1050","Westenfeld_1055","Enkhausen_1059","Estinghausen_1060","Hachen_1061","Hövel_1064","Langscheid_1067","Stemel_1070"]
[null,null,null,"Hochsauerlandkreis_958","WinterbergStadt_048","Siedlinghausen_1174","Züschen_1182","Altastenberg_1204","Elkeringhausen_1205","Grönebach_1206","Hildfeld_1207","Lenneplätze_1208","Niedersfeld_1209","Silbach_1210","Winterberg_1225","Langewiese_1853","Mollseifen_1854","Neuastenberg_1855","Altenfeld_1874"]
[null,null,null,"Höxter_762","BadDriburgStadt_004","Alhausen_2302","BadDriburg_2307","Dringenberg_2334","Erpentrup_2341","Herste_2359","Kühlsen_2373","Langeland_2374","Neuenheerse_2387","Pömbsen_2398","Reelsen_2399"]
[null,null,null,"Höxter_762","BeverungenStadt_008","Amelunxen_2305","Beverungen_2311","Blankenau_2312","Dalhausen_2328","Drenke_2333","Haarbrück_2353","Herstelle_2360","Jakobsberg_2369","Rothe_2405","Tietelsen_2415","Wehrden_2419","Würgassen_2424"]
[null,null,null,"Höxter_762","BorgentreichStadt_012","Borgentreich_2316","Borgholz_2317","Bühne_2326","Drankhausen_2332","Großeneder_2352","Körbecke_2371","Lütgeneder_2378","Manrode_2380","Muddenhagen_2383","Natingen_2385","Natzungen_2386","Rösebeck_2403"]
[null,null,null,"Höxter_762","BrakelStadt_016","Auenhausen_2306","Beller_2308","Bellersen_2309","Bökendorf_2314","Brakel_2321","Erkeln_2340","Frohnhausen_2345","Gehrden_2347","Hampenhausen_2355","Hembsen_2357","Hinnenburg_2362","Istrup_2368","Rheder_2400","Riesel_2401","Schmechten_2408","Siddessen_2411"]
[null,null,null,"Höxter_762","HöxterStadt_020","Albaxen_2301","Bödexen_2313","Bosseborn_2320","Brenkhausen_2324","Bruchhausen_2325","Fürstenau_2346","Godelheim_2349","Höxter_2363","Lüchtringen_2377","Lütmarsen_2379","Ottbergen_2393","Ovenhausen_2395","Stahle_2413"]
[null,null,null,"Höxter_762","MarienmünsterStadt_024","Altenbergen_2303","Born_2319","Bredenborn_2322","Bremerberg_2323","Eilversen_2336","Großenbreden_2351","Hohehaus_2364","Kleinenbreden_2370","Kollerbeck_2372","Löwendorf_2376","Münsterbrock_2384","Papenhöfen_2396","Vörden_2417"]
[null,null,null,"Höxter_762","NieheimStadt_028","Entrup_2339","Erwitzen_2342","Eversen_2343","Himmighausen_2361","Holzhausen_2366","Merlsheim_2382","Nieheim_2388","Oeynhausen_2391","Schönenberg_2409","Sommersell_2412"]
[null,null,null,"Höxter_762","SteinheimStadt_032","Bergheim_2310","Eichholz_2335","Grevenhagen_2350","Hagedorn_2354","Ottenhausen_2394","Rolfzen_2404","Sandebeck_2406","Steinheim_2414","Vinsebeck_2416"]
[null,null,null,"Höxter_762","WarburgStadt_036","Bonenburg_2315","Calenberg_2327","Dalheim_2329","Daseburg_2330","Dössel_2331","Germete_2348","Herlinghausen_2358","Hohenwepel_2365","Menne_2381","Nörde_2390","Ossendorf_2392","Rimbeck_2402","Scherfede_2407","Warburg_2418","Welda_2420","Wormeln_2423"]
[null,null,null,"Höxter_762","WillebadessenStadt_040","Altenheerse_2304","Borlinghausen_2318","Eissen_2337","Engar_2338","Fölsen_2344","Helmern_2356","Ikenhausen_2367","Löwen_2375","Niesen_2389","Peckelsheim_2397","Schweckhausen_2410","Willebadessen_2421","Willegassen_2422"]
[null,null,null,"Kleve_154","BedburgHau_004","Huisberden_3019","Louisendorf_3039","Schneppenbaum_3040","Till-Moyland_3041","Hau_3480"]
[null,null,null,"Kleve_154","EmmerichStadt_008","Borghees_3366","Elten_3367","Hüthum_3369","Emmerich_3370","Klein-Netterden_3371","Dornick_3405","Praest_3407","Vrasselt_3408"]
[null,null,null,"Kleve_154","GeldernStadt_012","Kapellen_3162","Geldern_3163","Pont_3176","Veert_3177","Vernum_3179","Walbeck_3182"]
[null,null,null,"Kleve_154","GochStadt_016","Asperden_3006","Hassum_3007","Hommersum_3008","Hülm_3009","Goch_3015","Kessel_3032","Pfalzdorf_3038","Nergena_3482","Nierswalde_3483"]
[null,null,null,"Kleve_154","Issum_020","Issum_3165","Sevelen_3178"]
[null,null,null,"Kleve_154","KalkarStadt_024","Appeldorn_3002","Hanselaer_3003","Hönnepel_3004","Niedermörmter_3005","Altkalkar_3010","Kalkar_3011","Neulouisendorf_3012","Bylerward_3016","Emmericher-Eyland_3017","Grieth_3018","Wissel_3020","Wisselward_3021"]
[null,null,null,"Kleve_154","Kerken_028","Aldekerk_3160","Stenden_3161","Nieukerk_3174","Eyll_3175"]
[null,null,null,"Kleve_154","KevelaerStadt_032","Kervenheim_3166","Kervendonk_3167","Winnekendonk_3168","Kevelaer_3169","KleinKevelaer_3170","Twisteden_3171","Wetten_3172"]
[null,null,null,"Kleve_154","KleveStadt_036","Kleve_3013","Brienen_3022","Griethausen_3023","Kellen_3024","Salmorth_3025","Schenkenschanz_3026","Warbeyen_3027","Wardhausen_3028","Keeken_3029","Rindern_3030","Donsbrüggen_3033","Bimmen_3473","Düffelward_3474","Hurendeich_3475","Materborn_3479","Reichswalde_3481"]
[null,null,null,"Kleve_154","Kranenburg_040","Kranenburg_3014","Mehr_3034","Niel_3035","Wyler_3036","Zyfflich_3037","Nütterden_3477","Frasselt_3478"]
[null,null,null,"Kleve_154","ReesStadt_044","Groin_3372","Haffen-Mehr_3373","Haldern_3374","Heeren-Herken_3375","Empel_3380","Millingen_3381","Rees_3384","Bergswick_3385","Esserden_3386","Reesereyland_3387","Reeserward_3388","Speldrop_3389","Bienen_3404","Grietherbusch_3406","Grietherort_3476"]
[null,null,null,"Kleve_154","Rheurdt_048","Rheurdt_3328","Schaephuysen_3330"]
[null,null,null,"Kleve_154","StraelenStadt_052","Straelen_3180","Herongen_3183"]
[null,null,null,"Kleve_154","Uedem_056","Keppeln_3031","Uedem_3042","Uedemerfeld_3043","Uedemerbruch_3484"]
[null,null,null,"Kleve_154","Wachtendonk_060","Wachtendonk_3181","Wankum_3184"]
[null,null,null,"Kleve_154","Weeze_064","Kalbeck_3185","Weeze_3186","Wissen_3187"]
[null,null,null,"KölnStadt_315","KölnStadt_000","Köln_4958","Köln-Rondorf_4959","Köln-Efferen_4960","Kriel_4961","Müngersdorf_4962","Ehrenfeld_4963","Nippes_4964","Worringen_4965","Longerich_4966","Mülheim_4967","Wichheim-Schweinheim_4968","Merheim_4969","Kalk_4970","Vingst_4971","Deutz_4972","Poll_4973","Stammheim-Flittard_4974","Dünnwald_4975","Thurn-Strunden_4976","Langenbrück_4977","Rath_4978","Eil_4980","Elsdorf_4981","Ensen_4982","Esch_4983","Heumar_4984","Langel_4986","Libur_4987","Lind_4988","Lövenich_4989","Niederzündorf_4990","Oberzündorf_4991","Porz_4992","Rondorf-Land_4993","Meschenich_4994","Urbach_4995","Wahn_4997","Westhoven_4999"]
[null,null,null,"KrefeldStadt_114","KrefeldStadt_000","Bockum_3045","Oppum_3046","Traar_3047","Verberg_3048","Krefeld_3049","Fischeln_3050","Gellep-Stratum_3051","Linn_3059","Uerdingen_3061","Benrad_3243","Hüls_3244"]
[null,null,null,"LeverkusenStadt_316","LeverkusenStadt_000","Bergisch-Neukirchen_4601","Bürrig_4602","Hitdorf_4603","Lützenkirchen_4604","Opladen_4605","Rheindorf_4606","Schlebusch_4607","Steinbüchel_4608","Wiesdorf_4609"]
[null,null,null,"Lippe_766","Augustdorf_004","Augustdorf_2017"]
[null,null,null,"Lippe_766","BadSalzuflenStadt_008","BadSalzuflen_2008","Schötmar_2009","Biemsen-Ahmsen_2032","Ehrsen-Breden_2055","Grastrup-Hölsen_2067","Holzhausen_2097","Lockhausen_2130","Papenhausen_2162","Retzen_2168","Werl-Aspe_2218","Wülfer-Bexten_2225","Wüsten_2226"]
[null,null,null,"Lippe_766","BarntrupStadt_012","Barntrup_2001","Alverdissen_2013","Selbeck_2188","Sommersell_2194","Sonneborn_2195"]
[null,null,null,"Lippe_766","BlombergStadt_016","Blomberg_2002","Altendonop_2012","Borkhausen_2036","Brüntrup_2046","Cappel_2047","Dalborn_2049","Donop_2051","Eschenbruch_2059","Großenmarpe_2071","Herrentrup_2085","Höntrup_2092","Istrup_2107","Kleinenmarpe_2112","Maspe_2139","Mossenberg-Wöhren_2145","Reelkirchen_2166","Siebenhöfen_2189","Tintrup_2200","Wellentrup_2215"]
[null,null,null,"Lippe_766","DetmoldStadt_020","Detmold_2003","Barkhausen_2018","Bentrup_2027","Berlebeck_2030","Brokhausen_2043","Dehlentrup_2050","Hakedahl_2073","Heidenoldendorf_2081","Heiligenkirchen_2082","Hiddesen_2090","Hornoldendorf_2101","Jerxen-Orbke_2108","Leistrup-Meiersfeld_2123","Loßbruch_2132","Mosebeck_2144","Niederschönhagen_2149","Nienhagen_2150","Niewald_2153","Oberschönhagen_2154","Oettern-Bremke_2159","PivitsheideVH_2163","PivitsheideVL_2164","Remmighausen_2167","Schönemark_2179","Spork-Eichholz_2196","Vahlhausen_2204"]
[null,null,null,"Lippe_766","Dörentrup_024","Bega_2022","Hillentrup_2091","Humfeld_2104","Schwelentrup_2185","Wendlinghausen_2217"]
[null,null,null,"Lippe_766","Extertal_028","Almena_2011","Asmissen_2016","Bösingfeld_2035","Bremke_2042","Göstrup_2066","Kükenbruch_2118","Laßbruch_2121","Meierberg_2141","Nalhof_2147","Rott_2170","Schönhagen_2180","Silixen_2193"]
[null,null,null,"Lippe_766","HornBadMeinbergStadt_032","Horn_2004","Belle_2023","Bellenberg_2024","Billerbeck_2033","Fromhausen_2065","Heesten_2078","Holzhausen-Externsteine_2098","Leopoldstal_2126","BadMeinberg_2142","Schmedissen_2178","Vahlhausen_2205","Veldrom_2208","Wehren_2213","Kempenfeldrom_2228"]
[null,null,null,"Lippe_766","Kalletal_036","Asendorf_2015","Bavenhausen_2020","Bentorf_2026","Brosen_2044","Erder_2058","Heidelbeck_2079","Henstorf_2083","Hohenhausen_2095","Kalldorf_2110","Langenholzhausen_2120","Lüdenhausen_2134","Osterhagen_2161","Stemmen_2197","Talle_2199","Varenholz_2207","Westorf_2219"]
[null,null,null,"Lippe_766","LageStadt_040","Lage_2005","Billinghausen_2034","Ehrentrup_2054","Hagen_2072","Hardissen_2074","Hedderhagen_2077","Heiden_2080","Heßloh_2086","Hörste_2093","Müssen_2146","Ohrsen_2160","Pottenhausen_2165","Waddenhausen_2210","Kachtenhausen_2214","Wissentrup_2222"]
[null,null,null,"Lippe_766","LemgoStadt_044","Lemgo_2006","Brake_2039","Brüntorf_2045","Entrup_2057","Hörstmar_2094","Leese_2122","Lieme_2127","Lüerdissen_2136","Matorf-Kirchheide_2140","Trophagen_2201","Voßheide_2209","Wahmbeck_2212","Welstorf_2216","Wiembeck_2220"]
[null,null,null,"Lippe_766","Leopoldshöhe_048","Asemissen_2014","Bechterdissen_2021","Bexterhagen_2031","Greste_2068","Krentrup_2117","Leopoldshöhe_2125","Nienhagen_2151","Schuckenbaum_2183"]
[null,null,null,"Lippe_766","LügdeStadt_052","Elbrinxen_2056","Falkenhagen_2062","Hummersen_2105","Köterberg_2114","Niese_2152","Rischenau_2169","Sabbenhausen_2172","Wörderfeld_2224","Harzberg_2227","Lügde_2229"]
[null,null,null,"Lippe_766","OerlinghausenStadt_056","Oerlinghausen_2007","Lipperreihe_2129","Helpup_2211"]
[null,null,null,"Lippe_766","Schieder-SchwalenbergStad_060","Schwalenberg_2010","Brakelsiek_2040","Lothe_2133","Ruensiek_2171","Schieder_2175","Siekholz_2191","Wöbbel_2223"]
[null,null,null,"Lippe_766","Schlangen_064","Kohlstädt_2115","Oesterholz_2158","Schlangen_2177"]
[null,null,null,"MärkischerKreis_962","AltenaStadt_004","Altena_1004","Dahle_1014","Evingsen_1421"]
[null,null,null,"MärkischerKreis_962","BalveStadt_008","Balve_1034","Beckum_1035","Eisborn_1037","Garbeck_1038","Langenholthausen_1040","Mellen_1041","Volkringhausen_1042"]
[null,null,null,"MärkischerKreis_962","HemerStadt_016","Deilinghofen_1420","Frönsberg_1422","Ihmert_1423","Hemer_1426","Becke_1943"]
[null,null,null,"MärkischerKreis_962","Herscheid_020","Herscheid_1006"]
[null,null,null,"MärkischerKreis_962","IserlohnStadt_024","Hennen_1418","Kesbern_1424","Lössel_1425","Iserlohn_1429","Letmathe_1431","Oestrich_1433","Sümmern_1439"]
[null,null,null,"MärkischerKreis_962","KierspeStadt_028","Kierspe_1007","Rönsahl_1008"]
[null,null,null,"MärkischerKreis_962","LüdenscheidStadt_032","Lüdenscheid-Land_1010","Lüdenscheid-Stadt_1011"]
[null,null,null,"MärkischerKreis_962","MeinerzhagenStadt_036","Meinerzhagen_1012","Valbert_1013"]
[null,null,null,"MärkischerKreis_962","MendenSauerlandStadt_040","Asbeck_1033","Lendringsen_1434","Halingen_1435","Bösperde_1436","Oesbern_1437","Schwitten_1438","Menden_1441"]
[null,null,null,"MärkischerKreis_962","NachrodtWiblingwerde_044","Nachrodt-Wiblingwerde_1003"]
[null,null,null,"MärkischerKreis_962","NeuenradeStadt_048","Neuenrade_1015","Affeln_1031","Altenaffeln_1032","Blintrop_1036","Küntrop_1039"]
[null,null,null,"MärkischerKreis_962","PlettenbergStadt_052","Ohle_1016","Dankelmert_1018","Eiringhausen_1019","Holthausen_1020","Plettenberg_1021"]
[null,null,null,"MärkischerKreis_962","Schalksmühle_056","Hülscheid_1009","Schalksmühle_1920"]
[null,null,null,"MärkischerKreis_962","WerdohlStadt_060","Werdohl_1017"]
[null,null,null,"Mettmann_158","ErkrathStadt_004","Erkrath_3261","Hochdahl_3274"]
[null,null,null,"Mettmann_158","HaanStadt_008","Haan_3271","Gruiten_3273","Obgruiten_3275"]
[null,null,null,"Mettmann_158","HeiligenhausStadt_012","Heiligenhaus_3410","Hetterscheidt_3413","Isenbügel_3415","Leubeck_3419","Tüschen_3420"]
[null,null,null,"Mettmann_158","HildenStadt_016","Hilden_3431"]
[null,null,null,"Mettmann_158","LangenfeldRheinlandStadt_020","Reusrath_3424","Berghausen_3425","Richrath_3426","Wiescheid_3427","Immigrath_3428"]
[null,null,null,"Mettmann_158","MettmannStadt_024","Metzkausen_3124","Mettmann_3281"]
[null,null,null,"Mettmann_158","MonheimStadt_026","Baumberg_3417","Monheim_3418"]
[null,null,null,"Mettmann_158","RatingenStadt_028","Lintorf_3103","Eggerscheidt_3112","Homberg_3113","Hösel_3114","Meiersberg_3123","Breitscheid_3131","Ratingen_3134","Hasselbeck_3262"]
[null,null,null,"Mettmann_158","VelbertStadt_032","Untensiebeneick_3067","Grossehöhe_3231","Kleinehöhe_3232","Kleinumstand_3237","Windrath_3252","Kuhlendahl_3265","Neviges_3268","Nordrath_3270","Langenberg_3280","Velbert_3282","Bleiberg_3298","Niederbonsfeld_3299","Oberbonsfeld_3300"]
[null,null,null,"Mettmann_158","WülfrathStadt_036","Wülfrath_3283","Unterdüssel_3301","Flandersbach_3421","Oberdüssel_3422","Rützkausen_3423"]
[null,null,null,"MindenLübbecke_770","BadOeynhausenStadt_004","BadOeynhausen_2706","Dehme_2717","Eidinghausen_2724","Lohe_2769","Rehme_2796","Volmerdingsen_2818","Werste_2822","Wulferdingsen_2827"]
[null,null,null,"MindenLübbecke_770","EspelkampStadt_008","Fiestel-Gestringen_2702","Espelkamp_2729","Fabbenstedt_2730","Frotheim_2733","Isenstedt_2759","Schmalge_2810","Vehlage_2815"]
[null,null,null,"MindenLübbecke_770","Hille_012","Eickhorst_2723","Hartum_2744","Hille_2748","HolzhausenIi_2753","Nordhemmern_2782","Oberlübbe_2784","Rothenuffeln_2798","Südhemmern_2806","Unterlübbe_2813"]
[null,null,null,"MindenLübbecke_770","Hüllhorst_016","Ahlsen_2701","Bröderhausen_2712","Büttendorf_2714","Holsen_2749","Huchzen_2754","Hüllhorst_2755","Oberbauerschaft_2783","Schnathorst_2800","Tengern_2808"]
[null,null,null,"MindenLübbecke_770","LübbeckeStadt_020","Alswede_2703","Blasheim_2709","Eilhausen_2725","Gehlenbeck_2734","Lübbecke_2771","Nettelstedt_2779"]
[null,null,null,"MindenLübbecke_770","MindenStadt_024","Aminghausen_2704","Bölhorst_2710","Dankersen_2716","Dützen_2722","Haddenhausen_2738","Häverstädt_2740","Hahlen_2741","Kutenhausen_2763","Leteln_2767","Meißen_2773","Minden_2775","Päpinghausen_2789","Stemmer_2804","Todtenhausen_2809"]
[null,null,null,"MindenLübbecke_770","PetershagenStadt_028","Bierde_2708","Buchholz_2713","Döhren_2720","Eldagsen_2727","Friedewalde_2731","Frille_2732","Gorspen-Vahlsen_2736","Großenheerse_2737","Hävern_2739","Heimsen_2747","Ilse_2756","Ilserheide_2757","Ilvese_2758","Jössen_2760","Lahde_2764","Maaslingen_2772","Meßlingen_2774","Neuenknick_2780","Ovenstädt_2788","Petershagen_2790","Quetzen_2793","Raderhorst_2794","Rosenhagen_2797","Schlüsselburg_2799","Seelenfeld_2802","Südfelde_2805","Wasserstraße_2819","Wietersheim_2824","Windheim_2825"]
[null,null,null,"MindenLübbecke_770","PortaWestfalicaStadt_032","Barkhausen_2707","Costedt_2715","Eisbergen_2726","Hausberge_2745","Holtrup_2750","HolzhausenI_2752","Kleinenbremen_2761","Lerbeck_2766","Lohfeld_2770","Möllbergen_2776","Nammen_2777","Neesen_2778","Veltheim_2816","Vennebeck_2817","Wülpke_2826"]
[null,null,null,"MindenLübbecke_770","PreußischOldendorfStadt_036","Börninghausen_2711","Engershausen_2728","Getmold_2735","Harlinghausen_2743","Hedem_2746","Holzhausen_2751","Lashorst_2765","Offelten_2785","PreußischOldendorf_2791","Schröttinghausen_2801"]
[null,null,null,"MindenLübbecke_770","RahdenStadt_040","Kleinendorf_2762","PreußischStröhen_2792","Rahden_2795","Sielhorst_2803","Tonnenheide_2811","Varl_2814","Wehe_2821"]
[null,null,null,"MindenLübbecke_770","Stemwede_044","Arrenkamp_2705","Destel_2718","Dielingen_2719","Drohne_2721","Haldem_2742","Levern_2768","Niedermehnen_2781","Oppendorf_2786","Oppenwehe_2787","Sundern_2807","Twiehausen_2812","Wehdem_2820","Westrup_2823"]
[null,null,null,"MönchengladbachStadt_116","MönchengladbachStadt_000","Rheindahlen_3190","Mönchengladbach_3191","Mönchengladbach-Land_3192","Hardt-Alte_3193","Neuwerk_3197","Odenkirchen_3198","Rheydt_3199","Giesenkirchen_3200","Schelsen_3201","Wanlo_3227","Wickrath_3229","Hardt-Neue_3382"]
[null,null,null,"MülheimanderRuhrStadt_117","MülheimanderRuhrStadt_000","Mülheim_3084","Dümpten_3086","Heißen_3089","Holthausen_3090","Menden_3092","Raadt_3093","Saarn_3094","Speldorf_3095","Broich_3096","Fulerum_3436","Winkhausen_3437","Styrum_3438","Selbeck_3439","Ickten_3440"]
[null,null,null,"MünsterStadt_515","MünsterStadt_000","Münster_5001","SanktMauritz_5002","Handorf_5005","Amelsbüren_5006","Hiltrup_5007","Wolbeck-Stadt_5011","Wolbeck-Kirchspiel_5012","Angelmodde_5013","Roxel_5019","Albachten_5020","Nienberge_5022"]
[null,null,null,"OberbergischerKreis_374","BergneustadtStadt_004","Bergneustadt_4202","Wiedenest_4223"]
[null,null,null,"OberbergischerKreis_374","Engelskirchen_008","Ründeroth_4218","Oberengelskirchen_4232","Unterengelskirchen_4236"]
[null,null,null,"OberbergischerKreis_374","GummersbachStadt_012","Gimborn_4206","Gummersbach_4207","Lieberhausen_4213","Strombach_4226","Dieringhausen_4227"]
[null,null,null,"OberbergischerKreis_374","HückeswagenStadt_016","Hückeswagen_4239","Neuhückeswagen_4240"]
[null,null,null,"OberbergischerKreis_374","Lindlar_020","Breidenbach_4228","Breun_4229","Lindlar_4231","Tüschen_4235","Vellingen_4237"]
[null,null,null,"OberbergischerKreis_374","Marienheide_024","Marienheide_4215"]
[null,null,null,"OberbergischerKreis_374","Morsbach_028","Holpe_4211","Lichtenberg_4212","Morsbach_4216"]
[null,null,null,"OberbergischerKreis_374","Nümbrecht_032","Marienberghausen_4214","Nümbrecht_4217"]
[null,null,null,"OberbergischerKreis_374","RadevormwaldStadt_036","Radevormwald_4241"]
[null,null,null,"OberbergischerKreis_374","Reichshof_040","Agger_4201","Denklingen_4203","Eckenhagen_4205","Heischeid_4208","Hespert_4210","Sinspert_4220","Wildberg-Erdingen_4225"]
[null,null,null,"OberbergischerKreis_374","WaldbrölStadt_044","Hermesdorf_4209","Schnörringen_4219","Waldbröl_4221"]
[null,null,null,"OberbergischerKreis_374","WiehlStadt_048","Drabenderhöhe_4204","Weiershagen_4222","Wiehl_4224"]
[null,null,null,"OberbergischerKreis_374","WipperfürthStadt_052","Klüppelberg_4230","Wipperfürth_4238","Wipperfeld_4242"]
[null,null,null,"OberhausenStadt_119","OberhausenStadt_000","Holten_3079","Sterkrade-Nord_3080","Sterkrade_3083","Alstaden_3085","Buschhausen_3087","Oberhausen-Dümpten_3091","Oberhausen-Styrum_3097","Oberhausen_3098","Osterfeld_3432","Oberhausen-Borbeck_3459"]
[null,null,null,"Olpe_966","AttendornStadt_004","Ewig_1541","Helden_1543","Windhausen_1544","Attendorn_1545"]
[null,null,null,"Olpe_966","DrolshagenStadt_008","Benolpe_1550","Bleche_1551","Brachtpe_1552","Drolshagen_1553","Dumicke_1554","Husten_1555"]
[null,null,null,"Olpe_966","Finnentrop_012","Fretter_1536","Lenhausen_1537","Schliprüthen_1539","Schönholthausen_1540","Heggen_1542"]
[null,null,null,"Olpe_966","Kirchhundem_016","Rahrbach_1549","Kohlhagen_1557","Heinsberg_1558","Kirchhundem_1559","Oberhundem_1561","Selbecke_1563","Würdinghausen_1564"]
[null,null,null,"Olpe_966","LennestadtStadt_020","Oedingen_1538","Elspe_1546","Grevenbrück_1547","Kirchveischede_1548","Altenhundem_1556","Saalhausen_1562","Milchenbach_1864"]
[null,null,null,"Olpe_966","Wenden_028","Hünsborn_1569","Römershagen_1570","Schönau_1571","Wenden_1572"]
[null,null,null,"Paderborn_774","Altenbeken_004","Altenbeken_2903","Buke_2916","Schwaney_2956"]
[null,null,null,"Paderborn_774","BadLippspringeStadt_008","BadLippspringe_2907"]
[null,null,null,"Paderborn_774","Borchen_012","Alfen_2902","Dörenhagen_2920","Etteln_2925","Kirchborchen_2940","Nordborchen_2948"]
[null,null,null,"Paderborn_774","BürenStadt_016","Ahden_2901","Barkhausen_2908","Brenken_2914","Büren_2915","Eickhoff_2922","Harth_2931","Hegensdorf_2932","Siddinghausen_2958","Steinhausen_2959","Weiberg_2964","Weine_2965","Wewelsburg_2968"]
[null,null,null,"Paderborn_774","DelbrückStadt_020","Anreppen_2904","Bentfeld_2910","Boke_2913","Delbrück_2919","Hagen_2929","Ostenland_2950","Westenholz_2966","Westerloh_2967"]
[null,null,null,"Paderborn_774","Hövelhof_024","Hövelhof_2936"]
[null,null,null,"Paderborn_774","LichtenauStadt_028","Asseln_2905","Atteln_2906","Blankenrode_2911","Dalheim_2918","Ebbinghausen_2921","Grundsteinheim_2927","Hakenberg_2930","Henglarn_2934","Herbram_2935","Holtheim_2937","Husen_2938","Iggenhausen_2939","Kleinenberg_2941","Lichtenau_2943"]
[null,null,null,"Paderborn_774","PaderbornStadt_032","Benhausen_2909","Dahl_2917","Elsen_2924","Marienloh_2945","Neuenbeken_2946","Paderborn_2951","Sande_2953","SchloßNeuhaus_2955","Wewer_2969"]
[null,null,null,"Paderborn_774","SalzkottenStadt_036","Mantinghausen_2944","Niederntudorf_2947","Oberntudorf_2949","Salzkotten_2952","Scharmede_2954","Schwelle_2957","Thüle_2960","Upsprunge_2961","Verlar_2962","Verne_2963"]
[null,null,null,"Paderborn_774","WünnenbergStadt_040","Bleiwäsche_2912","Elisenhof_2923","Fürstenberg_2926","Haaren_2928","Helmern_2933","Leiberg_2942","Wünnenberg_2970"]
[null,null,null,"Recklinghausen_562","CastropRauxelStadt_004","Henrichenburg_5119","Bladenhorst_5278","Pöppinghausen_5279","Behringhausen_5280","Bövinghausen_5281","Deininghausen_5282","Dingen_5283","Frohlinde_5284","Habinghorst_5285","Ickern_5286","Castrop_5287","Merklinde_5288","Obercastrop_5289","Rauxel_5290"]
[null,null,null,"Recklinghausen_562","DattelnStadt_008","Datteln_5110","Ahsen_5111","Horneburg_5120"]
[null,null,null,"Recklinghausen_562","DorstenStadt_012","Dorsten_5122","Altendorf-Ulfkotte_5123","Lembeck_5133","Wulfen_5135","Rhade_5139"]
[null,null,null,"Recklinghausen_562","GladbeckStadt_014","Gladbeck_5129"]
[null,null,null,"Recklinghausen_562","HalternStadt_016","Flaesheim_5112","Haltern-Stadt_5160","Haltern-Kirchspiel_5161","Haltern_5162","Hullern_5163"]
[null,null,null,"Recklinghausen_562","HertenStadt_020","Herten_5116","Westerholt_5127"]
[null,null,null,"Recklinghausen_562","MarlStadt_024","Marl_5124"]
[null,null,null,"Recklinghausen_562","OerErkenschwickStadt_028","Oer-Erkenschwick_5117"]
[null,null,null,"Recklinghausen_562","RecklinghausenStadt_032","Recklinghausen_5215"]
[null,null,null,"Recklinghausen_562","WaltropStadt_036","Waltrop_5121"]
[null,null,null,"RemscheidStadt_120","RemscheidStadt_000","Lennep_3263","Lüttringhausen_3264","Remscheid_3266","Fünfzehnhöfe_3269","BergischBorn_3272","Außenbürgerschaft_3434"]
[null,null,null,"RheinErftKreis_362","BedburgStadt_004","Bedburg_4610","Epprath_4611","Kaster_4612","Königshoven_4613","Lipp_4614","Morken-Harff_4615","Pütz_4616"]
[null,null,null,"RheinErftKreis_362","BergheimStadt_008","Bergheim_4620","Glesch_4621","Hüchelhoven_4622","Kenten_4623","Niederaußem_4624","Oberaußem-Fortuna_4625","Paffendorf_4626","Quadrath-Ichendorf_4627","Wiedenfeld_4628","Zieverich_4629"]
[null,null,null,"RheinErftKreis_362","BrühlStadt_012","Badorf_4630","Brühl_4631","Kierberg_4632","Schwadorf_4633","Vochem_4634"]
[null,null,null,"RheinErftKreis_362","Elsdorf_016","Angelsdorf_4640","Apartehöfe_4641","Elsdorf_4642","Esch_4643","Heppendorf_4644","Niederembt_4645","Oberembt_4646","Tollhausen_4647"]
[null,null,null,"RheinErftKreis_362","ErftstadtStadt_020","Bliesheim_4650","Borr_4651","Dirmerzheim_4652","Erp_4653","Friesheim_4654","Gymnich_4655","Kierdorf_4656","Lechenich_4657","Liblar_4658","Niederberg_4659"]
[null,null,null,"RheinErftKreis_362","FrechenStadt_024","Bachem_4660","Buschbell_4661","Frechen_4662","Königsdorf_4663"]
[null,null,null,"RheinErftKreis_362","HürthStadt_028","Berrenrath_4670","Efferen_4671","Fischenich_4672","Gleuel_4673","Hermülheim_4674","Hürth_4675","Kendenich_4676","Stotzheim_4677"]
[null,null,null,"RheinErftKreis_362","KerpenStadt_032","Blatzheim_4680","Buir_4681","Horrem_4682","Kerpen_4683","Manheim_4684","Mödrath_4685","Sindorf_4686","Türnich_4687"]
[null,null,null,"RheinErftKreis_362","PulheimStadt_036","Brauweiler_4690","Geyen_4691","Pulheim_4692","Sinnersdorf_4693","Stommeln_4694"]
[null,null,null,"RheinErftKreis_362","WesselingStadt_040","Berzdorf_4696","Keldenich_4697","Urfeld_4698","Wesseling_4699"]
[null,null,null,"RheinischBergischerKreis_378","BergischGladbachStadt_004","Bensberg-Freiheit_4903","Bensberg-Honschaft_4904","Combüchen_4911","Gladbach_4919","Gronau_4920","Herkenrath_4923","Paffrath_4942","Refrath_4944","Sand_4946"]
[null,null,null,"RheinischBergischerKreis_378","BurscheidStadt_008","Burscheid_4908"]
[null,null,null,"RheinischBergischerKreis_378","Kürten_012","Bechen_4902","Berg_4905","Breibach_4907","Collenbach_4910","Dürscheid_4912","Engeldorf_4916","Kürten_4927","Olpe_4941"]
[null,null,null,"RheinischBergischerKreis_378","LeichlingenRheinland_016","Leichlingen_4928","Witzhelden_4956"]
[null,null,null,"RheinischBergischerKreis_378","Odenthal_020","Oberodenthal_4938","Unterodenthal_4951"]
[null,null,null,"RheinischBergischerKreis_378","Overath_024","Balken_4901","Eschbach_4917","Heiliger_4922","Immekeppel_4925","Löderich_4932","Miebach_4935","Oderscheid_4940","Vilkerath_4954"]
[null,null,null,"RheinischBergischerKreis_378","Rösrath_028","Bleifeld_4906","Forsbach_4918","Hasbach_4921","Lüghausen_4933","Menzlingen_4934","Rösrath_4945","Volberg_4955"]
[null,null,null,"RheinischBergischerKreis_378","WermelskirchenStadt_032","Dabringhausen_4913","Dhünn_4914","Dorfhonnschaft_4915","Niederwermelskirchen_4936","Oberhonnschaft_4937"]
[null,null,null,"RheinKreisNeuss_162","DormagenStadt_004","Broich_3208","Dormagen_3347","Hackenbroich_3348","Gohr_3357","Nievenheim_3360","Straberg_3361","Zons_3365"]
[null,null,null,"RheinKreisNeuss_162","GrevenbroichStadt_008","Elsen_3205","Elfgen_3206","Laach_3207","Frimmersdorf_3211","Neurath_3212","Allrath_3214","Barrenstein_3215","Grevenbroich_3216","Neuenhausen_3217","Gindorf_3218","Gustorf_3219","Kapellen_3220","Hemmerden_3221","Neukirchen_3223","Wevelinghoven_3228"]
[null,null,null,"RheinKreisNeuss_162","Jüchen_012","Bedburdyck_3204","Garzweiler_3213","Jüchen_3224","Kelzenberg_3225","Hochneukirch_3226"]
[null,null,null,"RheinKreisNeuss_162","KaarstStadt_016","Büttgen_3346","Kaarst_3355"]
[null,null,null,"RheinKreisNeuss_162","KorschenbroichStadt_020","Korschenbroich_3188","Pesch_3189","Kleinenbroich_3194","Liedberg_3195","Glehn_3349"]
[null,null,null,"RheinKreisNeuss_162","MeerbuschStadt_022","Ilverich_3052","Langst-Kierst_3053","Lank_3054","Latum_3055","Nierst_3056","Ossum-Bösinghoven_3057","Strümp_3058","Osterath_3060","Büderich_3345"]
[null,null,null,"RheinKreisNeuss_162","NeussStadt_024","Hoisten_3222","Grefrath_3350","Grimlinghausen_3351","Uedesheim_3352","Holzheim_3354","Neuss_3359","Norf_3362","Rosellen_3363"]
[null,null,null,"RheinKreisNeuss_162","Rommerskirchen_028","Hoeningen_3209","Oekoven_3210","Frixheim-Anstel_3356","Nettesheim-Butzheim_3358","Rommerskirchen_3364"]
[null,null,null,"RheinSiegKreis_382","Alfter_004","Alfter_4102","Gielsdorf_4116","Impekoven_4123","Oedekoven_4146","Witterschlick_4165"]
[null,null,null,"RheinSiegKreis_382","BadHonnefStadt_008","Aegidienberg_4002","Honnef_4033"]
[null,null,null,"RheinSiegKreis_382","BornheimStadt_012","Bornheim-Brenig_4107","Hersel_4120","Kardorf-Hemmerich_4125","Merten_4135","Roisdorf_4152","Rösberg_4153","Sechtem_4156","Uedorf_4159","Walberberg_4161","Waldorf_4162","Widdig_4164"]
[null,null,null,"RheinSiegKreis_382","Eitorf_016","Eitorf_4019","Halft_4024","Linkenbach_4043","Merten_4049"]
[null,null,null,"RheinSiegKreis_382","HennefSiegStadt_020","Adscheid_4001","Altenbödingen_4003","Blankenberg_4009","Geistingen_4021","Happerschoß_4026","Kurscheid_4039","Lauthausen_4040","Lichtenberg_4042","Söven_4073","Striefen_4076","Uckerath_4079","Wellesberg_4084","Süchterscheid_4091"]
[null,null,null,"RheinSiegKreis_382","KönigswinterStadt_024","Berghausen_4006","Hasenpohl_4027","Heisterbacherrott_4028","Ittenbach_4036","Königswinter_4038","Niederdollendorf_4053","Oberdollendorf_4057","Oberhau_4058","Oberpleis_4061","Oelinghoven_4062","Rauschendorf_4063","Vinxel_4081","Wahlfeld_4082"]
[null,null,null,"RheinSiegKreis_382","LohmarStadt_028","Breidt_4012","Halberg_4023","Honrath_4031","Inger_4035","Lohmar_4044","Scheiderhöhe_4067","Wahlscheid_4083"]
[null,null,null,"RheinSiegKreis_382","MeckenheimStadt_032","Altendorf_4103","Ersdorf_4111","Lüftelberg_4131","Meckenheim_4132","Merl_4134"]
[null,null,null,"RheinSiegKreis_382","Much_036","Bennrath_4005","Bonrath_4010","Gerlinghausen_4022","Löbach_4045","Markelsbach_4047","Miebach_4050","Much_4052","Wersch_4085"]
[null,null,null,"RheinSiegKreis_382","NeunkirchenSeelscheid_040","Eischeid_4018","Herkenrath_4030","Seelscheid_4068","Söntgerath_4072","Wolperath_4088"]
[null,null,null,"RheinSiegKreis_382","NiederkasselStadt_044","Lülsdorf_4046","Mondorf_4051","Niederkassel_4054","Rheidt_4064","Stockem_4075","Uckendorf_4078"]
[null,null,null,"RheinSiegKreis_382","RheinbachStadt_048","Flerzheim_4113","Hilberath_4121","Neukirchen_4139","Niederdrees_4141","Oberdrees_4143","Queckenberg_4149","Ramershoven_4150","Rheinbach_4151","Todenfeld_4157","Wormersdorf_4166"]
[null,null,null,"RheinSiegKreis_382","Ruppichteroth_052","Bröl_4013","Dehrenbach_4017","Ruppichteroth_4066","Velken_4080","Winterscheid_4087"]
[null,null,null,"RheinSiegKreis_382","SanktAugustinStadt_056","Birlinghoven_4008","Buisdorf_4014","Hangelar_4025","Meindorf_4048","Niedermenden_4055","Niederpleis_4056","Obermenden_4060","Siegburg-Mülldorf_4070"]
[null,null,null,"RheinSiegKreis_382","SiegburgStadt_060","Braschoß_4011","Siegburg_4069","Wolsdorf_4089","Seligenthal_4090"]
[null,null,null,"RheinSiegKreis_382","Swisttal_064","Buschhoven_4109","Essig_4112","Heimerzheim_4119","Ludendorf_4130","Miel_4136","Morenhoven_4137","Odendorf_4144","Ollheim_4145","Straßfeld_4158"]
[null,null,null,"RheinSiegKreis_382","TroisdorfStadt_068","Altenrath_4004","Bergheim-Müllekoven_4007","Sieglar_4071","Spich_4074","Troisdorf_4077"]
[null,null,null,"RheinSiegKreis_382","Wachtberg_072","Adendorf_4101","Arzdorf_4104","Berkum_4105","Fritzdorf_4115","Gimmersdorf_4117","Holzem_4122","Ließem_4129","Niederbachem_4140","Oberbachem_4142","Pech_4147","Villip_4160","Werthhoven_4163","Züllighoven_4167"]
[null,null,null,"RheinSiegKreis_382","Windeck_076","Dattenfeld_4016","Geilhausen_4020","Herchen_4029","Höhe_4034","Kohlberg_4037","Leuscheid_4041","Rosbach_4065","Windeck_4086"]
[null,null,null,"SiegenWittgenstein_970","BadBerleburgStadt_004","Alertshausen_1798","Arfeld_1799","Beddelhausen_1800","Christianseck_1801","Elsoff_1802","Richstein_1804","Sassenhausen_1805","Schwarzenau_1806","Stünzel_1807","Weidenhausen_1808","Aue_1822","Berghausen_1824","Dotzlar_1827","Hemschlar_1828","Raumland_1829","Rinthe_1830","Wingeshausen_1831","BadBerleburg_1833","Diedenshausen_1849","Girkhausen_1850","Schüllar_1856","Wemlighausen_1857","Wunderthausen_1858"]
[null,null,null,"SiegenWittgenstein_970","BadLaaspheStadt_028","Banfe_1809","Bermershausen_1810","Bernshausen_1811","Fischelbach_1812","Heiligenborn_1813","Herbertshausen_1814","Hesselbach_1815","Holzhausen_1816","Niederlaasphe_1817","Puderbach_1818","Saßmannshausen_1819","Wittgenstein-Kunst_1820","Amtshausen_1834","Feudingen_1837","Großenbach_1838","Oberndorf_1840","Rückershausen_1841","Rüppershausen_1842","Steinbach_1844","Volkholz_1845","Weide_1846","Laasphe_1859"]
[null,null,null,"SiegenWittgenstein_970","Burbach_008","Burbach_1573","Gilsbach_1574","Holzhausen_1575","Lippe_1576","Lützeln_1577","Niederdresselndorf_1579","Oberdresselndorf_1580","Wahlbach_1584","Würgendorf_1587"]
[null,null,null,"SiegenWittgenstein_970","Erndtebrück_012","Balde_1823","Birkefehl_1825","Birkelbach_1826","Womelsdorf_1832","Benfe_1835","Erndtebrück_1836","Schameder_1843","Zinse_1848"]
[null,null,null,"SiegenWittgenstein_970","FreudenbergStadt_016","Alchen_1603","Bottenberg_1604","Bühl_1605","Büschergrund_1606","Dirlenbach_1607","Freudenberg_1608","Heisberg_1609","Hohenhain_1610","Lindenberg_1612","Mausbach_1613","Niederheuslingen_1616","Niederholzklau_1617","Niederndorf_1618","Oberfischbach_1619","Oberheuslingen_1620","Oberholzklau_1622","Plittershagen_1624"]
[null,null,null,"SiegenWittgenstein_970","HilchenbachStadt_020","Allenbach_1625","Dahlbruch_1626","Grund_1627","Hadem_1629","Helberhausen_1630","Lützel_1632","Müsen_1633","Oberndorf_1634","Oechelhausen_1635","Ruckersfeld_1636","Vormwald_1637","Hilchenbach_1638"]
[null,null,null,"SiegenWittgenstein_970","KreuztalStadt_024","Burgholdinghausen_1591","Buschhütten_1592","Krombach_1593","Eichen_1595","Kreuztal_1596","Fellinghausen_1597","Ferndorf_1598","Kredenbach_1599","Littfeld_1600","Osthelden_1601","Hees_1615"]
[null,null,null,"SiegenWittgenstein_970","Netphen_032","Afholderbach_1639","Beienbach_1641","Brauersdorf_1642","Deuz_1644","Dreistiefenbach_1645","Eckmannshausen_1646","Eschenbach_1647","Frohnhausen_1650","Grissenbach_1652","Hainchen_1653","Helgersdorf_1654","Herzhausen_1655","Irmgarteichen_1656","Nauholz_1657","Nenkersdorf_1658","Niedernetphen_1659","Obernau_1661","Obernetphen_1662","Oelgershausen_1664","Salchendorf_1666","Sohlbach_1667","Unglinghausen_1668","Walpersdorf_1669","Werthenbach_1670"]
[null,null,null,"SiegenWittgenstein_970","Neunkirchen_036","Neunkirchen_1578","Salchendorf_1581","Altenseelbach_1582","Struthütten_1583","Wiederstein_1585","Zeppenfeld_1588"]
[null,null,null,"SiegenWittgenstein_970","SiegenStadt_040","Buchen_1590","Langenholdinghausen_1611","Meiswinkel_1614","Oberschelden_1623","Breitenbach_1643","Feuersbach_1648","Niedersetzen_1660","Obersetzen_1663","Siegen_1671","Birlenbach_1673","Bürbach_1674","Kaan-Marienborn_1676","Geisweid_1677","Eiserfeld_1678","Gosenbach_1679","Niederschelden_1681","Seelbach_1682","Sohlbach_1683","Trupbach_1684","Volnsberg_1685","Weidenau_1686","Eisern_1687","Dillnhütten_1924"]
[null,null,null,"SiegenWittgenstein_970","Wilnsdorf_044","Wilden_1586","Anzhausen_1640","Flammersbach_1649","Gernsdorf_1651","Rudersdorf_1665","Niederdielfen_1688","Oberdielfen_1689","Obersdorf_1690","Rinsdorf_1691","Wilgersdorf_1692","Wilnsdorf_1693"]
[null,null,null,"Soest_974","Anröchte_004","Altengeseke_1442","Altenmellrich_1443","Anröchte_1444","Berge_1446","Klieve_1450","Mellrich_1451","Robringhausen_1454","Uelde_1458","Waltringhausen_1459","Effeln_1472"]
[null,null,null,"Soest_974","BadSassendorf_008","Weslarn_1709","Beusingsen_1743","Elfsen_1745","EnkesenImKlei_1746","Heppen_1747","Herringsen_1748","Lohne_1751","Neuengeseke_1753","Opmünden_1754","Sassendorf_1756","Bettinghausen_1757","Ostinghausen_1766","Gabrechten_1925"]
[null,null,null,"Soest_974","Ense_012","Bilme_1711","Bittingen_1712","Bremen_1714","Gerlingen_1720","Höingen_1724","Hünningen_1725","Lüttringen_1728","Niederense_1729","Oberense_1730","Parsit_1731","Ruhne_1732","Sieveringen_1733","Volbringen_1736","Waltringen_1738"]
[null,null,null,"Soest_974","ErwitteStadt_016","Berenbrock_1445","Böckum_1447","Ebbinghausen_1448","Horn_1449","Merklinghausen_1452","Norddorf_1453","Schallern_1455","Schmerlecke_1456","Seringhausen_1457","Eikeloh_1461","Erwitte_1462","Stirpe_1464","Völlinghausen_1465","Weckinghausen_1466","BadWesternkotten_1467"]
[null,null,null,"Soest_974","GesekeStadt_020","Geseke_1468","Bönninghausen_1488","Ehringhausen_1490","Mönninghausen_1493","Störmede_1495","Eringerfeld_1917","Langeneicke_1918","Ermsinghausen_1919"]
[null,null,null,"Soest_974","Lippetal_024","Brockhausen_1698","Heintrop_1759","Hovestadt_1760","Hultrop_1761","Krewinkel_1762","Niederbauer_1764","Oestinghausen_1765","Schoneberg_1767","Herzfeld_1862","Lippborg_1863","Nordwald_1926"]
[null,null,null,"Soest_974","LippstadtStadt_028","Benninghausen_1460","Hellinghausen_1463","Lippstadt_1469","Bökenförde_1487","Dedinghausen_1489","Esbeck_1491","Rixbeck_1494","Eickelborn_1758","Lohe_1763","Garfeln_1879","Hörste_1880","Rebbeke_1881","BadWaldliesborn_1882","Herringhausen_1913","Overhagen_1914","Cappel_1915","Lipperode_1916"]
[null,null,null,"Soest_974","Möhnesee_032","Berlingsen_1710","Brüllingsen_1715","Büecke_1716","Delecke_1717","Echtrop_1718","Ellingsen_1719","Günne_1721","Hewingsen_1722","Körbecke_1727","Stockum_1734","Theiningsen_1735","Völlinghausen/Möhne_1737","Wamel_1739","Westrich_1740","Wippringsen_1741"]
[null,null,null,"Soest_974","RüthenStadt_036","Altenrüthen_1470","Drewer_1471","Hemmern_1473","Hoinkhausen_1474","Kallenhardt_1475","Kellinghausen_1476","Kneblinghausen_1477","Langenstraße_1478","Menzel_1479","Meiste_1480","Nettelstädt_1481","Oestereiden_1482","Weickede_1484","Westereiden_1485","Rüthen_1486"]
[null,null,null,"Soest_974","SoestStadt_040","Hattropholsen_1701","Katrop_1702","Meckingsen_1703","Thöningsen_1706","Bergede_1742","Deiringsen_1744","Hiddingsen_1749","Lendringsen_1750","Müllingsen_1752","Ruploh_1755","Ampen_1768","EnkesenBeiParadiese_1772","Epsingsen_1773","Hattrop_1775","Meiningsen_1777","Ostönnen_1780","Röllingsen_1782","Soest_1785","Paradiese_1927"]
[null,null,null,"Soest_974","WarsteinStadt_044","Allagen_1074","Belecke_1075","Hirschberg_1076","Mülheim_1077","Warstein_1078","Suttrop_1483","Sichtigvor_1910","Waldhausen_1911"]
[null,null,null,"Soest_974","Welver_048","Balksen_1694","Berwicke_1695","Blumroth_1696","Borgeln_1697","Dinker_1699","Eilmsen_1700","Nateln_1704","Stocklarn_1705","Vellinghausen_1707","Dorfwelver_1708","Ehningsen_1769","Einecke_1770","Eineckerholsen_1771","Flerke_1774","Klotingen_1776","Merklingsen_1778","Meyerich_1779","Recklingsen_1781","Schwefe_1783","Kirchwelver_1784","Scheidingen_1928","Illingen_1929"]
[null,null,null,"Soest_974","WerlStadt_052","Hilbeck_1381","Sönnern_1389","Blumenthal_1713","Budberg_1786","Ostbüderich_1787","Holtum_1788","Mawicke_1789","Niederbergstraße_1790","Oberbergstraße_1791","Westönnen_1794","Werl_1797"]
[null,null,null,"Soest_974","WickedeRuhr_056","Echthausen_1058","Wimbern_1440","Schlückingen_1793","Wickede_1795","Wiehagen_1796"]
[null,null,null,"SolingenStadt_122","SolingenStadt_000","Burg_3257","Dorp_3411","Gräfrath_3412","Höhscheid_3414","Ohligs_3416","Solingen_3429","Wald_3430"]
[null,null,null,"Steinfurt_566","Altenberge_004","Altenberge_5211"]
[null,null,null,"Steinfurt_566","EmsdettenStadt_008","Emsdetten_5208"]
[null,null,null,"Steinfurt_566","GrevenStadt_012","Greven_5024","Gimbte_5025"]
[null,null,null,"Steinfurt_566","Hopsten_020","Hopsten_5031","Schale_5032","Halverde_5262"]
[null,null,null,"Steinfurt_566","HörstelStadt_016","Riesenbeck_5028","Bevergern_5029","Dreierwalde_5030","Hörstel_5261"]
[null,null,null,"Steinfurt_566","HorstmarStadt_024","Horstmar_5195"]
[null,null,null,"Steinfurt_566","IbbenbürenStadt_028","Ibbenbüren_5027"]
[null,null,null,"Steinfurt_566","Ladbergen_032","Ladbergen_5043"]
[null,null,null,"Steinfurt_566","Laer_036","Laer_5213"]
[null,null,null,"Steinfurt_566","LengerichStadt_040","Lengerich_5042"]
[null,null,null,"Steinfurt_566","Lienen_044","Lienen_5047"]
[null,null,null,"Steinfurt_566","Lotte_048","Lotte_5038","Wersen_5039"]
[null,null,null,"Steinfurt_566","Metelen_052","Metelen_5196"]
[null,null,null,"Steinfurt_566","Mettingen_056","Mettingen_5034"]
[null,null,null,"Steinfurt_566","Neuenkirchen_060","Neuenkirchen_5206"]
[null,null,null,"Steinfurt_566","Nordwalde_064","Nordwalde_5212"]
[null,null,null,"Steinfurt_566","OchtrupStadt_068","Ochtrup_5199"]
[null,null,null,"Steinfurt_566","Recke_072","Recke_5033"]
[null,null,null,"Steinfurt_566","RheineStadt_076","Rheine-Stadt_5203","RheineRDEms_5204","RheineLDEms_5205","Mesum_5207","Elte_5259"]
[null,null,null,"Steinfurt_566","Saerbeck_080","Saerbeck_5026"]
[null,null,null,"Steinfurt_566","SteinfurtStadt_084","Burgsteinfurt_5190","Borghorst_5192"]
[null,null,null,"Steinfurt_566","TecklenburgStadt_088","Tecklenburg_5035","Ledde_5036","Leeden_5037","Brochterbeck_5041"]
[null,null,null,"Steinfurt_566","Westerkappeln_092","Westerkappeln_5040"]
[null,null,null,"Steinfurt_566","Wettringen_096","Wettringen_5202"]
[null,null,null,"Unna_978","BergkamenStadt_004","Bergkamen_1358","Heil_1361","Overberge_1366","Rünthe_1369","Oberaden_1405","Weddinghofen_1412"]
[null,null,null,"Unna_978","Bönen_008","Bönen_1357","Nordbögge_1364","Osterbönen_1365","Westerbönen_1372","Flierich_1377","Bramey-Lenningsen_1382"]
[null,null,null,"Unna_978","FröndenbergStadt_012","Bausenhagen_1352","Dellwig_1353","Frömern_1354","Fröndenberg_1355","Neimen_1931","Frohnhausen_1932","Stentrop_1933","Bentrop_1934","Warmen_1935","Langschede_1936","Strickherdicke_1937","Ardey_1938","Altendorf_1940","Ostbüren_1942"]
[null,null,null,"Unna_978","Holzwickede_016","Hengsen_1231","Holzwickede_1232","Opherdicke_1235"]
[null,null,null,"Unna_978","KamenStadt_020","Kamen_1351","Derne_1360","Rottum_1368","Heeren-Werve_1398","Methler_1401","Südkamen_1409","Wasserkurl_1411","Westick_1415"]
[null,null,null,"Unna_978","LünenStadt_024","Beckinghausen_1272","Brambauer_1273","Gahmen_1277","Horstmar_1278","Lippholthausen_1282","Lünen_1283","Niederaden_1403","Altlünen_1867","Altenderne_1909"]
[null,null,null,"Unna_978","SchwerteStadt_028","Schwerte_1298","Geisecke_1300","Villigst_1304","Wandhofen_1305","Westhofen_1306","Ergste_1417","Altlichtendorf_1872","Rosen_1873"]
[null,null,null,"Unna_978","SelmStadt_032","Bork_1868","Selm_1869"]
[null,null,null,"Unna_978","UnnaStadt_036","Unna_1396","Afferde_1397","Hemmerde_1399","Lünern_1400","Mühlhausen_1402","Massen_1406","Siddinghausen_1407","Stockum_1408","Uelzen_1410","Westhemmerde_1414","Billmerich_1939","Kessebüren_1941"]
[null,null,null,"Unna_978","WerneStadt_040","Werne-Stadt_1870","Werne-Stockum_1871"]
[null,null,null,"Viersen_166","Brüggen_004","Bracht_3234","Brüggen_3236"]
[null,null,null,"Viersen_166","Grefrath_008","Grefrath_3242","Oedt_3250"]
[null,null,null,"Viersen_166","KempenStadt_012","Kempen_3246","Schmalbroich_3247","StHubert_3251","Tönisberg_3255"]
[null,null,null,"Viersen_166","NettetalStadt_016","Hinsbeck_3164","Leuth_3173","Breyell_3235","Kaldenkirchen_3245","Lobberich_3249"]
[null,null,null,"Viersen_166","Niederkrüchten_020","Elmpt_3378","Niederkrüchten_3379"]
[null,null,null,"Viersen_166","Schwalmtal_024","Amern_3230","Waldniel_3239"]
[null,null,null,"Viersen_166","TönisvorstStadt_028","StTönis_3253","Vorst_3256"]
[null,null,null,"Viersen_166","ViersenStadt_032","Viersen_3203","Boisheim_3233","Dülken_3240","Süchteln_3254"]
[null,null,null,"Viersen_166","WillichStadt_036","Anrath_3044","Willich_3062","Neersen_3196","Schiefbahn_3202"]
[null,null,null,"Warendorf_570","AhlenStadt_004","Vorhelm_5082","Ahlen_5218"]
[null,null,null,"Warendorf_570","BeckumStadt_008","Beckum_5291"]
[null,null,null,"Warendorf_570","Beelen_012","Beelen_5056"]
[null,null,null,"Warendorf_570","DrensteinfurtStadt_016","Rinkerode_5016","Drensteinfurt_5087","Walstedde_5091"]
[null,null,null,"Warendorf_570","EnnigerlohStadt_020","Westkirchen_5060","Ostenfelde_5061","Ennigerloh_5062","Enniger_5083"]
[null,null,null,"Warendorf_570","Everswinkel_024","Alverskirchen_5014","Everswinkel_5058"]
[null,null,null,"Warendorf_570","OeldeStadt_028","Oelde_5292"]
[null,null,null,"Warendorf_570","Ostbevern_032","Ostbevern_5044"]
[null,null,null,"Warendorf_570","SassenbergStadt_036","Dackmar_5049","Füchtorf_5051","Sassenberg_5052","Gröblingen_5263"]
[null,null,null,"Warendorf_570","SendenhorstStadt_040","Albersloh_5015","Sendenhorst_5084"]
[null,null,null,"Warendorf_570","TelgteStadt_044","Telgte-Stadt_5008","Telgte-Kirchspiel_5009","Westbevern_5010"]
[null,null,null,"Warendorf_570","Wadersloh_048","Wadersloh_5293"]
[null,null,null,"Warendorf_570","WarendorfStadt_052","Milte_5045","Einen_5046","Warendorf_5048","Freckenhorst_5057","Hoetmar_5059","Velsen_5264","Vohren_5265"]
[null,null,null,"Wesel_170","Alpen_004","Alpen_3284","Bönninghardt_3286","Drüpt_3287","Huck_3288","Bönning_3334","Menzelen_3335","Veen_3336"]
[null,null,null,"Wesel_170","DinslakenStadt_008","Dinslaken_3063","Hiesfeld_3064"]
[null,null,null,"Wesel_170","Hamminkeln_012","Dingden_3238","Mehrhoog_3248","Loikum_3376","Wertherbruch_3377","Hamminkeln_3393","Ringenberg_3394","Brünen_3396"]
[null,null,null,"Wesel_170","Hünxe_016","Bruckhausen_3068","Bucholtwelmen_3069","Gartrop-Bühl_3071","Hünxe_3072","Krudenburg_3397","Drevenack_3400"]
[null,null,null,"Wesel_170","KampLintfortStadt_020","Kamp_3295","Hoerstgen_3307","Kamperbruch_3338","Lintfort_3339","Rossenray_3340","Saalhoff_3341"]
[null,null,null,"Wesel_170","MoersStadt_024","Kapellen_3296","Moers_3312","Asberg_3313","Hochstraß_3314","Hülsdonk_3315","Schwafheim_3316","Vinn_3317","Repelen_3324"]
[null,null,null,"Wesel_170","NeukirchenVluynStadt_028","Neukirchen_3318","Rayen_3327","Vluynbusch_3329","Vluyn_3342"]
[null,null,null,"Wesel_170","RheinbergStadt_032","Alpsray_3285","Millingen_3289","Budberg_3291","Eversael_3292","Vierbaum_3293","Orsoy-Stadt_3319","Orsoy-Land_3320","Borth_3321","Ossenberg_3322","Wallach_3323","Rheinberg_3325","Winterswick_3326"]
[null,null,null,"Wesel_170","Schermbeck_036","Gahlen_3070","Altschermbeck_3337","Bricht_3395","Damm_3398","Dämmerwald_3399","Overbeck_3401","Schermbeck_3402","Weselerwald_3403"]
[null,null,null,"Wesel_170","Sonsbeck_040","Labbeck_3308","Hamb_3331","Sonsbeck_3332"]
[null,null,null,"Wesel_170","VoerdeNiederrheinStadt_044","Görsicker_3073","Löhnen_3074","Mehrum_3075","Möllen_3076","Spellen_3077","Voerde_3078"]
[null,null,null,"Wesel_170","WeselStadt_048","Büderich_3294","Lackhausen_3368","Obrighoven_3383","Bislich_3390","Diersfordt_3391","Flüren_3392","Wesel_3409"]
[null,null,null,"Wesel_170","XantenStadt_052","Marienbaum_3309","Obermörmter_3310","Vynen_3311","Birten_3333","Wardt_3343","Xanten_3344"]
[null,null,null,"WuppertalStadt_124","WuppertalStadt_000","Barmen_3001","Elberfeld_3135","Ronsdorf_3267","Schöller_3276","Vohwinkel_3277","Dönberg_3278","Cronenberg_3279","Beyenburg_3485","Langerfeld_3486","Nächstebreck_3487"]
[null,null,null,"KreisausserhalbNRW_999","GemeindeausserhalbNRW_999","GemarkungausserhalbNRW_999"]

{"sheet":"Gebietskulisse ländl. Raum","index":19,"n_rows":2379,"n_cols":9,"rows_kept":2379,"cut":false,"hidden":true,"merged":[]}
["NR_KREIS","Kreise/kreisfreie Städte","NR_GEMEINDE","Gemeinden","NR_GEMARKUNG","Gemarkungen","Kreis","Gemeinde","Gemarkung"]
["334","Aachen,Städteregion ab2010","002","Aachen,Stadt (ab 2010)","4177","Kornelimünster","AachenStädteregion ab2010_334","AachenStadt (ab 2010)_002","Kornelimünster_4177"]
["334","Aachen,Städteregion ab2010","002","Aachen,Stadt (ab 2010)","4179","Lichtenbusch","AachenStädteregion ab2010_334","AachenStadt (ab 2010)_002","Lichtenbusch_4179"]
["334","Aachen,Städteregion ab2010","002","Aachen,Stadt (ab 2010)","4181","Sief","AachenStädteregion ab2010_334","AachenStadt (ab 2010)_002","Sief_4181"]
["334","Aachen,Städteregion ab2010","002","Aachen,Stadt (ab 2010)","4182","Walheim","AachenStädteregion ab2010_334","AachenStadt (ab 2010)_002","Walheim_4182"]
["334","Aachen,Städteregion ab2010","004","Alsdorf,Stadt (ab 2010)","4270","Bettendorf","AachenStädteregion ab2010_334","AlsdorfStadt (ab 2010)_004","Bettendorf_4270"]
["334","Aachen,Städteregion ab2010","008","Baesweiler,Stadt (ab 2010)","4264","Baesweiler","AachenStädteregion ab2010_334","BaesweilerStadt (ab 2010)_008","Baesweiler_4264"]
["334","Aachen,Städteregion ab2010","008","Baesweiler,Stadt (ab 2010)","4265","Oidtweiler","AachenStädteregion ab2010_334","BaesweilerStadt (ab 2010)_008","Oidtweiler_4265"]
["334","Aachen,Städteregion ab2010","008","Baesweiler,Stadt (ab 2010)","4266","Puffendorf","AachenStädteregion ab2010_334","BaesweilerStadt (ab 2010)_008","Puffendorf_4266"]
["334","Aachen,Städteregion ab2010","008","Baesweiler,Stadt (ab 2010)","4271","Setterich","AachenStädteregion ab2010_334","BaesweilerStadt (ab 2010)_008","Setterich_4271"]
["334","Aachen,Städteregion ab2010","012","Eschweiler,Stadt (ab 2010)","4267","Dürwiss","AachenStädteregion ab2010_334","EschweilerStadt (ab 2010)_012","Dürwiss_4267"]
["334","Aachen,Städteregion ab2010","012","Eschweiler,Stadt (ab 2010)","4254","Eschweiler","AachenStädteregion ab2010_334","EschweilerStadt (ab 2010)_012","Eschweiler_4254"]
["334","Aachen,Städteregion ab2010","012","Eschweiler,Stadt (ab 2010)","4258","Kinzweiler","AachenStädteregion ab2010_334","EschweilerStadt (ab 2010)_012","Kinzweiler_4258"]
["334","Aachen,Städteregion ab2010","012","Eschweiler,Stadt (ab 2010)","4268","Laurenzberg","AachenStädteregion ab2010_334","EschweilerStadt (ab 2010)_012","Laurenzberg_4268"]
["334","Aachen,Städteregion ab2010","012","Eschweiler,Stadt (ab 2010)","4269","Lohn","AachenStädteregion ab2010_334","EschweilerStadt (ab 2010)_012","Lohn_4269"]
["334","Aachen,Städteregion ab2010","012","Eschweiler,Stadt (ab 2010)","4263","Weisweiler","AachenStädteregion ab2010_334","EschweilerStadt (ab 2010)_012","Weisweiler_4263"]
["334","Aachen,Städteregion ab2010","020","Monschau,Stadt (ab 2010)","4273","Höfen","AachenStädteregion ab2010_334","MonschauStadt (ab 2010)_020","Höfen_4273"]
["334","Aachen,Städteregion ab2010","020","Monschau,Stadt (ab 2010)","4275","Imgenbroich","AachenStädteregion ab2010_334","MonschauStadt (ab 2010)_020","Imgenbroich_4275"]
["334","Aachen,Städteregion ab2010","020","Monschau,Stadt (ab 2010)","4278","Kalterherberg","AachenStädteregion ab2010_334","MonschauStadt (ab 2010)_020","Kalterherberg_4278"]
["334","Aachen,Städteregion ab2010","020","Monschau,Stadt (ab 2010)","4276","Konzen","AachenStädteregion ab2010_334","MonschauStadt (ab 2010)_020","Konzen_4276"]
["334","Aachen,Städteregion ab2010","020","Monschau,Stadt (ab 2010)","4282","Monschau","AachenStädteregion ab2010_334","MonschauStadt (ab 2010)_020","Monschau_4282"]
["334","Aachen,Städteregion ab2010","020","Monschau,Stadt (ab 2010)","4277","Mützenich","AachenStädteregion ab2010_334","MonschauStadt (ab 2010)_020","Mützenich_4277"]
["334","Aachen,Städteregion ab2010","020","Monschau,Stadt (ab 2010)","4274","Rohren","AachenStädteregion ab2010_334","MonschauStadt (ab 2010)_020","Rohren_4274"]
["334","Aachen,Städteregion ab2010","024","Roetgen (ab 2010)","4283","Roetgen","AachenStädteregion ab2010_334","Roetgen (ab 2010)_024","Roetgen_4283"]
["334","Aachen,Städteregion ab2010","024","Roetgen (ab 2010)","4284","Rott","AachenStädteregion ab2010_334","Roetgen (ab 2010)_024","Rott_4284"]
["334","Aachen,Städteregion ab2010","028","Simmerath (ab 2010)","4272","Eicherscheid","AachenStädteregion ab2010_334","Simmerath (ab 2010)_028","Eicherscheid_4272"]
["334","Aachen,Städteregion ab2010","028","Simmerath (ab 2010)","4279","Kesternich","AachenStädteregion ab2010_334","Simmerath (ab 2010)_028","Kesternich_4279"]
["334","Aachen,Städteregion ab2010","028","Simmerath (ab 2010)","4290","Lammersdorf","AachenStädteregion ab2010_334","Simmerath (ab 2010)_028","Lammersdorf_4290"]
["334","Aachen,Städteregion ab2010","028","Simmerath (ab 2010)","4285","Rurberg","AachenStädteregion ab2010_334","Simmerath (ab 2010)_028","Rurberg_4285"]
["334","Aachen,Städteregion ab2010","028","Simmerath (ab 2010)","4289","Simmerath","AachenStädteregion ab2010_334","Simmerath (ab 2010)_028","Simmerath_4289"]
["334","Aachen,Städteregion ab2010","028","Simmerath (ab 2010)","4280","Steckenborn","AachenStädteregion ab2010_334","Simmerath (ab 2010)_028","Steckenborn_4280"]
["334","Aachen,Städteregion ab2010","028","Simmerath (ab 2010)","4281","Strauch","AachenStädteregion ab2010_334","Simmerath (ab 2010)_028","Strauch_4281"]
["334","Aachen,Städteregion ab2010","032","Stolberg(Rhld.),Stadt 2010","4293","Breinig","AachenStädteregion ab2010_334","Stolberg(Rhld.)Stadt 2010_032","Breinig_4293"]
["334","Aachen,Städteregion ab2010","032","Stolberg(Rhld.),Stadt 2010","4255","Gressenich","AachenStädteregion ab2010_334","Stolberg(Rhld.)Stadt 2010_032","Gressenich_4255"]
["334","Aachen,Städteregion ab2010","032","Stolberg(Rhld.),Stadt 2010","4261","Stolberg","AachenStädteregion ab2010_334","Stolberg(Rhld.)Stadt 2010_032","Stolberg_4261"]
["334","Aachen,Städteregion ab2010","032","Stolberg(Rhld.),Stadt 2010","4291","Zweifall","AachenStädteregion ab2010_334","Stolberg(Rhld.)Stadt 2010_032","Zweifall_4291"]
["334","Aachen,Städteregion ab2010","036","Würselen,Stadt (ab 2010)","4252","Bardenberg","AachenStädteregion ab2010_334","WürselenStadt (ab 2010)_036","Bardenberg_4252"]
["334","Aachen,Städteregion ab2010","036","Würselen,Stadt (ab 2010)","4253","Broichweiden","AachenStädteregion ab2010_334","WürselenStadt (ab 2010)_036","Broichweiden_4253"]
["711","Bielefeld,Stadt","000","Bielefeld,Stadt","2852","Babenhausen","BielefeldStadt_711","BielefeldStadt_000","Babenhausen_2852"]
["711","Bielefeld,Stadt","000","Bielefeld,Stadt","2856","Brönninghausen","BielefeldStadt_711","BielefeldStadt_000","Brönninghausen_2856"]
["711","Bielefeld,Stadt","000","Bielefeld,Stadt","2862","Holtkamp","BielefeldStadt_711","BielefeldStadt_000","Holtkamp_2862"]
["711","Bielefeld,Stadt","000","Bielefeld,Stadt","2864","Jöllenbeck","BielefeldStadt_711","BielefeldStadt_000","Jöllenbeck_2864"]
["711","Bielefeld,Stadt","000","Bielefeld,Stadt","2865","Kirchdornberg","BielefeldStadt_711","BielefeldStadt_000","Kirchdornberg_2865"]
["711","Bielefeld,Stadt","000","Bielefeld,Stadt","2866","Lämershagen-Gräfinghagen","BielefeldStadt_711","BielefeldStadt_000","Lämershagen-Gräfinghagen_2866"]
["711","Bielefeld,Stadt","000","Bielefeld,Stadt","2868","Niederdornberg-Deppendorf","BielefeldStadt_711","BielefeldStadt_000","Niederdornberg-Deppendorf_2868"]
["711","Bielefeld,Stadt","000","Bielefeld,Stadt","2871","Schröttinghausen","BielefeldStadt_711","BielefeldStadt_000","Schröttinghausen_2871"]
["711","Bielefeld,Stadt","000","Bielefeld,Stadt","2872","Senne I","BielefeldStadt_711","BielefeldStadt_000","Senne I_2872"]
["711","Bielefeld,Stadt","000","Bielefeld,Stadt","2874","Theesen","BielefeldStadt_711","BielefeldStadt_000","Theesen_2874"]
["711","Bielefeld,Stadt","000","Bielefeld,Stadt","2875","Ubbedissen","BielefeldStadt_711","BielefeldStadt_000","Ubbedissen_2875"]
["711","Bielefeld,Stadt","000","Bielefeld,Stadt","2876","Ummeln","BielefeldStadt_711","BielefeldStadt_000","Ummeln_2876"]
["711","Bielefeld,Stadt","000","Bielefeld,Stadt","2877","Vilsendorf","BielefeldStadt_711","BielefeldStadt_000","Vilsendorf_2877"]
["314","Bonn,Stadt","000","Bonn,Stadt","4320","Röttgen","BonnStadt_314","BonnStadt_000","Röttgen_4320"]
["554","Borken","004","Ahaus,Stadt","5180","Ahaus","Borken_554","AhausStadt_004","Ahaus_5180"]
["554","Borken","004","Ahaus,Stadt","5178","Alstätte","Borken_554","AhausStadt_004","Alstätte_5178"]
["554","Borken","004","Ahaus,Stadt","5222","Ammeln","Borken_554","AhausStadt_004","Ammeln_5222"]
["554","Borken","004","Ahaus,Stadt","5179","Ottenstein","Borken_554","AhausStadt_004","Ottenstein_5179"]
["554","Borken","004","Ahaus,Stadt","5177","Wessum","Borken_554","AhausStadt_004","Wessum_5177"]
["554","Borken","004","Ahaus,Stadt","5181","Wüllen","Borken_554","AhausStadt_004","Wüllen_5181"]
["554","Borken","008","Bocholt,Stadt","5144","Barlo","Borken_554","BocholtStadt_008","Barlo_5144"]
["554","Borken","008","Bocholt,Stadt","5225","Biemenhorst","Borken_554","BocholtStadt_008","Biemenhorst_5225"]
["554","Borken","008","Bocholt,Stadt","5142","Bocholt","Borken_554","BocholtStadt_008","Bocholt_5142"]
["554","Borken","008","Bocholt,Stadt","5226","Hemden","Borken_554","BocholtStadt_008","Hemden_5226"]
["554","Borken","008","Bocholt,Stadt","5228","Holtwick","Borken_554","BocholtStadt_008","Holtwick_5228"]
["554","Borken","008","Bocholt,Stadt","5229","Liedern","Borken_554","BocholtStadt_008","Liedern_5229"]
["554","Borken","008","Bocholt,Stadt","5230","Lowick","Borken_554","BocholtStadt_008","Lowick_5230"]
["554","Borken","008","Bocholt,Stadt","5231","Mussum","Borken_554","BocholtStadt_008","Mussum_5231"]
["554","Borken","008","Bocholt,Stadt","5232","Spork","Borken_554","BocholtStadt_008","Spork_5232"]
["554","Borken","008","Bocholt,Stadt","5233","Stenern","Borken_554","BocholtStadt_008","Stenern_5233"]
["554","Borken","008","Bocholt,Stadt","5234","Suderwick","Borken_554","BocholtStadt_008","Suderwick_5234"]
["554","Borken","012","Borken,Stadt","5145","Borken","Borken_554","BorkenStadt_012","Borken_5145"]
["554","Borken","012","Borken,Stadt","5240","Borkenwirthe","Borken_554","BorkenStadt_012","Borkenwirthe_5240"]
["554","Borken","012","Borken,Stadt","5152","Gemen","Borken_554","BorkenStadt_012","Gemen_5152"]
["554","Borken","012","Borken,Stadt","5227","Gemen-Kirchspiel","Borken_554","BorkenStadt_012","Gemen-Kirchspiel_5227"]
["554","Borken","012","Borken,Stadt","5235","Grütlohn","Borken_554","BorkenStadt_012","Grütlohn_5235"]
["554","Borken","012","Borken,Stadt","5237","Hoxfeld","Borken_554","BorkenStadt_012","Hoxfeld_5237"]
["554","Borken","012","Borken,Stadt","5146","Marbeck","Borken_554","BorkenStadt_012","Marbeck_5146"]
["554","Borken","012","Borken,Stadt","5238","Rhedebrügge","Borken_554","BorkenStadt_012","Rhedebrügge_5238"]
["554","Borken","012","Borken,Stadt","5151","Weseke","Borken_554","BorkenStadt_012","Weseke_5151"]
["554","Borken","012","Borken,Stadt","5239","Westenborken","Borken_554","BorkenStadt_012","Westenborken_5239"]
["554","Borken","016","Gescher,Stadt","5249","Büren","Borken_554","GescherStadt_016","Büren_5249"]
["554","Borken","016","Gescher,Stadt","5251","Estern","Borken_554","GescherStadt_016","Estern_5251"]
["554","Borken","016","Gescher,Stadt","5172","Gescher","Borken_554","GescherStadt_016","Gescher_5172"]
["554","Borken","016","Gescher,Stadt","5252","Harwick","Borken_554","GescherStadt_016","Harwick_5252"]
["554","Borken","016","Gescher,Stadt","5250","Tungerloh-Capellen","Borken_554","GescherStadt_016","Tungerloh-Capellen_5250"]
["554","Borken","016","Gescher,Stadt","5253","Tungerloh-Pröbsting","Borken_554","GescherStadt_016","Tungerloh-Pröbsting_5253"]
["554","Borken","020","Gronau (Westfalen),Stadt","5223","Epe","Borken_554","Gronau (Westfalen)Stadt_020","Epe_5223"]
["554","Borken","020","Gronau (Westfalen),Stadt","5189","Gronau","Borken_554","Gronau (Westfalen)Stadt_020","Gronau_5189"]
["554","Borken","024","Heek","5187","Heek","Borken_554","Heek_024","Heek_5187"]
["554","Borken","024","Heek","5188","Nienborg","Borken_554","Heek_024","Nienborg_5188"]
["554","Borken","028","Heiden","5153","Heiden","Borken_554","Heiden_028","Heiden_5153"]
["554","Borken","032","Isselburg,Stadt","5140","Anholt","Borken_554","IsselburgStadt_032","Anholt_5140"]
["554","Borken","032","Isselburg,Stadt","5273","Heelden","Borken_554","IsselburgStadt_032","Heelden_5273"]
["554","Borken","032","Isselburg,Stadt","5275","Herzebocholt","Borken_554","IsselburgStadt_032","Herzebocholt_5275"]
["554","Borken","032","Isselburg,Stadt","5272","Isselburg","Borken_554","IsselburgStadt_032","Isselburg_5272"]
["554","Borken","032","Isselburg,Stadt","5274","Vehlingen","Borken_554","IsselburgStadt_032","Vehlingen_5274"]
["554","Borken","032","Isselburg,Stadt","5141","Werth","Borken_554","IsselburgStadt_032","Werth_5141"]
["554","Borken","036","Legden","5183","Asbeck","Borken_554","Legden_036","Asbeck_5183"]
["554","Borken","036","Legden","5182","Legden","Borken_554","Legden_036","Legden_5182"]
["554","Borken","040","Raesfeld","5137","Erle","Borken_554","Raesfeld_040","Erle_5137"]
["554","Borken","040","Raesfeld","5236","Homer","Borken_554","Raesfeld_040","Homer_5236"]
["554","Borken","040","Raesfeld","5148","Raesfeld","Borken_554","Raesfeld_040","Raesfeld_5148"]
["554","Borken","044","Reken","5154","Groß-Reken","Borken_554","Reken_044","Groß-Reken_5154"]
["554","Borken","044","Reken","5248","Hülsten","Borken_554","Reken_044","Hülsten_5248"]
["554","Borken","044","Reken","5247","Klein-Reken","Borken_554","Reken_044","Klein-Reken_5247"]
["554","Borken","048","Rhede,Stadt","5241","Büngern","Borken_554","RhedeStadt_048","Büngern_5241"]
["554","Borken","048","Rhede,Stadt","5243","Krechting","Borken_554","RhedeStadt_048","Krechting_5243"]
["554","Borken","048","Rhede,Stadt","5242","Krommert","Borken_554","RhedeStadt_048","Krommert_5242"]
["554","Borken","048","Rhede,Stadt","5147","Rhede","Borken_554","RhedeStadt_048","Rhede_5147"]
["554","Borken","048","Rhede,Stadt","5244","Vardingholt","Borken_554","RhedeStadt_048","Vardingholt_5244"]
["554","Borken","052","Schöppingen","5186","Eggerode","Borken_554","Schöppingen_052","Eggerode_5186"]
["554","Borken","052","Schöppingen","5185","Schöppingen-Kirchspiel","Borken_554","Schöppingen_052","Schöppingen-Kirchspiel_5185"]
["554","Borken","052","Schöppingen","5184","Schöppingen-Stadt","Borken_554","Schöppingen_052","Schöppingen-Stadt_5184"]
["554","Borken","056","Stadtlohn,Stadt","5216","Kirchspiel Stadtlohn","Borken_554","StadtlohnStadt_056","Kirchspiel Stadtlohn_5216"]
["554","Borken","056","Stadtlohn,Stadt","5175","Stadtlohn","Borken_554","StadtlohnStadt_056","Stadtlohn_5175"]
["554","Borken","060","Südlohn","5221","Oeding","Borken_554","Südlohn_060","Oeding_5221"]
["554","Borken","060","Südlohn","5176","Südlohn","Borken_554","Südlohn_060","Südlohn_5176"]
["554","Borken","064","Velen","5246","Nordvelen","Borken_554","Velen_064","Nordvelen_5246"]
["554","Borken","064","Velen","5150","Ramsdorf","Borken_554","Velen_064","Ramsdorf_5150"]
["554","Borken","064","Velen","5149","Velen-Dorf","Borken_554","Velen_064","Velen-Dorf_5149"]
["554","Borken","064","Velen","5245","Waldvelen","Borken_554","Velen_064","Waldvelen_5245"]
["554","Borken","068","Vreden,Stadt","5174","Ammeloe","Borken_554","VredenStadt_068","Ammeloe_5174"]
["554","Borken","068","Vreden,Stadt","5173","Vreden","Borken_554","VredenStadt_068","Vreden_5173"]
["512","Bottrop,Stadt","000","Bottrop,Stadt","5132","Kirchhellen","BottropStadt_512","BottropStadt_000","Kirchhellen_5132"]
["558","Coesfeld","004","Ascheberg","5105","Ascheberg","Coesfeld_558","Ascheberg_004","Ascheberg_5105"]
["558","Coesfeld","004","Ascheberg","5088","Herbern","Coesfeld_558","Ascheberg_004","Herbern_5088"]
["558","Coesfeld","008","Billerbeck,Stadt","5166","Beerlage","Coesfeld_558","BillerbeckStadt_008","Beerlage_5166"]
["558","Coesfeld","008","Billerbeck,Stadt","5165","Billerbeck-Kirchspiel","Coesfeld_558","BillerbeckStadt_008","Billerbeck-Kirchspiel_5165"]
["558","Coesfeld","008","Billerbeck,Stadt","5164","Billerbeck-Stadt","Coesfeld_558","BillerbeckStadt_008","Billerbeck-Stadt_5164"]
["558","Coesfeld","012","Coesfeld,Stadt","5169","Coesfeld-Kirchspiel","Coesfeld_558","CoesfeldStadt_012","Coesfeld-Kirchspiel_5169"]
["558","Coesfeld","012","Coesfeld,Stadt","5168","Coesfeld-Stadt","Coesfeld_558","CoesfeldStadt_012","Coesfeld-Stadt_5168"]
["558","Coesfeld","012","Coesfeld,Stadt","5276","Lette","Coesfeld_558","CoesfeldStadt_012","Lette_5276"]
["558","Coesfeld","016","Dülmen,Stadt","5156","Buldern","Coesfeld_558","DülmenStadt_016","Buldern_5156"]
["558","Coesfeld","016","Dülmen,Stadt","5254","Dülmen-Kirchspiel","Coesfeld_558","DülmenStadt_016","Dülmen-Kirchspiel_5254"]
["558","Coesfeld","016","Dülmen,Stadt","5155","Dülmen-Stadt","Coesfeld_558","DülmenStadt_016","Dülmen-Stadt_5155"]
["558","Coesfeld","016","Dülmen,Stadt","5157","Hiddingsel","Coesfeld_558","DülmenStadt_016","Hiddingsel_5157"]
["558","Coesfeld","016","Dülmen,Stadt","5255","Merfeld","Coesfeld_558","DülmenStadt_016","Merfeld_5255"]
["558","Coesfeld","016","Dülmen,Stadt","5158","Rorup","Coesfeld_558","DülmenStadt_016","Rorup_5158"]
["558","Coesfeld","020","Havixbeck","5023","Havixbeck","Coesfeld_558","Havixbeck_020","Havixbeck_5023"]
["558","Coesfeld","020","Havixbeck","5277","Schonebeck","Coesfeld_558","Havixbeck_020","Schonebeck_5277"]
["558","Coesfeld","024","Lüdinghausen,Stadt","5100","Lüdinghausen-Kirchspiel","Coesfeld_558","LüdinghausenStadt_024","Lüdinghausen-Kirchspiel_5100"]
["558","Coesfeld","024","Lüdinghausen,Stadt","5099","Lüdinghausen-Stadt","Coesfeld_558","LüdinghausenStadt_024","Lüdinghausen-Stadt_5099"]
["558","Coesfeld","024","Lüdinghausen,Stadt","5109","Seppenrade","Coesfeld_558","LüdinghausenStadt_024","Seppenrade_5109"]
["558","Coesfeld","028","Nordkirchen","5095","Capelle","Coesfeld_558","Nordkirchen_028","Capelle_5095"]
["558","Coesfeld","028","Nordkirchen","5106","Nordkirchen","Coesfeld_558","Nordkirchen_028","Nordkirchen_5106"]
["558","Coesfeld","028","Nordkirchen","5096","Südkirchen","Coesfeld_558","Nordkirchen_028","Südkirchen_5096"]
["558","Coesfeld","032","Nottuln","5102","Appelhülsen","Coesfeld_558","Nottuln_032","Appelhülsen_5102"]
["558","Coesfeld","032","Nottuln","5256","Darup","Coesfeld_558","Nottuln_032","Darup_5256"]
["558","Coesfeld","032","Nottuln","5257","Limbergen","Coesfeld_558","Nottuln_032","Limbergen_5257"]
["558","Coesfeld","032","Nottuln","5017","Nottuln","Coesfeld_558","Nottuln_032","Nottuln_5017"]
["558","Coesfeld","032","Nottuln","5018","Schapdetten","Coesfeld_558","Nottuln_032","Schapdetten_5018"]
["558","Coesfeld","036","Olfen,Stadt","5258","Olfen-Kirchspiel","Coesfeld_558","OlfenStadt_036","Olfen-Kirchspiel_5258"]
["558","Coesfeld","036","Olfen,Stadt","5108","Olfen-Stadt","Coesfeld_558","OlfenStadt_036","Olfen-Stadt_5108"]
["558","Coesfeld","040","Rosendahl","5167","Darfeld","Coesfeld_558","Rosendahl_040","Darfeld_5167"]
["558","Coesfeld","040","Rosendahl","5171","Holtwick","Coesfeld_558","Rosendahl_040","Holtwick_5171"]
["558","Coesfeld","040","Rosendahl","5170","Osterwick","Coesfeld_558","Rosendahl_040","Osterwick_5170"]
["558","Coesfeld","044","Senden","5021","Bösensell","Coesfeld_558","Senden_044","Bösensell_5021"]
["558","Coesfeld","044","Senden","5104","Ottmarsbocholt","Coesfeld_558","Senden_044","Ottmarsbocholt_5104"]
["558","Coesfeld","044","Senden","5101","Senden","Coesfeld_558","Senden_044","Senden_5101"]
["558","Coesfeld","044","Senden","5103","Venne","Coesfeld_558","Senden_044","Venne_5103"]
["913","Dortmund,Stadt","000","Dortmund,Stadt","1259","Groppenbruch","DortmundStadt_913","DortmundStadt_000","Groppenbruch_1259"]
["913","Dortmund,Stadt","000","Dortmund,Stadt","1904","Holthausen","DortmundStadt_913","DortmundStadt_000","Holthausen_1904"]
["913","Dortmund,Stadt","000","Dortmund,Stadt","1270","Schwieringhausen","DortmundStadt_913","DortmundStadt_000","Schwieringhausen_1270"]
["913","Dortmund,Stadt","000","Dortmund,Stadt","1303","Syburg","DortmundStadt_913","DortmundStadt_000","Syburg_1303"]
["358","Düren","004","Aldenhoven","4806","Aldenhoven","Düren_358","Aldenhoven_004","Aldenhoven_4806"]
["358","Düren","004","Aldenhoven","4822","Dürboslar","Düren_358","Aldenhoven_004","Dürboslar_4822"]
["358","Düren","004","Aldenhoven","4807","Engelsdorf","Düren_358","Aldenhoven_004","Engelsdorf_4807"]
["358","Düren","004","Aldenhoven","4821","Freialdenhoven","Düren_358","Aldenhoven_004","Freialdenhoven_4821"]
["358","Düren","004","Aldenhoven","4808","Langweiler","Düren_358","Aldenhoven_004","Langweiler_4808"]
["358","Düren","004","Aldenhoven","4809","Niedermerz","Düren_358","Aldenhoven_004","Niedermerz_4809"]
["358","Düren","004","Aldenhoven","4810","Pattern II","Düren_358","Aldenhoven_004","Pattern II_4810"]
["358","Düren","004","Aldenhoven","4851","Schleiden","Düren_358","Aldenhoven_004","Schleiden_4851"]
["358","Düren","004","Aldenhoven","4848","Siersdorf","Düren_358","Aldenhoven_004","Siersdorf_4848"]
["358","Düren","008","Düren,Stadt","4726","Arnoldsweiler","Düren_358","DürenStadt_008","Arnoldsweiler_4726"]
["358","Düren","008","Düren,Stadt","4734","Berzbuir-Kufferath","Düren_358","DürenStadt_008","Berzbuir-Kufferath_4734"]
["358","Düren","008","Düren,Stadt","4733","Birgel","Düren_358","DürenStadt_008","Birgel_4733"]
["358","Düren","008","Düren,Stadt","4738","Birkesdorf","Düren_358","DürenStadt_008","Birkesdorf_4738"]
["358","Düren","008","Düren,Stadt","4769","Derichsweiler","Düren_358","DürenStadt_008","Derichsweiler_4769"]
["358","Düren","008","Düren,Stadt","4749","Düren","Düren_358","DürenStadt_008","Düren_4749"]
["358","Düren","008","Düren,Stadt","4750","Echtz-Konzendorf","Düren_358","DürenStadt_008","Echtz-Konzendorf_4750"]
["358","Düren","008","Düren,Stadt","4735","Gürzenich","Düren_358","DürenStadt_008","Gürzenich_4735"]
["358","Düren","008","Düren,Stadt","4736","Lendersdorf-Krauthausen","Düren_358","DürenStadt_008","Lendersdorf-Krauthausen_4736"]
["358","Düren","008","Düren,Stadt","4770","Mariaweiler-Hoven","Düren_358","DürenStadt_008","Mariaweiler-Hoven_4770"]
["358","Düren","008","Düren,Stadt","4768","Merken","Düren_358","DürenStadt_008","Merken_4768"]
["358","Düren","008","Düren,Stadt","4701","Niederau","Düren_358","DürenStadt_008","Niederau_4701"]
["358","Düren","012","Heimbach,Stadt","4724","Hausen","Düren_358","HeimbachStadt_012","Hausen_4724"]
["358","Düren","012","Heimbach,Stadt","4723","Heimbach","Düren_358","HeimbachStadt_012","Heimbach_4723"]
["358","Düren","012","Heimbach,Stadt","4715","Hergarten","Düren_358","HeimbachStadt_012","Hergarten_4715"]
["358","Düren","012","Heimbach,Stadt","4721","Vlatten","Düren_358","HeimbachStadt_012","Vlatten_4721"]
["358","Düren","016","Hürtgenwald","4703","Bergstein","Düren_358","Hürtgenwald_016","Bergstein_4703"]
["358","Düren","016","Hürtgenwald","4704","Brandenberg","Düren_358","Hürtgenwald_016","Brandenberg_4704"]
["358","Düren","016","Hürtgenwald","4707","Gey","Düren_358","Hürtgenwald_016","Gey_4707"]
["358","Düren","016","Hürtgenwald","4708","Großhau","Düren_358","Hürtgenwald_016","Großhau_4708"]
["358","Düren","016","Hürtgenwald","4709","Hürtgen","Düren_358","Hürtgenwald_016","Hürtgen_4709"]
["358","Düren","016","Hürtgenwald","4710","Kleinhau","Düren_358","Hürtgenwald_016","Kleinhau_4710"]
["358","Düren","016","Hürtgenwald","4706","Straß","Düren_358","Hürtgenwald_016","Straß_4706"]
["358","Düren","016","Hürtgenwald","4720","Vossenack","Düren_358","Hürtgenwald_016","Vossenack_4720"]
["358","Düren","020","Inden","4838","Altdorf","Düren_358","Inden_020","Altdorf_4838"]
["358","Düren","020","Inden","4766","Frenz","Düren_358","Inden_020","Frenz_4766"]
["358","Düren","020","Inden","4835","Inden","Düren_358","Inden_020","Inden_4835"]
["358","Düren","020","Inden","4765","Lamersdorf","Düren_358","Inden_020","Lamersdorf_4765"]
["358","Düren","020","Inden","4793","Lucherberg","Düren_358","Inden_020","Lucherberg_4793"]
["358","Düren","020","Inden","4790","Pier","Düren_358","Inden_020","Pier_4790"]
["358","Düren","020","Inden","4794","Schophoven","Düren_358","Inden_020","Schophoven_4794"]
["358","Düren","024","Jülich,Stadt","4811","Barmen","Düren_358","JülichStadt_024","Barmen_4811"]
["358","Düren","024","Jülich,Stadt","4815","Bourheim","Düren_358","JülichStadt_024","Bourheim_4815"]
["358","Düren","024","Jülich,Stadt","4841","Broich","Düren_358","JülichStadt_024","Broich_4841"]
["358","Düren","024","Jülich,Stadt","4842","Güsten","Düren_358","JülichStadt_024","Güsten_4842"]
["358","Düren","024","Jülich,Stadt","4836","Jülich","Düren_358","JülichStadt_024","Jülich_4836"]
["358","Düren","024","Jülich,Stadt","4837","Kirchberg","Düren_358","JülichStadt_024","Kirchberg_4837"]
["358","Düren","024","Jülich,Stadt","4814","Koslar","Düren_358","JülichStadt_024","Koslar_4814"]
["358","Düren","024","Jülich,Stadt","4840","Mersch","Düren_358","JülichStadt_024","Mersch_4840"]
["358","Düren","024","Jülich,Stadt","4813","Merzenhausen","Düren_358","JülichStadt_024","Merzenhausen_4813"]
["358","Düren","024","Jülich,Stadt","4843","Pattern I","Düren_358","JülichStadt_024","Pattern I_4843"]
["358","Düren","024","Jülich,Stadt","4826","Stetternich","Düren_358","JülichStadt_024","Stetternich_4826"]
["358","Düren","024","Jülich,Stadt","4844","Welldorf","Düren_358","JülichStadt_024","Welldorf_4844"]
["358","Düren","028","Kreuzau","4799","Bogheim","Düren_358","Kreuzau_028","Bogheim_4799"]
["358","Düren","028","Kreuzau","4744","Boich-Leversbach","Düren_358","Kreuzau_028","Boich-Leversbach_4744"]
["358","Düren","028","Kreuzau","4743","Drove","Düren_358","Kreuzau_028","Drove_4743"]
["358","Düren","028","Kreuzau","4700","Kreuzau","Düren_358","Kreuzau_028","Kreuzau_4700"]
["358","Düren","028","Kreuzau","4777","Obermaubach-Schlagstein","Düren_358","Kreuzau_028","Obermaubach-Schlagstein_4777"]
["358","Düren","028","Kreuzau","4798","Stockheim","Düren_358","Kreuzau_028","Stockheim_4798"]
["358","Düren","028","Kreuzau","4747","Thum","Düren_358","Kreuzau_028","Thum_4747"]
["358","Düren","028","Kreuzau","4748","Üdingen","Düren_358","Kreuzau_028","Üdingen_4748"]
["358","Düren","028","Kreuzau","4705","Untermaubach","Düren_358","Kreuzau_028","Untermaubach_4705"]
["358","Düren","028","Kreuzau","4702","Winden","Düren_358","Kreuzau_028","Winden_4702"]
["358","Düren","032","Langerwehe","4751","Geich-Obergeich","Düren_358","Langerwehe_032","Geich-Obergeich_4751"]
["358","Düren","032","Langerwehe","4791","Jüngersdorf","Düren_358","Langerwehe_032","Jüngersdorf_4791"]
["358","Düren","032","Langerwehe","4767","Langerwehe","Düren_358","Langerwehe_032","Langerwehe_4767"]
["358","Düren","032","Langerwehe","4792","Luchem","Düren_358","Langerwehe_032","Luchem_4792"]
["358","Düren","032","Langerwehe","4752","Merode","Düren_358","Langerwehe_032","Merode_4752"]
["358","Düren","032","Langerwehe","4753","Schlich-D'horn","Düren_358","Langerwehe_032","Schlich-D'horn_4753"]
["358","Düren","032","Langerwehe","4789","Wenau","Düren_358","Langerwehe_032","Wenau_4789"]
["358","Düren","036","Linnich,Stadt","4828","Boslar","Düren_358","LinnichStadt_036","Boslar_4828"]
["358","Düren","036","Linnich,Stadt","4819","Ederen","Düren_358","LinnichStadt_036","Ederen_4819"]
["358","Düren","036","Linnich,Stadt","4812","Floßdorf","Düren_358","LinnichStadt_036","Floßdorf_4812"]
["358","Düren","036","Linnich,Stadt","4820","Gereonsweiler","Düren_358","LinnichStadt_036","Gereonsweiler_4820"]
["358","Düren","036","Linnich,Stadt","4717","Gevenich","Düren_358","LinnichStadt_036","Gevenich_4717"]
["358","Düren","036","Linnich,Stadt","4718","Glimbach","Düren_358","LinnichStadt_036","Glimbach_4718"]
["358","Düren","036","Linnich,Stadt","4827","Hottorf","Düren_358","LinnichStadt_036","Hottorf_4827"]
["358","Düren","036","Linnich,Stadt","4716","Körrenzig","Düren_358","LinnichStadt_036","Körrenzig_4716"]
["358","Düren","036","Linnich,Stadt","4839","Linnich","Düren_358","LinnichStadt_036","Linnich_4839"]
["358","Düren","036","Linnich,Stadt","4847","Rurdorf","Düren_358","LinnichStadt_036","Rurdorf_4847"]
["358","Düren","036","Linnich,Stadt","4834","Tetz","Düren_358","LinnichStadt_036","Tetz_4834"]
["358","Düren","036","Linnich,Stadt","4854","Welz","Düren_358","LinnichStadt_036","Welz_4854"]
["358","Düren","040","Merzenich","4772","Girbelsrath","Düren_358","Merzenich_040","Girbelsrath_4772"]
["358","Düren","040","Merzenich","4773","Golzheim","Düren_358","Merzenich_040","Golzheim_4773"]
["358","Düren","040","Merzenich","4771","Merzenich","Düren_358","Merzenich_040","Merzenich_4771"]
["358","Düren","040","Merzenich","4728","Morschenich","Düren_358","Merzenich_040","Morschenich_4728"]
["358","Düren","044","Nideggen,Stadt","4775","Abenden","Düren_358","NideggenStadt_044","Abenden_4775"]
["358","Düren","044","Nideggen,Stadt","4713","Berg-Thuir","Düren_358","NideggenStadt_044","Berg-Thuir_4713"]
["358","Düren","044","Nideggen,Stadt","4742","Embken","Düren_358","NideggenStadt_044","Embken_4742"]
["358","Düren","044","Nideggen,Stadt","4714","Muldenau","Düren_358","NideggenStadt_044","Muldenau_4714"]
["358","Düren","044","Nideggen,Stadt","4774","Nideggen","Düren_358","NideggenStadt_044","Nideggen_4774"]
["358","Düren","044","Nideggen,Stadt","4719","Schmidt","Düren_358","NideggenStadt_044","Schmidt_4719"]
["358","Düren","044","Nideggen,Stadt","4712","Wollersheim","Düren_358","NideggenStadt_044","Wollersheim_4712"]
["358","Düren","048","Niederzier","4727","Ellen","Düren_358","Niederzier_048","Ellen_4727"]
["358","Düren","048","Niederzier","4823","Hambach","Düren_358","Niederzier_048","Hambach_4823"]
["358","Düren","048","Niederzier","4739","Huchem-Stammeln","Düren_358","Niederzier_048","Huchem-Stammeln_4739"]
["358","Düren","048","Niederzier","4778","Niederzier","Düren_358","Niederzier_048","Niederzier_4778"]
["358","Düren","048","Niederzier","4779","Oberzier","Düren_358","Niederzier_048","Oberzier_4779"]
["358","Düren","048","Niederzier","4740","Selhausen","Düren_358","Niederzier_048","Selhausen_4740"]
["358","Düren","048","Niederzier","4846","Steinstraß","Düren_358","Niederzier_048","Steinstraß_4846"]
["358","Düren","052","Nörvenich","4729","Binsfeld","Düren_358","Nörvenich_052","Binsfeld_4729"]
["358","Düren","052","Nörvenich","4711","Dorweiler","Düren_358","Nörvenich_052","Dorweiler_4711"]
["358","Düren","052","Nörvenich","4730","Eggersheim","Düren_358","Nörvenich_052","Eggersheim_4730"]
["358","Düren","052","Nörvenich","4781","Eschweiler über Feld","Düren_358","Nörvenich_052","Eschweiler über Feld_4781"]
["358","Düren","052","Nörvenich","4731","Frauwüllesheim","Düren_358","Nörvenich_052","Frauwüllesheim_4731"]
["358","Düren","052","Nörvenich","4782","Hochkirchen","Düren_358","Nörvenich_052","Hochkirchen_4782"]
["358","Düren","052","Nörvenich","4732","Irresheim","Düren_358","Nörvenich_052","Irresheim_4732"]
["358","Düren","052","Nörvenich","4780","Nörvenich","Düren_358","Nörvenich_052","Nörvenich_4780"]
["358","Düren","052","Nörvenich","4783","Oberbolheim","Düren_358","Nörvenich_052","Oberbolheim_4783"]
["358","Düren","052","Nörvenich","4722","Pingsheim","Düren_358","Nörvenich_052","Pingsheim_4722"]
["358","Düren","052","Nörvenich","4784","Poll","Düren_358","Nörvenich_052","Poll_4784"]
["358","Düren","052","Nörvenich","4785","Rath","Düren_358","Nörvenich_052","Rath_4785"]
["358","Düren","052","Nörvenich","4725","Wissersheim","Düren_358","Nörvenich_052","Wissersheim_4725"]
["358","Düren","056","Titz","4853","Garzweiler","Düren_358","Titz_056","Garzweiler_4853"]
["358","Düren","056","Titz","4829","Gevelsdorf","Düren_358","Titz_056","Gevelsdorf_4829"]
["358","Düren","056","Titz","4830","Hasselsweiler","Düren_358","Titz_056","Hasselsweiler_4830"]
["358","Düren","056","Titz","4832","Müntz","Düren_358","Titz_056","Müntz_4832"]
["358","Düren","056","Titz","4845","Rödingen","Düren_358","Titz_056","Rödingen_4845"]
["358","Düren","056","Titz","4855","Titz","Düren_358","Titz_056","Titz_4855"]
["358","Düren","060","Vettweiß","4796","Disternich","Düren_358","Vettweiß_060","Disternich_4796"]
["358","Düren","060","Vettweiß","4754","Froitzheim","Düren_358","Vettweiß_060","Froitzheim_4754"]
["358","Düren","060","Vettweiß","4756","Ginnick","Düren_358","Vettweiß_060","Ginnick_4756"]
["358","Düren","060","Vettweiß","4763","Gladbach","Düren_358","Vettweiß_060","Gladbach_4763"]
["358","Düren","060","Vettweiß","4745","Jakobwüllesheim","Düren_358","Vettweiß_060","Jakobwüllesheim_4745"]
["358","Düren","060","Vettweiß","4762","Kelz","Düren_358","Vettweiß_060","Kelz_4762"]
["358","Düren","060","Vettweiß","4764","Lüxheim","Düren_358","Vettweiß_060","Lüxheim_4764"]
["358","Düren","060","Vettweiß","4797","Müddersheim","Düren_358","Vettweiß_060","Müddersheim_4797"]
["358","Düren","060","Vettweiß","4795","Sievernich","Düren_358","Vettweiß_060","Sievernich_4795"]
["358","Düren","060","Vettweiß","4746","Soller","Düren_358","Vettweiß_060","Soller_4746"]
["358","Düren","060","Vettweiß","4758","Vettweiß","Düren_358","Vettweiß_060","Vettweiß_4758"]
["111","Düsseldorf,Stadt","000","Düsseldorf,Stadt","3101","Angermund","DüsseldorfStadt_111","DüsseldorfStadt_000","Angermund_3101"]
["111","Düsseldorf,Stadt","000","Düsseldorf,Stadt","3127","Bockum","DüsseldorfStadt_111","DüsseldorfStadt_000","Bockum_3127"]
["111","Düsseldorf,Stadt","000","Düsseldorf,Stadt","3122","Hubbelrath","DüsseldorfStadt_111","DüsseldorfStadt_000","Hubbelrath_3122"]
["111","Düsseldorf,Stadt","000","Düsseldorf,Stadt","3130","Wittlaer","DüsseldorfStadt_111","DüsseldorfStadt_000","Wittlaer_3130"]
["954","Ennepe-Ruhr-Kreis","004","Breckerfeld,Stadt","1307","Breckerfeld","Ennepe-Ruhr-Kreis_954","BreckerfeldStadt_004","Breckerfeld_1307"]
["954","Ennepe-Ruhr-Kreis","008","Ennepetal,Stadt","1314","Ennepetal","Ennepe-Ruhr-Kreis_954","EnnepetalStadt_008","Ennepetal_1314"]
["954","Ennepe-Ruhr-Kreis","012","Gevelsberg,Stadt","1343","Asbeck","Ennepe-Ruhr-Kreis_954","GevelsbergStadt_012","Asbeck_1343"]
["954","Ennepe-Ruhr-Kreis","012","Gevelsberg,Stadt","1348","Silschede","Ennepe-Ruhr-Kreis_954","GevelsbergStadt_012","Silschede_1348"]
["954","Ennepe-Ruhr-Kreis","016","Hattingen,Stadt","1109","Baak","Ennepe-Ruhr-Kreis_954","HattingenStadt_016","Baak_1109"]
["954","Ennepe-Ruhr-Kreis","016","Hattingen,Stadt","1079","Blankenstein","Ennepe-Ruhr-Kreis_954","HattingenStadt_016","Blankenstein_1079"]
["954","Ennepe-Ruhr-Kreis","016","Hattingen,Stadt","1111","Dumberg","Ennepe-Ruhr-Kreis_954","HattingenStadt_016","Dumberg_1111"]
["954","Ennepe-Ruhr-Kreis","016","Hattingen,Stadt","1126","Hattingen","Ennepe-Ruhr-Kreis_954","HattingenStadt_016","Hattingen_1126"]
["954","Ennepe-Ruhr-Kreis","016","Hattingen,Stadt","1112","Holthausen","Ennepe-Ruhr-Kreis_954","HattingenStadt_016","Holthausen_1112"]
["954","Ennepe-Ruhr-Kreis","016","Hattingen,Stadt","1115","Niederbonsfeld","Ennepe-Ruhr-Kreis_954","HattingenStadt_016","Niederbonsfeld_1115"]
["954","Ennepe-Ruhr-Kreis","016","Hattingen,Stadt","1116","Niederbredenscheid","Ennepe-Ruhr-Kreis_954","HattingenStadt_016","Niederbredenscheid_1116"]
["954","Ennepe-Ruhr-Kreis","016","Hattingen,Stadt","1117","Niederelfringhausen","Ennepe-Ruhr-Kreis_954","HattingenStadt_016","Niederelfringhausen_1117"]
["954","Ennepe-Ruhr-Kreis","016","Hattingen,Stadt","1118","Niederstüter","Ennepe-Ruhr-Kreis_954","HattingenStadt_016","Niederstüter_1118"]
["954","Ennepe-Ruhr-Kreis","016","Hattingen,Stadt","1119","Niederwenigern","Ennepe-Ruhr-Kreis_954","HattingenStadt_016","Niederwenigern_1119"]
["954","Ennepe-Ruhr-Kreis","016","Hattingen,Stadt","1121","Oberbredenscheid","Ennepe-Ruhr-Kreis_954","HattingenStadt_016","Oberbredenscheid_1121"]
["954","Ennepe-Ruhr-Kreis","016","Hattingen,Stadt","1122","Oberelfringhausen","Ennepe-Ruhr-Kreis_954","HattingenStadt_016","Oberelfringhausen_1122"]
["954","Ennepe-Ruhr-Kreis","016","Hattingen,Stadt","1123","Oberstüter","Ennepe-Ruhr-Kreis_954","HattingenStadt_016","Oberstüter_1123"]
["954","Ennepe-Ruhr-Kreis","016","Hattingen,Stadt","1124","Welper","Ennepe-Ruhr-Kreis_954","HattingenStadt_016","Welper_1124"]
["954","Ennepe-Ruhr-Kreis","016","Hattingen,Stadt","1125","Winz","Ennepe-Ruhr-Kreis_954","HattingenStadt_016","Winz_1125"]
["954","Ennepe-Ruhr-Kreis","024","Schwelm,Stadt","1332","Linderhausen","Ennepe-Ruhr-Kreis_954","SchwelmStadt_024","Linderhausen_1332"]
["954","Ennepe-Ruhr-Kreis","028","Sprockhövel,Stadt","1329","Gennebreck","Ennepe-Ruhr-Kreis_954","SprockhövelStadt_028","Gennebreck_1329"]
["954","Ennepe-Ruhr-Kreis","028","Sprockhövel,Stadt","1330","Haßlinghausen","Ennepe-Ruhr-Kreis_954","SprockhövelStadt_028","Haßlinghausen_1330"]
["954","Ennepe-Ruhr-Kreis","028","Sprockhövel,Stadt","1331","Hiddinghausen","Ennepe-Ruhr-Kreis_954","SprockhövelStadt_028","Hiddinghausen_1331"]
["954","Ennepe-Ruhr-Kreis","028","Sprockhövel,Stadt","1341","Niedersprockhövel","Ennepe-Ruhr-Kreis_954","SprockhövelStadt_028","Niedersprockhövel_1341"]
["954","Ennepe-Ruhr-Kreis","028","Sprockhövel,Stadt","1342","Obersprockhövel","Ennepe-Ruhr-Kreis_954","SprockhövelStadt_028","Obersprockhövel_1342"]
["954","Ennepe-Ruhr-Kreis","032","Wetter (Ruhr),Stadt","1346","Esborn","Ennepe-Ruhr-Kreis_954","Wetter (Ruhr)Stadt_032","Esborn_1346"]
["954","Ennepe-Ruhr-Kreis","036","Witten,Stadt","1082","Durchholz","Ennepe-Ruhr-Kreis_954","WittenStadt_036","Durchholz_1082"]
["954","Ennepe-Ruhr-Kreis","036","Witten,Stadt","1089","Vormholz","Ennepe-Ruhr-Kreis_954","WittenStadt_036","Vormholz_1089"]
["113","Essen,Stadt","000","Essen,Stadt","3159","Byfang","EssenStadt_113","EssenStadt_000","Byfang_3159"]
["366","Euskirchen","004","Bad Münstereifel,Stadt","4402","Arloff","Euskirchen_366","Bad MünstereifelStadt_004","Arloff_4402"]
["366","Euskirchen","004","Bad Münstereifel,Stadt","4410","Effelsberg","Euskirchen_366","Bad MünstereifelStadt_004","Effelsberg_4410"]
["366","Euskirchen","004","Bad Münstereifel,Stadt","4415","Eschweiler","Euskirchen_366","Bad MünstereifelStadt_004","Eschweiler_4415"]
["366","Euskirchen","004","Bad Münstereifel,Stadt","4473","Hohn","Euskirchen_366","Bad MünstereifelStadt_004","Hohn_4473"]
["366","Euskirchen","004","Bad Münstereifel,Stadt","4423","Houverath","Euskirchen_366","Bad MünstereifelStadt_004","Houverath_4423"]
["366","Euskirchen","004","Bad Münstereifel,Stadt","4425","Iversheim","Euskirchen_366","Bad MünstereifelStadt_004","Iversheim_4425"]
["366","Euskirchen","004","Bad Münstereifel,Stadt","4426","Kalkar","Euskirchen_366","Bad MünstereifelStadt_004","Kalkar_4426"]
["366","Euskirchen","004","Bad Münstereifel,Stadt","4439","Mahlberg","Euskirchen_366","Bad MünstereifelStadt_004","Mahlberg_4439"]
["366","Euskirchen","004","Bad Münstereifel,Stadt","4444","Münstereifel","Euskirchen_366","Bad MünstereifelStadt_004","Münstereifel_4444"]
["366","Euskirchen","004","Bad Münstereifel,Stadt","4442","Mutscheid","Euskirchen_366","Bad MünstereifelStadt_004","Mutscheid_4442"]
["366","Euskirchen","004","Bad Münstereifel,Stadt","4474","Nöthen","Euskirchen_366","Bad MünstereifelStadt_004","Nöthen_4474"]
["366","Euskirchen","004","Bad Münstereifel,Stadt","4454","Rupperath","Euskirchen_366","Bad MünstereifelStadt_004","Rupperath_4454"]
["366","Euskirchen","004","Bad Münstereifel,Stadt","4456","Schönau","Euskirchen_366","Bad MünstereifelStadt_004","Schönau_4456"]
["366","Euskirchen","008","Blankenheim","4374","Ahrdorf","Euskirchen_366","Blankenheim_008","Ahrdorf_4374"]
["366","Euskirchen","008","Blankenheim","4342","Alendorf","Euskirchen_366","Blankenheim_008","Alendorf_4342"]
["366","Euskirchen","008","Blankenheim","4324","Blankenheim","Euskirchen_366","Blankenheim_008","Blankenheim_4324"]
["366","Euskirchen","008","Blankenheim","4325","Blankenheimerdorf","Euskirchen_366","Blankenheim_008","Blankenheimerdorf_4325"]
["366","Euskirchen","008","Blankenheim","4341","Dollendorf","Euskirchen_366","Blankenheim_008","Dollendorf_4341"]
["366","Euskirchen","008","Blankenheim","4375","Freilingen","Euskirchen_366","Blankenheim_008","Freilingen_4375"]
["366","Euskirchen","008","Blankenheim","4343","Hüngersdorf","Euskirchen_366","Blankenheim_008","Hüngersdorf_4343"]
["366","Euskirchen","008","Blankenheim","4369","Lindweiler","Euskirchen_366","Blankenheim_008","Lindweiler_4369"]
["366","Euskirchen","008","Blankenheim","4373","Lommersdorf","Euskirchen_366","Blankenheim_008","Lommersdorf_4373"]
["366","Euskirchen","008","Blankenheim","4326","Mülheim","Euskirchen_366","Blankenheim_008","Mülheim_4326"]
["366","Euskirchen","008","Blankenheim","4327","Reetz","Euskirchen_366","Blankenheim_008","Reetz_4327"]
["366","Euskirchen","008","Blankenheim","4344","Ripsdorf","Euskirchen_366","Blankenheim_008","Ripsdorf_4344"]
["366","Euskirchen","008","Blankenheim","4370","Rohr","Euskirchen_366","Blankenheim_008","Rohr_4370"]
["366","Euskirchen","008","Blankenheim","4376","Uedelhoven","Euskirchen_366","Blankenheim_008","Uedelhoven_4376"]
["366","Euskirchen","008","Blankenheim","4345","Waldorf","Euskirchen_366","Blankenheim_008","Waldorf_4345"]
["366","Euskirchen","012","Dahlem","4339","Baasem","Euskirchen_366","Dahlem_012","Baasem_4339"]
["366","Euskirchen","012","Dahlem","4386","Berk","Euskirchen_366","Dahlem_012","Berk_4386"]
["366","Euskirchen","012","Dahlem","4340","Dahlem","Euskirchen_366","Dahlem_012","Dahlem_4340"]
["366","Euskirchen","012","Dahlem","4338","Kronenburg","Euskirchen_366","Dahlem_012","Kronenburg_4338"]
["366","Euskirchen","012","Dahlem","4379","Schmidtheim","Euskirchen_366","Dahlem_012","Schmidtheim_4379"]
["366","Euskirchen","016","Euskirchen,Stadt","4404","Billig","Euskirchen_366","EuskirchenStadt_016","Billig_4404"]
["366","Euskirchen","016","Euskirchen,Stadt","4414","Dom-Esch","Euskirchen_366","EuskirchenStadt_016","Dom-Esch_4414"]
["366","Euskirchen","016","Euskirchen,Stadt","4411","Elsig","Euskirchen_366","EuskirchenStadt_016","Elsig_4411"]
["366","Euskirchen","016","Euskirchen,Stadt","4416","Euenheim","Euskirchen_366","EuskirchenStadt_016","Euenheim_4416"]
["366","Euskirchen","016","Euskirchen,Stadt","4417","Euskirchen","Euskirchen_366","EuskirchenStadt_016","Euskirchen_4417"]
["366","Euskirchen","016","Euskirchen,Stadt","4418","Flamersheim","Euskirchen_366","EuskirchenStadt_016","Flamersheim_4418"]
["366","Euskirchen","016","Euskirchen,Stadt","4419","Frauenberg","Euskirchen_366","EuskirchenStadt_016","Frauenberg_4419"]
["366","Euskirchen","016","Euskirchen,Stadt","4421","Großbüllesheim","Euskirchen_366","EuskirchenStadt_016","Großbüllesheim_4421"]
["366","Euskirchen","016","Euskirchen,Stadt","4428","Kirchheim","Euskirchen_366","EuskirchenStadt_016","Kirchheim_4428"]
["366","Euskirchen","016","Euskirchen,Stadt","4429","Kleinbüllesheim","Euskirchen_366","EuskirchenStadt_016","Kleinbüllesheim_4429"]
["366","Euskirchen","016","Euskirchen,Stadt","4431","Kreuzweingarten-Rheder","Euskirchen_366","EuskirchenStadt_016","Kreuzweingarten-Rheder_4431"]
["366","Euskirchen","016","Euskirchen,Stadt","4432","Kuchenheim","Euskirchen_366","EuskirchenStadt_016","Kuchenheim_4432"]
["366","Euskirchen","016","Euskirchen,Stadt","4447","Niederkastenholz","Euskirchen_366","EuskirchenStadt_016","Niederkastenholz_4447"]
["366","Euskirchen","016","Euskirchen,Stadt","4450","Palmersheim","Euskirchen_366","EuskirchenStadt_016","Palmersheim_4450"]
["366","Euskirchen","016","Euskirchen,Stadt","4452","Roitzheim","Euskirchen_366","EuskirchenStadt_016","Roitzheim_4452"]
["366","Euskirchen","016","Euskirchen,Stadt","4457","Schweinheim","Euskirchen_366","EuskirchenStadt_016","Schweinheim_4457"]
["366","Euskirchen","016","Euskirchen,Stadt","4460","Stotzheim","Euskirchen_366","EuskirchenStadt_016","Stotzheim_4460"]
["366","Euskirchen","016","Euskirchen,Stadt","4465","Weidesheim","Euskirchen_366","EuskirchenStadt_016","Weidesheim_4465"]
["366","Euskirchen","016","Euskirchen,Stadt","4470","Wißkirchen","Euskirchen_366","EuskirchenStadt_016","Wißkirchen_4470"]
["366","Euskirchen","016","Euskirchen,Stadt","4471","Wüschheim","Euskirchen_366","EuskirchenStadt_016","Wüschheim_4471"]
["366","Euskirchen","020","Hellenthal","4360","Hellenthal","Euskirchen_366","Hellenthal_020","Hellenthal_4360"]
["366","Euskirchen","020","Hellenthal","4361","Hollerath","Euskirchen_366","Hellenthal_020","Hollerath_4361"]
["366","Euskirchen","020","Hellenthal","4372","Ländchen","Euskirchen_366","Hellenthal_020","Ländchen_4372"]
["366","Euskirchen","020","Hellenthal","4394","Losheim","Euskirchen_366","Hellenthal_020","Losheim_4394"]
["366","Euskirchen","020","Hellenthal","4385","Udenbreth","Euskirchen_366","Hellenthal_020","Udenbreth_4385"]
["366","Euskirchen","024","Kall","4337","Golbach","Euskirchen_366","Kall_024","Golbach_4337"]
["366","Euskirchen","024","Kall","4331","Kall","Euskirchen_366","Kall_024","Kall_4331"]
["366","Euskirchen","024","Kall","4371","Keldenich","Euskirchen_366","Kall_024","Keldenich_4371"]
["366","Euskirchen","024","Kall","4335","Sistig","Euskirchen_366","Kall_024","Sistig_4335"]
["366","Euskirchen","024","Kall","4336","Sötenich","Euskirchen_366","Kall_024","Sötenich_4336"]
["366","Euskirchen","024","Kall","4380","Urft","Euskirchen_366","Kall_024","Urft_4380"]
["366","Euskirchen","024","Kall","4395","Wahlen","Euskirchen_366","Kall_024","Wahlen_4395"]
["366","Euskirchen","024","Kall","4396","Wallenthal","Euskirchen_366","Kall_024","Wallenthal_4396"]
["366","Euskirchen","028","Mechernich,Stadt","4401","Antweiler","Euskirchen_366","MechernichStadt_028","Antweiler_4401"]
["366","Euskirchen","028","Mechernich,Stadt","4348","Berg","Euskirchen_366","MechernichStadt_028","Berg_4348"]
["366","Euskirchen","028","Mechernich,Stadt","4328","Bleibuir","Euskirchen_366","MechernichStadt_028","Bleibuir_4328"]
["366","Euskirchen","028","Mechernich,Stadt","4388","Breitenbenden","Euskirchen_366","MechernichStadt_028","Breitenbenden_4388"]
["366","Euskirchen","028","Mechernich,Stadt","4347","Eicks","Euskirchen_366","MechernichStadt_028","Eicks_4347"]
["366","Euskirchen","028","Mechernich,Stadt","4349","Floisdorf","Euskirchen_366","MechernichStadt_028","Floisdorf_4349"]
["366","Euskirchen","028","Mechernich,Stadt","4350","Glehn","Euskirchen_366","MechernichStadt_028","Glehn_4350"]
["366","Euskirchen","028","Mechernich,Stadt","4389","Harzheim","Euskirchen_366","MechernichStadt_028","Harzheim_4389"]
["366","Euskirchen","028","Mechernich,Stadt","4390","Holzheim","Euskirchen_366","MechernichStadt_028","Holzheim_4390"]
["366","Euskirchen","028","Mechernich,Stadt","4351","Hostel","Euskirchen_366","MechernichStadt_028","Hostel_4351"]
["366","Euskirchen","028","Mechernich,Stadt","4398","Kallmuth","Euskirchen_366","MechernichStadt_028","Kallmuth_4398"]
["366","Euskirchen","028","Mechernich,Stadt","4430","Kommern","Euskirchen_366","MechernichStadt_028","Kommern_4430"]
["366","Euskirchen","028","Mechernich,Stadt","4435","Lessenich-Rißdorf","Euskirchen_366","MechernichStadt_028","Lessenich-Rißdorf_4435"]
["366","Euskirchen","028","Mechernich,Stadt","4391","Lorbach","Euskirchen_366","MechernichStadt_028","Lorbach_4391"]
["366","Euskirchen","028","Mechernich,Stadt","4392","Mechernich","Euskirchen_366","MechernichStadt_028","Mechernich_4392"]
["366","Euskirchen","028","Mechernich,Stadt","4449","Obergartzem","Euskirchen_366","MechernichStadt_028","Obergartzem_4449"]
["366","Euskirchen","028","Mechernich,Stadt","4455","Satzvey-Firmenich","Euskirchen_366","MechernichStadt_028","Satzvey-Firmenich_4455"]
["366","Euskirchen","028","Mechernich,Stadt","4387","Vussem-Bergheim","Euskirchen_366","MechernichStadt_028","Vussem-Bergheim_4387"]
["366","Euskirchen","028","Mechernich,Stadt","4464","Wachendorf","Euskirchen_366","MechernichStadt_028","Wachendorf_4464"]
["366","Euskirchen","028","Mechernich,Stadt","4466","Weiler a.Berge","Euskirchen_366","MechernichStadt_028","Weiler a.Berge_4466"]
["366","Euskirchen","028","Mechernich,Stadt","4397","Weyer","Euskirchen_366","MechernichStadt_028","Weyer_4397"]
["366","Euskirchen","032","Nettersheim","4363","Bouderath","Euskirchen_366","Nettersheim_032","Bouderath_4363"]
["366","Euskirchen","032","Nettersheim","4364","Buir","Euskirchen_366","Nettersheim_032","Buir_4364"]
["366","Euskirchen","032","Nettersheim","4365","Engelgau","Euskirchen_366","Nettersheim_032","Engelgau_4365"]
["366","Euskirchen","032","Nettersheim","4366","Frohngau","Euskirchen_366","Nettersheim_032","Frohngau_4366"]
["366","Euskirchen","032","Nettersheim","4362","Holzmülheim","Euskirchen_366","Nettersheim_032","Holzmülheim_4362"]
["366","Euskirchen","032","Nettersheim","4377","Marmagen","Euskirchen_366","Nettersheim_032","Marmagen_4377"]
["366","Euskirchen","032","Nettersheim","4378","Nettersheim","Euskirchen_366","Nettersheim_032","Nettersheim_4378"]
["366","Euskirchen","032","Nettersheim","4383","Pesch","Euskirchen_366","Nettersheim_032","Pesch_4383"]
["366","Euskirchen","032","Nettersheim","4367","Roderath","Euskirchen_366","Nettersheim_032","Roderath_4367"]
["366","Euskirchen","032","Nettersheim","4368","Tondorf","Euskirchen_366","Nettersheim_032","Tondorf_4368"]
["366","Euskirchen","032","Nettersheim","4399","Zingsheim","Euskirchen_366","Nettersheim_032","Zingsheim_4399"]
["366","Euskirchen","036","Schleiden,Stadt","4354","Broich","Euskirchen_366","SchleidenStadt_036","Broich_4354"]
["366","Euskirchen","036","Schleiden,Stadt","4355","Bronsfeld","Euskirchen_366","SchleidenStadt_036","Bronsfeld_4355"]
["366","Euskirchen","036","Schleiden,Stadt","4346","Dreiborn","Euskirchen_366","SchleidenStadt_036","Dreiborn_4346"]
["366","Euskirchen","036","Schleiden,Stadt","4352","Gemünd","Euskirchen_366","SchleidenStadt_036","Gemünd_4352"]
["366","Euskirchen","036","Schleiden,Stadt","4353","Harperscheid","Euskirchen_366","SchleidenStadt_036","Harperscheid_4353"]
["366","Euskirchen","036","Schleiden,Stadt","4356","Oberhausen","Euskirchen_366","SchleidenStadt_036","Oberhausen_4356"]
["366","Euskirchen","036","Schleiden,Stadt","4384","Schleiden","Euskirchen_366","SchleidenStadt_036","Schleiden_4384"]
["366","Euskirchen","036","Schleiden,Stadt","4357","Schöneseiffen","Euskirchen_366","SchleidenStadt_036","Schöneseiffen_4357"]
["366","Euskirchen","040","Weilerswist","4438","Lommersum","Euskirchen_366","Weilerswist_040","Lommersum_4438"]
["366","Euskirchen","040","Weilerswist","4441","Metternich","Euskirchen_366","Weilerswist_040","Metternich_4441"]
["366","Euskirchen","040","Weilerswist","4443","Müggenhausen","Euskirchen_366","Weilerswist_040","Müggenhausen_4443"]
["366","Euskirchen","040","Weilerswist","4463","Vernich","Euskirchen_366","Weilerswist_040","Vernich_4463"]
["366","Euskirchen","040","Weilerswist","4468","Weilerswist","Euskirchen_366","Weilerswist_040","Weilerswist_4468"]
["366","Euskirchen","044","Zülpich,Stadt","4403","Bessenich","Euskirchen_366","ZülpichStadt_044","Bessenich_4403"]
["366","Euskirchen","044","Zülpich,Stadt","4481","Bürvenich-Eppenich","Euskirchen_366","ZülpichStadt_044","Bürvenich-Eppenich_4481"]
["366","Euskirchen","044","Zülpich,Stadt","4409","Dürscheven","Euskirchen_366","ZülpichStadt_044","Dürscheven_4409"]
["366","Euskirchen","044","Zülpich,Stadt","4412","Enzen","Euskirchen_366","ZülpichStadt_044","Enzen_4412"]
["366","Euskirchen","044","Zülpich,Stadt","4489","Füssenich","Euskirchen_366","ZülpichStadt_044","Füssenich_4489"]
["366","Euskirchen","044","Zülpich,Stadt","4490","Geich b.Füssenich","Euskirchen_366","ZülpichStadt_044","Geich b.Füssenich_4490"]
["366","Euskirchen","044","Zülpich,Stadt","4424","Hoven-Floren","Euskirchen_366","ZülpichStadt_044","Hoven-Floren_4424"]
["366","Euskirchen","044","Zülpich,Stadt","4491","Juntersdorf","Euskirchen_366","ZülpichStadt_044","Juntersdorf_4491"]
["366","Euskirchen","044","Zülpich,Stadt","4433","Langendorf","Euskirchen_366","ZülpichStadt_044","Langendorf_4433"]
["366","Euskirchen","044","Zülpich,Stadt","4437","Linzenich-Lövenich","Euskirchen_366","ZülpichStadt_044","Linzenich-Lövenich_4437"]
["366","Euskirchen","044","Zülpich,Stadt","4440","Merzenich","Euskirchen_366","ZülpichStadt_044","Merzenich_4440"]
["366","Euskirchen","044","Zülpich,Stadt","4445","Nemmenich","Euskirchen_366","ZülpichStadt_044","Nemmenich_4445"]
["366","Euskirchen","044","Zülpich,Stadt","4448","Oberelvenich","Euskirchen_366","ZülpichStadt_044","Oberelvenich_4448"]
["366","Euskirchen","044","Zülpich,Stadt","4453","Rövenich","Euskirchen_366","ZülpichStadt_044","Rövenich_4453"]
["366","Euskirchen","044","Zülpich,Stadt","4458","Schwerfen","Euskirchen_366","ZülpichStadt_044","Schwerfen_4458"]
["366","Euskirchen","044","Zülpich,Stadt","4459","Sinzenich","Euskirchen_366","ZülpichStadt_044","Sinzenich_4459"]
["366","Euskirchen","044","Zülpich,Stadt","4462","Ülpenich","Euskirchen_366","ZülpichStadt_044","Ülpenich_4462"]
["366","Euskirchen","044","Zülpich,Stadt","4467","Weiler i.d.Ebene","Euskirchen_366","ZülpichStadt_044","Weiler i.d.Ebene_4467"]
["366","Euskirchen","044","Zülpich,Stadt","4469","Wichterich","Euskirchen_366","ZülpichStadt_044","Wichterich_4469"]
["366","Euskirchen","044","Zülpich,Stadt","4472","Zülpich","Euskirchen_366","ZülpichStadt_044","Zülpich_4472"]
["754","Gütersloh","004","Borgholzhausen,Stadt","2508","Borgholzhausen","Gütersloh_754","BorgholzhausenStadt_004","Borgholzhausen_2508"]
["754","Gütersloh","008","Gütersloh,Stadt","2501","Avenwedde","Gütersloh_754","GüterslohStadt_008","Avenwedde_2501"]
["754","Gütersloh","008","Gütersloh,Stadt","2513","Ebbesloh","Gütersloh_754","GüterslohStadt_008","Ebbesloh_2513"]
["754","Gütersloh","008","Gütersloh,Stadt","2514","Friedrichsdorf","Gütersloh_754","GüterslohStadt_008","Friedrichsdorf_2514"]
["754","Gütersloh","008","Gütersloh,Stadt","2516","Gütersloh","Gütersloh_754","GüterslohStadt_008","Gütersloh_2516"]
["754","Gütersloh","008","Gütersloh,Stadt","2523","Hollen","Gütersloh_754","GüterslohStadt_008","Hollen_2523"]
["754","Gütersloh","008","Gütersloh,Stadt","2524","Isselhorst","Gütersloh_754","GüterslohStadt_008","Isselhorst_2524"]
["754","Gütersloh","008","Gütersloh,Stadt","2535","Niehorst","Gütersloh_754","GüterslohStadt_008","Niehorst_2535"]
["754","Gütersloh","008","Gütersloh,Stadt","2544","Spexard","Gütersloh_754","GüterslohStadt_008","Spexard_2544"]
["754","Gütersloh","012","Halle (Westf.),Stadt","2517","Halle","Gütersloh_754","Halle (Westf.)Stadt_012","Halle_2517"]
["754","Gütersloh","012","Halle (Westf.),Stadt","2520","Hesseln","Gütersloh_754","Halle (Westf.)Stadt_012","Hesseln_2520"]
["754","Gütersloh","012","Halle (Westf.),Stadt","2522","Hörste","Gütersloh_754","Halle (Westf.)Stadt_012","Hörste_2522"]
["754","Gütersloh","012","Halle (Westf.),Stadt","2525","Kölkebeck","Gütersloh_754","Halle (Westf.)Stadt_012","Kölkebeck_2525"]
["754","Gütersloh","012","Halle (Westf.),Stadt","2526","Künsebeck","Gütersloh_754","Halle (Westf.)Stadt_012","Künsebeck_2526"]
["754","Gütersloh","012","Halle (Westf.),Stadt","2506","Tatenhausen","Gütersloh_754","Halle (Westf.)Stadt_012","Tatenhausen_2506"]
["754","Gütersloh","016","Harsewinkel,Stadt","2515","Greffen","Gütersloh_754","HarsewinkelStadt_016","Greffen_2515"]
["754","Gütersloh","016","Harsewinkel,Stadt","2518","Harsewinkel","Gütersloh_754","HarsewinkelStadt_016","Harsewinkel_2518"]
["754","Gütersloh","016","Harsewinkel,Stadt","2531","Marienfeld","Gütersloh_754","HarsewinkelStadt_016","Marienfeld_2531"]
["754","Gütersloh","020","Herzebrock-Clarholz","2511","Clarholz","Gütersloh_754","Herzebrock-Clarholz_020","Clarholz_2511"]
["754","Gütersloh","020","Herzebrock-Clarholz","2519","Herzebrock","Gütersloh_754","Herzebrock-Clarholz_020","Herzebrock_2519"]
["754","Gütersloh","024","Langenberg","2527","Langenberg","Gütersloh_754","Langenberg_024","Langenberg_2527"]
["754","Gütersloh","028","Rheda-Wiedenbrück,Stadt","2503","Batenhorst","Gütersloh_754","Rheda-WiedenbrückStadt_028","Batenhorst_2503"]
["754","Gütersloh","028","Rheda-Wiedenbrück,Stadt","2529","Lintel","Gütersloh_754","Rheda-WiedenbrückStadt_028","Lintel_2529"]
["754","Gütersloh","028","Rheda-Wiedenbrück,Stadt","2536","Nordrheda-Ems","Gütersloh_754","Rheda-WiedenbrückStadt_028","Nordrheda-Ems_2536"]
["754","Gütersloh","028","Rheda-Wiedenbrück,Stadt","2540","Rheda","Gütersloh_754","Rheda-WiedenbrückStadt_028","Rheda_2540"]
["754","Gütersloh","028","Rheda-Wiedenbrück,Stadt","2546","Sankt Vit","Gütersloh_754","Rheda-WiedenbrückStadt_028","Sankt Vit_2546"]
["754","Gütersloh","028","Rheda-Wiedenbrück,Stadt","2553","Wiedenbrück","Gütersloh_754","Rheda-WiedenbrückStadt_028","Wiedenbrück_2553"]
["754","Gütersloh","032","Rietberg,Stadt","2507","Bokel","Gütersloh_754","RietbergStadt_032","Bokel_2507"]
["754","Gütersloh","032","Rietberg,Stadt","2512","Druffel","Gütersloh_754","RietbergStadt_032","Druffel_2512"]
["754","Gütersloh","032","Rietberg,Stadt","2532","Mastholte","Gütersloh_754","RietbergStadt_032","Mastholte_2532"]
["754","Gütersloh","032","Rietberg,Stadt","2534","Neuenkirchen","Gütersloh_754","RietbergStadt_032","Neuenkirchen_2534"]
["754","Gütersloh","032","Rietberg,Stadt","2541","Rietberg","Gütersloh_754","RietbergStadt_032","Rietberg_2541"]
["754","Gütersloh","032","Rietberg,Stadt","2548","Varensell","Gütersloh_754","RietbergStadt_032","Varensell_2548"]
["754","Gütersloh","032","Rietberg,Stadt","2552","Westerwiehe","Gütersloh_754","RietbergStadt_032","Westerwiehe_2552"]
["754","Gütersloh","036","Schloß Holte-Stukenbrock","2542","Schloß Holte","Gütersloh_754","Schloß Holte-Stukenbrock_036","Schloß Holte_2542"]
["754","Gütersloh","036","Schloß Holte-Stukenbrock","2547","Stukenbrock","Gütersloh_754","Schloß Holte-Stukenbrock_036","Stukenbrock_2547"]
["754","Gütersloh","040","Steinhagen","2502","Amshausen","Gütersloh_754","Steinhagen_040","Amshausen_2502"]
["754","Gütersloh","040","Steinhagen","2510","Brockhagen","Gütersloh_754","Steinhagen_040","Brockhagen_2510"]
["754","Gütersloh","040","Steinhagen","2545","Steinhagen","Gütersloh_754","Steinhagen_040","Steinhagen_2545"]
["754","Gütersloh","044","Verl","2509","Bornholte","Gütersloh_754","Verl_044","Bornholte_2509"]
["754","Gütersloh","044","Verl","2528","Liemke","Gütersloh_754","Verl_044","Liemke_2528"]
["754","Gütersloh","044","Verl","2538","Österwiehe","Gütersloh_754","Verl_044","Österwiehe_2538"]
["754","Gütersloh","044","Verl","2543","Sende","Gütersloh_754","Verl_044","Sende_2543"]
["754","Gütersloh","044","Verl","2549","Verl","Gütersloh_754","Verl_044","Verl_2549"]
["754","Gütersloh","048","Versmold,Stadt","2505","Bockhorst","Gütersloh_754","VersmoldStadt_048","Bockhorst_2505"]
["754","Gütersloh","048","Versmold,Stadt","2521","Hesselteich","Gütersloh_754","VersmoldStadt_048","Hesselteich_2521"]
["754","Gütersloh","048","Versmold,Stadt","2530","Loxten","Gütersloh_754","VersmoldStadt_048","Loxten_2530"]
["754","Gütersloh","048","Versmold,Stadt","2537","Österweg","Gütersloh_754","VersmoldStadt_048","Österweg_2537"]
["754","Gütersloh","048","Versmold,Stadt","2539","Peckeloh","Gütersloh_754","VersmoldStadt_048","Peckeloh_2539"]
["754","Gütersloh","048","Versmold,Stadt","2550","Versmold","Gütersloh_754","VersmoldStadt_048","Versmold_2550"]
["754","Gütersloh","052","Werther (Westf.),Stadt","2551","Werther","Gütersloh_754","Werther (Westf.)Stadt_052","Werther_2551"]
["914","Hagen,Stadt","000","Hagen,Stadt","1416","Berchum","HagenStadt_914","HagenStadt_000","Berchum_1416"]
["914","Hagen,Stadt","000","Hagen,Stadt","1308","Dahl","HagenStadt_914","HagenStadt_000","Dahl_1308"]
["914","Hagen,Stadt","000","Hagen,Stadt","1319","Delstern","HagenStadt_914","HagenStadt_000","Delstern_1319"]
["914","Hagen,Stadt","000","Hagen,Stadt","1299","Garenfeld","HagenStadt_914","HagenStadt_000","Garenfeld_1299"]
["914","Hagen,Stadt","000","Hagen,Stadt","1326","Holthausen","HagenStadt_914","HagenStadt_000","Holthausen_1326"]
["915","Hamm,Stadt","000","Hamm,Stadt","1374","Allen","HammStadt_915","HammStadt_000","Allen_1374"]
["915","Hamm,Stadt","000","Hamm,Stadt","1375","Berge","HammStadt_915","HammStadt_000","Berge_1375"]
["915","Hamm,Stadt","000","Hamm,Stadt","1865","Bockum-Hövel","HammStadt_915","HammStadt_000","Bockum-Hövel_1865"]
["915","Hamm,Stadt","000","Hamm,Stadt","1376","Braam-Ostwennemar","HammStadt_915","HammStadt_000","Braam-Ostwennemar_1376"]
["915","Hamm,Stadt","000","Hamm,Stadt","1378","Freiske","HammStadt_915","HammStadt_000","Freiske_1378"]
["915","Hamm,Stadt","000","Hamm,Stadt","1379","Frielinghausen","HammStadt_915","HammStadt_000","Frielinghausen_1379"]
["915","Hamm,Stadt","000","Hamm,Stadt","1380","Haaren","HammStadt_915","HammStadt_000","Haaren_1380"]
["915","Hamm,Stadt","000","Hamm,Stadt","1866","Heessen","HammStadt_915","HammStadt_000","Heessen_1866"]
["915","Hamm,Stadt","000","Hamm,Stadt","1363","Lerche","HammStadt_915","HammStadt_000","Lerche_1363"]
["915","Hamm,Stadt","000","Hamm,Stadt","1384","Norddinker","HammStadt_915","HammStadt_000","Norddinker_1384"]
["915","Hamm,Stadt","000","Hamm,Stadt","1385","Osterflierich","HammStadt_915","HammStadt_000","Osterflierich_1385"]
["915","Hamm,Stadt","000","Hamm,Stadt","1386","Osttünnen","HammStadt_915","HammStadt_000","Osttünnen_1386"]
["915","Hamm,Stadt","000","Hamm,Stadt","1370","Sandbochum","HammStadt_915","HammStadt_000","Sandbochum_1370"]
["915","Hamm,Stadt","000","Hamm,Stadt","1390","Süddinker","HammStadt_915","HammStadt_000","Süddinker_1390"]
["915","Hamm,Stadt","000","Hamm,Stadt","1392","Vöckinghausen","HammStadt_915","HammStadt_000","Vöckinghausen_1392"]
["915","Hamm,Stadt","000","Hamm,Stadt","1393","Wambeln","HammStadt_915","HammStadt_000","Wambeln_1393"]
["915","Hamm,Stadt","000","Hamm,Stadt","1371","Weetfeld","HammStadt_915","HammStadt_000","Weetfeld_1371"]
["915","Hamm,Stadt","000","Hamm,Stadt","1395","Westtünnen","HammStadt_915","HammStadt_000","Westtünnen_1395"]
["370","Heinsberg","004","Erkelenz,Stadt","4531","Borschemich","Heinsberg_370","ErkelenzStadt_004","Borschemich_4531"]
["370","Heinsberg","004","Erkelenz,Stadt","4526","Erkelenz","Heinsberg_370","ErkelenzStadt_004","Erkelenz_4526"]
["370","Heinsberg","004","Erkelenz,Stadt","4527","Gerderath","Heinsberg_370","ErkelenzStadt_004","Gerderath_4527"]
["370","Heinsberg","004","Erkelenz,Stadt","4533","Golkrath","Heinsberg_370","ErkelenzStadt_004","Golkrath_4533"]
["370","Heinsberg","004","Erkelenz,Stadt","4522","Granterath","Heinsberg_370","ErkelenzStadt_004","Granterath_4522"]
["370","Heinsberg","004","Erkelenz,Stadt","4529","Holzweiler","Heinsberg_370","ErkelenzStadt_004","Holzweiler_4529"]
["370","Heinsberg","004","Erkelenz,Stadt","4528","Immerath","Heinsberg_370","ErkelenzStadt_004","Immerath_4528"]
["370","Heinsberg","004","Erkelenz,Stadt","4530","Keyenberg","Heinsberg_370","ErkelenzStadt_004","Keyenberg_4530"]
["370","Heinsberg","004","Erkelenz,Stadt","4535","Kückhoven","Heinsberg_370","ErkelenzStadt_004","Kückhoven_4535"]
["370","Heinsberg","004","Erkelenz,Stadt","4536","Lövenich","Heinsberg_370","ErkelenzStadt_004","Lövenich_4536"]
["370","Heinsberg","004","Erkelenz,Stadt","4538","Schwanenberg","Heinsberg_370","ErkelenzStadt_004","Schwanenberg_4538"]
["370","Heinsberg","004","Erkelenz,Stadt","4532","Venrath","Heinsberg_370","ErkelenzStadt_004","Venrath_4532"]
["370","Heinsberg","008","Gangelt","4558","Birgden","Heinsberg_370","Gangelt_008","Birgden_4558"]
["370","Heinsberg","008","Gangelt","4577","Breberen-Schümm","Heinsberg_370","Gangelt_008","Breberen-Schümm_4577"]
["370","Heinsberg","008","Gangelt","4557","Gangelt","Heinsberg_370","Gangelt_008","Gangelt_4557"]
["370","Heinsberg","008","Gangelt","4500","Schierwaldenrath","Heinsberg_370","Gangelt_008","Schierwaldenrath_4500"]
["370","Heinsberg","012","Geilenkirchen,Stadt","4568","Beeck","Heinsberg_370","GeilenkirchenStadt_012","Beeck_4568"]
["370","Heinsberg","012","Geilenkirchen,Stadt","4559","Geilenkirchen","Heinsberg_370","GeilenkirchenStadt_012","Geilenkirchen_4559"]
["370","Heinsberg","012","Geilenkirchen,Stadt","4560","Immendorf","Heinsberg_370","GeilenkirchenStadt_012","Immendorf_4560"]
["370","Heinsberg","012","Geilenkirchen,Stadt","4555","Lindern","Heinsberg_370","GeilenkirchenStadt_012","Lindern_4555"]
["370","Heinsberg","012","Geilenkirchen,Stadt","4569","Süggerath","Heinsberg_370","GeilenkirchenStadt_012","Süggerath_4569"]
["370","Heinsberg","012","Geilenkirchen,Stadt","4566","Teveren","Heinsberg_370","GeilenkirchenStadt_012","Teveren_4566"]
["370","Heinsberg","012","Geilenkirchen,Stadt","4567","Würm","Heinsberg_370","GeilenkirchenStadt_012","Würm_4567"]
["370","Heinsberg","016","Heinsberg,Stadt","4570","Aphoven","Heinsberg_370","HeinsbergStadt_016","Aphoven_4570"]
["370","Heinsberg","016","Heinsberg,Stadt","4578","Dremmen","Heinsberg_370","HeinsbergStadt_016","Dremmen_4578"]
["370","Heinsberg","016","Heinsberg,Stadt","4584","Heinsberg","Heinsberg_370","HeinsbergStadt_016","Heinsberg_4584"]
["370","Heinsberg","016","Heinsberg,Stadt","4579","Horst","Heinsberg_370","HeinsbergStadt_016","Horst_4579"]
["370","Heinsberg","016","Heinsberg,Stadt","4587","Karken","Heinsberg_370","HeinsbergStadt_016","Karken_4587"]
["370","Heinsberg","016","Heinsberg,Stadt","4588","Kempen","Heinsberg_370","HeinsbergStadt_016","Kempen_4588"]
["370","Heinsberg","016","Heinsberg,Stadt","4589","Kirchhoven","Heinsberg_370","HeinsbergStadt_016","Kirchhoven_4589"]
["370","Heinsberg","016","Heinsberg,Stadt","4571","Laffeld","Heinsberg_370","HeinsbergStadt_016","Laffeld_4571"]
["370","Heinsberg","016","Heinsberg,Stadt","4593","Oberbruch","Heinsberg_370","HeinsbergStadt_016","Oberbruch_4593"]
["370","Heinsberg","016","Heinsberg,Stadt","4586","Porselen","Heinsberg_370","HeinsbergStadt_016","Porselen_4586"]
["370","Heinsberg","016","Heinsberg,Stadt","4562","Randerath","Heinsberg_370","HeinsbergStadt_016","Randerath_4562"]
["370","Heinsberg","016","Heinsberg,Stadt","4572","Schafhausen","Heinsberg_370","HeinsbergStadt_016","Schafhausen_4572"]
["370","Heinsberg","016","Heinsberg,Stadt","4597","Unterbruch","Heinsberg_370","HeinsbergStadt_016","Unterbruch_4597"]
["370","Heinsberg","016","Heinsberg,Stadt","4598","Waldenrath","Heinsberg_370","HeinsbergStadt_016","Waldenrath_4598"]
["370","Heinsberg","020","Hückelhoven,Stadt","4521","Baal","Heinsberg_370","HückelhovenStadt_020","Baal_4521"]
["370","Heinsberg","020","Hückelhoven,Stadt","4554","Brachelen","Heinsberg_370","HückelhovenStadt_020","Brachelen_4554"]
["370","Heinsberg","020","Hückelhoven,Stadt","4520","Doveren","Heinsberg_370","HückelhovenStadt_020","Doveren_4520"]
["370","Heinsberg","020","Hückelhoven,Stadt","4524","Hückelhoven-Ratheim","Heinsberg_370","HückelhovenStadt_020","Hückelhoven-Ratheim_4524"]
["370","Heinsberg","020","Hückelhoven,Stadt","4519","Rurich","Heinsberg_370","HückelhovenStadt_020","Rurich_4519"]
["370","Heinsberg","024","Selfkant","4581","Havert","Heinsberg_370","Selfkant_024","Havert_4581"]
["370","Heinsberg","024","Selfkant","4504","Hillensberg","Heinsberg_370","Selfkant_024","Hillensberg_4504"]
["370","Heinsberg","024","Selfkant","4596","Höngen","Heinsberg_370","Selfkant_024","Höngen_4596"]
["370","Heinsberg","024","Selfkant","4582","Millen","Heinsberg_370","Selfkant_024","Millen_4582"]
["370","Heinsberg","024","Selfkant","4595","Saeffelen","Heinsberg_370","Selfkant_024","Saeffelen_4595"]
["370","Heinsberg","024","Selfkant","4505","Süsterseel","Heinsberg_370","Selfkant_024","Süsterseel_4505"]
["370","Heinsberg","024","Selfkant","4583","Tüddern","Heinsberg_370","Selfkant_024","Tüddern_4583"]
["370","Heinsberg","024","Selfkant","4503","Wehr","Heinsberg_370","Selfkant_024","Wehr_4503"]
["370","Heinsberg","032","Waldfeucht","4576","Braunsrath","Heinsberg_370","Waldfeucht_032","Braunsrath_4576"]
["370","Heinsberg","032","Waldfeucht","4580","Haaren","Heinsberg_370","Waldfeucht_032","Haaren_4580"]
["370","Heinsberg","032","Waldfeucht","4599","Waldfeucht","Heinsberg_370","Waldfeucht_032","Waldfeucht_4599"]
["370","Heinsberg","036","Wassenberg,Stadt","4573","Birgelen","Heinsberg_370","WassenbergStadt_036","Birgelen_4573"]
["370","Heinsberg","036","Wassenberg,Stadt","4574","Effeld","Heinsberg_370","WassenbergStadt_036","Effeld_4574"]
["370","Heinsberg","036","Wassenberg,Stadt","4590","Myhl","Heinsberg_370","WassenbergStadt_036","Myhl_4590"]
["370","Heinsberg","036","Wassenberg,Stadt","4575","Ophoven","Heinsberg_370","WassenbergStadt_036","Ophoven_4575"]
["370","Heinsberg","036","Wassenberg,Stadt","4502","Orsbeck","Heinsberg_370","WassenbergStadt_036","Orsbeck_4502"]
["370","Heinsberg","036","Wassenberg,Stadt","4501","Wassenberg","Heinsberg_370","WassenbergStadt_036","Wassenberg_4501"]
["370","Heinsberg","040","Wegberg,Stadt","4591","Arsbeck","Heinsberg_370","WegbergStadt_040","Arsbeck_4591"]
["370","Heinsberg","040","Wegberg,Stadt","4511","Merbeck","Heinsberg_370","WegbergStadt_040","Merbeck_4511"]
["370","Heinsberg","040","Wegberg,Stadt","4539","Wegberg","Heinsberg_370","WegbergStadt_040","Wegberg_4539"]
["370","Heinsberg","040","Wegberg,Stadt","4592","Wildenrath","Heinsberg_370","WegbergStadt_040","Wildenrath_4592"]
["758","Herford","004","Bünde,Stadt","2601","Ahle","Herford_758","BündeStadt_004","Ahle_2601"]
["758","Herford","004","Bünde,Stadt","2606","Bünde","Herford_758","BündeStadt_004","Bünde_2606"]
["758","Herford","004","Bünde,Stadt","2607","Bustedt","Herford_758","BündeStadt_004","Bustedt_2607"]
["758","Herford","004","Bünde,Stadt","2610","Dünne","Herford_758","BündeStadt_004","Dünne_2610"]
["758","Herford","004","Bünde,Stadt","2615","Ennigloh","Herford_758","BündeStadt_004","Ennigloh_2615"]
["758","Herford","004","Bünde,Stadt","2624","Holsen","Herford_758","BündeStadt_004","Holsen_2624"]
["758","Herford","004","Bünde,Stadt","2626","Hüffen","Herford_758","BündeStadt_004","Hüffen_2626"]
["758","Herford","004","Bünde,Stadt","2627","Hunnebrock","Herford_758","BündeStadt_004","Hunnebrock_2627"]
["758","Herford","004","Bünde,Stadt","2635","Muckum","Herford_758","BündeStadt_004","Muckum_2635"]
["758","Herford","004","Bünde,Stadt","2649","Spradow","Herford_758","BündeStadt_004","Spradow_2649"]
["758","Herford","004","Bünde,Stadt","2653","Südlengern-Heide","Herford_758","BündeStadt_004","Südlengern-Heide_2653"]
["758","Herford","004","Bünde,Stadt","2660","Werfen","Herford_758","BündeStadt_004","Werfen_2660"]
["758","Herford","008","Enger,Stadt","2603","Belke-Steinbeck","Herford_758","EngerStadt_008","Belke-Steinbeck_2603"]
["758","Herford","008","Enger,Stadt","2604","Besenkamp","Herford_758","EngerStadt_008","Besenkamp_2604"]
["758","Herford","008","Enger,Stadt","2609","Dreyen","Herford_758","EngerStadt_008","Dreyen_2609"]
["758","Herford","008","Enger,Stadt","2614","Enger","Herford_758","EngerStadt_008","Enger_2614"]
["758","Herford","008","Enger,Stadt","2622","Herringhausen-West","Herford_758","EngerStadt_008","Herringhausen-West_2622"]
["758","Herford","008","Enger,Stadt","2638","Oldinghausen","Herford_758","EngerStadt_008","Oldinghausen_2638"]
["758","Herford","008","Enger,Stadt","2640","Pödinghausen","Herford_758","EngerStadt_008","Pödinghausen_2640"]
["758","Herford","008","Enger,Stadt","2647","Siele","Herford_758","EngerStadt_008","Siele_2647"]
["758","Herford","008","Enger,Stadt","2661","Westerenger","Herford_758","EngerStadt_008","Westerenger_2661"]
["758","Herford","012","Herford,Stadt","2608","Diebrock","Herford_758","HerfordStadt_012","Diebrock_2608"]
["758","Herford","012","Herford,Stadt","2611","Eickum","Herford_758","HerfordStadt_012","Eickum_2611"]
["758","Herford","012","Herford,Stadt","2613","Elverdissen","Herford_758","HerfordStadt_012","Elverdissen_2613"]
["758","Herford","012","Herford,Stadt","2617","Falkendiek","Herford_758","HerfordStadt_012","Falkendiek_2617"]
["758","Herford","012","Herford,Stadt","2620","Herford","Herford_758","HerfordStadt_012","Herford_2620"]
["758","Herford","012","Herford,Stadt","2621","Herringhausen-Ost","Herford_758","HerfordStadt_012","Herringhausen-Ost_2621"]
["758","Herford","012","Herford,Stadt","2630","Laar","Herford_758","HerfordStadt_012","Laar_2630"]
["758","Herford","012","Herford,Stadt","2644","Schwarzenmoor","Herford_758","HerfordStadt_012","Schwarzenmoor_2644"]
["758","Herford","012","Herford,Stadt","2650","Stedefreund","Herford_758","HerfordStadt_012","Stedefreund_2650"]
["758","Herford","016","Hiddenhausen","2612","Eilshausen","Herford_758","Hiddenhausen_016","Eilshausen_2612"]
["758","Herford","016","Hiddenhausen","2623","Hiddenhausen","Herford_758","Hiddenhausen_016","Hiddenhausen_2623"]
["758","Herford","016","Hiddenhausen","2632","Lippinghausen","Herford_758","Hiddenhausen_016","Lippinghausen_2632"]
["758","Herford","016","Hiddenhausen","2637","Oetinghausen","Herford_758","Hiddenhausen_016","Oetinghausen_2637"]
["758","Herford","016","Hiddenhausen","2645","Schweicheln-Bermbeck","Herford_758","Hiddenhausen_016","Schweicheln-Bermbeck_2645"]
["758","Herford","016","Hiddenhausen","2654","Sundern","Herford_758","Hiddenhausen_016","Sundern_2654"]
["758","Herford","020","Kirchlengern","2619","Häver","Herford_758","Kirchlengern_020","Häver_2619"]
["758","Herford","020","Kirchlengern","2628","Kirchlengern","Herford_758","Kirchlengern_020","Kirchlengern_2628"]
["758","Herford","020","Kirchlengern","2629","Klosterbauerschaft","Herford_758","Kirchlengern_020","Klosterbauerschaft_2629"]
["758","Herford","020","Kirchlengern","2641","Quernheim","Herford_758","Kirchlengern_020","Quernheim_2641"]
["758","Herford","020","Kirchlengern","2642","Rehmerloh","Herford_758","Kirchlengern_020","Rehmerloh_2642"]
["758","Herford","020","Kirchlengern","2651","Stift Quernheim","Herford_758","Kirchlengern_020","Stift Quernheim_2651"]
["758","Herford","020","Kirchlengern","2652","Südlengern-Dorf","Herford_758","Kirchlengern_020","Südlengern-Dorf_2652"]
["758","Herford","024","Löhne,Stadt","2618","Gohfeld","Herford_758","LöhneStadt_024","Gohfeld_2618"]
["758","Herford","024","Löhne,Stadt","2633","Löhne","Herford_758","LöhneStadt_024","Löhne_2633"]
["758","Herford","024","Löhne,Stadt","2634","Mennighüffen","Herford_758","LöhneStadt_024","Mennighüffen_2634"]
["758","Herford","024","Löhne,Stadt","2636","Obernbeck","Herford_758","LöhneStadt_024","Obernbeck_2636"]
["758","Herford","024","Löhne,Stadt","2656","Ulenburg","Herford_758","LöhneStadt_024","Ulenburg_2656"]
["758","Herford","028","Rödinghausen","2605","Bieren","Herford_758","Rödinghausen_028","Bieren_2605"]
["758","Herford","028","Rödinghausen","2639","Ostkilver","Herford_758","Rödinghausen_028","Ostkilver_2639"]
["758","Herford","028","Rödinghausen","2643","Rödinghausen","Herford_758","Rödinghausen_028","Rödinghausen_2643"]
["758","Herford","028","Rödinghausen","2646","Schwenningdorf","Herford_758","Rödinghausen_028","Schwenningdorf_2646"]
["758","Herford","028","Rödinghausen","2662","Westkilver","Herford_758","Rödinghausen_028","Westkilver_2662"]
["758","Herford","032","Spenge,Stadt","2602","Bardüttingdorf","Herford_758","SpengeStadt_032","Bardüttingdorf_2602"]
["758","Herford","032","Spenge,Stadt","2625","Hücker-Aschen","Herford_758","SpengeStadt_032","Hücker-Aschen_2625"]
["758","Herford","032","Spenge,Stadt","2631","Lenzinghausen","Herford_758","SpengeStadt_032","Lenzinghausen_2631"]
["758","Herford","032","Spenge,Stadt","2648","Spenge","Herford_758","SpengeStadt_032","Spenge_2648"]
["758","Herford","032","Spenge,Stadt","2659","Wallenbrück","Herford_758","SpengeStadt_032","Wallenbrück_2659"]
["758","Herford","036","Vlotho,Stadt","2616","Exter","Herford_758","VlothoStadt_036","Exter_2616"]
["758","Herford","036","Vlotho,Stadt","2655","Uffeln","Herford_758","VlothoStadt_036","Uffeln_2655"]
["758","Herford","036","Vlotho,Stadt","2657","Valdorf","Herford_758","VlothoStadt_036","Valdorf_2657"]
["758","Herford","036","Vlotho,Stadt","2658","Vlotho","Herford_758","VlothoStadt_036","Vlotho_2658"]
["958","Hochsauerlandkreis","004","Arnsberg,Stadt","1030","Arnsberg","Hochsauerlandkreis_958","ArnsbergStadt_004","Arnsberg_1030"]
["958","Hochsauerlandkreis","004","Arnsberg,Stadt","1056","Bachum","Hochsauerlandkreis_958","ArnsbergStadt_004","Bachum_1056"]
["958","Hochsauerlandkreis","004","Arnsberg,Stadt","1044","Breitenbruch","Hochsauerlandkreis_958","ArnsbergStadt_004","Breitenbruch_1044"]
["958","Hochsauerlandkreis","004","Arnsberg,Stadt","1057","Bruchhausen","Hochsauerlandkreis_958","ArnsbergStadt_004","Bruchhausen_1057"]
["958","Hochsauerlandkreis","004","Arnsberg,Stadt","1062","Herdringen","Hochsauerlandkreis_958","ArnsbergStadt_004","Herdringen_1062"]
["958","Hochsauerlandkreis","004","Arnsberg,Stadt","1063","Holzen","Hochsauerlandkreis_958","ArnsbergStadt_004","Holzen_1063"]
["958","Hochsauerlandkreis","004","Arnsberg,Stadt","1068","Müschede","Hochsauerlandkreis_958","ArnsbergStadt_004","Müschede_1068"]
["958","Hochsauerlandkreis","004","Arnsberg,Stadt","1073","Neheim-Hüsten","Hochsauerlandkreis_958","ArnsbergStadt_004","Neheim-Hüsten_1073"]
["958","Hochsauerlandkreis","004","Arnsberg,Stadt","1069","Niedereimer","Hochsauerlandkreis_958","ArnsbergStadt_004","Niedereimer_1069"]
["958","Hochsauerlandkreis","004","Arnsberg,Stadt","1051","Oeventrop","Hochsauerlandkreis_958","ArnsbergStadt_004","Oeventrop_1051"]
["958","Hochsauerlandkreis","004","Arnsberg,Stadt","1052","Rumbeck","Hochsauerlandkreis_958","ArnsbergStadt_004","Rumbeck_1052"]
["958","Hochsauerlandkreis","004","Arnsberg,Stadt","1053","Uentrop","Hochsauerlandkreis_958","ArnsbergStadt_004","Uentrop_1053"]
["958","Hochsauerlandkreis","004","Arnsberg,Stadt","1071","Voßwinkel","Hochsauerlandkreis_958","ArnsbergStadt_004","Voßwinkel_1071"]
["958","Hochsauerlandkreis","004","Arnsberg,Stadt","1072","Wennigloh","Hochsauerlandkreis_958","ArnsbergStadt_004","Wennigloh_1072"]
["958","Hochsauerlandkreis","008","Bestwig","1171","Grimlinghausen","Hochsauerlandkreis_958","Bestwig_008","Grimlinghausen_1171"]
["958","Hochsauerlandkreis","008","Bestwig","1504","Heringhausen","Hochsauerlandkreis_958","Bestwig_008","Heringhausen_1504"]
["958","Hochsauerlandkreis","008","Bestwig","1921","Nuttlar","Hochsauerlandkreis_958","Bestwig_008","Nuttlar_1921"]
["958","Hochsauerlandkreis","008","Bestwig","1922","Ostwig","Hochsauerlandkreis_958","Bestwig_008","Ostwig_1922"]
["958","Hochsauerlandkreis","008","Bestwig","1505","Ramsbeck","Hochsauerlandkreis_958","Bestwig_008","Ramsbeck_1505"]
["958","Hochsauerlandkreis","008","Bestwig","1506","Velmede","Hochsauerlandkreis_958","Bestwig_008","Velmede_1506"]
["958","Hochsauerlandkreis","012","Brilon,Stadt","1217","Alme","Hochsauerlandkreis_958","BrilonStadt_012","Alme_1217"]
["958","Hochsauerlandkreis","012","Brilon,Stadt","1162","Altenbüren","Hochsauerlandkreis_958","BrilonStadt_012","Altenbüren_1162"]
["958","Hochsauerlandkreis","012","Brilon,Stadt","1212","Bontkirchen","Hochsauerlandkreis_958","BrilonStadt_012","Bontkirchen_1212"]
["958","Hochsauerlandkreis","012","Brilon,Stadt","1177","Brilon","Hochsauerlandkreis_958","BrilonStadt_012","Brilon_1177"]
["958","Hochsauerlandkreis","012","Brilon,Stadt","1170","Eßhoff","Hochsauerlandkreis_958","BrilonStadt_012","Eßhoff_1170"]
["958","Hochsauerlandkreis","012","Brilon,Stadt","1213","Hoppecke","Hochsauerlandkreis_958","BrilonStadt_012","Hoppecke_1213"]
["958","Hochsauerlandkreis","012","Brilon,Stadt","1214","Madfeld","Hochsauerlandkreis_958","BrilonStadt_012","Madfeld_1214"]
["958","Hochsauerlandkreis","012","Brilon,Stadt","1215","Messinghausen","Hochsauerlandkreis_958","BrilonStadt_012","Messinghausen_1215"]
["958","Hochsauerlandkreis","012","Brilon,Stadt","1216","Nehden","Hochsauerlandkreis_958","BrilonStadt_012","Nehden_1216"]
["958","Hochsauerlandkreis","012","Brilon,Stadt","1219","Radlinghausen","Hochsauerlandkreis_958","BrilonStadt_012","Radlinghausen_1219"]
["958","Hochsauerlandkreis","012","Brilon,Stadt","1220","Rixen","Hochsauerlandkreis_958","BrilonStadt_012","Rixen_1220"]
["958","Hochsauerlandkreis","012","Brilon,Stadt","1221","Rösenbeck","Hochsauerlandkreis_958","BrilonStadt_012","Rösenbeck_1221"]
["958","Hochsauerlandkreis","012","Brilon,Stadt","1222","Scharfenberg","Hochsauerlandkreis_958","BrilonStadt_012","Scharfenberg_1222"]
["958","Hochsauerlandkreis","012","Brilon,Stadt","1223","Thülen","Hochsauerlandkreis_958","BrilonStadt_012","Thülen_1223"]
["958","Hochsauerlandkreis","012","Brilon,Stadt","1224","Wülfte","Hochsauerlandkreis_958","BrilonStadt_012","Wülfte_1224"]
["958","Hochsauerlandkreis","016","Eslohe (Sauerland)","1496","Cobbenrode","Hochsauerlandkreis_958","Eslohe (Sauerland)_016","Cobbenrode_1496"]
["958","Hochsauerlandkreis","016","Eslohe (Sauerland)","1497","Eslohe","Hochsauerlandkreis_958","Eslohe (Sauerland)_016","Eslohe_1497"]
["958","Hochsauerlandkreis","016","Eslohe (Sauerland)","1498","Isingheim","Hochsauerlandkreis_958","Eslohe (Sauerland)_016","Isingheim_1498"]
["958","Hochsauerlandkreis","016","Eslohe (Sauerland)","1527","Landenbeck","Hochsauerlandkreis_958","Eslohe (Sauerland)_016","Landenbeck_1527"]
["958","Hochsauerlandkreis","016","Eslohe (Sauerland)","1499","Reiste","Hochsauerlandkreis_958","Eslohe (Sauerland)_016","Reiste_1499"]
["958","Hochsauerlandkreis","016","Eslohe (Sauerland)","1500","Salwey","Hochsauerlandkreis_958","Eslohe (Sauerland)_016","Salwey_1500"]
["958","Hochsauerlandkreis","016","Eslohe (Sauerland)","1501","Wenholthausen","Hochsauerlandkreis_958","Eslohe (Sauerland)_016","Wenholthausen_1501"]
["958","Hochsauerlandkreis","020","Hallenberg,Stadt","1179","Braunshausen","Hochsauerlandkreis_958","HallenbergStadt_020","Braunshausen_1179"]
["958","Hochsauerlandkreis","020","Hallenberg,Stadt","1178","Hallenberg","Hochsauerlandkreis_958","HallenbergStadt_020","Hallenberg_1178"]
["958","Hochsauerlandkreis","020","Hallenberg,Stadt","1180","Hesborn","Hochsauerlandkreis_958","HallenbergStadt_020","Hesborn_1180"]
["958","Hochsauerlandkreis","020","Hallenberg,Stadt","1181","Liesen","Hochsauerlandkreis_958","HallenbergStadt_020","Liesen_1181"]
["958","Hochsauerlandkreis","024","Marsberg,Stadt","1193","Beringhausen","Hochsauerlandkreis_958","MarsbergStadt_024","Beringhausen_1193"]
["958","Hochsauerlandkreis","024","Marsberg,Stadt","1194","Borntosten","Hochsauerlandkreis_958","MarsbergStadt_024","Borntosten_1194"]
["958","Hochsauerlandkreis","024","Marsberg,Stadt","1912","Bredelar","Hochsauerlandkreis_958","MarsbergStadt_024","Bredelar_1912"]
["958","Hochsauerlandkreis","024","Marsberg,Stadt","1199","Canstein","Hochsauerlandkreis_958","MarsbergStadt_024","Canstein_1199"]
["958","Hochsauerlandkreis","024","Marsberg,Stadt","1195","Erlinghausen","Hochsauerlandkreis_958","MarsbergStadt_024","Erlinghausen_1195"]
["958","Hochsauerlandkreis","024","Marsberg,Stadt","1875","Essentho","Hochsauerlandkreis_958","MarsbergStadt_024","Essentho_1875"]
["958","Hochsauerlandkreis","024","Marsberg,Stadt","1196","Giershagen","Hochsauerlandkreis_958","MarsbergStadt_024","Giershagen_1196"]
["958","Hochsauerlandkreis","024","Marsberg,Stadt","1197","Heddinghausen","Hochsauerlandkreis_958","MarsbergStadt_024","Heddinghausen_1197"]
["958","Hochsauerlandkreis","024","Marsberg,Stadt","1198","Helminghausen","Hochsauerlandkreis_958","MarsbergStadt_024","Helminghausen_1198"]
["958","Hochsauerlandkreis","024","Marsberg,Stadt","1200","Leitmar","Hochsauerlandkreis_958","MarsbergStadt_024","Leitmar_1200"]
["958","Hochsauerlandkreis","024","Marsberg,Stadt","1876","Meerhof","Hochsauerlandkreis_958","MarsbergStadt_024","Meerhof_1876"]
["958","Hochsauerlandkreis","024","Marsberg,Stadt","1201","Niedermarsberg","Hochsauerlandkreis_958","MarsbergStadt_024","Niedermarsberg_1201"]
["958","Hochsauerlandkreis","024","Marsberg,Stadt","1211","Obermarsberg","Hochsauerlandkreis_958","MarsbergStadt_024","Obermarsberg_1211"]
["958","Hochsauerlandkreis","024","Marsberg,Stadt","1877","Oesdorf","Hochsauerlandkreis_958","MarsbergStadt_024","Oesdorf_1877"]
["958","Hochsauerlandkreis","024","Marsberg,Stadt","1202","Padberg","Hochsauerlandkreis_958","MarsbergStadt_024","Padberg_1202"]
["958","Hochsauerlandkreis","024","Marsberg,Stadt","1203","Udorf","Hochsauerlandkreis_958","MarsbergStadt_024","Udorf_1203"]
["958","Hochsauerlandkreis","024","Marsberg,Stadt","1878","Westheim","Hochsauerlandkreis_958","MarsbergStadt_024","Westheim_1878"]
["958","Hochsauerlandkreis","028","Medebach,Stadt","1183","Berge","Hochsauerlandkreis_958","MedebachStadt_028","Berge_1183"]
["958","Hochsauerlandkreis","028","Medebach,Stadt","1184","Deifeld","Hochsauerlandkreis_958","MedebachStadt_028","Deifeld_1184"]
["958","Hochsauerlandkreis","028","Medebach,Stadt","1185","Dreislar","Hochsauerlandkreis_958","MedebachStadt_028","Dreislar_1185"]
["958","Hochsauerlandkreis","028","Medebach,Stadt","1186","Düdinghausen","Hochsauerlandkreis_958","MedebachStadt_028","Düdinghausen_1186"]
["958","Hochsauerlandkreis","028","Medebach,Stadt","1187","Küstelberg","Hochsauerlandkreis_958","MedebachStadt_028","Küstelberg_1187"]
["958","Hochsauerlandkreis","028","Medebach,Stadt","1188","Medebach","Hochsauerlandkreis_958","MedebachStadt_028","Medebach_1188"]
["958","Hochsauerlandkreis","028","Medebach,Stadt","1189","Medelon","Hochsauerlandkreis_958","MedebachStadt_028","Medelon_1189"]
["958","Hochsauerlandkreis","028","Medebach,Stadt","1190","Oberschledorn","Hochsauerlandkreis_958","MedebachStadt_028","Oberschledorn_1190"]
["958","Hochsauerlandkreis","028","Medebach,Stadt","1191","Referinghausen","Hochsauerlandkreis_958","MedebachStadt_028","Referinghausen_1191"]
["958","Hochsauerlandkreis","028","Medebach,Stadt","1192","Titmaringhausen","Hochsauerlandkreis_958","MedebachStadt_028","Titmaringhausen_1192"]
["958","Hochsauerlandkreis","032","Meschede,Stadt","1515","Berge","Hochsauerlandkreis_958","MeschedeStadt_032","Berge_1515"]
["958","Hochsauerlandkreis","032","Meschede,Stadt","1516","Calle","Hochsauerlandkreis_958","MeschedeStadt_032","Calle_1516"]
["958","Hochsauerlandkreis","032","Meschede,Stadt","1517","Drasenbeck","Hochsauerlandkreis_958","MeschedeStadt_032","Drasenbeck_1517"]
["958","Hochsauerlandkreis","032","Meschede,Stadt","1518","Enkhausen","Hochsauerlandkreis_958","MeschedeStadt_032","Enkhausen_1518"]
["958","Hochsauerlandkreis","032","Meschede,Stadt","1502","Eversberg","Hochsauerlandkreis_958","MeschedeStadt_032","Eversberg_1502"]
["958","Hochsauerlandkreis","032","Meschede,Stadt","1045","Freienohl","Hochsauerlandkreis_958","MeschedeStadt_032","Freienohl_1045"]
["958","Hochsauerlandkreis","032","Meschede,Stadt","1046","Grevenstein","Hochsauerlandkreis_958","MeschedeStadt_032","Grevenstein_1046"]
["958","Hochsauerlandkreis","032","Meschede,Stadt","1519","Löllinghausen","Hochsauerlandkreis_958","MeschedeStadt_032","Löllinghausen_1519"]
["958","Hochsauerlandkreis","032","Meschede,Stadt","1520","Meschede-Land","Hochsauerlandkreis_958","MeschedeStadt_032","Meschede-Land_1520"]
["958","Hochsauerlandkreis","032","Meschede,Stadt","1521","Meschede-Stadt","Hochsauerlandkreis_958","MeschedeStadt_032","Meschede-Stadt_1521"]
["958","Hochsauerlandkreis","032","Meschede,Stadt","1522","Remblinghausen","Hochsauerlandkreis_958","MeschedeStadt_032","Remblinghausen_1522"]
["958","Hochsauerlandkreis","032","Meschede,Stadt","1054","Visbeck","Hochsauerlandkreis_958","MeschedeStadt_032","Visbeck_1054"]
["958","Hochsauerlandkreis","032","Meschede,Stadt","1523","Wennemen","Hochsauerlandkreis_958","MeschedeStadt_032","Wennemen_1523"]
["958","Hochsauerlandkreis","036","Olsberg,Stadt","1163","Antfeld","Hochsauerlandkreis_958","OlsbergStadt_036","Antfeld_1163"]
["958","Hochsauerlandkreis","036","Olsberg,Stadt","1164","Assinghausen","Hochsauerlandkreis_958","OlsbergStadt_036","Assinghausen_1164"]
["958","Hochsauerlandkreis","036","Olsberg,Stadt","1165","Bigge","Hochsauerlandkreis_958","OlsbergStadt_036","Bigge_1165"]
["958","Hochsauerlandkreis","036","Olsberg,Stadt","1166","Bruchhausen","Hochsauerlandkreis_958","OlsbergStadt_036","Bruchhausen_1166"]
["958","Hochsauerlandkreis","036","Olsberg,Stadt","1167","Brunskappel","Hochsauerlandkreis_958","OlsbergStadt_036","Brunskappel_1167"]
["958","Hochsauerlandkreis","036","Olsberg,Stadt","1168","Elleringhausen","Hochsauerlandkreis_958","OlsbergStadt_036","Elleringhausen_1168"]
["958","Hochsauerlandkreis","036","Olsberg,Stadt","1169","Elpe","Hochsauerlandkreis_958","OlsbergStadt_036","Elpe_1169"]
["958","Hochsauerlandkreis","036","Olsberg,Stadt","1503","Gevelinghausen","Hochsauerlandkreis_958","OlsbergStadt_036","Gevelinghausen_1503"]
["958","Hochsauerlandkreis","036","Olsberg,Stadt","1172","Helmeringhausen","Hochsauerlandkreis_958","OlsbergStadt_036","Helmeringhausen_1172"]
["958","Hochsauerlandkreis","036","Olsberg,Stadt","1173","Olsberg","Hochsauerlandkreis_958","OlsbergStadt_036","Olsberg_1173"]
["958","Hochsauerlandkreis","036","Olsberg,Stadt","1175","Wiemeringhausen","Hochsauerlandkreis_958","OlsbergStadt_036","Wiemeringhausen_1175"]
["958","Hochsauerlandkreis","036","Olsberg,Stadt","1176","Wulmeringhausen","Hochsauerlandkreis_958","OlsbergStadt_036","Wulmeringhausen_1176"]
["958","Hochsauerlandkreis","040","Schmallenberg,Stadt","1507","Berghausen","Hochsauerlandkreis_958","SchmallenbergStadt_040","Berghausen_1507"]
["958","Hochsauerlandkreis","040","Schmallenberg,Stadt","1508","Bödefeld-Freiheit","Hochsauerlandkreis_958","SchmallenbergStadt_040","Bödefeld-Freiheit_1508"]
["958","Hochsauerlandkreis","040","Schmallenberg,Stadt","1509","Brabecke","Hochsauerlandkreis_958","SchmallenbergStadt_040","Brabecke_1509"]
["958","Hochsauerlandkreis","040","Schmallenberg,Stadt","1524","Bracht","Hochsauerlandkreis_958","SchmallenbergStadt_040","Bracht_1524"]
["958","Hochsauerlandkreis","040","Schmallenberg,Stadt","1510","Dorlar","Hochsauerlandkreis_958","SchmallenbergStadt_040","Dorlar_1510"]
["958","Hochsauerlandkreis","040","Schmallenberg,Stadt","1529","Fleckenberg","Hochsauerlandkreis_958","SchmallenbergStadt_040","Fleckenberg_1529"]
["958","Hochsauerlandkreis","040","Schmallenberg,Stadt","1511","Fredeburg","Hochsauerlandkreis_958","SchmallenbergStadt_040","Fredeburg_1511"]
["958","Hochsauerlandkreis","040","Schmallenberg,Stadt","1512","Gellinghausen","Hochsauerlandkreis_958","SchmallenbergStadt_040","Gellinghausen_1512"]
["958","Hochsauerlandkreis","040","Schmallenberg,Stadt","1525","Grafschaft","Hochsauerlandkreis_958","SchmallenbergStadt_040","Grafschaft_1525"]
["958","Hochsauerlandkreis","040","Schmallenberg,Stadt","1560","Lenne","Hochsauerlandkreis_958","SchmallenbergStadt_040","Lenne_1560"]
["958","Hochsauerlandkreis","040","Schmallenberg,Stadt","1530","Oberkirchen","Hochsauerlandkreis_958","SchmallenbergStadt_040","Oberkirchen_1530"]
["958","Hochsauerlandkreis","040","Schmallenberg,Stadt","1514","Rarbach","Hochsauerlandkreis_958","SchmallenbergStadt_040","Rarbach_1514"]
["958","Hochsauerlandkreis","040","Schmallenberg,Stadt","1531","Schmallenberg","Hochsauerlandkreis_958","SchmallenbergStadt_040","Schmallenberg_1531"]
["958","Hochsauerlandkreis","040","Schmallenberg,Stadt","1533","Werpe","Hochsauerlandkreis_958","SchmallenbergStadt_040","Werpe_1533"]
["958","Hochsauerlandkreis","040","Schmallenberg,Stadt","1535","Wormbach","Hochsauerlandkreis_958","SchmallenbergStadt_040","Wormbach_1535"]
["958","Hochsauerlandkreis","044","Sundern (Sauerland),Stadt","1022","Allendorf","Hochsauerlandkreis_958","Sundern (Sauerland)Stadt_044","Allendorf_1022"]
["958","Hochsauerlandkreis","044","Sundern (Sauerland),Stadt","1043","Altenhellefeld","Hochsauerlandkreis_958","Sundern (Sauerland)Stadt_044","Altenhellefeld_1043"]
["958","Hochsauerlandkreis","044","Sundern (Sauerland),Stadt","1023","Amecke","Hochsauerlandkreis_958","Sundern (Sauerland)Stadt_044","Amecke_1023"]
["958","Hochsauerlandkreis","044","Sundern (Sauerland),Stadt","1024","Endorf","Hochsauerlandkreis_958","Sundern (Sauerland)Stadt_044","Endorf_1024"]
["958","Hochsauerlandkreis","044","Sundern (Sauerland),Stadt","1059","Enkhausen","Hochsauerlandkreis_958","Sundern (Sauerland)Stadt_044","Enkhausen_1059"]
["958","Hochsauerlandkreis","044","Sundern (Sauerland),Stadt","1060","Estinghausen","Hochsauerlandkreis_958","Sundern (Sauerland)Stadt_044","Estinghausen_1060"]
["958","Hochsauerlandkreis","044","Sundern (Sauerland),Stadt","1061","Hachen","Hochsauerlandkreis_958","Sundern (Sauerland)Stadt_044","Hachen_1061"]
["958","Hochsauerlandkreis","044","Sundern (Sauerland),Stadt","1025","Hagen","Hochsauerlandkreis_958","Sundern (Sauerland)Stadt_044","Hagen_1025"]
["958","Hochsauerlandkreis","044","Sundern (Sauerland),Stadt","1047","Hellefeld","Hochsauerlandkreis_958","Sundern (Sauerland)Stadt_044","Hellefeld_1047"]
["958","Hochsauerlandkreis","044","Sundern (Sauerland),Stadt","1048","Herblinghausen","Hochsauerlandkreis_958","Sundern (Sauerland)Stadt_044","Herblinghausen_1048"]
["958","Hochsauerlandkreis","044","Sundern (Sauerland),Stadt","1064","Hövel","Hochsauerlandkreis_958","Sundern (Sauerland)Stadt_044","Hövel_1064"]
["958","Hochsauerlandkreis","044","Sundern (Sauerland),Stadt","1067","Langscheid","Hochsauerlandkreis_958","Sundern (Sauerland)Stadt_044","Langscheid_1067"]
["958","Hochsauerlandkreis","044","Sundern (Sauerland),Stadt","1049","Linnepe","Hochsauerlandkreis_958","Sundern (Sauerland)Stadt_044","Linnepe_1049"]
["958","Hochsauerlandkreis","044","Sundern (Sauerland),Stadt","1050","Meinkenbracht","Hochsauerlandkreis_958","Sundern (Sauerland)Stadt_044","Meinkenbracht_1050"]
["958","Hochsauerlandkreis","044","Sundern (Sauerland),Stadt","1070","Stemel","Hochsauerlandkreis_958","Sundern (Sauerland)Stadt_044","Stemel_1070"]
["958","Hochsauerlandkreis","044","Sundern (Sauerland),Stadt","1027","Stockum","Hochsauerlandkreis_958","Sundern (Sauerland)Stadt_044","Stockum_1027"]
["958","Hochsauerlandkreis","044","Sundern (Sauerland),Stadt","1028","Sundern","Hochsauerlandkreis_958","Sundern (Sauerland)Stadt_044","Sundern_1028"]
["958","Hochsauerlandkreis","044","Sundern (Sauerland),Stadt","1055","Westenfeld","Hochsauerlandkreis_958","Sundern (Sauerland)Stadt_044","Westenfeld_1055"]
["958","Hochsauerlandkreis","044","Sundern (Sauerland),Stadt","1029","Wildewiese","Hochsauerlandkreis_958","Sundern (Sauerland)Stadt_044","Wildewiese_1029"]
["958","Hochsauerlandkreis","048","Winterberg,Stadt","1204","Altastenberg","Hochsauerlandkreis_958","WinterbergStadt_048","Altastenberg_1204"]
["958","Hochsauerlandkreis","048","Winterberg,Stadt","1874","Altenfeld","Hochsauerlandkreis_958","WinterbergStadt_048","Altenfeld_1874"]
["958","Hochsauerlandkreis","048","Winterberg,Stadt","1205","Elkeringhausen","Hochsauerlandkreis_958","WinterbergStadt_048","Elkeringhausen_1205"]
["958","Hochsauerlandkreis","048","Winterberg,Stadt","1206","Grönebach","Hochsauerlandkreis_958","WinterbergStadt_048","Grönebach_1206"]
["958","Hochsauerlandkreis","048","Winterberg,Stadt","1207","Hildfeld","Hochsauerlandkreis_958","WinterbergStadt_048","Hildfeld_1207"]
["958","Hochsauerlandkreis","048","Winterberg,Stadt","1853","Langewiese","Hochsauerlandkreis_958","WinterbergStadt_048","Langewiese_1853"]
["958","Hochsauerlandkreis","048","Winterberg,Stadt","1208","Lenneplätze","Hochsauerlandkreis_958","WinterbergStadt_048","Lenneplätze_1208"]
["958","Hochsauerlandkreis","048","Winterberg,Stadt","1854","Mollseifen","Hochsauerlandkreis_958","WinterbergStadt_048","Mollseifen_1854"]
["958","Hochsauerlandkreis","048","Winterberg,Stadt","1855","Neuastenberg","Hochsauerlandkreis_958","WinterbergStadt_048","Neuastenberg_1855"]
["958","Hochsauerlandkreis","048","Winterberg,Stadt","1209","Niedersfeld","Hochsauerlandkreis_958","WinterbergStadt_048","Niedersfeld_1209"]
["958","Hochsauerlandkreis","048","Winterberg,Stadt","1174","Siedlinghausen","Hochsauerlandkreis_958","WinterbergStadt_048","Siedlinghausen_1174"]
["958","Hochsauerlandkreis","048","Winterberg,Stadt","1210","Silbach","Hochsauerlandkreis_958","WinterbergStadt_048","Silbach_1210"]
["958","Hochsauerlandkreis","048","Winterberg,Stadt","1225","Winterberg","Hochsauerlandkreis_958","WinterbergStadt_048","Winterberg_1225"]
["958","Hochsauerlandkreis","048","Winterberg,Stadt","1182","Züschen","Hochsauerlandkreis_958","WinterbergStadt_048","Züschen_1182"]
["762","Höxter","004","Bad Driburg,Stadt","2302","Alhausen","Höxter_762","Bad DriburgStadt_004","Alhausen_2302"]
["762","Höxter","004","Bad Driburg,Stadt","2307","Bad Driburg","Höxter_762","Bad DriburgStadt_004","Bad Driburg_2307"]
["762","Höxter","004","Bad Driburg,Stadt","2334","Dringenberg","Höxter_762","Bad DriburgStadt_004","Dringenberg_2334"]
["762","Höxter","004","Bad Driburg,Stadt","2341","Erpentrup","Höxter_762","Bad DriburgStadt_004","Erpentrup_2341"]
["762","Höxter","004","Bad Driburg,Stadt","2359","Herste","Höxter_762","Bad DriburgStadt_004","Herste_2359"]
["762","Höxter","004","Bad Driburg,Stadt","2373","Kühlsen","Höxter_762","Bad DriburgStadt_004","Kühlsen_2373"]
["762","Höxter","004","Bad Driburg,Stadt","2374","Langeland","Höxter_762","Bad DriburgStadt_004","Langeland_2374"]
["762","Höxter","004","Bad Driburg,Stadt","2387","Neuenheerse","Höxter_762","Bad DriburgStadt_004","Neuenheerse_2387"]
["762","Höxter","004","Bad Driburg,Stadt","2398","Pömbsen","Höxter_762","Bad DriburgStadt_004","Pömbsen_2398"]
["762","Höxter","004","Bad Driburg,Stadt","2399","Reelsen","Höxter_762","Bad DriburgStadt_004","Reelsen_2399"]
["762","Höxter","008","Beverungen,Stadt","2305","Amelunxen","Höxter_762","BeverungenStadt_008","Amelunxen_2305"]
["762","Höxter","008","Beverungen,Stadt","2311","Beverungen","Höxter_762","BeverungenStadt_008","Beverungen_2311"]
["762","Höxter","008","Beverungen,Stadt","2312","Blankenau","Höxter_762","BeverungenStadt_008","Blankenau_2312"]
["762","Höxter","008","Beverungen,Stadt","2328","Dalhausen","Höxter_762","BeverungenStadt_008","Dalhausen_2328"]
["762","Höxter","008","Beverungen,Stadt","2333","Drenke","Höxter_762","BeverungenStadt_008","Drenke_2333"]
["762","Höxter","008","Beverungen,Stadt","2353","Haarbrück","Höxter_762","BeverungenStadt_008","Haarbrück_2353"]
["762","Höxter","008","Beverungen,Stadt","2360","Herstelle","Höxter_762","BeverungenStadt_008","Herstelle_2360"]
["762","Höxter","008","Beverungen,Stadt","2369","Jakobsberg","Höxter_762","BeverungenStadt_008","Jakobsberg_2369"]
["762","Höxter","008","Beverungen,Stadt","2405","Rothe","Höxter_762","BeverungenStadt_008","Rothe_2405"]
["762","Höxter","008","Beverungen,Stadt","2415","Tietelsen","Höxter_762","BeverungenStadt_008","Tietelsen_2415"]
["762","Höxter","008","Beverungen,Stadt","2419","Wehrden","Höxter_762","BeverungenStadt_008","Wehrden_2419"]
["762","Höxter","008","Beverungen,Stadt","2424","Würgassen","Höxter_762","BeverungenStadt_008","Würgassen_2424"]
["762","Höxter","012","Borgentreich,Stadt","2316","Borgentreich","Höxter_762","BorgentreichStadt_012","Borgentreich_2316"]
["762","Höxter","012","Borgentreich,Stadt","2317","Borgholz","Höxter_762","BorgentreichStadt_012","Borgholz_2317"]
["762","Höxter","012","Borgentreich,Stadt","2326","Bühne","Höxter_762","BorgentreichStadt_012","Bühne_2326"]
["762","Höxter","012","Borgentreich,Stadt","2332","Drankhausen","Höxter_762","BorgentreichStadt_012","Drankhausen_2332"]
["762","Höxter","012","Borgentreich,Stadt","2352","Großeneder","Höxter_762","BorgentreichStadt_012","Großeneder_2352"]
["762","Höxter","012","Borgentreich,Stadt","2371","Körbecke","Höxter_762","BorgentreichStadt_012","Körbecke_2371"]
["762","Höxter","012","Borgentreich,Stadt","2378","Lütgeneder","Höxter_762","BorgentreichStadt_012","Lütgeneder_2378"]
["762","Höxter","012","Borgentreich,Stadt","2380","Manrode","Höxter_762","BorgentreichStadt_012","Manrode_2380"]
["762","Höxter","012","Borgentreich,Stadt","2383","Muddenhagen","Höxter_762","BorgentreichStadt_012","Muddenhagen_2383"]
["762","Höxter","012","Borgentreich,Stadt","2385","Natingen","Höxter_762","BorgentreichStadt_012","Natingen_2385"]
["762","Höxter","012","Borgentreich,Stadt","2386","Natzungen","Höxter_762","BorgentreichStadt_012","Natzungen_2386"]
["762","Höxter","012","Borgentreich,Stadt","2403","Rösebeck","Höxter_762","BorgentreichStadt_012","Rösebeck_2403"]
["762","Höxter","016","Brakel,Stadt","2306","Auenhausen","Höxter_762","BrakelStadt_016","Auenhausen_2306"]
["762","Höxter","016","Brakel,Stadt","2308","Beller","Höxter_762","BrakelStadt_016","Beller_2308"]
["762","Höxter","016","Brakel,Stadt","2309","Bellersen","Höxter_762","BrakelStadt_016","Bellersen_2309"]
["762","Höxter","016","Brakel,Stadt","2314","Bökendorf","Höxter_762","BrakelStadt_016","Bökendorf_2314"]
["762","Höxter","016","Brakel,Stadt","2321","Brakel","Höxter_762","BrakelStadt_016","Brakel_2321"]
["762","Höxter","016","Brakel,Stadt","2340","Erkeln","Höxter_762","BrakelStadt_016","Erkeln_2340"]
["762","Höxter","016","Brakel,Stadt","2345","Frohnhausen","Höxter_762","BrakelStadt_016","Frohnhausen_2345"]
["762","Höxter","016","Brakel,Stadt","2347","Gehrden","Höxter_762","BrakelStadt_016","Gehrden_2347"]
["762","Höxter","016","Brakel,Stadt","2355","Hampenhausen","Höxter_762","BrakelStadt_016","Hampenhausen_2355"]
["762","Höxter","016","Brakel,Stadt","2357","Hembsen","Höxter_762","BrakelStadt_016","Hembsen_2357"]
["762","Höxter","016","Brakel,Stadt","2362","Hinnenburg","Höxter_762","BrakelStadt_016","Hinnenburg_2362"]
["762","Höxter","016","Brakel,Stadt","2368","Istrup","Höxter_762","BrakelStadt_016","Istrup_2368"]
["762","Höxter","016","Brakel,Stadt","2400","Rheder","Höxter_762","BrakelStadt_016","Rheder_2400"]
["762","Höxter","016","Brakel,Stadt","2401","Riesel","Höxter_762","BrakelStadt_016","Riesel_2401"]
["762","Höxter","016","Brakel,Stadt","2408","Schmechten","Höxter_762","BrakelStadt_016","Schmechten_2408"]
["762","Höxter","016","Brakel,Stadt","2411","Siddessen","Höxter_762","BrakelStadt_016","Siddessen_2411"]
["762","Höxter","020","Höxter,Stadt","2301","Albaxen","Höxter_762","HöxterStadt_020","Albaxen_2301"]
["762","Höxter","020","Höxter,Stadt","2313","Bödexen","Höxter_762","HöxterStadt_020","Bödexen_2313"]
["762","Höxter","020","Höxter,Stadt","2320","Bosseborn","Höxter_762","HöxterStadt_020","Bosseborn_2320"]
["762","Höxter","020","Höxter,Stadt","2324","Brenkhausen","Höxter_762","HöxterStadt_020","Brenkhausen_2324"]
["762","Höxter","020","Höxter,Stadt","2325","Bruchhausen","Höxter_762","HöxterStadt_020","Bruchhausen_2325"]
["762","Höxter","020","Höxter,Stadt","2346","Fürstenau","Höxter_762","HöxterStadt_020","Fürstenau_2346"]
["762","Höxter","020","Höxter,Stadt","2349","Godelheim","Höxter_762","HöxterStadt_020","Godelheim_2349"]
["762","Höxter","020","Höxter,Stadt","2363","Höxter","Höxter_762","HöxterStadt_020","Höxter_2363"]
["762","Höxter","020","Höxter,Stadt","2377","Lüchtringen","Höxter_762","HöxterStadt_020","Lüchtringen_2377"]
["762","Höxter","020","Höxter,Stadt","2379","Lütmarsen","Höxter_762","HöxterStadt_020","Lütmarsen_2379"]
["762","Höxter","020","Höxter,Stadt","2393","Ottbergen","Höxter_762","HöxterStadt_020","Ottbergen_2393"]
["762","Höxter","020","Höxter,Stadt","2395","Ovenhausen","Höxter_762","HöxterStadt_020","Ovenhausen_2395"]
["762","Höxter","020","Höxter,Stadt","2413","Stahle","Höxter_762","HöxterStadt_020","Stahle_2413"]
["762","Höxter","024","Marienmünster,Stadt","2303","Altenbergen","Höxter_762","MarienmünsterStadt_024","Altenbergen_2303"]
["762","Höxter","024","Marienmünster,Stadt","2319","Born","Höxter_762","MarienmünsterStadt_024","Born_2319"]
["762","Höxter","024","Marienmünster,Stadt","2322","Bredenborn","Höxter_762","MarienmünsterStadt_024","Bredenborn_2322"]
["762","Höxter","024","Marienmünster,Stadt","2323","Bremerberg","Höxter_762","MarienmünsterStadt_024","Bremerberg_2323"]
["762","Höxter","024","Marienmünster,Stadt","2336","Eilversen","Höxter_762","MarienmünsterStadt_024","Eilversen_2336"]
["762","Höxter","024","Marienmünster,Stadt","2351","Großenbreden","Höxter_762","MarienmünsterStadt_024","Großenbreden_2351"]
["762","Höxter","024","Marienmünster,Stadt","2364","Hohehaus","Höxter_762","MarienmünsterStadt_024","Hohehaus_2364"]
["762","Höxter","024","Marienmünster,Stadt","2370","Kleinenbreden","Höxter_762","MarienmünsterStadt_024","Kleinenbreden_2370"]
["762","Höxter","024","Marienmünster,Stadt","2372","Kollerbeck","Höxter_762","MarienmünsterStadt_024","Kollerbeck_2372"]
["762","Höxter","024","Marienmünster,Stadt","2376","Löwendorf","Höxter_762","MarienmünsterStadt_024","Löwendorf_2376"]
["762","Höxter","024","Marienmünster,Stadt","2384","Münsterbrock","Höxter_762","MarienmünsterStadt_024","Münsterbrock_2384"]
["762","Höxter","024","Marienmünster,Stadt","2396","Papenhöfen","Höxter_762","MarienmünsterStadt_024","Papenhöfen_2396"]
["762","Höxter","024","Marienmünster,Stadt","2417","Vörden","Höxter_762","MarienmünsterStadt_024","Vörden_2417"]
["762","Höxter","028","Nieheim,Stadt","2339","Entrup","Höxter_762","NieheimStadt_028","Entrup_2339"]
["762","Höxter","028","Nieheim,Stadt","2342","Erwitzen","Höxter_762","NieheimStadt_028","Erwitzen_2342"]
["762","Höxter","028","Nieheim,Stadt","2343","Eversen","Höxter_762","NieheimStadt_028","Eversen_2343"]
["762","Höxter","028","Nieheim,Stadt","2361","Himmighausen","Höxter_762","NieheimStadt_028","Himmighausen_2361"]
["762","Höxter","028","Nieheim,Stadt","2366","Holzhausen","Höxter_762","NieheimStadt_028","Holzhausen_2366"]
["762","Höxter","028","Nieheim,Stadt","2382","Merlsheim","Höxter_762","NieheimStadt_028","Merlsheim_2382"]
["762","Höxter","028","Nieheim,Stadt","2388","Nieheim","Höxter_762","NieheimStadt_028","Nieheim_2388"]
["762","Höxter","028","Nieheim,Stadt","2391","Oeynhausen","Höxter_762","NieheimStadt_028","Oeynhausen_2391"]
["762","Höxter","028","Nieheim,Stadt","2409","Schönenberg","Höxter_762","NieheimStadt_028","Schönenberg_2409"]
["762","Höxter","028","Nieheim,Stadt","2412","Sommersell","Höxter_762","NieheimStadt_028","Sommersell_2412"]
["762","Höxter","032","Steinheim,Stadt","2310","Bergheim","Höxter_762","SteinheimStadt_032","Bergheim_2310"]
["762","Höxter","032","Steinheim,Stadt","2335","Eichholz","Höxter_762","SteinheimStadt_032","Eichholz_2335"]
["762","Höxter","032","Steinheim,Stadt","2350","Grevenhagen","Höxter_762","SteinheimStadt_032","Grevenhagen_2350"]
["762","Höxter","032","Steinheim,Stadt","2354","Hagedorn","Höxter_762","SteinheimStadt_032","Hagedorn_2354"]
["762","Höxter","032","Steinheim,Stadt","2394","Ottenhausen","Höxter_762","SteinheimStadt_032","Ottenhausen_2394"]
["762","Höxter","032","Steinheim,Stadt","2404","Rolfzen","Höxter_762","SteinheimStadt_032","Rolfzen_2404"]
["762","Höxter","032","Steinheim,Stadt","2406","Sandebeck","Höxter_762","SteinheimStadt_032","Sandebeck_2406"]
["762","Höxter","032","Steinheim,Stadt","2414","Steinheim","Höxter_762","SteinheimStadt_032","Steinheim_2414"]
["762","Höxter","032","Steinheim,Stadt","2416","Vinsebeck","Höxter_762","SteinheimStadt_032","Vinsebeck_2416"]
["762","Höxter","036","Warburg,Stadt","2315","Bonenburg","Höxter_762","WarburgStadt_036","Bonenburg_2315"]
["762","Höxter","036","Warburg,Stadt","2327","Calenberg","Höxter_762","WarburgStadt_036","Calenberg_2327"]
["762","Höxter","036","Warburg,Stadt","2329","Dalheim","Höxter_762","WarburgStadt_036","Dalheim_2329"]
["762","Höxter","036","Warburg,Stadt","2330","Daseburg","Höxter_762","WarburgStadt_036","Daseburg_2330"]
["762","Höxter","036","Warburg,Stadt","2331","Dössel","Höxter_762","WarburgStadt_036","Dössel_2331"]
["762","Höxter","036","Warburg,Stadt","2348","Germete","Höxter_762","WarburgStadt_036","Germete_2348"]
["762","Höxter","036","Warburg,Stadt","2358","Herlinghausen","Höxter_762","WarburgStadt_036","Herlinghausen_2358"]
["762","Höxter","036","Warburg,Stadt","2365","Hohenwepel","Höxter_762","WarburgStadt_036","Hohenwepel_2365"]
["762","Höxter","036","Warburg,Stadt","2381","Menne","Höxter_762","WarburgStadt_036","Menne_2381"]
["762","Höxter","036","Warburg,Stadt","2390","Nörde","Höxter_762","WarburgStadt_036","Nörde_2390"]
["762","Höxter","036","Warburg,Stadt","2392","Ossendorf","Höxter_762","WarburgStadt_036","Ossendorf_2392"]
["762","Höxter","036","Warburg,Stadt","2402","Rimbeck","Höxter_762","WarburgStadt_036","Rimbeck_2402"]
["762","Höxter","036","Warburg,Stadt","2407","Scherfede","Höxter_762","WarburgStadt_036","Scherfede_2407"]
["762","Höxter","036","Warburg,Stadt","2418","Warburg","Höxter_762","WarburgStadt_036","Warburg_2418"]
["762","Höxter","036","Warburg,Stadt","2420","Welda","Höxter_762","WarburgStadt_036","Welda_2420"]
["762","Höxter","036","Warburg,Stadt","2423","Wormeln","Höxter_762","WarburgStadt_036","Wormeln_2423"]
["762","Höxter","040","Willebadessen,Stadt","2304","Altenheerse","Höxter_762","WillebadessenStadt_040","Altenheerse_2304"]
["762","Höxter","040","Willebadessen,Stadt","2318","Borlinghausen","Höxter_762","WillebadessenStadt_040","Borlinghausen_2318"]
["762","Höxter","040","Willebadessen,Stadt","2337","Eissen","Höxter_762","WillebadessenStadt_040","Eissen_2337"]
["762","Höxter","040","Willebadessen,Stadt","2338","Engar","Höxter_762","WillebadessenStadt_040","Engar_2338"]
["762","Höxter","040","Willebadessen,Stadt","2344","Fölsen","Höxter_762","WillebadessenStadt_040","Fölsen_2344"]
["762","Höxter","040","Willebadessen,Stadt","2356","Helmern","Höxter_762","WillebadessenStadt_040","Helmern_2356"]
["762","Höxter","040","Willebadessen,Stadt","2367","Ikenhausen","Höxter_762","WillebadessenStadt_040","Ikenhausen_2367"]
["762","Höxter","040","Willebadessen,Stadt","2375","Löwen","Höxter_762","WillebadessenStadt_040","Löwen_2375"]
["762","Höxter","040","Willebadessen,Stadt","2389","Niesen","Höxter_762","WillebadessenStadt_040","Niesen_2389"]
["762","Höxter","040","Willebadessen,Stadt","2397","Peckelsheim","Höxter_762","WillebadessenStadt_040","Peckelsheim_2397"]
["762","Höxter","040","Willebadessen,Stadt","2410","Schweckhausen","Höxter_762","WillebadessenStadt_040","Schweckhausen_2410"]
["762","Höxter","040","Willebadessen,Stadt","2421","Willebadessen","Höxter_762","WillebadessenStadt_040","Willebadessen_2421"]
["762","Höxter","040","Willebadessen,Stadt","2422","Willegassen","Höxter_762","WillebadessenStadt_040","Willegassen_2422"]
["154","Kleve","004","Bedburg-Hau","3480","Hau","Kleve_154","Bedburg-Hau_004","Hau_3480"]
["154","Kleve","004","Bedburg-Hau","3019","Huisberden","Kleve_154","Bedburg-Hau_004","Huisberden_3019"]
["154","Kleve","004","Bedburg-Hau","3039","Louisendorf","Kleve_154","Bedburg-Hau_004","Louisendorf_3039"]
["154","Kleve","004","Bedburg-Hau","3040","Schneppenbaum","Kleve_154","Bedburg-Hau_004","Schneppenbaum_3040"]
["154","Kleve","004","Bedburg-Hau","3041","Till-Moyland","Kleve_154","Bedburg-Hau_004","Till-Moyland_3041"]
["154","Kleve","008","Emmerich,Stadt","3366","Borghees","Kleve_154","EmmerichStadt_008","Borghees_3366"]
["154","Kleve","008","Emmerich,Stadt","3405","Dornick","Kleve_154","EmmerichStadt_008","Dornick_3405"]
["154","Kleve","008","Emmerich,Stadt","3367","Elten","Kleve_154","EmmerichStadt_008","Elten_3367"]
["154","Kleve","008","Emmerich,Stadt","3370","Emmerich","Kleve_154","EmmerichStadt_008","Emmerich_3370"]
["154","Kleve","008","Emmerich,Stadt","3369","Hüthum","Kleve_154","EmmerichStadt_008","Hüthum_3369"]
["154","Kleve","008","Emmerich,Stadt","3371","Klein-Netterden","Kleve_154","EmmerichStadt_008","Klein-Netterden_3371"]
["154","Kleve","008","Emmerich,Stadt","3407","Praest","Kleve_154","EmmerichStadt_008","Praest_3407"]
["154","Kleve","008","Emmerich,Stadt","3408","Vrasselt","Kleve_154","EmmerichStadt_008","Vrasselt_3408"]
["154","Kleve","012","Geldern,Stadt","3163","Geldern","Kleve_154","GeldernStadt_012","Geldern_3163"]
["154","Kleve","012","Geldern,Stadt","3162","Kapellen","Kleve_154","GeldernStadt_012","Kapellen_3162"]
["154","Kleve","012","Geldern,Stadt","3176","Pont","Kleve_154","GeldernStadt_012","Pont_3176"]
["154","Kleve","012","Geldern,Stadt","3177","Veert","Kleve_154","GeldernStadt_012","Veert_3177"]
["154","Kleve","012","Geldern,Stadt","3179","Vernum","Kleve_154","GeldernStadt_012","Vernum_3179"]
["154","Kleve","012","Geldern,Stadt","3182","Walbeck","Kleve_154","GeldernStadt_012","Walbeck_3182"]
["154","Kleve","016","Goch,Stadt","3006","Asperden","Kleve_154","GochStadt_016","Asperden_3006"]
["154","Kleve","016","Goch,Stadt","3015","Goch","Kleve_154","GochStadt_016","Goch_3015"]
["154","Kleve","016","Goch,Stadt","3007","Hassum","Kleve_154","GochStadt_016","Hassum_3007"]
["154","Kleve","016","Goch,Stadt","3008","Hommersum","Kleve_154","GochStadt_016","Hommersum_3008"]
["154","Kleve","016","Goch,Stadt","3009","Hülm","Kleve_154","GochStadt_016","Hülm_3009"]
["154","Kleve","016","Goch,Stadt","3032","Kessel","Kleve_154","GochStadt_016","Kessel_3032"]
["154","Kleve","016","Goch,Stadt","3482","Nergena","Kleve_154","GochStadt_016","Nergena_3482"]
["154","Kleve","016","Goch,Stadt","3483","Nierswalde","Kleve_154","GochStadt_016","Nierswalde_3483"]
["154","Kleve","016","Goch,Stadt","3038","Pfalzdorf","Kleve_154","GochStadt_016","Pfalzdorf_3038"]
["154","Kleve","020","Issum","3165","Issum","Kleve_154","Issum_020","Issum_3165"]
["154","Kleve","020","Issum","3178","Sevelen","Kleve_154","Issum_020","Sevelen_3178"]
["154","Kleve","024","Kalkar,Stadt","3010","Altkalkar","Kleve_154","KalkarStadt_024","Altkalkar_3010"]
["154","Kleve","024","Kalkar,Stadt","3002","Appeldorn","Kleve_154","KalkarStadt_024","Appeldorn_3002"]
["154","Kleve","024","Kalkar,Stadt","3016","Bylerward","Kleve_154","KalkarStadt_024","Bylerward_3016"]
["154","Kleve","024","Kalkar,Stadt","3017","Emmericher-Eyland","Kleve_154","KalkarStadt_024","Emmericher-Eyland_3017"]
["154","Kleve","024","Kalkar,Stadt","3018","Grieth","Kleve_154","KalkarStadt_024","Grieth_3018"]
["154","Kleve","024","Kalkar,Stadt","3003","Hanselaer","Kleve_154","KalkarStadt_024","Hanselaer_3003"]
["154","Kleve","024","Kalkar,Stadt","3004","Hönnepel","Kleve_154","KalkarStadt_024","Hönnepel_3004"]
["154","Kleve","024","Kalkar,Stadt","3011","Kalkar","Kleve_154","KalkarStadt_024","Kalkar_3011"]
["154","Kleve","024","Kalkar,Stadt","3012","Neulouisendorf","Kleve_154","KalkarStadt_024","Neulouisendorf_3012"]
["154","Kleve","024","Kalkar,Stadt","3005","Niedermörmter","Kleve_154","KalkarStadt_024","Niedermörmter_3005"]
["154","Kleve","024","Kalkar,Stadt","3020","Wissel","Kleve_154","KalkarStadt_024","Wissel_3020"]
["154","Kleve","024","Kalkar,Stadt","3021","Wisselward","Kleve_154","KalkarStadt_024","Wisselward_3021"]
["154","Kleve","028","Kerken","3160","Aldekerk","Kleve_154","Kerken_028","Aldekerk_3160"]
["154","Kleve","028","Kerken","3175","Eyll","Kleve_154","Kerken_028","Eyll_3175"]
["154","Kleve","028","Kerken","3174","Nieukerk","Kleve_154","Kerken_028","Nieukerk_3174"]
["154","Kleve","028","Kerken","3161","Stenden","Kleve_154","Kerken_028","Stenden_3161"]
["154","Kleve","032","Kevelaer,Stadt","3167","Kervendonk","Kleve_154","KevelaerStadt_032","Kervendonk_3167"]
["154","Kleve","032","Kevelaer,Stadt","3166","Kervenheim","Kleve_154","KevelaerStadt_032","Kervenheim_3166"]
["154","Kleve","032","Kevelaer,Stadt","3169","Kevelaer","Kleve_154","KevelaerStadt_032","Kevelaer_3169"]
["154","Kleve","032","Kevelaer,Stadt","3170","Klein Kevelaer","Kleve_154","KevelaerStadt_032","Klein Kevelaer_3170"]
["154","Kleve","032","Kevelaer,Stadt","3171","Twisteden","Kleve_154","KevelaerStadt_032","Twisteden_3171"]
["154","Kleve","032","Kevelaer,Stadt","3172","Wetten","Kleve_154","KevelaerStadt_032","Wetten_3172"]
["154","Kleve","032","Kevelaer,Stadt","3168","Winnekendonk","Kleve_154","KevelaerStadt_032","Winnekendonk_3168"]
["154","Kleve","036","Kleve,Stadt","3473","Bimmen","Kleve_154","KleveStadt_036","Bimmen_3473"]
["154","Kleve","036","Kleve,Stadt","3022","Brienen","Kleve_154","KleveStadt_036","Brienen_3022"]
["154","Kleve","036","Kleve,Stadt","3033","Donsbrüggen","Kleve_154","KleveStadt_036","Donsbrüggen_3033"]
["154","Kleve","036","Kleve,Stadt","3474","Düffelward","Kleve_154","KleveStadt_036","Düffelward_3474"]
["154","Kleve","036","Kleve,Stadt","3023","Griethausen","Kleve_154","KleveStadt_036","Griethausen_3023"]
["154","Kleve","036","Kleve,Stadt","3475","Hurendeich","Kleve_154","KleveStadt_036","Hurendeich_3475"]
["154","Kleve","036","Kleve,Stadt","3029","Keeken","Kleve_154","KleveStadt_036","Keeken_3029"]
["154","Kleve","036","Kleve,Stadt","3024","Kellen","Kleve_154","KleveStadt_036","Kellen_3024"]
["154","Kleve","036","Kleve,Stadt","3013","Kleve","Kleve_154","KleveStadt_036","Kleve_3013"]
["154","Kleve","036","Kleve,Stadt","3479","Materborn","Kleve_154","KleveStadt_036","Materborn_3479"]
["154","Kleve","036","Kleve,Stadt","3481","Reichswalde","Kleve_154","KleveStadt_036","Reichswalde_3481"]
["154","Kleve","036","Kleve,Stadt","3030","Rindern","Kleve_154","KleveStadt_036","Rindern_3030"]
["154","Kleve","036","Kleve,Stadt","3025","Salmorth","Kleve_154","KleveStadt_036","Salmorth_3025"]
["154","Kleve","036","Kleve,Stadt","3026","Schenkenschanz","Kleve_154","KleveStadt_036","Schenkenschanz_3026"]
["154","Kleve","036","Kleve,Stadt","3027","Warbeyen","Kleve_154","KleveStadt_036","Warbeyen_3027"]
["154","Kleve","036","Kleve,Stadt","3028","Wardhausen","Kleve_154","KleveStadt_036","Wardhausen_3028"]
["154","Kleve","040","Kranenburg","3478","Frasselt","Kleve_154","Kranenburg_040","Frasselt_3478"]
["154","Kleve","040","Kranenburg","3014","Kranenburg","Kleve_154","Kranenburg_040","Kranenburg_3014"]
["154","Kleve","040","Kranenburg","3034","Mehr","Kleve_154","Kranenburg_040","Mehr_3034"]
["154","Kleve","040","Kranenburg","3035","Niel","Kleve_154","Kranenburg_040","Niel_3035"]
["154","Kleve","040","Kranenburg","3477","Nütterden","Kleve_154","Kranenburg_040","Nütterden_3477"]
["154","Kleve","040","Kranenburg","3036","Wyler","Kleve_154","Kranenburg_040","Wyler_3036"]
["154","Kleve","040","Kranenburg","3037","Zyfflich","Kleve_154","Kranenburg_040","Zyfflich_3037"]
["154","Kleve","044","Rees,Stadt","3385","Bergswick","Kleve_154","ReesStadt_044","Bergswick_3385"]
["154","Kleve","044","Rees,Stadt","3404","Bienen","Kleve_154","ReesStadt_044","Bienen_3404"]
["154","Kleve","044","Rees,Stadt","3380","Empel","Kleve_154","ReesStadt_044","Empel_3380"]
["154","Kleve","044","Rees,Stadt","3386","Esserden","Kleve_154","ReesStadt_044","Esserden_3386"]
["154","Kleve","044","Rees,Stadt","3406","Grietherbusch","Kleve_154","ReesStadt_044","Grietherbusch_3406"]
["154","Kleve","044","Rees,Stadt","3476","Grietherort","Kleve_154","ReesStadt_044","Grietherort_3476"]
["154","Kleve","044","Rees,Stadt","3372","Groin","Kleve_154","ReesStadt_044","Groin_3372"]
["154","Kleve","044","Rees,Stadt","3373","Haffen-Mehr","Kleve_154","ReesStadt_044","Haffen-Mehr_3373"]
["154","Kleve","044","Rees,Stadt","3374","Haldern","Kleve_154","ReesStadt_044","Haldern_3374"]
["154","Kleve","044","Rees,Stadt","3375","Heeren-Herken","Kleve_154","ReesStadt_044","Heeren-Herken_3375"]
["154","Kleve","044","Rees,Stadt","3381","Millingen","Kleve_154","ReesStadt_044","Millingen_3381"]
["154","Kleve","044","Rees,Stadt","3384","Rees","Kleve_154","ReesStadt_044","Rees_3384"]
["154","Kleve","044","Rees,Stadt","3387","Reesereyland","Kleve_154","ReesStadt_044","Reesereyland_3387"]
["154","Kleve","044","Rees,Stadt","3388","Reeserward","Kleve_154","ReesStadt_044","Reeserward_3388"]
["154","Kleve","044","Rees,Stadt","3389","Speldrop","Kleve_154","ReesStadt_044","Speldrop_3389"]
["154","Kleve","048","Rheurdt","3328","Rheurdt","Kleve_154","Rheurdt_048","Rheurdt_3328"]
["154","Kleve","048","Rheurdt","3330","Schaephuysen","Kleve_154","Rheurdt_048","Schaephuysen_3330"]
["154","Kleve","052","Straelen,Stadt","3183","Herongen","Kleve_154","StraelenStadt_052","Herongen_3183"]
["154","Kleve","052","Straelen,Stadt","3180","Straelen","Kleve_154","StraelenStadt_052","Straelen_3180"]
["154","Kleve","056","Uedem","3031","Keppeln","Kleve_154","Uedem_056","Keppeln_3031"]
["154","Kleve","056","Uedem","3042","Uedem","Kleve_154","Uedem_056","Uedem_3042"]
["154","Kleve","056","Uedem","3484","Uedemerbruch","Kleve_154","Uedem_056","Uedemerbruch_3484"]
["154","Kleve","056","Uedem","3043","Uedemerfeld","Kleve_154","Uedem_056","Uedemerfeld_3043"]
["154","Kleve","060","Wachtendonk","3181","Wachtendonk","Kleve_154","Wachtendonk_060","Wachtendonk_3181"]
["154","Kleve","060","Wachtendonk","3184","Wankum","Kleve_154","Wachtendonk_060","Wankum_3184"]
["154","Kleve","064","Weeze","3185","Kalbeck","Kleve_154","Weeze_064","Kalbeck_3185"]
["154","Kleve","064","Weeze","3186","Weeze","Kleve_154","Weeze_064","Weeze_3186"]
["154","Kleve","064","Weeze","3187","Wissen","Kleve_154","Weeze_064","Wissen_3187"]
["315","Köln,Stadt","000","Köln,Stadt","4978","Rath","KölnStadt_315","KölnStadt_000","Rath_4978"]
["114","Krefeld,Stadt","000","Krefeld,Stadt","3244","Hüls","KrefeldStadt_114","KrefeldStadt_000","Hüls_3244"]
["114","Krefeld,Stadt","000","Krefeld,Stadt","3047","Traar","KrefeldStadt_114","KrefeldStadt_000","Traar_3047"]
["316","Leverkusen,Stadt","000","Leverkusen,Stadt","4608","Steinbüchel","LeverkusenStadt_316","LeverkusenStadt_000","Steinbüchel_4608"]
["766","Lippe","004","Augustdorf","2017","Augustdorf","Lippe_766","Augustdorf_004","Augustdorf_2017"]
["766","Lippe","008","Bad Salzuflen,Stadt","2008","Bad Salzuflen","Lippe_766","Bad SalzuflenStadt_008","Bad Salzuflen_2008"]
["766","Lippe","008","Bad Salzuflen,Stadt","2032","Biemsen-Ahmsen","Lippe_766","Bad SalzuflenStadt_008","Biemsen-Ahmsen_2032"]
["766","Lippe","008","Bad Salzuflen,Stadt","2055","Ehrsen-Breden","Lippe_766","Bad SalzuflenStadt_008","Ehrsen-Breden_2055"]
["766","Lippe","008","Bad Salzuflen,Stadt","2067","Grastrup-Hölsen","Lippe_766","Bad SalzuflenStadt_008","Grastrup-Hölsen_2067"]
["766","Lippe","008","Bad Salzuflen,Stadt","2097","Holzhausen","Lippe_766","Bad SalzuflenStadt_008","Holzhausen_2097"]
["766","Lippe","008","Bad Salzuflen,Stadt","2130","Lockhausen","Lippe_766","Bad SalzuflenStadt_008","Lockhausen_2130"]
["766","Lippe","008","Bad Salzuflen,Stadt","2162","Papenhausen","Lippe_766","Bad SalzuflenStadt_008","Papenhausen_2162"]
["766","Lippe","008","Bad Salzuflen,Stadt","2168","Retzen","Lippe_766","Bad SalzuflenStadt_008","Retzen_2168"]
["766","Lippe","008","Bad Salzuflen,Stadt","2009","Schötmar","Lippe_766","Bad SalzuflenStadt_008","Schötmar_2009"]
["766","Lippe","008","Bad Salzuflen,Stadt","2218","Werl-Aspe","Lippe_766","Bad SalzuflenStadt_008","Werl-Aspe_2218"]
["766","Lippe","008","Bad Salzuflen,Stadt","2225","Wülfer-Bexten","Lippe_766","Bad SalzuflenStadt_008","Wülfer-Bexten_2225"]
["766","Lippe","008","Bad Salzuflen,Stadt","2226","Wüsten","Lippe_766","Bad SalzuflenStadt_008","Wüsten_2226"]
["766","Lippe","012","Barntrup,Stadt","2013","Alverdissen","Lippe_766","BarntrupStadt_012","Alverdissen_2013"]
["766","Lippe","012","Barntrup,Stadt","2001","Barntrup","Lippe_766","BarntrupStadt_012","Barntrup_2001"]
["766","Lippe","012","Barntrup,Stadt","2188","Selbeck","Lippe_766","BarntrupStadt_012","Selbeck_2188"]
["766","Lippe","012","Barntrup,Stadt","2194","Sommersell","Lippe_766","BarntrupStadt_012","Sommersell_2194"]
["766","Lippe","012","Barntrup,Stadt","2195","Sonneborn","Lippe_766","BarntrupStadt_012","Sonneborn_2195"]
["766","Lippe","016","Blomberg,Stadt","2012","Altendonop","Lippe_766","BlombergStadt_016","Altendonop_2012"]
["766","Lippe","016","Blomberg,Stadt","2002","Blomberg","Lippe_766","BlombergStadt_016","Blomberg_2002"]
["766","Lippe","016","Blomberg,Stadt","2036","Borkhausen","Lippe_766","BlombergStadt_016","Borkhausen_2036"]
["766","Lippe","016","Blomberg,Stadt","2046","Brüntrup","Lippe_766","BlombergStadt_016","Brüntrup_2046"]
["766","Lippe","016","Blomberg,Stadt","2047","Cappel","Lippe_766","BlombergStadt_016","Cappel_2047"]
["766","Lippe","016","Blomberg,Stadt","2049","Dalborn","Lippe_766","BlombergStadt_016","Dalborn_2049"]
["766","Lippe","016","Blomberg,Stadt","2051","Donop","Lippe_766","BlombergStadt_016","Donop_2051"]
["766","Lippe","016","Blomberg,Stadt","2059","Eschenbruch","Lippe_766","BlombergStadt_016","Eschenbruch_2059"]
["766","Lippe","016","Blomberg,Stadt","2071","Großenmarpe","Lippe_766","BlombergStadt_016","Großenmarpe_2071"]
["766","Lippe","016","Blomberg,Stadt","2085","Herrentrup","Lippe_766","BlombergStadt_016","Herrentrup_2085"]
["766","Lippe","016","Blomberg,Stadt","2092","Höntrup","Lippe_766","BlombergStadt_016","Höntrup_2092"]
["766","Lippe","016","Blomberg,Stadt","2107","Istrup","Lippe_766","BlombergStadt_016","Istrup_2107"]
["766","Lippe","016","Blomberg,Stadt","2112","Kleinenmarpe","Lippe_766","BlombergStadt_016","Kleinenmarpe_2112"]
["766","Lippe","016","Blomberg,Stadt","2139","Maspe","Lippe_766","BlombergStadt_016","Maspe_2139"]
["766","Lippe","016","Blomberg,Stadt","2145","Mossenberg-Wöhren","Lippe_766","BlombergStadt_016","Mossenberg-Wöhren_2145"]
["766","Lippe","016","Blomberg,Stadt","2166","Reelkirchen","Lippe_766","BlombergStadt_016","Reelkirchen_2166"]
["766","Lippe","016","Blomberg,Stadt","2189","Siebenhöfen","Lippe_766","BlombergStadt_016","Siebenhöfen_2189"]
["766","Lippe","016","Blomberg,Stadt","2200","Tintrup","Lippe_766","BlombergStadt_016","Tintrup_2200"]
["766","Lippe","016","Blomberg,Stadt","2215","Wellentrup","Lippe_766","BlombergStadt_016","Wellentrup_2215"]
["766","Lippe","020","Detmold,Stadt","2018","Barkhausen","Lippe_766","DetmoldStadt_020","Barkhausen_2018"]
["766","Lippe","020","Detmold,Stadt","2027","Bentrup","Lippe_766","DetmoldStadt_020","Bentrup_2027"]
["766","Lippe","020","Detmold,Stadt","2030","Berlebeck","Lippe_766","DetmoldStadt_020","Berlebeck_2030"]
["766","Lippe","020","Detmold,Stadt","2043","Brokhausen","Lippe_766","DetmoldStadt_020","Brokhausen_2043"]
["766","Lippe","020","Detmold,Stadt","2050","Dehlentrup","Lippe_766","DetmoldStadt_020","Dehlentrup_2050"]
["766","Lippe","020","Detmold,Stadt","2003","Detmold","Lippe_766","DetmoldStadt_020","Detmold_2003"]
["766","Lippe","020","Detmold,Stadt","2073","Hakedahl","Lippe_766","DetmoldStadt_020","Hakedahl_2073"]
["766","Lippe","020","Detmold,Stadt","2081","Heidenoldendorf","Lippe_766","DetmoldStadt_020","Heidenoldendorf_2081"]
["766","Lippe","020","Detmold,Stadt","2082","Heiligenkirchen","Lippe_766","DetmoldStadt_020","Heiligenkirchen_2082"]
["766","Lippe","020","Detmold,Stadt","2090","Hiddesen","Lippe_766","DetmoldStadt_020","Hiddesen_2090"]
["766","Lippe","020","Detmold,Stadt","2101","Hornoldendorf","Lippe_766","DetmoldStadt_020","Hornoldendorf_2101"]
["766","Lippe","020","Detmold,Stadt","2108","Jerxen-Orbke","Lippe_766","DetmoldStadt_020","Jerxen-Orbke_2108"]
["766","Lippe","020","Detmold,Stadt","2123","Leistrup-Meiersfeld","Lippe_766","DetmoldStadt_020","Leistrup-Meiersfeld_2123"]
["766","Lippe","020","Detmold,Stadt","2132","Loßbruch","Lippe_766","DetmoldStadt_020","Loßbruch_2132"]
["766","Lippe","020","Detmold,Stadt","2144","Mosebeck","Lippe_766","DetmoldStadt_020","Mosebeck_2144"]
["766","Lippe","020","Detmold,Stadt","2149","Niederschönhagen","Lippe_766","DetmoldStadt_020","Niederschönhagen_2149"]
["766","Lippe","020","Detmold,Stadt","2150","Nienhagen","Lippe_766","DetmoldStadt_020","Nienhagen_2150"]
["766","Lippe","020","Detmold,Stadt","2153","Niewald","Lippe_766","DetmoldStadt_020","Niewald_2153"]
["766","Lippe","020","Detmold,Stadt","2154","Oberschönhagen","Lippe_766","DetmoldStadt_020","Oberschönhagen_2154"]
["766","Lippe","020","Detmold,Stadt","2159","Oettern-Bremke","Lippe_766","DetmoldStadt_020","Oettern-Bremke_2159"]
["766","Lippe","020","Detmold,Stadt","2163","Pivitsheide V.H.","Lippe_766","DetmoldStadt_020","Pivitsheide V.H._2163"]
["766","Lippe","020","Detmold,Stadt","2164","Pivitsheide V.L.","Lippe_766","DetmoldStadt_020","Pivitsheide V.L._2164"]
["766","Lippe","020","Detmold,Stadt","2167","Remmighausen","Lippe_766","DetmoldStadt_020","Remmighausen_2167"]
["766","Lippe","020","Detmold,Stadt","2179","Schönemark","Lippe_766","DetmoldStadt_020","Schönemark_2179"]
["766","Lippe","020","Detmold,Stadt","2196","Spork-Eichholz","Lippe_766","DetmoldStadt_020","Spork-Eichholz_2196"]
["766","Lippe","020","Detmold,Stadt","2204","Vahlhausen","Lippe_766","DetmoldStadt_020","Vahlhausen_2204"]
["766","Lippe","024","Dörentrup","2022","Bega","Lippe_766","Dörentrup_024","Bega_2022"]
["766","Lippe","024","Dörentrup","2091","Hillentrup","Lippe_766","Dörentrup_024","Hillentrup_2091"]
["766","Lippe","024","Dörentrup","2104","Humfeld","Lippe_766","Dörentrup_024","Humfeld_2104"]
["766","Lippe","024","Dörentrup","2185","Schwelentrup","Lippe_766","Dörentrup_024","Schwelentrup_2185"]
["766","Lippe","024","Dörentrup","2217","Wendlinghausen","Lippe_766","Dörentrup_024","Wendlinghausen_2217"]
["766","Lippe","028","Extertal","2011","Almena","Lippe_766","Extertal_028","Almena_2011"]
["766","Lippe","028","Extertal","2016","Asmissen","Lippe_766","Extertal_028","Asmissen_2016"]
["766","Lippe","028","Extertal","2035","Bösingfeld","Lippe_766","Extertal_028","Bösingfeld_2035"]
["766","Lippe","028","Extertal","2042","Bremke","Lippe_766","Extertal_028","Bremke_2042"]
["766","Lippe","028","Extertal","2066","Göstrup","Lippe_766","Extertal_028","Göstrup_2066"]
["766","Lippe","028","Extertal","2118","Kükenbruch","Lippe_766","Extertal_028","Kükenbruch_2118"]
["766","Lippe","028","Extertal","2121","Laßbruch","Lippe_766","Extertal_028","Laßbruch_2121"]
["766","Lippe","028","Extertal","2141","Meierberg","Lippe_766","Extertal_028","Meierberg_2141"]
["766","Lippe","028","Extertal","2147","Nalhof","Lippe_766","Extertal_028","Nalhof_2147"]
["766","Lippe","028","Extertal","2170","Rott","Lippe_766","Extertal_028","Rott_2170"]
["766","Lippe","028","Extertal","2180","Schönhagen","Lippe_766","Extertal_028","Schönhagen_2180"]
["766","Lippe","028","Extertal","2193","Silixen","Lippe_766","Extertal_028","Silixen_2193"]
["766","Lippe","032","Horn-Bad Meinberg,Stadt","2142","Bad Meinberg","Lippe_766","Horn-Bad MeinbergStadt_032","Bad Meinberg_2142"]
["766","Lippe","032","Horn-Bad Meinberg,Stadt","2023","Belle","Lippe_766","Horn-Bad MeinbergStadt_032","Belle_2023"]
["766","Lippe","032","Horn-Bad Meinberg,Stadt","2024","Bellenberg","Lippe_766","Horn-Bad MeinbergStadt_032","Bellenberg_2024"]
["766","Lippe","032","Horn-Bad Meinberg,Stadt","2033","Billerbeck","Lippe_766","Horn-Bad MeinbergStadt_032","Billerbeck_2033"]
["766","Lippe","032","Horn-Bad Meinberg,Stadt","2065","Fromhausen","Lippe_766","Horn-Bad MeinbergStadt_032","Fromhausen_2065"]
["766","Lippe","032","Horn-Bad Meinberg,Stadt","2078","Heesten","Lippe_766","Horn-Bad MeinbergStadt_032","Heesten_2078"]
["766","Lippe","032","Horn-Bad Meinberg,Stadt","2098","Holzhausen-Externsteine","Lippe_766","Horn-Bad MeinbergStadt_032","Holzhausen-Externsteine_2098"]
["766","Lippe","032","Horn-Bad Meinberg,Stadt","2004","Horn","Lippe_766","Horn-Bad MeinbergStadt_032","Horn_2004"]
["766","Lippe","032","Horn-Bad Meinberg,Stadt","2228","Kempenfeldrom","Lippe_766","Horn-Bad MeinbergStadt_032","Kempenfeldrom_2228"]
["766","Lippe","032","Horn-Bad Meinberg,Stadt","2126","Leopoldstal","Lippe_766","Horn-Bad MeinbergStadt_032","Leopoldstal_2126"]
["766","Lippe","032","Horn-Bad Meinberg,Stadt","2178","Schmedissen","Lippe_766","Horn-Bad MeinbergStadt_032","Schmedissen_2178"]
["766","Lippe","032","Horn-Bad Meinberg,Stadt","2205","Vahlhausen","Lippe_766","Horn-Bad MeinbergStadt_032","Vahlhausen_2205"]
["766","Lippe","032","Horn-Bad Meinberg,Stadt","2208","Veldrom","Lippe_766","Horn-Bad MeinbergStadt_032","Veldrom_2208"]
["766","Lippe","032","Horn-Bad Meinberg,Stadt","2213","Wehren","Lippe_766","Horn-Bad MeinbergStadt_032","Wehren_2213"]
["766","Lippe","036","Kalletal","2015","Asendorf","Lippe_766","Kalletal_036","Asendorf_2015"]
["766","Lippe","036","Kalletal","2020","Bavenhausen","Lippe_766","Kalletal_036","Bavenhausen_2020"]
["766","Lippe","036","Kalletal","2026","Bentorf","Lippe_766","Kalletal_036","Bentorf_2026"]
["766","Lippe","036","Kalletal","2044","Brosen","Lippe_766","Kalletal_036","Brosen_2044"]
["766","Lippe","036","Kalletal","2058","Erder","Lippe_766","Kalletal_036","Erder_2058"]
["766","Lippe","036","Kalletal","2079","Heidelbeck","Lippe_766","Kalletal_036","Heidelbeck_2079"]
["766","Lippe","036","Kalletal","2083","Henstorf","Lippe_766","Kalletal_036","Henstorf_2083"]
["766","Lippe","036","Kalletal","2095","Hohenhausen","Lippe_766","Kalletal_036","Hohenhausen_2095"]
["766","Lippe","036","Kalletal","2110","Kalldorf","Lippe_766","Kalletal_036","Kalldorf_2110"]
["766","Lippe","036","Kalletal","2120","Langenholzhausen","Lippe_766","Kalletal_036","Langenholzhausen_2120"]
["766","Lippe","036","Kalletal","2134","Lüdenhausen","Lippe_766","Kalletal_036","Lüdenhausen_2134"]
["766","Lippe","036","Kalletal","2161","Osterhagen","Lippe_766","Kalletal_036","Osterhagen_2161"]
["766","Lippe","036","Kalletal","2197","Stemmen","Lippe_766","Kalletal_036","Stemmen_2197"]
["766","Lippe","036","Kalletal","2199","Talle","Lippe_766","Kalletal_036","Talle_2199"]
["766","Lippe","036","Kalletal","2207","Varenholz","Lippe_766","Kalletal_036","Varenholz_2207"]
["766","Lippe","036","Kalletal","2219","Westorf","Lippe_766","Kalletal_036","Westorf_2219"]
["766","Lippe","040","Lage,Stadt","2034","Billinghausen","Lippe_766","LageStadt_040","Billinghausen_2034"]
["766","Lippe","040","Lage,Stadt","2054","Ehrentrup","Lippe_766","LageStadt_040","Ehrentrup_2054"]
["766","Lippe","040","Lage,Stadt","2072","Hagen","Lippe_766","LageStadt_040","Hagen_2072"]
["766","Lippe","040","Lage,Stadt","2074","Hardissen","Lippe_766","LageStadt_040","Hardissen_2074"]
["766","Lippe","040","Lage,Stadt","2077","Hedderhagen","Lippe_766","LageStadt_040","Hedderhagen_2077"]
["766","Lippe","040","Lage,Stadt","2080","Heiden","Lippe_766","LageStadt_040","Heiden_2080"]
["766","Lippe","040","Lage,Stadt","2086","Heßloh","Lippe_766","LageStadt_040","Heßloh_2086"]
["766","Lippe","040","Lage,Stadt","2093","Hörste","Lippe_766","LageStadt_040","Hörste_2093"]
["766","Lippe","040","Lage,Stadt","2214","Kachtenhausen","Lippe_766","LageStadt_040","Kachtenhausen_2214"]
["766","Lippe","040","Lage,Stadt","2005","Lage","Lippe_766","LageStadt_040","Lage_2005"]
["766","Lippe","040","Lage,Stadt","2146","Müssen","Lippe_766","LageStadt_040","Müssen_2146"]
["766","Lippe","040","Lage,Stadt","2160","Ohrsen","Lippe_766","LageStadt_040","Ohrsen_2160"]
["766","Lippe","040","Lage,Stadt","2165","Pottenhausen","Lippe_766","LageStadt_040","Pottenhausen_2165"]
["766","Lippe","040","Lage,Stadt","2210","Waddenhausen","Lippe_766","LageStadt_040","Waddenhausen_2210"]
["766","Lippe","040","Lage,Stadt","2222","Wissentrup","Lippe_766","LageStadt_040","Wissentrup_2222"]
["766","Lippe","044","Lemgo,Stadt","2039","Brake","Lippe_766","LemgoStadt_044","Brake_2039"]
["766","Lippe","044","Lemgo,Stadt","2045","Brüntorf","Lippe_766","LemgoStadt_044","Brüntorf_2045"]
["766","Lippe","044","Lemgo,Stadt","2057","Entrup","Lippe_766","LemgoStadt_044","Entrup_2057"]
["766","Lippe","044","Lemgo,Stadt","2094","Hörstmar","Lippe_766","LemgoStadt_044","Hörstmar_2094"]
["766","Lippe","044","Lemgo,Stadt","2122","Leese","Lippe_766","LemgoStadt_044","Leese_2122"]
["766","Lippe","044","Lemgo,Stadt","2006","Lemgo","Lippe_766","LemgoStadt_044","Lemgo_2006"]
["766","Lippe","044","Lemgo,Stadt","2127","Lieme","Lippe_766","LemgoStadt_044","Lieme_2127"]
["766","Lippe","044","Lemgo,Stadt","2136","Lüerdissen","Lippe_766","LemgoStadt_044","Lüerdissen_2136"]
["766","Lippe","044","Lemgo,Stadt","2140","Matorf-Kirchheide","Lippe_766","LemgoStadt_044","Matorf-Kirchheide_2140"]
["766","Lippe","044","Lemgo,Stadt","2201","Trophagen","Lippe_766","LemgoStadt_044","Trophagen_2201"]
["766","Lippe","044","Lemgo,Stadt","2209","Voßheide","Lippe_766","LemgoStadt_044","Voßheide_2209"]
["766","Lippe","044","Lemgo,Stadt","2212","Wahmbeck","Lippe_766","LemgoStadt_044","Wahmbeck_2212"]
["766","Lippe","044","Lemgo,Stadt","2216","Welstorf","Lippe_766","LemgoStadt_044","Welstorf_2216"]
["766","Lippe","044","Lemgo,Stadt","2220","Wiembeck","Lippe_766","LemgoStadt_044","Wiembeck_2220"]
["766","Lippe","048","Leopoldshöhe","2014","Asemissen","Lippe_766","Leopoldshöhe_048","Asemissen_2014"]
["766","Lippe","048","Leopoldshöhe","2021","Bechterdissen","Lippe_766","Leopoldshöhe_048","Bechterdissen_2021"]
["766","Lippe","048","Leopoldshöhe","2031","Bexterhagen","Lippe_766","Leopoldshöhe_048","Bexterhagen_2031"]
["766","Lippe","048","Leopoldshöhe","2068","Greste","Lippe_766","Leopoldshöhe_048","Greste_2068"]
["766","Lippe","048","Leopoldshöhe","2117","Krentrup","Lippe_766","Leopoldshöhe_048","Krentrup_2117"]
["766","Lippe","048","Leopoldshöhe","2125","Leopoldshöhe","Lippe_766","Leopoldshöhe_048","Leopoldshöhe_2125"]
["766","Lippe","048","Leopoldshöhe","2151","Nienhagen","Lippe_766","Leopoldshöhe_048","Nienhagen_2151"]
["766","Lippe","048","Leopoldshöhe","2183","Schuckenbaum","Lippe_766","Leopoldshöhe_048","Schuckenbaum_2183"]
["766","Lippe","052","Lügde,Stadt","2056","Elbrinxen","Lippe_766","LügdeStadt_052","Elbrinxen_2056"]
["766","Lippe","052","Lügde,Stadt","2062","Falkenhagen","Lippe_766","LügdeStadt_052","Falkenhagen_2062"]
["766","Lippe","052","Lügde,Stadt","2227","Harzberg","Lippe_766","LügdeStadt_052","Harzberg_2227"]
["766","Lippe","052","Lügde,Stadt","2105","Hummersen","Lippe_766","LügdeStadt_052","Hummersen_2105"]
["766","Lippe","052","Lügde,Stadt","2114","Köterberg","Lippe_766","LügdeStadt_052","Köterberg_2114"]
["766","Lippe","052","Lügde,Stadt","2229","Lügde","Lippe_766","LügdeStadt_052","Lügde_2229"]
["766","Lippe","052","Lügde,Stadt","2152","Niese","Lippe_766","LügdeStadt_052","Niese_2152"]
["766","Lippe","052","Lügde,Stadt","2169","Rischenau","Lippe_766","LügdeStadt_052","Rischenau_2169"]
["766","Lippe","052","Lügde,Stadt","2172","Sabbenhausen","Lippe_766","LügdeStadt_052","Sabbenhausen_2172"]
["766","Lippe","052","Lügde,Stadt","2224","Wörderfeld","Lippe_766","LügdeStadt_052","Wörderfeld_2224"]
["766","Lippe","056","Oerlinghausen,Stadt","2211","Helpup","Lippe_766","OerlinghausenStadt_056","Helpup_2211"]
["766","Lippe","056","Oerlinghausen,Stadt","2129","Lipperreihe","Lippe_766","OerlinghausenStadt_056","Lipperreihe_2129"]
["766","Lippe","056","Oerlinghausen,Stadt","2007","Oerlinghausen","Lippe_766","OerlinghausenStadt_056","Oerlinghausen_2007"]
["766","Lippe","060","Schieder-Schwalenberg,Stad","2040","Brakelsiek","Lippe_766","Schieder-SchwalenbergStad_060","Brakelsiek_2040"]
["766","Lippe","060","Schieder-Schwalenberg,Stad","2133","Lothe","Lippe_766","Schieder-SchwalenbergStad_060","Lothe_2133"]
["766","Lippe","060","Schieder-Schwalenberg,Stad","2171","Ruensiek","Lippe_766","Schieder-SchwalenbergStad_060","Ruensiek_2171"]
["766","Lippe","060","Schieder-Schwalenberg,Stad","2175","Schieder","Lippe_766","Schieder-SchwalenbergStad_060","Schieder_2175"]
["766","Lippe","060","Schieder-Schwalenberg,Stad","2010","Schwalenberg","Lippe_766","Schieder-SchwalenbergStad_060","Schwalenberg_2010"]
["766","Lippe","060","Schieder-Schwalenberg,Stad","2191","Siekholz","Lippe_766","Schieder-SchwalenbergStad_060","Siekholz_2191"]
["766","Lippe","060","Schieder-Schwalenberg,Stad","2223","Wöbbel","Lippe_766","Schieder-SchwalenbergStad_060","Wöbbel_2223"]
["766","Lippe","064","Schlangen","2115","Kohlstädt","Lippe_766","Schlangen_064","Kohlstädt_2115"]
["766","Lippe","064","Schlangen","2158","Oesterholz","Lippe_766","Schlangen_064","Oesterholz_2158"]
["766","Lippe","064","Schlangen","2177","Schlangen","Lippe_766","Schlangen_064","Schlangen_2177"]
["962","Märkischer Kreis","004","Altena,Stadt","1004","Altena","Märkischer Kreis_962","AltenaStadt_004","Altena_1004"]
["962","Märkischer Kreis","004","Altena,Stadt","1014","Dahle","Märkischer Kreis_962","AltenaStadt_004","Dahle_1014"]
["962","Märkischer Kreis","004","Altena,Stadt","1421","Evingsen","Märkischer Kreis_962","AltenaStadt_004","Evingsen_1421"]
["962","Märkischer Kreis","008","Balve,Stadt","1034","Balve","Märkischer Kreis_962","BalveStadt_008","Balve_1034"]
["962","Märkischer Kreis","008","Balve,Stadt","1035","Beckum","Märkischer Kreis_962","BalveStadt_008","Beckum_1035"]
["962","Märkischer Kreis","008","Balve,Stadt","1037","Eisborn","Märkischer Kreis_962","BalveStadt_008","Eisborn_1037"]
["962","Märkischer Kreis","008","Balve,Stadt","1038","Garbeck","Märkischer Kreis_962","BalveStadt_008","Garbeck_1038"]
["962","Märkischer Kreis","008","Balve,Stadt","1040","Langenholthausen","Märkischer Kreis_962","BalveStadt_008","Langenholthausen_1040"]
["962","Märkischer Kreis","008","Balve,Stadt","1041","Mellen","Märkischer Kreis_962","BalveStadt_008","Mellen_1041"]
["962","Märkischer Kreis","008","Balve,Stadt","1042","Volkringhausen","Märkischer Kreis_962","BalveStadt_008","Volkringhausen_1042"]
["962","Märkischer Kreis","012","Halver,Stadt","1005","Halver","Märkischer Kreis_962","HalverStadt_012","Halver_1005"]
["962","Märkischer Kreis","016","Hemer,Stadt","1943","Becke","Märkischer Kreis_962","HemerStadt_016","Becke_1943"]
["962","Märkischer Kreis","016","Hemer,Stadt","1420","Deilinghofen","Märkischer Kreis_962","HemerStadt_016","Deilinghofen_1420"]
["962","Märkischer Kreis","016","Hemer,Stadt","1422","Frönsberg","Märkischer Kreis_962","HemerStadt_016","Frönsberg_1422"]
["962","Märkischer Kreis","016","Hemer,Stadt","1426","Hemer","Märkischer Kreis_962","HemerStadt_016","Hemer_1426"]
["962","Märkischer Kreis","016","Hemer,Stadt","1423","Ihmert","Märkischer Kreis_962","HemerStadt_016","Ihmert_1423"]
["962","Märkischer Kreis","020","Herscheid","1006","Herscheid","Märkischer Kreis_962","Herscheid_020","Herscheid_1006"]
["962","Märkischer Kreis","024","Iserlohn,Stadt","1418","Hennen","Märkischer Kreis_962","IserlohnStadt_024","Hennen_1418"]
["962","Märkischer Kreis","024","Iserlohn,Stadt","1429","Iserlohn","Märkischer Kreis_962","IserlohnStadt_024","Iserlohn_1429"]
["962","Märkischer Kreis","024","Iserlohn,Stadt","1424","Kesbern","Märkischer Kreis_962","IserlohnStadt_024","Kesbern_1424"]
["962","Märkischer Kreis","024","Iserlohn,Stadt","1431","Letmathe","Märkischer Kreis_962","IserlohnStadt_024","Letmathe_1431"]
["962","Märkischer Kreis","024","Iserlohn,Stadt","1425","Lössel","Märkischer Kreis_962","IserlohnStadt_024","Lössel_1425"]
["962","Märkischer Kreis","024","Iserlohn,Stadt","1433","Oestrich","Märkischer Kreis_962","IserlohnStadt_024","Oestrich_1433"]
["962","Märkischer Kreis","024","Iserlohn,Stadt","1439","Sümmern","Märkischer Kreis_962","IserlohnStadt_024","Sümmern_1439"]
["962","Märkischer Kreis","028","Kierspe,Stadt","1007","Kierspe","Märkischer Kreis_962","KierspeStadt_028","Kierspe_1007"]
["962","Märkischer Kreis","028","Kierspe,Stadt","1008","Rönsahl","Märkischer Kreis_962","KierspeStadt_028","Rönsahl_1008"]
["962","Märkischer Kreis","032","Lüdenscheid,Stadt","1010","Lüdenscheid-Land","Märkischer Kreis_962","LüdenscheidStadt_032","Lüdenscheid-Land_1010"]
["962","Märkischer Kreis","032","Lüdenscheid,Stadt","1011","Lüdenscheid-Stadt","Märkischer Kreis_962","LüdenscheidStadt_032","Lüdenscheid-Stadt_1011"]
["962","Märkischer Kreis","036","Meinerzhagen,Stadt","1012","Meinerzhagen","Märkischer Kreis_962","MeinerzhagenStadt_036","Meinerzhagen_1012"]
["962","Märkischer Kreis","036","Meinerzhagen,Stadt","1013","Valbert","Märkischer Kreis_962","MeinerzhagenStadt_036","Valbert_1013"]
["962","Märkischer Kreis","040","Menden (Sauerland),Stadt","1033","Asbeck","Märkischer Kreis_962","Menden (Sauerland)Stadt_040","Asbeck_1033"]
["962","Märkischer Kreis","040","Menden (Sauerland),Stadt","1436","Bösperde","Märkischer Kreis_962","Menden (Sauerland)Stadt_040","Bösperde_1436"]
["962","Märkischer Kreis","040","Menden (Sauerland),Stadt","1435","Halingen","Märkischer Kreis_962","Menden (Sauerland)Stadt_040","Halingen_1435"]
["962","Märkischer Kreis","040","Menden (Sauerland),Stadt","1434","Lendringsen","Märkischer Kreis_962","Menden (Sauerland)Stadt_040","Lendringsen_1434"]
["962","Märkischer Kreis","040","Menden (Sauerland),Stadt","1441","Menden","Märkischer Kreis_962","Menden (Sauerland)Stadt_040","Menden_1441"]
["962","Märkischer Kreis","040","Menden (Sauerland),Stadt","1437","Oesbern","Märkischer Kreis_962","Menden (Sauerland)Stadt_040","Oesbern_1437"]
["962","Märkischer Kreis","040","Menden (Sauerland),Stadt","1438","Schwitten","Märkischer Kreis_962","Menden (Sauerland)Stadt_040","Schwitten_1438"]
["962","Märkischer Kreis","044","Nachrodt-Wiblingwerde","1003","Nachrodt-Wiblingwerde","Märkischer Kreis_962","Nachrodt-Wiblingwerde_044","Nachrodt-Wiblingwerde_1003"]
["962","Märkischer Kreis","048","Neuenrade,Stadt","1031","Affeln","Märkischer Kreis_962","NeuenradeStadt_048","Affeln_1031"]
["962","Märkischer Kreis","048","Neuenrade,Stadt","1032","Altenaffeln","Märkischer Kreis_962","NeuenradeStadt_048","Altenaffeln_1032"]
["962","Märkischer Kreis","048","Neuenrade,Stadt","1036","Blintrop","Märkischer Kreis_962","NeuenradeStadt_048","Blintrop_1036"]
["962","Märkischer Kreis","048","Neuenrade,Stadt","1039","Küntrop","Märkischer Kreis_962","NeuenradeStadt_048","Küntrop_1039"]
["962","Märkischer Kreis","048","Neuenrade,Stadt","1015","Neuenrade","Märkischer Kreis_962","NeuenradeStadt_048","Neuenrade_1015"]
["962","Märkischer Kreis","052","Plettenberg,Stadt","1018","Dankelmert","Märkischer Kreis_962","PlettenbergStadt_052","Dankelmert_1018"]
["962","Märkischer Kreis","052","Plettenberg,Stadt","1019","Eiringhausen","Märkischer Kreis_962","PlettenbergStadt_052","Eiringhausen_1019"]
["962","Märkischer Kreis","052","Plettenberg,Stadt","1020","Holthausen","Märkischer Kreis_962","PlettenbergStadt_052","Holthausen_1020"]
["962","Märkischer Kreis","052","Plettenberg,Stadt","1016","Ohle","Märkischer Kreis_962","PlettenbergStadt_052","Ohle_1016"]
["962","Märkischer Kreis","052","Plettenberg,Stadt","1021","Plettenberg","Märkischer Kreis_962","PlettenbergStadt_052","Plettenberg_1021"]
["962","Märkischer Kreis","056","Schalksmühle","1009","Hülscheid","Märkischer Kreis_962","Schalksmühle_056","Hülscheid_1009"]
["962","Märkischer Kreis","056","Schalksmühle","1920","Schalksmühle","Märkischer Kreis_962","Schalksmühle_056","Schalksmühle_1920"]
["962","Märkischer Kreis","060","Werdohl,Stadt","1017","Werdohl","Märkischer Kreis_962","WerdohlStadt_060","Werdohl_1017"]
["158","Mettmann","024","Mettmann,Stadt","3281","Mettmann","Mettmann_158","MettmannStadt_024","Mettmann_3281"]
["158","Mettmann","024","Mettmann,Stadt","3124","Metzkausen","Mettmann_158","MettmannStadt_024","Metzkausen_3124"]
["158","Mettmann","028","Ratingen,Stadt","3131","Breitscheid","Mettmann_158","RatingenStadt_028","Breitscheid_3131"]
["158","Mettmann","028","Ratingen,Stadt","3112","Eggerscheidt","Mettmann_158","RatingenStadt_028","Eggerscheidt_3112"]
["158","Mettmann","028","Ratingen,Stadt","3262","Hasselbeck","Mettmann_158","RatingenStadt_028","Hasselbeck_3262"]
["158","Mettmann","028","Ratingen,Stadt","3113","Homberg","Mettmann_158","RatingenStadt_028","Homberg_3113"]
["158","Mettmann","028","Ratingen,Stadt","3103","Lintorf","Mettmann_158","RatingenStadt_028","Lintorf_3103"]
["158","Mettmann","028","Ratingen,Stadt","3123","Meiersberg","Mettmann_158","RatingenStadt_028","Meiersberg_3123"]
["158","Mettmann","032","Velbert,Stadt","3298","Bleiberg","Mettmann_158","VelbertStadt_032","Bleiberg_3298"]
["158","Mettmann","032","Velbert,Stadt","3265","Kuhlendahl","Mettmann_158","VelbertStadt_032","Kuhlendahl_3265"]
["158","Mettmann","032","Velbert,Stadt","3280","Langenberg","Mettmann_158","VelbertStadt_032","Langenberg_3280"]
["158","Mettmann","032","Velbert,Stadt","3299","Niederbonsfeld","Mettmann_158","VelbertStadt_032","Niederbonsfeld_3299"]
["158","Mettmann","032","Velbert,Stadt","3270","Nordrath","Mettmann_158","VelbertStadt_032","Nordrath_3270"]
["158","Mettmann","032","Velbert,Stadt","3300","Oberbonsfeld","Mettmann_158","VelbertStadt_032","Oberbonsfeld_3300"]
["158","Mettmann","032","Velbert,Stadt","3067","Untensiebeneick","Mettmann_158","VelbertStadt_032","Untensiebeneick_3067"]
["158","Mettmann","032","Velbert,Stadt","3252","Windrath","Mettmann_158","VelbertStadt_032","Windrath_3252"]
["158","Mettmann","036","Wülfrath,Stadt","3421","Flandersbach","Mettmann_158","WülfrathStadt_036","Flandersbach_3421"]
["158","Mettmann","036","Wülfrath,Stadt","3422","Oberdüssel","Mettmann_158","WülfrathStadt_036","Oberdüssel_3422"]
["158","Mettmann","036","Wülfrath,Stadt","3301","Unterdüssel","Mettmann_158","WülfrathStadt_036","Unterdüssel_3301"]
["770","Minden-Lübbecke","004","Bad Oeynhausen,Stadt","2706","Bad Oeynhausen","Minden-Lübbecke_770","Bad OeynhausenStadt_004","Bad Oeynhausen_2706"]
["770","Minden-Lübbecke","004","Bad Oeynhausen,Stadt","2717","Dehme","Minden-Lübbecke_770","Bad OeynhausenStadt_004","Dehme_2717"]
["770","Minden-Lübbecke","004","Bad Oeynhausen,Stadt","2724","Eidinghausen","Minden-Lübbecke_770","Bad OeynhausenStadt_004","Eidinghausen_2724"]
["770","Minden-Lübbecke","004","Bad Oeynhausen,Stadt","2769","Lohe","Minden-Lübbecke_770","Bad OeynhausenStadt_004","Lohe_2769"]
["770","Minden-Lübbecke","004","Bad Oeynhausen,Stadt","2796","Rehme","Minden-Lübbecke_770","Bad OeynhausenStadt_004","Rehme_2796"]
["770","Minden-Lübbecke","004","Bad Oeynhausen,Stadt","2818","Volmerdingsen","Minden-Lübbecke_770","Bad OeynhausenStadt_004","Volmerdingsen_2818"]
["770","Minden-Lübbecke","004","Bad Oeynhausen,Stadt","2822","Werste","Minden-Lübbecke_770","Bad OeynhausenStadt_004","Werste_2822"]
["770","Minden-Lübbecke","004","Bad Oeynhausen,Stadt","2827","Wulferdingsen","Minden-Lübbecke_770","Bad OeynhausenStadt_004","Wulferdingsen_2827"]
["770","Minden-Lübbecke","008","Espelkamp,Stadt","2729","Espelkamp","Minden-Lübbecke_770","EspelkampStadt_008","Espelkamp_2729"]
["770","Minden-Lübbecke","008","Espelkamp,Stadt","2730","Fabbenstedt","Minden-Lübbecke_770","EspelkampStadt_008","Fabbenstedt_2730"]
["770","Minden-Lübbecke","008","Espelkamp,Stadt","2702","Fiestel-Gestringen","Minden-Lübbecke_770","EspelkampStadt_008","Fiestel-Gestringen_2702"]
["770","Minden-Lübbecke","008","Espelkamp,Stadt","2733","Frotheim","Minden-Lübbecke_770","EspelkampStadt_008","Frotheim_2733"]
["770","Minden-Lübbecke","008","Espelkamp,Stadt","2759","Isenstedt","Minden-Lübbecke_770","EspelkampStadt_008","Isenstedt_2759"]
["770","Minden-Lübbecke","008","Espelkamp,Stadt","2810","Schmalge","Minden-Lübbecke_770","EspelkampStadt_008","Schmalge_2810"]
["770","Minden-Lübbecke","008","Espelkamp,Stadt","2815","Vehlage","Minden-Lübbecke_770","EspelkampStadt_008","Vehlage_2815"]
["770","Minden-Lübbecke","012","Hille","2723","Eickhorst","Minden-Lübbecke_770","Hille_012","Eickhorst_2723"]
["770","Minden-Lübbecke","012","Hille","2744","Hartum","Minden-Lübbecke_770","Hille_012","Hartum_2744"]
["770","Minden-Lübbecke","012","Hille","2748","Hille","Minden-Lübbecke_770","Hille_012","Hille_2748"]
["770","Minden-Lübbecke","012","Hille","2753","Holzhausen Ii","Minden-Lübbecke_770","Hille_012","Holzhausen Ii_2753"]
["770","Minden-Lübbecke","012","Hille","2782","Nordhemmern","Minden-Lübbecke_770","Hille_012","Nordhemmern_2782"]
["770","Minden-Lübbecke","012","Hille","2784","Oberlübbe","Minden-Lübbecke_770","Hille_012","Oberlübbe_2784"]
["770","Minden-Lübbecke","012","Hille","2798","Rothenuffeln","Minden-Lübbecke_770","Hille_012","Rothenuffeln_2798"]
["770","Minden-Lübbecke","012","Hille","2806","Südhemmern","Minden-Lübbecke_770","Hille_012","Südhemmern_2806"]
["770","Minden-Lübbecke","012","Hille","2813","Unterlübbe","Minden-Lübbecke_770","Hille_012","Unterlübbe_2813"]
["770","Minden-Lübbecke","016","Hüllhorst","2701","Ahlsen","Minden-Lübbecke_770","Hüllhorst_016","Ahlsen_2701"]
["770","Minden-Lübbecke","016","Hüllhorst","2712","Bröderhausen","Minden-Lübbecke_770","Hüllhorst_016","Bröderhausen_2712"]
["770","Minden-Lübbecke","016","Hüllhorst","2714","Büttendorf","Minden-Lübbecke_770","Hüllhorst_016","Büttendorf_2714"]
["770","Minden-Lübbecke","016","Hüllhorst","2749","Holsen","Minden-Lübbecke_770","Hüllhorst_016","Holsen_2749"]
["770","Minden-Lübbecke","016","Hüllhorst","2754","Huchzen","Minden-Lübbecke_770","Hüllhorst_016","Huchzen_2754"]
["770","Minden-Lübbecke","016","Hüllhorst","2755","Hüllhorst","Minden-Lübbecke_770","Hüllhorst_016","Hüllhorst_2755"]
["770","Minden-Lübbecke","016","Hüllhorst","2783","Oberbauerschaft","Minden-Lübbecke_770","Hüllhorst_016","Oberbauerschaft_2783"]
["770","Minden-Lübbecke","016","Hüllhorst","2800","Schnathorst","Minden-Lübbecke_770","Hüllhorst_016","Schnathorst_2800"]
["770","Minden-Lübbecke","016","Hüllhorst","2808","Tengern","Minden-Lübbecke_770","Hüllhorst_016","Tengern_2808"]
["770","Minden-Lübbecke","020","Lübbecke,Stadt","2703","Alswede","Minden-Lübbecke_770","LübbeckeStadt_020","Alswede_2703"]
["770","Minden-Lübbecke","020","Lübbecke,Stadt","2709","Blasheim","Minden-Lübbecke_770","LübbeckeStadt_020","Blasheim_2709"]
["770","Minden-Lübbecke","020","Lübbecke,Stadt","2725","Eilhausen","Minden-Lübbecke_770","LübbeckeStadt_020","Eilhausen_2725"]
["770","Minden-Lübbecke","020","Lübbecke,Stadt","2734","Gehlenbeck","Minden-Lübbecke_770","LübbeckeStadt_020","Gehlenbeck_2734"]
["770","Minden-Lübbecke","020","Lübbecke,Stadt","2771","Lübbecke","Minden-Lübbecke_770","LübbeckeStadt_020","Lübbecke_2771"]
["770","Minden-Lübbecke","020","Lübbecke,Stadt","2779","Nettelstedt","Minden-Lübbecke_770","LübbeckeStadt_020","Nettelstedt_2779"]
["770","Minden-Lübbecke","024","Minden,Stadt","2704","Aminghausen","Minden-Lübbecke_770","MindenStadt_024","Aminghausen_2704"]
["770","Minden-Lübbecke","024","Minden,Stadt","2710","Bölhorst","Minden-Lübbecke_770","MindenStadt_024","Bölhorst_2710"]
["770","Minden-Lübbecke","024","Minden,Stadt","2716","Dankersen","Minden-Lübbecke_770","MindenStadt_024","Dankersen_2716"]
["770","Minden-Lübbecke","024","Minden,Stadt","2722","Dützen","Minden-Lübbecke_770","MindenStadt_024","Dützen_2722"]
["770","Minden-Lübbecke","024","Minden,Stadt","2738","Haddenhausen","Minden-Lübbecke_770","MindenStadt_024","Haddenhausen_2738"]
["770","Minden-Lübbecke","024","Minden,Stadt","2741","Hahlen","Minden-Lübbecke_770","MindenStadt_024","Hahlen_2741"]
["770","Minden-Lübbecke","024","Minden,Stadt","2740","Häverstädt","Minden-Lübbecke_770","MindenStadt_024","Häverstädt_2740"]
["770","Minden-Lübbecke","024","Minden,Stadt","2763","Kutenhausen","Minden-Lübbecke_770","MindenStadt_024","Kutenhausen_2763"]
["770","Minden-Lübbecke","024","Minden,Stadt","2767","Leteln","Minden-Lübbecke_770","MindenStadt_024","Leteln_2767"]
["770","Minden-Lübbecke","024","Minden,Stadt","2773","Meißen","Minden-Lübbecke_770","MindenStadt_024","Meißen_2773"]
["770","Minden-Lübbecke","024","Minden,Stadt","2775","Minden","Minden-Lübbecke_770","MindenStadt_024","Minden_2775"]
["770","Minden-Lübbecke","024","Minden,Stadt","2789","Päpinghausen","Minden-Lübbecke_770","MindenStadt_024","Päpinghausen_2789"]
["770","Minden-Lübbecke","024","Minden,Stadt","2804","Stemmer","Minden-Lübbecke_770","MindenStadt_024","Stemmer_2804"]
["770","Minden-Lübbecke","024","Minden,Stadt","2809","Todtenhausen","Minden-Lübbecke_770","MindenStadt_024","Todtenhausen_2809"]
["770","Minden-Lübbecke","028","Petershagen,Stadt","2708","Bierde","Minden-Lübbecke_770","PetershagenStadt_028","Bierde_2708"]
["770","Minden-Lübbecke","028","Petershagen,Stadt","2713","Buchholz","Minden-Lübbecke_770","PetershagenStadt_028","Buchholz_2713"]
["770","Minden-Lübbecke","028","Petershagen,Stadt","2720","Döhren","Minden-Lübbecke_770","PetershagenStadt_028","Döhren_2720"]
["770","Minden-Lübbecke","028","Petershagen,Stadt","2727","Eldagsen","Minden-Lübbecke_770","PetershagenStadt_028","Eldagsen_2727"]
["770","Minden-Lübbecke","028","Petershagen,Stadt","2731","Friedewalde","Minden-Lübbecke_770","PetershagenStadt_028","Friedewalde_2731"]
["770","Minden-Lübbecke","028","Petershagen,Stadt","2732","Frille","Minden-Lübbecke_770","PetershagenStadt_028","Frille_2732"]
["770","Minden-Lübbecke","028","Petershagen,Stadt","2736","Gorspen-Vahlsen","Minden-Lübbecke_770","PetershagenStadt_028","Gorspen-Vahlsen_2736"]
["770","Minden-Lübbecke","028","Petershagen,Stadt","2737","Großenheerse","Minden-Lübbecke_770","PetershagenStadt_028","Großenheerse_2737"]
["770","Minden-Lübbecke","028","Petershagen,Stadt","2739","Hävern","Minden-Lübbecke_770","PetershagenStadt_028","Hävern_2739"]
["770","Minden-Lübbecke","028","Petershagen,Stadt","2747","Heimsen","Minden-Lübbecke_770","PetershagenStadt_028","Heimsen_2747"]
["770","Minden-Lübbecke","028","Petershagen,Stadt","2756","Ilse","Minden-Lübbecke_770","PetershagenStadt_028","Ilse_2756"]
["770","Minden-Lübbecke","028","Petershagen,Stadt","2757","Ilserheide","Minden-Lübbecke_770","PetershagenStadt_028","Ilserheide_2757"]
["770","Minden-Lübbecke","028","Petershagen,Stadt","2758","Ilvese","Minden-Lübbecke_770","PetershagenStadt_028","Ilvese_2758"]
["770","Minden-Lübbecke","028","Petershagen,Stadt","2760","Jössen","Minden-Lübbecke_770","PetershagenStadt_028","Jössen_2760"]
["770","Minden-Lübbecke","028","Petershagen,Stadt","2764","Lahde","Minden-Lübbecke_770","PetershagenStadt_028","Lahde_2764"]
["770","Minden-Lübbecke","028","Petershagen,Stadt","2772","Maaslingen","Minden-Lübbecke_770","PetershagenStadt_028","Maaslingen_2772"]
["770","Minden-Lübbecke","028","Petershagen,Stadt","2774","Meßlingen","Minden-Lübbecke_770","PetershagenStadt_028","Meßlingen_2774"]
["770","Minden-Lübbecke","028","Petershagen,Stadt","2780","Neuenknick","Minden-Lübbecke_770","PetershagenStadt_028","Neuenknick_2780"]
["770","Minden-Lübbecke","028","Petershagen,Stadt","2788","Ovenstädt","Minden-Lübbecke_770","PetershagenStadt_028","Ovenstädt_2788"]
["770","Minden-Lübbecke","028","Petershagen,Stadt","2790","Petershagen","Minden-Lübbecke_770","PetershagenStadt_028","Petershagen_2790"]
["770","Minden-Lübbecke","028","Petershagen,Stadt","2793","Quetzen","Minden-Lübbecke_770","PetershagenStadt_028","Quetzen_2793"]
["770","Minden-Lübbecke","028","Petershagen,Stadt","2794","Raderhorst","Minden-Lübbecke_770","PetershagenStadt_028","Raderhorst_2794"]
["770","Minden-Lübbecke","028","Petershagen,Stadt","2797","Rosenhagen","Minden-Lübbecke_770","PetershagenStadt_028","Rosenhagen_2797"]
["770","Minden-Lübbecke","028","Petershagen,Stadt","2799","Schlüsselburg","Minden-Lübbecke_770","PetershagenStadt_028","Schlüsselburg_2799"]
["770","Minden-Lübbecke","028","Petershagen,Stadt","2802","Seelenfeld","Minden-Lübbecke_770","PetershagenStadt_028","Seelenfeld_2802"]
["770","Minden-Lübbecke","028","Petershagen,Stadt","2805","Südfelde","Minden-Lübbecke_770","PetershagenStadt_028","Südfelde_2805"]
["770","Minden-Lübbecke","028","Petershagen,Stadt","2819","Wasserstraße","Minden-Lübbecke_770","PetershagenStadt_028","Wasserstraße_2819"]
["770","Minden-Lübbecke","028","Petershagen,Stadt","2824","Wietersheim","Minden-Lübbecke_770","PetershagenStadt_028","Wietersheim_2824"]
["770","Minden-Lübbecke","028","Petershagen,Stadt","2825","Windheim","Minden-Lübbecke_770","PetershagenStadt_028","Windheim_2825"]
["770","Minden-Lübbecke","032","Porta Westfalica,Stadt","2707","Barkhausen","Minden-Lübbecke_770","Porta WestfalicaStadt_032","Barkhausen_2707"]
["770","Minden-Lübbecke","032","Porta Westfalica,Stadt","2715","Costedt","Minden-Lübbecke_770","Porta WestfalicaStadt_032","Costedt_2715"]
["770","Minden-Lübbecke","032","Porta Westfalica,Stadt","2726","Eisbergen","Minden-Lübbecke_770","Porta WestfalicaStadt_032","Eisbergen_2726"]
["770","Minden-Lübbecke","032","Porta Westfalica,Stadt","2745","Hausberge","Minden-Lübbecke_770","Porta WestfalicaStadt_032","Hausberge_2745"]
["770","Minden-Lübbecke","032","Porta Westfalica,Stadt","2750","Holtrup","Minden-Lübbecke_770","Porta WestfalicaStadt_032","Holtrup_2750"]
["770","Minden-Lübbecke","032","Porta Westfalica,Stadt","2752","Holzhausen I","Minden-Lübbecke_770","Porta WestfalicaStadt_032","Holzhausen I_2752"]
["770","Minden-Lübbecke","032","Porta Westfalica,Stadt","2761","Kleinenbremen","Minden-Lübbecke_770","Porta WestfalicaStadt_032","Kleinenbremen_2761"]
["770","Minden-Lübbecke","032","Porta Westfalica,Stadt","2766","Lerbeck","Minden-Lübbecke_770","Porta WestfalicaStadt_032","Lerbeck_2766"]
["770","Minden-Lübbecke","032","Porta Westfalica,Stadt","2770","Lohfeld","Minden-Lübbecke_770","Porta WestfalicaStadt_032","Lohfeld_2770"]
["770","Minden-Lübbecke","032","Porta Westfalica,Stadt","2776","Möllbergen","Minden-Lübbecke_770","Porta WestfalicaStadt_032","Möllbergen_2776"]
["770","Minden-Lübbecke","032","Porta Westfalica,Stadt","2777","Nammen","Minden-Lübbecke_770","Porta WestfalicaStadt_032","Nammen_2777"]
["770","Minden-Lübbecke","032","Porta Westfalica,Stadt","2778","Neesen","Minden-Lübbecke_770","Porta WestfalicaStadt_032","Neesen_2778"]
["770","Minden-Lübbecke","032","Porta Westfalica,Stadt","2816","Veltheim","Minden-Lübbecke_770","Porta WestfalicaStadt_032","Veltheim_2816"]
["770","Minden-Lübbecke","032","Porta Westfalica,Stadt","2817","Vennebeck","Minden-Lübbecke_770","Porta WestfalicaStadt_032","Vennebeck_2817"]
["770","Minden-Lübbecke","032","Porta Westfalica,Stadt","2826","Wülpke","Minden-Lübbecke_770","Porta WestfalicaStadt_032","Wülpke_2826"]
["770","Minden-Lübbecke","036","Preußisch Oldendorf,Stadt","2711","Börninghausen","Minden-Lübbecke_770","Preußisch OldendorfStadt_036","Börninghausen_2711"]
["770","Minden-Lübbecke","036","Preußisch Oldendorf,Stadt","2728","Engershausen","Minden-Lübbecke_770","Preußisch OldendorfStadt_036","Engershausen_2728"]
["770","Minden-Lübbecke","036","Preußisch Oldendorf,Stadt","2735","Getmold","Minden-Lübbecke_770","Preußisch OldendorfStadt_036","Getmold_2735"]
["770","Minden-Lübbecke","036","Preußisch Oldendorf,Stadt","2743","Harlinghausen","Minden-Lübbecke_770","Preußisch OldendorfStadt_036","Harlinghausen_2743"]
["770","Minden-Lübbecke","036","Preußisch Oldendorf,Stadt","2746","Hedem","Minden-Lübbecke_770","Preußisch OldendorfStadt_036","Hedem_2746"]
["770","Minden-Lübbecke","036","Preußisch Oldendorf,Stadt","2751","Holzhausen","Minden-Lübbecke_770","Preußisch OldendorfStadt_036","Holzhausen_2751"]
["770","Minden-Lübbecke","036","Preußisch Oldendorf,Stadt","2765","Lashorst","Minden-Lübbecke_770","Preußisch OldendorfStadt_036","Lashorst_2765"]
["770","Minden-Lübbecke","036","Preußisch Oldendorf,Stadt","2785","Offelten","Minden-Lübbecke_770","Preußisch OldendorfStadt_036","Offelten_2785"]
["770","Minden-Lübbecke","036","Preußisch Oldendorf,Stadt","2791","Preußisch Oldendorf","Minden-Lübbecke_770","Preußisch OldendorfStadt_036","Preußisch Oldendorf_2791"]
["770","Minden-Lübbecke","036","Preußisch Oldendorf,Stadt","2801","Schröttinghausen","Minden-Lübbecke_770","Preußisch OldendorfStadt_036","Schröttinghausen_2801"]
["770","Minden-Lübbecke","040","Rahden,Stadt","2762","Kleinendorf","Minden-Lübbecke_770","RahdenStadt_040","Kleinendorf_2762"]
["770","Minden-Lübbecke","040","Rahden,Stadt","2792","Preußisch Ströhen","Minden-Lübbecke_770","RahdenStadt_040","Preußisch Ströhen_2792"]
["770","Minden-Lübbecke","040","Rahden,Stadt","2795","Rahden","Minden-Lübbecke_770","RahdenStadt_040","Rahden_2795"]
["770","Minden-Lübbecke","040","Rahden,Stadt","2803","Sielhorst","Minden-Lübbecke_770","RahdenStadt_040","Sielhorst_2803"]
["770","Minden-Lübbecke","040","Rahden,Stadt","2811","Tonnenheide","Minden-Lübbecke_770","RahdenStadt_040","Tonnenheide_2811"]
["770","Minden-Lübbecke","040","Rahden,Stadt","2814","Varl","Minden-Lübbecke_770","RahdenStadt_040","Varl_2814"]
["770","Minden-Lübbecke","040","Rahden,Stadt","2821","Wehe","Minden-Lübbecke_770","RahdenStadt_040","Wehe_2821"]
["770","Minden-Lübbecke","044","Stemwede","2705","Arrenkamp","Minden-Lübbecke_770","Stemwede_044","Arrenkamp_2705"]
["770","Minden-Lübbecke","044","Stemwede","2718","Destel","Minden-Lübbecke_770","Stemwede_044","Destel_2718"]
["770","Minden-Lübbecke","044","Stemwede","2719","Dielingen","Minden-Lübbecke_770","Stemwede_044","Dielingen_2719"]
["770","Minden-Lübbecke","044","Stemwede","2721","Drohne","Minden-Lübbecke_770","Stemwede_044","Drohne_2721"]
["770","Minden-Lübbecke","044","Stemwede","2742","Haldem","Minden-Lübbecke_770","Stemwede_044","Haldem_2742"]
["770","Minden-Lübbecke","044","Stemwede","2768","Levern","Minden-Lübbecke_770","Stemwede_044","Levern_2768"]
["770","Minden-Lübbecke","044","Stemwede","2781","Niedermehnen","Minden-Lübbecke_770","Stemwede_044","Niedermehnen_2781"]
["770","Minden-Lübbecke","044","Stemwede","2786","Oppendorf","Minden-Lübbecke_770","Stemwede_044","Oppendorf_2786"]
["770","Minden-Lübbecke","044","Stemwede","2787","Oppenwehe","Minden-Lübbecke_770","Stemwede_044","Oppenwehe_2787"]
["770","Minden-Lübbecke","044","Stemwede","2807","Sundern","Minden-Lübbecke_770","Stemwede_044","Sundern_2807"]
["770","Minden-Lübbecke","044","Stemwede","2812","Twiehausen","Minden-Lübbecke_770","Stemwede_044","Twiehausen_2812"]
["770","Minden-Lübbecke","044","Stemwede","2820","Wehdem","Minden-Lübbecke_770","Stemwede_044","Wehdem_2820"]
["770","Minden-Lübbecke","044","Stemwede","2823","Westrup","Minden-Lübbecke_770","Stemwede_044","Westrup_2823"]
["116","Mönchengladbach,Stadt","000","Mönchengladbach,Stadt","3193","Hardt-Alte","MönchengladbachStadt_116","MönchengladbachStadt_000","Hardt-Alte_3193"]
["116","Mönchengladbach,Stadt","000","Mönchengladbach,Stadt","3201","Schelsen","MönchengladbachStadt_116","MönchengladbachStadt_000","Schelsen_3201"]
["116","Mönchengladbach,Stadt","000","Mönchengladbach,Stadt","3227","Wanlo","MönchengladbachStadt_116","MönchengladbachStadt_000","Wanlo_3227"]
["116","Mönchengladbach,Stadt","000","Mönchengladbach,Stadt","3229","Wickrath","MönchengladbachStadt_116","MönchengladbachStadt_000","Wickrath_3229"]
["117","Mülheim an der Ruhr,Stadt","000","Mülheim an der Ruhr,Stadt","3439","Selbeck","Mülheim an der RuhrStadt_117","Mülheim an der RuhrStadt_000","Selbeck_3439"]
["515","Münster,Stadt","000","Münster,Stadt","5020","Albachten","MünsterStadt_515","MünsterStadt_000","Albachten_5020"]
["515","Münster,Stadt","000","Münster,Stadt","5006","Amelsbüren","MünsterStadt_515","MünsterStadt_000","Amelsbüren_5006"]
["515","Münster,Stadt","000","Münster,Stadt","5005","Handorf","MünsterStadt_515","MünsterStadt_000","Handorf_5005"]
["515","Münster,Stadt","000","Münster,Stadt","5022","Nienberge","MünsterStadt_515","MünsterStadt_000","Nienberge_5022"]
["515","Münster,Stadt","000","Münster,Stadt","5019","Roxel","MünsterStadt_515","MünsterStadt_000","Roxel_5019"]
["515","Münster,Stadt","000","Münster,Stadt","5002","Sankt Mauritz","MünsterStadt_515","MünsterStadt_000","Sankt Mauritz_5002"]
["515","Münster,Stadt","000","Münster,Stadt","5012","Wolbeck-Kirchspiel","MünsterStadt_515","MünsterStadt_000","Wolbeck-Kirchspiel_5012"]
["374","Oberbergischer Kreis","004","Bergneustadt,Stadt","4202","Bergneustadt","Oberbergischer Kreis_374","BergneustadtStadt_004","Bergneustadt_4202"]
["374","Oberbergischer Kreis","004","Bergneustadt,Stadt","4223","Wiedenest","Oberbergischer Kreis_374","BergneustadtStadt_004","Wiedenest_4223"]
["374","Oberbergischer Kreis","008","Engelskirchen","4232","Oberengelskirchen","Oberbergischer Kreis_374","Engelskirchen_008","Oberengelskirchen_4232"]
["374","Oberbergischer Kreis","008","Engelskirchen","4218","Ründeroth","Oberbergischer Kreis_374","Engelskirchen_008","Ründeroth_4218"]
["374","Oberbergischer Kreis","008","Engelskirchen","4236","Unterengelskirchen","Oberbergischer Kreis_374","Engelskirchen_008","Unterengelskirchen_4236"]
["374","Oberbergischer Kreis","012","Gummersbach,Stadt","4227","Dieringhausen","Oberbergischer Kreis_374","GummersbachStadt_012","Dieringhausen_4227"]
["374","Oberbergischer Kreis","012","Gummersbach,Stadt","4206","Gimborn","Oberbergischer Kreis_374","GummersbachStadt_012","Gimborn_4206"]
["374","Oberbergischer Kreis","012","Gummersbach,Stadt","4207","Gummersbach","Oberbergischer Kreis_374","GummersbachStadt_012","Gummersbach_4207"]
["374","Oberbergischer Kreis","012","Gummersbach,Stadt","4213","Lieberhausen","Oberbergischer Kreis_374","GummersbachStadt_012","Lieberhausen_4213"]
["374","Oberbergischer Kreis","012","Gummersbach,Stadt","4226","Strombach","Oberbergischer Kreis_374","GummersbachStadt_012","Strombach_4226"]
["374","Oberbergischer Kreis","016","Hückeswagen,Stadt","4239","Hückeswagen","Oberbergischer Kreis_374","HückeswagenStadt_016","Hückeswagen_4239"]
["374","Oberbergischer Kreis","016","Hückeswagen,Stadt","4240","Neuhückeswagen","Oberbergischer Kreis_374","HückeswagenStadt_016","Neuhückeswagen_4240"]
["374","Oberbergischer Kreis","020","Lindlar","4228","Breidenbach","Oberbergischer Kreis_374","Lindlar_020","Breidenbach_4228"]
["374","Oberbergischer Kreis","020","Lindlar","4229","Breun","Oberbergischer Kreis_374","Lindlar_020","Breun_4229"]
["374","Oberbergischer Kreis","020","Lindlar","4231","Lindlar","Oberbergischer Kreis_374","Lindlar_020","Lindlar_4231"]
["374","Oberbergischer Kreis","020","Lindlar","4235","Tüschen","Oberbergischer Kreis_374","Lindlar_020","Tüschen_4235"]
["374","Oberbergischer Kreis","020","Lindlar","4237","Vellingen","Oberbergischer Kreis_374","Lindlar_020","Vellingen_4237"]
["374","Oberbergischer Kreis","024","Marienheide","4215","Marienheide","Oberbergischer Kreis_374","Marienheide_024","Marienheide_4215"]
["374","Oberbergischer Kreis","028","Morsbach","4211","Holpe","Oberbergischer Kreis_374","Morsbach_028","Holpe_4211"]
["374","Oberbergischer Kreis","028","Morsbach","4212","Lichtenberg","Oberbergischer Kreis_374","Morsbach_028","Lichtenberg_4212"]
["374","Oberbergischer Kreis","028","Morsbach","4216","Morsbach","Oberbergischer Kreis_374","Morsbach_028","Morsbach_4216"]
["374","Oberbergischer Kreis","032","Nümbrecht","4214","Marienberghausen","Oberbergischer Kreis_374","Nümbrecht_032","Marienberghausen_4214"]
["374","Oberbergischer Kreis","032","Nümbrecht","4217","Nümbrecht","Oberbergischer Kreis_374","Nümbrecht_032","Nümbrecht_4217"]
["374","Oberbergischer Kreis","036","Radevormwald,Stadt","4241","Radevormwald","Oberbergischer Kreis_374","RadevormwaldStadt_036","Radevormwald_4241"]
["374","Oberbergischer Kreis","040","Reichshof","4201","Agger","Oberbergischer Kreis_374","Reichshof_040","Agger_4201"]
["374","Oberbergischer Kreis","040","Reichshof","4203","Denklingen","Oberbergischer Kreis_374","Reichshof_040","Denklingen_4203"]
["374","Oberbergischer Kreis","040","Reichshof","4205","Eckenhagen","Oberbergischer Kreis_374","Reichshof_040","Eckenhagen_4205"]
["374","Oberbergischer Kreis","040","Reichshof","4208","Heischeid","Oberbergischer Kreis_374","Reichshof_040","Heischeid_4208"]
["374","Oberbergischer Kreis","040","Reichshof","4210","Hespert","Oberbergischer Kreis_374","Reichshof_040","Hespert_4210"]
["374","Oberbergischer Kreis","040","Reichshof","4220","Sinspert","Oberbergischer Kreis_374","Reichshof_040","Sinspert_4220"]
["374","Oberbergischer Kreis","040","Reichshof","4225","Wildberg-Erdingen","Oberbergischer Kreis_374","Reichshof_040","Wildberg-Erdingen_4225"]
["374","Oberbergischer Kreis","044","Waldbröl,Stadt","4209","Hermesdorf","Oberbergischer Kreis_374","WaldbrölStadt_044","Hermesdorf_4209"]
["374","Oberbergischer Kreis","044","Waldbröl,Stadt","4219","Schnörringen","Oberbergischer Kreis_374","WaldbrölStadt_044","Schnörringen_4219"]
["374","Oberbergischer Kreis","044","Waldbröl,Stadt","4221","Waldbröl","Oberbergischer Kreis_374","WaldbrölStadt_044","Waldbröl_4221"]
["374","Oberbergischer Kreis","048","Wiehl,Stadt","4204","Drabenderhöhe","Oberbergischer Kreis_374","WiehlStadt_048","Drabenderhöhe_4204"]
["374","Oberbergischer Kreis","048","Wiehl,Stadt","4222","Weiershagen","Oberbergischer Kreis_374","WiehlStadt_048","Weiershagen_4222"]
["374","Oberbergischer Kreis","048","Wiehl,Stadt","4224","Wiehl","Oberbergischer Kreis_374","WiehlStadt_048","Wiehl_4224"]
["374","Oberbergischer Kreis","052","Wipperfürth,Stadt","4230","Klüppelberg","Oberbergischer Kreis_374","WipperfürthStadt_052","Klüppelberg_4230"]
["374","Oberbergischer Kreis","052","Wipperfürth,Stadt","4242","Wipperfeld","Oberbergischer Kreis_374","WipperfürthStadt_052","Wipperfeld_4242"]
["374","Oberbergischer Kreis","052","Wipperfürth,Stadt","4238","Wipperfürth","Oberbergischer Kreis_374","WipperfürthStadt_052","Wipperfürth_4238"]
["966","Olpe","004","Attendorn,Stadt","1545","Attendorn","Olpe_966","AttendornStadt_004","Attendorn_1545"]
["966","Olpe","004","Attendorn,Stadt","1541","Ewig","Olpe_966","AttendornStadt_004","Ewig_1541"]
["966","Olpe","004","Attendorn,Stadt","1543","Helden","Olpe_966","AttendornStadt_004","Helden_1543"]
["966","Olpe","004","Attendorn,Stadt","1544","Windhausen","Olpe_966","AttendornStadt_004","Windhausen_1544"]
["966","Olpe","008","Drolshagen,Stadt","1550","Benolpe","Olpe_966","DrolshagenStadt_008","Benolpe_1550"]
["966","Olpe","008","Drolshagen,Stadt","1551","Bleche","Olpe_966","DrolshagenStadt_008","Bleche_1551"]
["966","Olpe","008","Drolshagen,Stadt","1552","Brachtpe","Olpe_966","DrolshagenStadt_008","Brachtpe_1552"]
["966","Olpe","008","Drolshagen,Stadt","1553","Drolshagen","Olpe_966","DrolshagenStadt_008","Drolshagen_1553"]
["966","Olpe","008","Drolshagen,Stadt","1554","Dumicke","Olpe_966","DrolshagenStadt_008","Dumicke_1554"]
["966","Olpe","008","Drolshagen,Stadt","1555","Husten","Olpe_966","DrolshagenStadt_008","Husten_1555"]
["966","Olpe","012","Finnentrop","1536","Fretter","Olpe_966","Finnentrop_012","Fretter_1536"]
["966","Olpe","012","Finnentrop","1542","Heggen","Olpe_966","Finnentrop_012","Heggen_1542"]
["966","Olpe","012","Finnentrop","1537","Lenhausen","Olpe_966","Finnentrop_012","Lenhausen_1537"]
["966","Olpe","012","Finnentrop","1539","Schliprüthen","Olpe_966","Finnentrop_012","Schliprüthen_1539"]
["966","Olpe","012","Finnentrop","1540","Schönholthausen","Olpe_966","Finnentrop_012","Schönholthausen_1540"]
["966","Olpe","016","Kirchhundem","1558","Heinsberg","Olpe_966","Kirchhundem_016","Heinsberg_1558"]
["966","Olpe","016","Kirchhundem","1559","Kirchhundem","Olpe_966","Kirchhundem_016","Kirchhundem_1559"]
["966","Olpe","016","Kirchhundem","1557","Kohlhagen","Olpe_966","Kirchhundem_016","Kohlhagen_1557"]
["966","Olpe","016","Kirchhundem","1561","Oberhundem","Olpe_966","Kirchhundem_016","Oberhundem_1561"]
["966","Olpe","016","Kirchhundem","1549","Rahrbach","Olpe_966","Kirchhundem_016","Rahrbach_1549"]
["966","Olpe","016","Kirchhundem","1563","Selbecke","Olpe_966","Kirchhundem_016","Selbecke_1563"]
["966","Olpe","016","Kirchhundem","1564","Würdinghausen","Olpe_966","Kirchhundem_016","Würdinghausen_1564"]
["966","Olpe","020","Lennestadt,Stadt","1556","Altenhundem","Olpe_966","LennestadtStadt_020","Altenhundem_1556"]
["966","Olpe","020","Lennestadt,Stadt","1546","Elspe","Olpe_966","LennestadtStadt_020","Elspe_1546"]
["966","Olpe","020","Lennestadt,Stadt","1547","Grevenbrück","Olpe_966","LennestadtStadt_020","Grevenbrück_1547"]
["966","Olpe","020","Lennestadt,Stadt","1548","Kirchveischede","Olpe_966","LennestadtStadt_020","Kirchveischede_1548"]
["966","Olpe","020","Lennestadt,Stadt","1864","Milchenbach","Olpe_966","LennestadtStadt_020","Milchenbach_1864"]
["966","Olpe","020","Lennestadt,Stadt","1538","Oedingen","Olpe_966","LennestadtStadt_020","Oedingen_1538"]
["966","Olpe","020","Lennestadt,Stadt","1562","Saalhausen","Olpe_966","LennestadtStadt_020","Saalhausen_1562"]
["966","Olpe","024","Olpe,Stadt","1565","Kleusheim","Olpe_966","OlpeStadt_024","Kleusheim_1565"]
["966","Olpe","024","Olpe,Stadt","1566","Olpe-Land","Olpe_966","OlpeStadt_024","Olpe-Land_1566"]
["966","Olpe","024","Olpe,Stadt","1567","Olpe-Stadt","Olpe_966","OlpeStadt_024","Olpe-Stadt_1567"]
["966","Olpe","024","Olpe,Stadt","1568","Rhode","Olpe_966","OlpeStadt_024","Rhode_1568"]
["966","Olpe","028","Wenden","1569","Hünsborn","Olpe_966","Wenden_028","Hünsborn_1569"]
["966","Olpe","028","Wenden","1570","Römershagen","Olpe_966","Wenden_028","Römershagen_1570"]
["966","Olpe","028","Wenden","1571","Schönau","Olpe_966","Wenden_028","Schönau_1571"]
["966","Olpe","028","Wenden","1572","Wenden","Olpe_966","Wenden_028","Wenden_1572"]
["774","Paderborn","004","Altenbeken","2903","Altenbeken","Paderborn_774","Altenbeken_004","Altenbeken_2903"]
["774","Paderborn","004","Altenbeken","2916","Buke","Paderborn_774","Altenbeken_004","Buke_2916"]
["774","Paderborn","004","Altenbeken","2956","Schwaney","Paderborn_774","Altenbeken_004","Schwaney_2956"]
["774","Paderborn","008","Bad Lippspringe,Stadt","2907","Bad Lippspringe","Paderborn_774","Bad LippspringeStadt_008","Bad Lippspringe_2907"]
["774","Paderborn","012","Borchen","2902","Alfen","Paderborn_774","Borchen_012","Alfen_2902"]
["774","Paderborn","012","Borchen","2920","Dörenhagen","Paderborn_774","Borchen_012","Dörenhagen_2920"]
["774","Paderborn","012","Borchen","2925","Etteln","Paderborn_774","Borchen_012","Etteln_2925"]
["774","Paderborn","012","Borchen","2940","Kirchborchen","Paderborn_774","Borchen_012","Kirchborchen_2940"]
["774","Paderborn","012","Borchen","2948","Nordborchen","Paderborn_774","Borchen_012","Nordborchen_2948"]
["774","Paderborn","016","Büren,Stadt","2901","Ahden","Paderborn_774","BürenStadt_016","Ahden_2901"]
["774","Paderborn","016","Büren,Stadt","2908","Barkhausen","Paderborn_774","BürenStadt_016","Barkhausen_2908"]
["774","Paderborn","016","Büren,Stadt","2914","Brenken","Paderborn_774","BürenStadt_016","Brenken_2914"]
["774","Paderborn","016","Büren,Stadt","2915","Büren","Paderborn_774","BürenStadt_016","Büren_2915"]
["774","Paderborn","016","Büren,Stadt","2922","Eickhoff","Paderborn_774","BürenStadt_016","Eickhoff_2922"]
["774","Paderborn","016","Büren,Stadt","2931","Harth","Paderborn_774","BürenStadt_016","Harth_2931"]
["774","Paderborn","016","Büren,Stadt","2932","Hegensdorf","Paderborn_774","BürenStadt_016","Hegensdorf_2932"]
["774","Paderborn","016","Büren,Stadt","2958","Siddinghausen","Paderborn_774","BürenStadt_016","Siddinghausen_2958"]
["774","Paderborn","016","Büren,Stadt","2959","Steinhausen","Paderborn_774","BürenStadt_016","Steinhausen_2959"]
["774","Paderborn","016","Büren,Stadt","2964","Weiberg","Paderborn_774","BürenStadt_016","Weiberg_2964"]
["774","Paderborn","016","Büren,Stadt","2965","Weine","Paderborn_774","BürenStadt_016","Weine_2965"]
["774","Paderborn","016","Büren,Stadt","2968","Wewelsburg","Paderborn_774","BürenStadt_016","Wewelsburg_2968"]
["774","Paderborn","020","Delbrück,Stadt","2904","Anreppen","Paderborn_774","DelbrückStadt_020","Anreppen_2904"]
["774","Paderborn","020","Delbrück,Stadt","2910","Bentfeld","Paderborn_774","DelbrückStadt_020","Bentfeld_2910"]
["774","Paderborn","020","Delbrück,Stadt","2913","Boke","Paderborn_774","DelbrückStadt_020","Boke_2913"]
["774","Paderborn","020","Delbrück,Stadt","2919","Delbrück","Paderborn_774","DelbrückStadt_020","Delbrück_2919"]
["774","Paderborn","020","Delbrück,Stadt","2929","Hagen","Paderborn_774","DelbrückStadt_020","Hagen_2929"]
["774","Paderborn","020","Delbrück,Stadt","2950","Ostenland","Paderborn_774","DelbrückStadt_020","Ostenland_2950"]
["774","Paderborn","020","Delbrück,Stadt","2966","Westenholz","Paderborn_774","DelbrückStadt_020","Westenholz_2966"]
["774","Paderborn","020","Delbrück,Stadt","2967","Westerloh","Paderborn_774","DelbrückStadt_020","Westerloh_2967"]
["774","Paderborn","024","Hövelhof","2936","Hövelhof","Paderborn_774","Hövelhof_024","Hövelhof_2936"]
["774","Paderborn","028","Lichtenau,Stadt","2905","Asseln","Paderborn_774","LichtenauStadt_028","Asseln_2905"]
["774","Paderborn","028","Lichtenau,Stadt","2906","Atteln","Paderborn_774","LichtenauStadt_028","Atteln_2906"]
["774","Paderborn","028","Lichtenau,Stadt","2911","Blankenrode","Paderborn_774","LichtenauStadt_028","Blankenrode_2911"]
["774","Paderborn","028","Lichtenau,Stadt","2918","Dalheim","Paderborn_774","LichtenauStadt_028","Dalheim_2918"]
["774","Paderborn","028","Lichtenau,Stadt","2921","Ebbinghausen","Paderborn_774","LichtenauStadt_028","Ebbinghausen_2921"]
["774","Paderborn","028","Lichtenau,Stadt","2927","Grundsteinheim","Paderborn_774","LichtenauStadt_028","Grundsteinheim_2927"]
["774","Paderborn","028","Lichtenau,Stadt","2930","Hakenberg","Paderborn_774","LichtenauStadt_028","Hakenberg_2930"]
["774","Paderborn","028","Lichtenau,Stadt","2934","Henglarn","Paderborn_774","LichtenauStadt_028","Henglarn_2934"]
["774","Paderborn","028","Lichtenau,Stadt","2935","Herbram","Paderborn_774","LichtenauStadt_028","Herbram_2935"]
["774","Paderborn","028","Lichtenau,Stadt","2937","Holtheim","Paderborn_774","LichtenauStadt_028","Holtheim_2937"]
["774","Paderborn","028","Lichtenau,Stadt","2938","Husen","Paderborn_774","LichtenauStadt_028","Husen_2938"]
["774","Paderborn","028","Lichtenau,Stadt","2939","Iggenhausen","Paderborn_774","LichtenauStadt_028","Iggenhausen_2939"]
["774","Paderborn","028","Lichtenau,Stadt","2941","Kleinenberg","Paderborn_774","LichtenauStadt_028","Kleinenberg_2941"]
["774","Paderborn","028","Lichtenau,Stadt","2943","Lichtenau","Paderborn_774","LichtenauStadt_028","Lichtenau_2943"]
["774","Paderborn","032","Paderborn,Stadt","2909","Benhausen","Paderborn_774","PaderbornStadt_032","Benhausen_2909"]
["774","Paderborn","032","Paderborn,Stadt","2917","Dahl","Paderborn_774","PaderbornStadt_032","Dahl_2917"]
["774","Paderborn","032","Paderborn,Stadt","2924","Elsen","Paderborn_774","PaderbornStadt_032","Elsen_2924"]
["774","Paderborn","032","Paderborn,Stadt","2945","Marienloh","Paderborn_774","PaderbornStadt_032","Marienloh_2945"]
["774","Paderborn","032","Paderborn,Stadt","2946","Neuenbeken","Paderborn_774","PaderbornStadt_032","Neuenbeken_2946"]
["774","Paderborn","032","Paderborn,Stadt","2969","Wewer","Paderborn_774","PaderbornStadt_032","Wewer_2969"]
["774","Paderborn","036","Salzkotten,Stadt","2944","Mantinghausen","Paderborn_774","SalzkottenStadt_036","Mantinghausen_2944"]
["774","Paderborn","036","Salzkotten,Stadt","2947","Niederntudorf","Paderborn_774","SalzkottenStadt_036","Niederntudorf_2947"]
["774","Paderborn","036","Salzkotten,Stadt","2949","Oberntudorf","Paderborn_774","SalzkottenStadt_036","Oberntudorf_2949"]
["774","Paderborn","036","Salzkotten,Stadt","2952","Salzkotten","Paderborn_774","SalzkottenStadt_036","Salzkotten_2952"]
["774","Paderborn","036","Salzkotten,Stadt","2954","Scharmede","Paderborn_774","SalzkottenStadt_036","Scharmede_2954"]
["774","Paderborn","036","Salzkotten,Stadt","2957","Schwelle","Paderborn_774","SalzkottenStadt_036","Schwelle_2957"]
["774","Paderborn","036","Salzkotten,Stadt","2960","Thüle","Paderborn_774","SalzkottenStadt_036","Thüle_2960"]
["774","Paderborn","036","Salzkotten,Stadt","2961","Upsprunge","Paderborn_774","SalzkottenStadt_036","Upsprunge_2961"]
["774","Paderborn","036","Salzkotten,Stadt","2962","Verlar","Paderborn_774","SalzkottenStadt_036","Verlar_2962"]
["774","Paderborn","036","Salzkotten,Stadt","2963","Verne","Paderborn_774","SalzkottenStadt_036","Verne_2963"]
["774","Paderborn","040","Wünnenberg,Stadt","2912","Bleiwäsche","Paderborn_774","WünnenbergStadt_040","Bleiwäsche_2912"]
["774","Paderborn","040","Wünnenberg,Stadt","2923","Elisenhof","Paderborn_774","WünnenbergStadt_040","Elisenhof_2923"]
["774","Paderborn","040","Wünnenberg,Stadt","2926","Fürstenberg","Paderborn_774","WünnenbergStadt_040","Fürstenberg_2926"]
["774","Paderborn","040","Wünnenberg,Stadt","2928","Haaren","Paderborn_774","WünnenbergStadt_040","Haaren_2928"]
["774","Paderborn","040","Wünnenberg,Stadt","2933","Helmern","Paderborn_774","WünnenbergStadt_040","Helmern_2933"]
["774","Paderborn","040","Wünnenberg,Stadt","2942","Leiberg","Paderborn_774","WünnenbergStadt_040","Leiberg_2942"]
["774","Paderborn","040","Wünnenberg,Stadt","2970","Wünnenberg","Paderborn_774","WünnenbergStadt_040","Wünnenberg_2970"]
["562","Recklinghausen","004","Castrop-Rauxel,Stadt","5119","Henrichenburg","Recklinghausen_562","Castrop-RauxelStadt_004","Henrichenburg_5119"]
["562","Recklinghausen","008","Datteln,Stadt","5111","Ahsen","Recklinghausen_562","DattelnStadt_008","Ahsen_5111"]
["562","Recklinghausen","008","Datteln,Stadt","5110","Datteln","Recklinghausen_562","DattelnStadt_008","Datteln_5110"]
["562","Recklinghausen","008","Datteln,Stadt","5120","Horneburg","Recklinghausen_562","DattelnStadt_008","Horneburg_5120"]
["562","Recklinghausen","012","Dorsten,Stadt","5123","Altendorf-Ulfkotte","Recklinghausen_562","DorstenStadt_012","Altendorf-Ulfkotte_5123"]
["562","Recklinghausen","012","Dorsten,Stadt","5122","Dorsten","Recklinghausen_562","DorstenStadt_012","Dorsten_5122"]
["562","Recklinghausen","012","Dorsten,Stadt","5133","Lembeck","Recklinghausen_562","DorstenStadt_012","Lembeck_5133"]
["562","Recklinghausen","012","Dorsten,Stadt","5139","Rhade","Recklinghausen_562","DorstenStadt_012","Rhade_5139"]
["562","Recklinghausen","012","Dorsten,Stadt","5135","Wulfen","Recklinghausen_562","DorstenStadt_012","Wulfen_5135"]
["562","Recklinghausen","016","Haltern,Stadt","5112","Flaesheim","Recklinghausen_562","HalternStadt_016","Flaesheim_5112"]
["562","Recklinghausen","016","Haltern,Stadt","5162","Haltern","Recklinghausen_562","HalternStadt_016","Haltern_5162"]
["562","Recklinghausen","016","Haltern,Stadt","5161","Haltern-Kirchspiel","Recklinghausen_562","HalternStadt_016","Haltern-Kirchspiel_5161"]
["562","Recklinghausen","016","Haltern,Stadt","5160","Haltern-Stadt","Recklinghausen_562","HalternStadt_016","Haltern-Stadt_5160"]
["562","Recklinghausen","016","Haltern,Stadt","5163","Hullern","Recklinghausen_562","HalternStadt_016","Hullern_5163"]
["562","Recklinghausen","028","Oer-Erkenschwick,Stadt","5117","Oer-Erkenschwick","Recklinghausen_562","Oer-ErkenschwickStadt_028","Oer-Erkenschwick_5117"]
["562","Recklinghausen","036","Waltrop,Stadt","5121","Waltrop","Recklinghausen_562","WaltropStadt_036","Waltrop_5121"]
["120","Remscheid,Stadt","000","Remscheid,Stadt","3272","Bergisch Born","RemscheidStadt_120","RemscheidStadt_000","Bergisch Born_3272"]
["120","Remscheid,Stadt","000","Remscheid,Stadt","3269","Fünfzehnhöfe","RemscheidStadt_120","RemscheidStadt_000","Fünfzehnhöfe_3269"]
["362","Rhein-Erft-Kreis","004","Bedburg,Stadt","4610","Bedburg","Rhein-Erft-Kreis_362","BedburgStadt_004","Bedburg_4610"]
["362","Rhein-Erft-Kreis","004","Bedburg,Stadt","4611","Epprath","Rhein-Erft-Kreis_362","BedburgStadt_004","Epprath_4611"]
["362","Rhein-Erft-Kreis","004","Bedburg,Stadt","4612","Kaster","Rhein-Erft-Kreis_362","BedburgStadt_004","Kaster_4612"]
["362","Rhein-Erft-Kreis","004","Bedburg,Stadt","4613","Königshoven","Rhein-Erft-Kreis_362","BedburgStadt_004","Königshoven_4613"]
["362","Rhein-Erft-Kreis","004","Bedburg,Stadt","4614","Lipp","Rhein-Erft-Kreis_362","BedburgStadt_004","Lipp_4614"]
["362","Rhein-Erft-Kreis","004","Bedburg,Stadt","4615","Morken-Harff","Rhein-Erft-Kreis_362","BedburgStadt_004","Morken-Harff_4615"]
["362","Rhein-Erft-Kreis","004","Bedburg,Stadt","4616","Pütz","Rhein-Erft-Kreis_362","BedburgStadt_004","Pütz_4616"]
["362","Rhein-Erft-Kreis","008","Bergheim,Stadt","4620","Bergheim","Rhein-Erft-Kreis_362","BergheimStadt_008","Bergheim_4620"]
["362","Rhein-Erft-Kreis","008","Bergheim,Stadt","4621","Glesch","Rhein-Erft-Kreis_362","BergheimStadt_008","Glesch_4621"]
["362","Rhein-Erft-Kreis","008","Bergheim,Stadt","4622","Hüchelhoven","Rhein-Erft-Kreis_362","BergheimStadt_008","Hüchelhoven_4622"]
["362","Rhein-Erft-Kreis","008","Bergheim,Stadt","4623","Kenten","Rhein-Erft-Kreis_362","BergheimStadt_008","Kenten_4623"]
["362","Rhein-Erft-Kreis","008","Bergheim,Stadt","4624","Niederaußem","Rhein-Erft-Kreis_362","BergheimStadt_008","Niederaußem_4624"]
["362","Rhein-Erft-Kreis","008","Bergheim,Stadt","4625","Oberaußem-Fortuna","Rhein-Erft-Kreis_362","BergheimStadt_008","Oberaußem-Fortuna_4625"]
["362","Rhein-Erft-Kreis","008","Bergheim,Stadt","4626","Paffendorf","Rhein-Erft-Kreis_362","BergheimStadt_008","Paffendorf_4626"]
["362","Rhein-Erft-Kreis","008","Bergheim,Stadt","4627","Quadrath-Ichendorf","Rhein-Erft-Kreis_362","BergheimStadt_008","Quadrath-Ichendorf_4627"]
["362","Rhein-Erft-Kreis","008","Bergheim,Stadt","4628","Wiedenfeld","Rhein-Erft-Kreis_362","BergheimStadt_008","Wiedenfeld_4628"]
["362","Rhein-Erft-Kreis","008","Bergheim,Stadt","4629","Zieverich","Rhein-Erft-Kreis_362","BergheimStadt_008","Zieverich_4629"]
["362","Rhein-Erft-Kreis","016","Elsdorf","4640","Angelsdorf","Rhein-Erft-Kreis_362","Elsdorf_016","Angelsdorf_4640"]
["362","Rhein-Erft-Kreis","016","Elsdorf","4641","Apartehöfe","Rhein-Erft-Kreis_362","Elsdorf_016","Apartehöfe_4641"]
["362","Rhein-Erft-Kreis","016","Elsdorf","4642","Elsdorf","Rhein-Erft-Kreis_362","Elsdorf_016","Elsdorf_4642"]
["362","Rhein-Erft-Kreis","016","Elsdorf","4643","Esch","Rhein-Erft-Kreis_362","Elsdorf_016","Esch_4643"]
["362","Rhein-Erft-Kreis","016","Elsdorf","4644","Heppendorf","Rhein-Erft-Kreis_362","Elsdorf_016","Heppendorf_4644"]
["362","Rhein-Erft-Kreis","016","Elsdorf","4645","Niederembt","Rhein-Erft-Kreis_362","Elsdorf_016","Niederembt_4645"]
["362","Rhein-Erft-Kreis","016","Elsdorf","4646","Oberembt","Rhein-Erft-Kreis_362","Elsdorf_016","Oberembt_4646"]
["362","Rhein-Erft-Kreis","016","Elsdorf","4647","Tollhausen","Rhein-Erft-Kreis_362","Elsdorf_016","Tollhausen_4647"]
["362","Rhein-Erft-Kreis","020","Erftstadt,Stadt","4650","Bliesheim","Rhein-Erft-Kreis_362","ErftstadtStadt_020","Bliesheim_4650"]
["362","Rhein-Erft-Kreis","020","Erftstadt,Stadt","4651","Borr","Rhein-Erft-Kreis_362","ErftstadtStadt_020","Borr_4651"]
["362","Rhein-Erft-Kreis","020","Erftstadt,Stadt","4652","Dirmerzheim","Rhein-Erft-Kreis_362","ErftstadtStadt_020","Dirmerzheim_4652"]
["362","Rhein-Erft-Kreis","020","Erftstadt,Stadt","4653","Erp","Rhein-Erft-Kreis_362","ErftstadtStadt_020","Erp_4653"]
["362","Rhein-Erft-Kreis","020","Erftstadt,Stadt","4654","Friesheim","Rhein-Erft-Kreis_362","ErftstadtStadt_020","Friesheim_4654"]
["362","Rhein-Erft-Kreis","020","Erftstadt,Stadt","4655","Gymnich","Rhein-Erft-Kreis_362","ErftstadtStadt_020","Gymnich_4655"]
["362","Rhein-Erft-Kreis","020","Erftstadt,Stadt","4656","Kierdorf","Rhein-Erft-Kreis_362","ErftstadtStadt_020","Kierdorf_4656"]
["362","Rhein-Erft-Kreis","020","Erftstadt,Stadt","4657","Lechenich","Rhein-Erft-Kreis_362","ErftstadtStadt_020","Lechenich_4657"]
["362","Rhein-Erft-Kreis","020","Erftstadt,Stadt","4658","Liblar","Rhein-Erft-Kreis_362","ErftstadtStadt_020","Liblar_4658"]
["362","Rhein-Erft-Kreis","020","Erftstadt,Stadt","4659","Niederberg","Rhein-Erft-Kreis_362","ErftstadtStadt_020","Niederberg_4659"]
["362","Rhein-Erft-Kreis","024","Frechen,Stadt","4660","Bachem","Rhein-Erft-Kreis_362","FrechenStadt_024","Bachem_4660"]
["362","Rhein-Erft-Kreis","024","Frechen,Stadt","4661","Buschbell","Rhein-Erft-Kreis_362","FrechenStadt_024","Buschbell_4661"]
["362","Rhein-Erft-Kreis","028","Hürth,Stadt","4673","Gleuel","Rhein-Erft-Kreis_362","HürthStadt_028","Gleuel_4673"]
["362","Rhein-Erft-Kreis","028","Hürth,Stadt","4677","Stotzheim","Rhein-Erft-Kreis_362","HürthStadt_028","Stotzheim_4677"]
["362","Rhein-Erft-Kreis","032","Kerpen,Stadt","4680","Blatzheim","Rhein-Erft-Kreis_362","KerpenStadt_032","Blatzheim_4680"]
["362","Rhein-Erft-Kreis","032","Kerpen,Stadt","4681","Buir","Rhein-Erft-Kreis_362","KerpenStadt_032","Buir_4681"]
["362","Rhein-Erft-Kreis","032","Kerpen,Stadt","4682","Horrem","Rhein-Erft-Kreis_362","KerpenStadt_032","Horrem_4682"]
["362","Rhein-Erft-Kreis","032","Kerpen,Stadt","4683","Kerpen","Rhein-Erft-Kreis_362","KerpenStadt_032","Kerpen_4683"]
["362","Rhein-Erft-Kreis","032","Kerpen,Stadt","4684","Manheim","Rhein-Erft-Kreis_362","KerpenStadt_032","Manheim_4684"]
["362","Rhein-Erft-Kreis","032","Kerpen,Stadt","4685","Mödrath","Rhein-Erft-Kreis_362","KerpenStadt_032","Mödrath_4685"]
["362","Rhein-Erft-Kreis","032","Kerpen,Stadt","4686","Sindorf","Rhein-Erft-Kreis_362","KerpenStadt_032","Sindorf_4686"]
["362","Rhein-Erft-Kreis","032","Kerpen,Stadt","4687","Türnich","Rhein-Erft-Kreis_362","KerpenStadt_032","Türnich_4687"]
["362","Rhein-Erft-Kreis","036","Pulheim,Stadt","4690","Brauweiler","Rhein-Erft-Kreis_362","PulheimStadt_036","Brauweiler_4690"]
["362","Rhein-Erft-Kreis","036","Pulheim,Stadt","4691","Geyen","Rhein-Erft-Kreis_362","PulheimStadt_036","Geyen_4691"]
["362","Rhein-Erft-Kreis","036","Pulheim,Stadt","4692","Pulheim","Rhein-Erft-Kreis_362","PulheimStadt_036","Pulheim_4692"]
["362","Rhein-Erft-Kreis","036","Pulheim,Stadt","4693","Sinnersdorf","Rhein-Erft-Kreis_362","PulheimStadt_036","Sinnersdorf_4693"]
["362","Rhein-Erft-Kreis","036","Pulheim,Stadt","4694","Stommeln","Rhein-Erft-Kreis_362","PulheimStadt_036","Stommeln_4694"]
["378","Rheinisch-Bergischer Kreis","004","Bergisch Gladbach,Stadt","4904","Bensberg-Honschaft","Rheinisch-Bergischer Kreis_378","Bergisch GladbachStadt_004","Bensberg-Honschaft_4904"]
["378","Rheinisch-Bergischer Kreis","004","Bergisch Gladbach,Stadt","4911","Combüchen","Rheinisch-Bergischer Kreis_378","Bergisch GladbachStadt_004","Combüchen_4911"]
["378","Rheinisch-Bergischer Kreis","004","Bergisch Gladbach,Stadt","4923","Herkenrath","Rheinisch-Bergischer Kreis_378","Bergisch GladbachStadt_004","Herkenrath_4923"]
["378","Rheinisch-Bergischer Kreis","004","Bergisch Gladbach,Stadt","4946","Sand","Rheinisch-Bergischer Kreis_378","Bergisch GladbachStadt_004","Sand_4946"]
["378","Rheinisch-Bergischer Kreis","008","Burscheid,Stadt","4908","Burscheid","Rheinisch-Bergischer Kreis_378","BurscheidStadt_008","Burscheid_4908"]
["378","Rheinisch-Bergischer Kreis","012","Kürten","4902","Bechen","Rheinisch-Bergischer Kreis_378","Kürten_012","Bechen_4902"]
["378","Rheinisch-Bergischer Kreis","012","Kürten","4905","Berg","Rheinisch-Bergischer Kreis_378","Kürten_012","Berg_4905"]
["378","Rheinisch-Bergischer Kreis","012","Kürten","4907","Breibach","Rheinisch-Bergischer Kreis_378","Kürten_012","Breibach_4907"]
["378","Rheinisch-Bergischer Kreis","012","Kürten","4910","Collenbach","Rheinisch-Bergischer Kreis_378","Kürten_012","Collenbach_4910"]
["378","Rheinisch-Bergischer Kreis","012","Kürten","4912","Dürscheid","Rheinisch-Bergischer Kreis_378","Kürten_012","Dürscheid_4912"]
["378","Rheinisch-Bergischer Kreis","012","Kürten","4916","Engeldorf","Rheinisch-Bergischer Kreis_378","Kürten_012","Engeldorf_4916"]
["378","Rheinisch-Bergischer Kreis","012","Kürten","4927","Kürten","Rheinisch-Bergischer Kreis_378","Kürten_012","Kürten_4927"]
["378","Rheinisch-Bergischer Kreis","012","Kürten","4941","Olpe","Rheinisch-Bergischer Kreis_378","Kürten_012","Olpe_4941"]
["378","Rheinisch-Bergischer Kreis","016","Leichlingen (Rheinland)","4928","Leichlingen","Rheinisch-Bergischer Kreis_378","Leichlingen (Rheinland)_016","Leichlingen_4928"]
["378","Rheinisch-Bergischer Kreis","016","Leichlingen (Rheinland)","4956","Witzhelden","Rheinisch-Bergischer Kreis_378","Leichlingen (Rheinland)_016","Witzhelden_4956"]
["378","Rheinisch-Bergischer Kreis","020","Odenthal","4938","Oberodenthal","Rheinisch-Bergischer Kreis_378","Odenthal_020","Oberodenthal_4938"]
["378","Rheinisch-Bergischer Kreis","020","Odenthal","4951","Unterodenthal","Rheinisch-Bergischer Kreis_378","Odenthal_020","Unterodenthal_4951"]
["378","Rheinisch-Bergischer Kreis","024","Overath","4901","Balken","Rheinisch-Bergischer Kreis_378","Overath_024","Balken_4901"]
["378","Rheinisch-Bergischer Kreis","024","Overath","4917","Eschbach","Rheinisch-Bergischer Kreis_378","Overath_024","Eschbach_4917"]
["378","Rheinisch-Bergischer Kreis","024","Overath","4922","Heiliger","Rheinisch-Bergischer Kreis_378","Overath_024","Heiliger_4922"]
["378","Rheinisch-Bergischer Kreis","024","Overath","4925","Immekeppel","Rheinisch-Bergischer Kreis_378","Overath_024","Immekeppel_4925"]
["378","Rheinisch-Bergischer Kreis","024","Overath","4932","Löderich","Rheinisch-Bergischer Kreis_378","Overath_024","Löderich_4932"]
["378","Rheinisch-Bergischer Kreis","024","Overath","4935","Miebach","Rheinisch-Bergischer Kreis_378","Overath_024","Miebach_4935"]
["378","Rheinisch-Bergischer Kreis","024","Overath","4940","Oderscheid","Rheinisch-Bergischer Kreis_378","Overath_024","Oderscheid_4940"]
["378","Rheinisch-Bergischer Kreis","024","Overath","4954","Vilkerath","Rheinisch-Bergischer Kreis_378","Overath_024","Vilkerath_4954"]
["378","Rheinisch-Bergischer Kreis","028","Rösrath","4906","Bleifeld","Rheinisch-Bergischer Kreis_378","Rösrath_028","Bleifeld_4906"]
["378","Rheinisch-Bergischer Kreis","028","Rösrath","4918","Forsbach","Rheinisch-Bergischer Kreis_378","Rösrath_028","Forsbach_4918"]
["378","Rheinisch-Bergischer Kreis","028","Rösrath","4921","Hasbach","Rheinisch-Bergischer Kreis_378","Rösrath_028","Hasbach_4921"]
["378","Rheinisch-Bergischer Kreis","028","Rösrath","4933","Lüghausen","Rheinisch-Bergischer Kreis_378","Rösrath_028","Lüghausen_4933"]
["378","Rheinisch-Bergischer Kreis","028","Rösrath","4934","Menzlingen","Rheinisch-Bergischer Kreis_378","Rösrath_028","Menzlingen_4934"]
["378","Rheinisch-Bergischer Kreis","028","Rösrath","4945","Rösrath","Rheinisch-Bergischer Kreis_378","Rösrath_028","Rösrath_4945"]
["378","Rheinisch-Bergischer Kreis","028","Rösrath","4955","Volberg","Rheinisch-Bergischer Kreis_378","Rösrath_028","Volberg_4955"]
["378","Rheinisch-Bergischer Kreis","032","Wermelskirchen,Stadt","4913","Dabringhausen","Rheinisch-Bergischer Kreis_378","WermelskirchenStadt_032","Dabringhausen_4913"]
["378","Rheinisch-Bergischer Kreis","032","Wermelskirchen,Stadt","4914","Dhünn","Rheinisch-Bergischer Kreis_378","WermelskirchenStadt_032","Dhünn_4914"]
["378","Rheinisch-Bergischer Kreis","032","Wermelskirchen,Stadt","4915","Dorfhonnschaft","Rheinisch-Bergischer Kreis_378","WermelskirchenStadt_032","Dorfhonnschaft_4915"]
["378","Rheinisch-Bergischer Kreis","032","Wermelskirchen,Stadt","4936","Niederwermelskirchen","Rheinisch-Bergischer Kreis_378","WermelskirchenStadt_032","Niederwermelskirchen_4936"]
["378","Rheinisch-Bergischer Kreis","032","Wermelskirchen,Stadt","4937","Oberhonnschaft","Rheinisch-Bergischer Kreis_378","WermelskirchenStadt_032","Oberhonnschaft_4937"]
["162","Rhein-Kreis Neuss","004","Dormagen,Stadt","3208","Broich","Rhein-Kreis Neuss_162","DormagenStadt_004","Broich_3208"]
["162","Rhein-Kreis Neuss","004","Dormagen,Stadt","3357","Gohr","Rhein-Kreis Neuss_162","DormagenStadt_004","Gohr_3357"]
["162","Rhein-Kreis Neuss","004","Dormagen,Stadt","3361","Straberg","Rhein-Kreis Neuss_162","DormagenStadt_004","Straberg_3361"]
["162","Rhein-Kreis Neuss","008","Grevenbroich,Stadt","3214","Allrath","Rhein-Kreis Neuss_162","GrevenbroichStadt_008","Allrath_3214"]
["162","Rhein-Kreis Neuss","008","Grevenbroich,Stadt","3215","Barrenstein","Rhein-Kreis Neuss_162","GrevenbroichStadt_008","Barrenstein_3215"]
["162","Rhein-Kreis Neuss","008","Grevenbroich,Stadt","3206","Elfgen","Rhein-Kreis Neuss_162","GrevenbroichStadt_008","Elfgen_3206"]
["162","Rhein-Kreis Neuss","008","Grevenbroich,Stadt","3221","Hemmerden","Rhein-Kreis Neuss_162","GrevenbroichStadt_008","Hemmerden_3221"]
["162","Rhein-Kreis Neuss","008","Grevenbroich,Stadt","3223","Neukirchen","Rhein-Kreis Neuss_162","GrevenbroichStadt_008","Neukirchen_3223"]
["162","Rhein-Kreis Neuss","008","Grevenbroich,Stadt","3212","Neurath","Rhein-Kreis Neuss_162","GrevenbroichStadt_008","Neurath_3212"]
["162","Rhein-Kreis Neuss","008","Grevenbroich,Stadt","3228","Wevelinghoven","Rhein-Kreis Neuss_162","GrevenbroichStadt_008","Wevelinghoven_3228"]
["162","Rhein-Kreis Neuss","012","Jüchen","3204","Bedburdyck","Rhein-Kreis Neuss_162","Jüchen_012","Bedburdyck_3204"]
["162","Rhein-Kreis Neuss","012","Jüchen","3213","Garzweiler","Rhein-Kreis Neuss_162","Jüchen_012","Garzweiler_3213"]
["162","Rhein-Kreis Neuss","012","Jüchen","3226","Hochneukirch","Rhein-Kreis Neuss_162","Jüchen_012","Hochneukirch_3226"]
["162","Rhein-Kreis Neuss","012","Jüchen","3224","Jüchen","Rhein-Kreis Neuss_162","Jüchen_012","Jüchen_3224"]
["162","Rhein-Kreis Neuss","012","Jüchen","3225","Kelzenberg","Rhein-Kreis Neuss_162","Jüchen_012","Kelzenberg_3225"]
["162","Rhein-Kreis Neuss","020","Korschenbroich,Stadt","3349","Glehn","Rhein-Kreis Neuss_162","KorschenbroichStadt_020","Glehn_3349"]
["162","Rhein-Kreis Neuss","020","Korschenbroich,Stadt","3194","Kleinenbroich","Rhein-Kreis Neuss_162","KorschenbroichStadt_020","Kleinenbroich_3194"]
["162","Rhein-Kreis Neuss","020","Korschenbroich,Stadt","3188","Korschenbroich","Rhein-Kreis Neuss_162","KorschenbroichStadt_020","Korschenbroich_3188"]
["162","Rhein-Kreis Neuss","020","Korschenbroich,Stadt","3195","Liedberg","Rhein-Kreis Neuss_162","KorschenbroichStadt_020","Liedberg_3195"]
["162","Rhein-Kreis Neuss","020","Korschenbroich,Stadt","3189","Pesch","Rhein-Kreis Neuss_162","KorschenbroichStadt_020","Pesch_3189"]
["162","Rhein-Kreis Neuss","024","Neuss,Stadt","3350","Grefrath","Rhein-Kreis Neuss_162","NeussStadt_024","Grefrath_3350"]
["162","Rhein-Kreis Neuss","024","Neuss,Stadt","3222","Hoisten","Rhein-Kreis Neuss_162","NeussStadt_024","Hoisten_3222"]
["162","Rhein-Kreis Neuss","024","Neuss,Stadt","3354","Holzheim","Rhein-Kreis Neuss_162","NeussStadt_024","Holzheim_3354"]
["162","Rhein-Kreis Neuss","024","Neuss,Stadt","3363","Rosellen","Rhein-Kreis Neuss_162","NeussStadt_024","Rosellen_3363"]
["162","Rhein-Kreis Neuss","028","Rommerskirchen","3356","Frixheim-Anstel","Rhein-Kreis Neuss_162","Rommerskirchen_028","Frixheim-Anstel_3356"]
["162","Rhein-Kreis Neuss","028","Rommerskirchen","3209","Hoeningen","Rhein-Kreis Neuss_162","Rommerskirchen_028","Hoeningen_3209"]
["162","Rhein-Kreis Neuss","028","Rommerskirchen","3358","Nettesheim-Butzheim","Rhein-Kreis Neuss_162","Rommerskirchen_028","Nettesheim-Butzheim_3358"]
["162","Rhein-Kreis Neuss","028","Rommerskirchen","3210","Oekoven","Rhein-Kreis Neuss_162","Rommerskirchen_028","Oekoven_3210"]
["162","Rhein-Kreis Neuss","028","Rommerskirchen","3364","Rommerskirchen","Rhein-Kreis Neuss_162","Rommerskirchen_028","Rommerskirchen_3364"]
["382","Rhein-Sieg-Kreis","004","Alfter","4102","Alfter","Rhein-Sieg-Kreis_382","Alfter_004","Alfter_4102"]
["382","Rhein-Sieg-Kreis","004","Alfter","4116","Gielsdorf","Rhein-Sieg-Kreis_382","Alfter_004","Gielsdorf_4116"]
["382","Rhein-Sieg-Kreis","004","Alfter","4123","Impekoven","Rhein-Sieg-Kreis_382","Alfter_004","Impekoven_4123"]
["382","Rhein-Sieg-Kreis","004","Alfter","4146","Oedekoven","Rhein-Sieg-Kreis_382","Alfter_004","Oedekoven_4146"]
["382","Rhein-Sieg-Kreis","004","Alfter","4165","Witterschlick","Rhein-Sieg-Kreis_382","Alfter_004","Witterschlick_4165"]
["382","Rhein-Sieg-Kreis","008","Bad Honnef,Stadt","4002","Aegidienberg","Rhein-Sieg-Kreis_382","Bad HonnefStadt_008","Aegidienberg_4002"]
["382","Rhein-Sieg-Kreis","008","Bad Honnef,Stadt","4033","Honnef","Rhein-Sieg-Kreis_382","Bad HonnefStadt_008","Honnef_4033"]
["382","Rhein-Sieg-Kreis","012","Bornheim,Stadt","4107","Bornheim-Brenig","Rhein-Sieg-Kreis_382","BornheimStadt_012","Bornheim-Brenig_4107"]
["382","Rhein-Sieg-Kreis","012","Bornheim,Stadt","4120","Hersel","Rhein-Sieg-Kreis_382","BornheimStadt_012","Hersel_4120"]
["382","Rhein-Sieg-Kreis","012","Bornheim,Stadt","4125","Kardorf-Hemmerich","Rhein-Sieg-Kreis_382","BornheimStadt_012","Kardorf-Hemmerich_4125"]
["382","Rhein-Sieg-Kreis","012","Bornheim,Stadt","4135","Merten","Rhein-Sieg-Kreis_382","BornheimStadt_012","Merten_4135"]
["382","Rhein-Sieg-Kreis","012","Bornheim,Stadt","4152","Roisdorf","Rhein-Sieg-Kreis_382","BornheimStadt_012","Roisdorf_4152"]
["382","Rhein-Sieg-Kreis","012","Bornheim,Stadt","4153","Rösberg","Rhein-Sieg-Kreis_382","BornheimStadt_012","Rösberg_4153"]
["382","Rhein-Sieg-Kreis","012","Bornheim,Stadt","4156","Sechtem","Rhein-Sieg-Kreis_382","BornheimStadt_012","Sechtem_4156"]
["382","Rhein-Sieg-Kreis","012","Bornheim,Stadt","4159","Uedorf","Rhein-Sieg-Kreis_382","BornheimStadt_012","Uedorf_4159"]
["382","Rhein-Sieg-Kreis","012","Bornheim,Stadt","4161","Walberberg","Rhein-Sieg-Kreis_382","BornheimStadt_012","Walberberg_4161"]
["382","Rhein-Sieg-Kreis","012","Bornheim,Stadt","4162","Waldorf","Rhein-Sieg-Kreis_382","BornheimStadt_012","Waldorf_4162"]
["382","Rhein-Sieg-Kreis","012","Bornheim,Stadt","4164","Widdig","Rhein-Sieg-Kreis_382","BornheimStadt_012","Widdig_4164"]
["382","Rhein-Sieg-Kreis","016","Eitorf","4019","Eitorf","Rhein-Sieg-Kreis_382","Eitorf_016","Eitorf_4019"]
["382","Rhein-Sieg-Kreis","016","Eitorf","4024","Halft","Rhein-Sieg-Kreis_382","Eitorf_016","Halft_4024"]
["382","Rhein-Sieg-Kreis","016","Eitorf","4043","Linkenbach","Rhein-Sieg-Kreis_382","Eitorf_016","Linkenbach_4043"]
["382","Rhein-Sieg-Kreis","016","Eitorf","4049","Merten","Rhein-Sieg-Kreis_382","Eitorf_016","Merten_4049"]
["382","Rhein-Sieg-Kreis","020","Hennef (Sieg),Stadt","4001","Adscheid","Rhein-Sieg-Kreis_382","Hennef (Sieg)Stadt_020","Adscheid_4001"]
["382","Rhein-Sieg-Kreis","020","Hennef (Sieg),Stadt","4003","Altenbödingen","Rhein-Sieg-Kreis_382","Hennef (Sieg)Stadt_020","Altenbödingen_4003"]
["382","Rhein-Sieg-Kreis","020","Hennef (Sieg),Stadt","4009","Blankenberg","Rhein-Sieg-Kreis_382","Hennef (Sieg)Stadt_020","Blankenberg_4009"]
["382","Rhein-Sieg-Kreis","020","Hennef (Sieg),Stadt","4021","Geistingen","Rhein-Sieg-Kreis_382","Hennef (Sieg)Stadt_020","Geistingen_4021"]
["382","Rhein-Sieg-Kreis","020","Hennef (Sieg),Stadt","4026","Happerschoß","Rhein-Sieg-Kreis_382","Hennef (Sieg)Stadt_020","Happerschoß_4026"]
["382","Rhein-Sieg-Kreis","020","Hennef (Sieg),Stadt","4039","Kurscheid","Rhein-Sieg-Kreis_382","Hennef (Sieg)Stadt_020","Kurscheid_4039"]
["382","Rhein-Sieg-Kreis","020","Hennef (Sieg),Stadt","4040","Lauthausen","Rhein-Sieg-Kreis_382","Hennef (Sieg)Stadt_020","Lauthausen_4040"]
["382","Rhein-Sieg-Kreis","020","Hennef (Sieg),Stadt","4042","Lichtenberg","Rhein-Sieg-Kreis_382","Hennef (Sieg)Stadt_020","Lichtenberg_4042"]
["382","Rhein-Sieg-Kreis","020","Hennef (Sieg),Stadt","4073","Söven","Rhein-Sieg-Kreis_382","Hennef (Sieg)Stadt_020","Söven_4073"]
["382","Rhein-Sieg-Kreis","020","Hennef (Sieg),Stadt","4076","Striefen","Rhein-Sieg-Kreis_382","Hennef (Sieg)Stadt_020","Striefen_4076"]
["382","Rhein-Sieg-Kreis","020","Hennef (Sieg),Stadt","4091","Süchterscheid","Rhein-Sieg-Kreis_382","Hennef (Sieg)Stadt_020","Süchterscheid_4091"]
["382","Rhein-Sieg-Kreis","020","Hennef (Sieg),Stadt","4079","Uckerath","Rhein-Sieg-Kreis_382","Hennef (Sieg)Stadt_020","Uckerath_4079"]
["382","Rhein-Sieg-Kreis","020","Hennef (Sieg),Stadt","4084","Wellesberg","Rhein-Sieg-Kreis_382","Hennef (Sieg)Stadt_020","Wellesberg_4084"]
["382","Rhein-Sieg-Kreis","024","Königswinter,Stadt","4006","Berghausen","Rhein-Sieg-Kreis_382","KönigswinterStadt_024","Berghausen_4006"]
["382","Rhein-Sieg-Kreis","024","Königswinter,Stadt","4027","Hasenpohl","Rhein-Sieg-Kreis_382","KönigswinterStadt_024","Hasenpohl_4027"]
["382","Rhein-Sieg-Kreis","024","Königswinter,Stadt","4028","Heisterbacherrott","Rhein-Sieg-Kreis_382","KönigswinterStadt_024","Heisterbacherrott_4028"]
["382","Rhein-Sieg-Kreis","024","Königswinter,Stadt","4036","Ittenbach","Rhein-Sieg-Kreis_382","KönigswinterStadt_024","Ittenbach_4036"]
["382","Rhein-Sieg-Kreis","024","Königswinter,Stadt","4038","Königswinter","Rhein-Sieg-Kreis_382","KönigswinterStadt_024","Königswinter_4038"]
["382","Rhein-Sieg-Kreis","024","Königswinter,Stadt","4053","Niederdollendorf","Rhein-Sieg-Kreis_382","KönigswinterStadt_024","Niederdollendorf_4053"]
["382","Rhein-Sieg-Kreis","024","Königswinter,Stadt","4057","Oberdollendorf","Rhein-Sieg-Kreis_382","KönigswinterStadt_024","Oberdollendorf_4057"]
["382","Rhein-Sieg-Kreis","024","Königswinter,Stadt","4058","Oberhau","Rhein-Sieg-Kreis_382","KönigswinterStadt_024","Oberhau_4058"]
["382","Rhein-Sieg-Kreis","024","Königswinter,Stadt","4061","Oberpleis","Rhein-Sieg-Kreis_382","KönigswinterStadt_024","Oberpleis_4061"]
["382","Rhein-Sieg-Kreis","024","Königswinter,Stadt","4062","Oelinghoven","Rhein-Sieg-Kreis_382","KönigswinterStadt_024","Oelinghoven_4062"]
["382","Rhein-Sieg-Kreis","024","Königswinter,Stadt","4063","Rauschendorf","Rhein-Sieg-Kreis_382","KönigswinterStadt_024","Rauschendorf_4063"]
["382","Rhein-Sieg-Kreis","024","Königswinter,Stadt","4081","Vinxel","Rhein-Sieg-Kreis_382","KönigswinterStadt_024","Vinxel_4081"]
["382","Rhein-Sieg-Kreis","024","Königswinter,Stadt","4082","Wahlfeld","Rhein-Sieg-Kreis_382","KönigswinterStadt_024","Wahlfeld_4082"]
["382","Rhein-Sieg-Kreis","028","Lohmar,Stadt","4012","Breidt","Rhein-Sieg-Kreis_382","LohmarStadt_028","Breidt_4012"]
["382","Rhein-Sieg-Kreis","028","Lohmar,Stadt","4023","Halberg","Rhein-Sieg-Kreis_382","LohmarStadt_028","Halberg_4023"]
["382","Rhein-Sieg-Kreis","028","Lohmar,Stadt","4031","Honrath","Rhein-Sieg-Kreis_382","LohmarStadt_028","Honrath_4031"]
["382","Rhein-Sieg-Kreis","028","Lohmar,Stadt","4035","Inger","Rhein-Sieg-Kreis_382","LohmarStadt_028","Inger_4035"]
["382","Rhein-Sieg-Kreis","028","Lohmar,Stadt","4044","Lohmar","Rhein-Sieg-Kreis_382","LohmarStadt_028","Lohmar_4044"]
["382","Rhein-Sieg-Kreis","028","Lohmar,Stadt","4067","Scheiderhöhe","Rhein-Sieg-Kreis_382","LohmarStadt_028","Scheiderhöhe_4067"]
["382","Rhein-Sieg-Kreis","028","Lohmar,Stadt","4083","Wahlscheid","Rhein-Sieg-Kreis_382","LohmarStadt_028","Wahlscheid_4083"]
["382","Rhein-Sieg-Kreis","032","Meckenheim,Stadt","4103","Altendorf","Rhein-Sieg-Kreis_382","MeckenheimStadt_032","Altendorf_4103"]
["382","Rhein-Sieg-Kreis","032","Meckenheim,Stadt","4111","Ersdorf","Rhein-Sieg-Kreis_382","MeckenheimStadt_032","Ersdorf_4111"]
["382","Rhein-Sieg-Kreis","032","Meckenheim,Stadt","4131","Lüftelberg","Rhein-Sieg-Kreis_382","MeckenheimStadt_032","Lüftelberg_4131"]
["382","Rhein-Sieg-Kreis","032","Meckenheim,Stadt","4132","Meckenheim","Rhein-Sieg-Kreis_382","MeckenheimStadt_032","Meckenheim_4132"]
["382","Rhein-Sieg-Kreis","032","Meckenheim,Stadt","4134","Merl","Rhein-Sieg-Kreis_382","MeckenheimStadt_032","Merl_4134"]
["382","Rhein-Sieg-Kreis","036","Much","4005","Bennrath","Rhein-Sieg-Kreis_382","Much_036","Bennrath_4005"]
["382","Rhein-Sieg-Kreis","036","Much","4010","Bonrath","Rhein-Sieg-Kreis_382","Much_036","Bonrath_4010"]
["382","Rhein-Sieg-Kreis","036","Much","4022","Gerlinghausen","Rhein-Sieg-Kreis_382","Much_036","Gerlinghausen_4022"]
["382","Rhein-Sieg-Kreis","036","Much","4045","Löbach","Rhein-Sieg-Kreis_382","Much_036","Löbach_4045"]
["382","Rhein-Sieg-Kreis","036","Much","4047","Markelsbach","Rhein-Sieg-Kreis_382","Much_036","Markelsbach_4047"]
["382","Rhein-Sieg-Kreis","036","Much","4050","Miebach","Rhein-Sieg-Kreis_382","Much_036","Miebach_4050"]
["382","Rhein-Sieg-Kreis","036","Much","4052","Much","Rhein-Sieg-Kreis_382","Much_036","Much_4052"]
["382","Rhein-Sieg-Kreis","036","Much","4085","Wersch","Rhein-Sieg-Kreis_382","Much_036","Wersch_4085"]
["382","Rhein-Sieg-Kreis","040","Neunkirchen-Seelscheid","4018","Eischeid","Rhein-Sieg-Kreis_382","Neunkirchen-Seelscheid_040","Eischeid_4018"]
["382","Rhein-Sieg-Kreis","040","Neunkirchen-Seelscheid","4030","Herkenrath","Rhein-Sieg-Kreis_382","Neunkirchen-Seelscheid_040","Herkenrath_4030"]
["382","Rhein-Sieg-Kreis","040","Neunkirchen-Seelscheid","4068","Seelscheid","Rhein-Sieg-Kreis_382","Neunkirchen-Seelscheid_040","Seelscheid_4068"]
["382","Rhein-Sieg-Kreis","040","Neunkirchen-Seelscheid","4072","Söntgerath","Rhein-Sieg-Kreis_382","Neunkirchen-Seelscheid_040","Söntgerath_4072"]
["382","Rhein-Sieg-Kreis","040","Neunkirchen-Seelscheid","4088","Wolperath","Rhein-Sieg-Kreis_382","Neunkirchen-Seelscheid_040","Wolperath_4088"]
["382","Rhein-Sieg-Kreis","048","Rheinbach,Stadt","4113","Flerzheim","Rhein-Sieg-Kreis_382","RheinbachStadt_048","Flerzheim_4113"]
["382","Rhein-Sieg-Kreis","048","Rheinbach,Stadt","4121","Hilberath","Rhein-Sieg-Kreis_382","RheinbachStadt_048","Hilberath_4121"]
["382","Rhein-Sieg-Kreis","048","Rheinbach,Stadt","4139","Neukirchen","Rhein-Sieg-Kreis_382","RheinbachStadt_048","Neukirchen_4139"]
["382","Rhein-Sieg-Kreis","048","Rheinbach,Stadt","4141","Niederdrees","Rhein-Sieg-Kreis_382","RheinbachStadt_048","Niederdrees_4141"]
["382","Rhein-Sieg-Kreis","048","Rheinbach,Stadt","4143","Oberdrees","Rhein-Sieg-Kreis_382","RheinbachStadt_048","Oberdrees_4143"]
["382","Rhein-Sieg-Kreis","048","Rheinbach,Stadt","4149","Queckenberg","Rhein-Sieg-Kreis_382","RheinbachStadt_048","Queckenberg_4149"]
["382","Rhein-Sieg-Kreis","048","Rheinbach,Stadt","4150","Ramershoven","Rhein-Sieg-Kreis_382","RheinbachStadt_048","Ramershoven_4150"]
["382","Rhein-Sieg-Kreis","048","Rheinbach,Stadt","4151","Rheinbach","Rhein-Sieg-Kreis_382","RheinbachStadt_048","Rheinbach_4151"]
["382","Rhein-Sieg-Kreis","048","Rheinbach,Stadt","4157","Todenfeld","Rhein-Sieg-Kreis_382","RheinbachStadt_048","Todenfeld_4157"]
["382","Rhein-Sieg-Kreis","048","Rheinbach,Stadt","4166","Wormersdorf","Rhein-Sieg-Kreis_382","RheinbachStadt_048","Wormersdorf_4166"]
["382","Rhein-Sieg-Kreis","052","Ruppichteroth","4013","Bröl","Rhein-Sieg-Kreis_382","Ruppichteroth_052","Bröl_4013"]
["382","Rhein-Sieg-Kreis","052","Ruppichteroth","4017","Dehrenbach","Rhein-Sieg-Kreis_382","Ruppichteroth_052","Dehrenbach_4017"]
["382","Rhein-Sieg-Kreis","052","Ruppichteroth","4066","Ruppichteroth","Rhein-Sieg-Kreis_382","Ruppichteroth_052","Ruppichteroth_4066"]
["382","Rhein-Sieg-Kreis","052","Ruppichteroth","4080","Velken","Rhein-Sieg-Kreis_382","Ruppichteroth_052","Velken_4080"]
["382","Rhein-Sieg-Kreis","052","Ruppichteroth","4087","Winterscheid","Rhein-Sieg-Kreis_382","Ruppichteroth_052","Winterscheid_4087"]
["382","Rhein-Sieg-Kreis","056","Sankt Augustin,Stadt","4008","Birlinghoven","Rhein-Sieg-Kreis_382","Sankt AugustinStadt_056","Birlinghoven_4008"]
["382","Rhein-Sieg-Kreis","060","Siegburg,Stadt","4011","Braschoß","Rhein-Sieg-Kreis_382","SiegburgStadt_060","Braschoß_4011"]
["382","Rhein-Sieg-Kreis","064","Swisttal","4109","Buschhoven","Rhein-Sieg-Kreis_382","Swisttal_064","Buschhoven_4109"]
["382","Rhein-Sieg-Kreis","064","Swisttal","4112","Essig","Rhein-Sieg-Kreis_382","Swisttal_064","Essig_4112"]
["382","Rhein-Sieg-Kreis","064","Swisttal","4119","Heimerzheim","Rhein-Sieg-Kreis_382","Swisttal_064","Heimerzheim_4119"]
["382","Rhein-Sieg-Kreis","064","Swisttal","4130","Ludendorf","Rhein-Sieg-Kreis_382","Swisttal_064","Ludendorf_4130"]
["382","Rhein-Sieg-Kreis","064","Swisttal","4136","Miel","Rhein-Sieg-Kreis_382","Swisttal_064","Miel_4136"]
["382","Rhein-Sieg-Kreis","064","Swisttal","4137","Morenhoven","Rhein-Sieg-Kreis_382","Swisttal_064","Morenhoven_4137"]
["382","Rhein-Sieg-Kreis","064","Swisttal","4144","Odendorf","Rhein-Sieg-Kreis_382","Swisttal_064","Odendorf_4144"]
["382","Rhein-Sieg-Kreis","064","Swisttal","4145","Ollheim","Rhein-Sieg-Kreis_382","Swisttal_064","Ollheim_4145"]
["382","Rhein-Sieg-Kreis","064","Swisttal","4158","Straßfeld","Rhein-Sieg-Kreis_382","Swisttal_064","Straßfeld_4158"]
["382","Rhein-Sieg-Kreis","068","Troisdorf,Stadt","4004","Altenrath","Rhein-Sieg-Kreis_382","TroisdorfStadt_068","Altenrath_4004"]
["382","Rhein-Sieg-Kreis","072","Wachtberg","4101","Adendorf","Rhein-Sieg-Kreis_382","Wachtberg_072","Adendorf_4101"]
["382","Rhein-Sieg-Kreis","072","Wachtberg","4104","Arzdorf","Rhein-Sieg-Kreis_382","Wachtberg_072","Arzdorf_4104"]
["382","Rhein-Sieg-Kreis","072","Wachtberg","4105","Berkum","Rhein-Sieg-Kreis_382","Wachtberg_072","Berkum_4105"]
["382","Rhein-Sieg-Kreis","072","Wachtberg","4115","Fritzdorf","Rhein-Sieg-Kreis_382","Wachtberg_072","Fritzdorf_4115"]
["382","Rhein-Sieg-Kreis","072","Wachtberg","4117","Gimmersdorf","Rhein-Sieg-Kreis_382","Wachtberg_072","Gimmersdorf_4117"]
["382","Rhein-Sieg-Kreis","072","Wachtberg","4122","Holzem","Rhein-Sieg-Kreis_382","Wachtberg_072","Holzem_4122"]
["382","Rhein-Sieg-Kreis","072","Wachtberg","4129","Ließem","Rhein-Sieg-Kreis_382","Wachtberg_072","Ließem_4129"]
["382","Rhein-Sieg-Kreis","072","Wachtberg","4140","Niederbachem","Rhein-Sieg-Kreis_382","Wachtberg_072","Niederbachem_4140"]
["382","Rhein-Sieg-Kreis","072","Wachtberg","4142","Oberbachem","Rhein-Sieg-Kreis_382","Wachtberg_072","Oberbachem_4142"]
["382","Rhein-Sieg-Kreis","072","Wachtberg","4147","Pech","Rhein-Sieg-Kreis_382","Wachtberg_072","Pech_4147"]
["382","Rhein-Sieg-Kreis","072","Wachtberg","4160","Villip","Rhein-Sieg-Kreis_382","Wachtberg_072","Villip_4160"]
["382","Rhein-Sieg-Kreis","072","Wachtberg","4163","Werthhoven","Rhein-Sieg-Kreis_382","Wachtberg_072","Werthhoven_4163"]
["382","Rhein-Sieg-Kreis","072","Wachtberg","4167","Züllighoven","Rhein-Sieg-Kreis_382","Wachtberg_072","Züllighoven_4167"]
["382","Rhein-Sieg-Kreis","076","Windeck","4016","Dattenfeld","Rhein-Sieg-Kreis_382","Windeck_076","Dattenfeld_4016"]
["382","Rhein-Sieg-Kreis","076","Windeck","4020","Geilhausen","Rhein-Sieg-Kreis_382","Windeck_076","Geilhausen_4020"]
["382","Rhein-Sieg-Kreis","076","Windeck","4029","Herchen","Rhein-Sieg-Kreis_382","Windeck_076","Herchen_4029"]
["382","Rhein-Sieg-Kreis","076","Windeck","4034","Höhe","Rhein-Sieg-Kreis_382","Windeck_076","Höhe_4034"]
["382","Rhein-Sieg-Kreis","076","Windeck","4037","Kohlberg","Rhein-Sieg-Kreis_382","Windeck_076","Kohlberg_4037"]
["382","Rhein-Sieg-Kreis","076","Windeck","4041","Leuscheid","Rhein-Sieg-Kreis_382","Windeck_076","Leuscheid_4041"]
["382","Rhein-Sieg-Kreis","076","Windeck","4065","Rosbach","Rhein-Sieg-Kreis_382","Windeck_076","Rosbach_4065"]
["382","Rhein-Sieg-Kreis","076","Windeck","4086","Windeck","Rhein-Sieg-Kreis_382","Windeck_076","Windeck_4086"]
["970","Siegen-Wittgenstein","004","Bad Berleburg,Stadt","1798","Alertshausen","Siegen-Wittgenstein_970","Bad BerleburgStadt_004","Alertshausen_1798"]
["970","Siegen-Wittgenstein","004","Bad Berleburg,Stadt","1799","Arfeld","Siegen-Wittgenstein_970","Bad BerleburgStadt_004","Arfeld_1799"]
["970","Siegen-Wittgenstein","004","Bad Berleburg,Stadt","1822","Aue","Siegen-Wittgenstein_970","Bad BerleburgStadt_004","Aue_1822"]
["970","Siegen-Wittgenstein","004","Bad Berleburg,Stadt","1833","Bad Berleburg","Siegen-Wittgenstein_970","Bad BerleburgStadt_004","Bad Berleburg_1833"]
["970","Siegen-Wittgenstein","004","Bad Berleburg,Stadt","1800","Beddelhausen","Siegen-Wittgenstein_970","Bad BerleburgStadt_004","Beddelhausen_1800"]
["970","Siegen-Wittgenstein","004","Bad Berleburg,Stadt","1824","Berghausen","Siegen-Wittgenstein_970","Bad BerleburgStadt_004","Berghausen_1824"]
["970","Siegen-Wittgenstein","004","Bad Berleburg,Stadt","1801","Christianseck","Siegen-Wittgenstein_970","Bad BerleburgStadt_004","Christianseck_1801"]
["970","Siegen-Wittgenstein","004","Bad Berleburg,Stadt","1849","Diedenshausen","Siegen-Wittgenstein_970","Bad BerleburgStadt_004","Diedenshausen_1849"]
["970","Siegen-Wittgenstein","004","Bad Berleburg,Stadt","1827","Dotzlar","Siegen-Wittgenstein_970","Bad BerleburgStadt_004","Dotzlar_1827"]
["970","Siegen-Wittgenstein","004","Bad Berleburg,Stadt","1802","Elsoff","Siegen-Wittgenstein_970","Bad BerleburgStadt_004","Elsoff_1802"]
["970","Siegen-Wittgenstein","004","Bad Berleburg,Stadt","1850","Girkhausen","Siegen-Wittgenstein_970","Bad BerleburgStadt_004","Girkhausen_1850"]
["970","Siegen-Wittgenstein","004","Bad Berleburg,Stadt","1828","Hemschlar","Siegen-Wittgenstein_970","Bad BerleburgStadt_004","Hemschlar_1828"]
["970","Siegen-Wittgenstein","004","Bad Berleburg,Stadt","1829","Raumland","Siegen-Wittgenstein_970","Bad BerleburgStadt_004","Raumland_1829"]
["970","Siegen-Wittgenstein","004","Bad Berleburg,Stadt","1804","Richstein","Siegen-Wittgenstein_970","Bad BerleburgStadt_004","Richstein_1804"]
["970","Siegen-Wittgenstein","004","Bad Berleburg,Stadt","1830","Rinthe","Siegen-Wittgenstein_970","Bad BerleburgStadt_004","Rinthe_1830"]
["970","Siegen-Wittgenstein","004","Bad Berleburg,Stadt","1805","Sassenhausen","Siegen-Wittgenstein_970","Bad BerleburgStadt_004","Sassenhausen_1805"]
["970","Siegen-Wittgenstein","004","Bad Berleburg,Stadt","1856","Schüllar","Siegen-Wittgenstein_970","Bad BerleburgStadt_004","Schüllar_1856"]
["970","Siegen-Wittgenstein","004","Bad Berleburg,Stadt","1806","Schwarzenau","Siegen-Wittgenstein_970","Bad BerleburgStadt_004","Schwarzenau_1806"]
["970","Siegen-Wittgenstein","004","Bad Berleburg,Stadt","1807","Stünzel","Siegen-Wittgenstein_970","Bad BerleburgStadt_004","Stünzel_1807"]
["970","Siegen-Wittgenstein","004","Bad Berleburg,Stadt","1808","Weidenhausen","Siegen-Wittgenstein_970","Bad BerleburgStadt_004","Weidenhausen_1808"]
["970","Siegen-Wittgenstein","004","Bad Berleburg,Stadt","1857","Wemlighausen","Siegen-Wittgenstein_970","Bad BerleburgStadt_004","Wemlighausen_1857"]
["970","Siegen-Wittgenstein","004","Bad Berleburg,Stadt","1831","Wingeshausen","Siegen-Wittgenstein_970","Bad BerleburgStadt_004","Wingeshausen_1831"]
["970","Siegen-Wittgenstein","004","Bad Berleburg,Stadt","1858","Wunderthausen","Siegen-Wittgenstein_970","Bad BerleburgStadt_004","Wunderthausen_1858"]
["970","Siegen-Wittgenstein","028","Bad Laasphe,Stadt","1834","Amtshausen","Siegen-Wittgenstein_970","Bad LaaspheStadt_028","Amtshausen_1834"]
["970","Siegen-Wittgenstein","028","Bad Laasphe,Stadt","1809","Banfe","Siegen-Wittgenstein_970","Bad LaaspheStadt_028","Banfe_1809"]
["970","Siegen-Wittgenstein","028","Bad Laasphe,Stadt","1810","Bermershausen","Siegen-Wittgenstein_970","Bad LaaspheStadt_028","Bermershausen_1810"]
["970","Siegen-Wittgenstein","028","Bad Laasphe,Stadt","1811","Bernshausen","Siegen-Wittgenstein_970","Bad LaaspheStadt_028","Bernshausen_1811"]
["970","Siegen-Wittgenstein","028","Bad Laasphe,Stadt","1837","Feudingen","Siegen-Wittgenstein_970","Bad LaaspheStadt_028","Feudingen_1837"]
["970","Siegen-Wittgenstein","028","Bad Laasphe,Stadt","1812","Fischelbach","Siegen-Wittgenstein_970","Bad LaaspheStadt_028","Fischelbach_1812"]
["970","Siegen-Wittgenstein","028","Bad Laasphe,Stadt","1838","Großenbach","Siegen-Wittgenstein_970","Bad LaaspheStadt_028","Großenbach_1838"]
["970","Siegen-Wittgenstein","028","Bad Laasphe,Stadt","1813","Heiligenborn","Siegen-Wittgenstein_970","Bad LaaspheStadt_028","Heiligenborn_1813"]
["970","Siegen-Wittgenstein","028","Bad Laasphe,Stadt","1814","Herbertshausen","Siegen-Wittgenstein_970","Bad LaaspheStadt_028","Herbertshausen_1814"]
["970","Siegen-Wittgenstein","028","Bad Laasphe,Stadt","1815","Hesselbach","Siegen-Wittgenstein_970","Bad LaaspheStadt_028","Hesselbach_1815"]
["970","Siegen-Wittgenstein","028","Bad Laasphe,Stadt","1816","Holzhausen","Siegen-Wittgenstein_970","Bad LaaspheStadt_028","Holzhausen_1816"]
["970","Siegen-Wittgenstein","028","Bad Laasphe,Stadt","1859","Laasphe","Siegen-Wittgenstein_970","Bad LaaspheStadt_028","Laasphe_1859"]
["970","Siegen-Wittgenstein","028","Bad Laasphe,Stadt","1817","Niederlaasphe","Siegen-Wittgenstein_970","Bad LaaspheStadt_028","Niederlaasphe_1817"]
["970","Siegen-Wittgenstein","028","Bad Laasphe,Stadt","1840","Oberndorf","Siegen-Wittgenstein_970","Bad LaaspheStadt_028","Oberndorf_1840"]
["970","Siegen-Wittgenstein","028","Bad Laasphe,Stadt","1818","Puderbach","Siegen-Wittgenstein_970","Bad LaaspheStadt_028","Puderbach_1818"]
["970","Siegen-Wittgenstein","028","Bad Laasphe,Stadt","1841","Rückershausen","Siegen-Wittgenstein_970","Bad LaaspheStadt_028","Rückershausen_1841"]
["970","Siegen-Wittgenstein","028","Bad Laasphe,Stadt","1842","Rüppershausen","Siegen-Wittgenstein_970","Bad LaaspheStadt_028","Rüppershausen_1842"]
["970","Siegen-Wittgenstein","028","Bad Laasphe,Stadt","1819","Saßmannshausen","Siegen-Wittgenstein_970","Bad LaaspheStadt_028","Saßmannshausen_1819"]
["970","Siegen-Wittgenstein","028","Bad Laasphe,Stadt","1844","Steinbach","Siegen-Wittgenstein_970","Bad LaaspheStadt_028","Steinbach_1844"]
["970","Siegen-Wittgenstein","028","Bad Laasphe,Stadt","1845","Volkholz","Siegen-Wittgenstein_970","Bad LaaspheStadt_028","Volkholz_1845"]
["970","Siegen-Wittgenstein","028","Bad Laasphe,Stadt","1846","Weide","Siegen-Wittgenstein_970","Bad LaaspheStadt_028","Weide_1846"]
["970","Siegen-Wittgenstein","028","Bad Laasphe,Stadt","1820","Wittgenstein-Kunst","Siegen-Wittgenstein_970","Bad LaaspheStadt_028","Wittgenstein-Kunst_1820"]
["970","Siegen-Wittgenstein","008","Burbach","1573","Burbach","Siegen-Wittgenstein_970","Burbach_008","Burbach_1573"]
["970","Siegen-Wittgenstein","008","Burbach","1574","Gilsbach","Siegen-Wittgenstein_970","Burbach_008","Gilsbach_1574"]
["970","Siegen-Wittgenstein","008","Burbach","1575","Holzhausen","Siegen-Wittgenstein_970","Burbach_008","Holzhausen_1575"]
["970","Siegen-Wittgenstein","008","Burbach","1576","Lippe","Siegen-Wittgenstein_970","Burbach_008","Lippe_1576"]
["970","Siegen-Wittgenstein","008","Burbach","1577","Lützeln","Siegen-Wittgenstein_970","Burbach_008","Lützeln_1577"]
["970","Siegen-Wittgenstein","008","Burbach","1579","Niederdresselndorf","Siegen-Wittgenstein_970","Burbach_008","Niederdresselndorf_1579"]
["970","Siegen-Wittgenstein","008","Burbach","1580","Oberdresselndorf","Siegen-Wittgenstein_970","Burbach_008","Oberdresselndorf_1580"]
["970","Siegen-Wittgenstein","008","Burbach","1584","Wahlbach","Siegen-Wittgenstein_970","Burbach_008","Wahlbach_1584"]
["970","Siegen-Wittgenstein","008","Burbach","1587","Würgendorf","Siegen-Wittgenstein_970","Burbach_008","Würgendorf_1587"]
["970","Siegen-Wittgenstein","012","Erndtebrück","1823","Balde","Siegen-Wittgenstein_970","Erndtebrück_012","Balde_1823"]
["970","Siegen-Wittgenstein","012","Erndtebrück","1835","Benfe","Siegen-Wittgenstein_970","Erndtebrück_012","Benfe_1835"]
["970","Siegen-Wittgenstein","012","Erndtebrück","1825","Birkefehl","Siegen-Wittgenstein_970","Erndtebrück_012","Birkefehl_1825"]
["970","Siegen-Wittgenstein","012","Erndtebrück","1826","Birkelbach","Siegen-Wittgenstein_970","Erndtebrück_012","Birkelbach_1826"]
["970","Siegen-Wittgenstein","012","Erndtebrück","1836","Erndtebrück","Siegen-Wittgenstein_970","Erndtebrück_012","Erndtebrück_1836"]
["970","Siegen-Wittgenstein","012","Erndtebrück","1843","Schameder","Siegen-Wittgenstein_970","Erndtebrück_012","Schameder_1843"]
["970","Siegen-Wittgenstein","012","Erndtebrück","1832","Womelsdorf","Siegen-Wittgenstein_970","Erndtebrück_012","Womelsdorf_1832"]
["970","Siegen-Wittgenstein","012","Erndtebrück","1848","Zinse","Siegen-Wittgenstein_970","Erndtebrück_012","Zinse_1848"]
["970","Siegen-Wittgenstein","016","Freudenberg,Stadt","1603","Alchen","Siegen-Wittgenstein_970","FreudenbergStadt_016","Alchen_1603"]
["970","Siegen-Wittgenstein","016","Freudenberg,Stadt","1604","Bottenberg","Siegen-Wittgenstein_970","FreudenbergStadt_016","Bottenberg_1604"]
["970","Siegen-Wittgenstein","016","Freudenberg,Stadt","1605","Bühl","Siegen-Wittgenstein_970","FreudenbergStadt_016","Bühl_1605"]
["970","Siegen-Wittgenstein","016","Freudenberg,Stadt","1606","Büschergrund","Siegen-Wittgenstein_970","FreudenbergStadt_016","Büschergrund_1606"]
["970","Siegen-Wittgenstein","016","Freudenberg,Stadt","1607","Dirlenbach","Siegen-Wittgenstein_970","FreudenbergStadt_016","Dirlenbach_1607"]
["970","Siegen-Wittgenstein","016","Freudenberg,Stadt","1608","Freudenberg","Siegen-Wittgenstein_970","FreudenbergStadt_016","Freudenberg_1608"]
["970","Siegen-Wittgenstein","016","Freudenberg,Stadt","1609","Heisberg","Siegen-Wittgenstein_970","FreudenbergStadt_016","Heisberg_1609"]
["970","Siegen-Wittgenstein","016","Freudenberg,Stadt","1610","Hohenhain","Siegen-Wittgenstein_970","FreudenbergStadt_016","Hohenhain_1610"]
["970","Siegen-Wittgenstein","016","Freudenberg,Stadt","1612","Lindenberg","Siegen-Wittgenstein_970","FreudenbergStadt_016","Lindenberg_1612"]
["970","Siegen-Wittgenstein","016","Freudenberg,Stadt","1613","Mausbach","Siegen-Wittgenstein_970","FreudenbergStadt_016","Mausbach_1613"]
["970","Siegen-Wittgenstein","016","Freudenberg,Stadt","1616","Niederheuslingen","Siegen-Wittgenstein_970","FreudenbergStadt_016","Niederheuslingen_1616"]
["970","Siegen-Wittgenstein","016","Freudenberg,Stadt","1617","Niederholzklau","Siegen-Wittgenstein_970","FreudenbergStadt_016","Niederholzklau_1617"]
["970","Siegen-Wittgenstein","016","Freudenberg,Stadt","1618","Niederndorf","Siegen-Wittgenstein_970","FreudenbergStadt_016","Niederndorf_1618"]
["970","Siegen-Wittgenstein","016","Freudenberg,Stadt","1619","Oberfischbach","Siegen-Wittgenstein_970","FreudenbergStadt_016","Oberfischbach_1619"]
["970","Siegen-Wittgenstein","016","Freudenberg,Stadt","1620","Oberheuslingen","Siegen-Wittgenstein_970","FreudenbergStadt_016","Oberheuslingen_1620"]
["970","Siegen-Wittgenstein","016","Freudenberg,Stadt","1622","Oberholzklau","Siegen-Wittgenstein_970","FreudenbergStadt_016","Oberholzklau_1622"]
["970","Siegen-Wittgenstein","016","Freudenberg,Stadt","1624","Plittershagen","Siegen-Wittgenstein_970","FreudenbergStadt_016","Plittershagen_1624"]
["970","Siegen-Wittgenstein","020","Hilchenbach,Stadt","1625","Allenbach","Siegen-Wittgenstein_970","HilchenbachStadt_020","Allenbach_1625"]
["970","Siegen-Wittgenstein","020","Hilchenbach,Stadt","1626","Dahlbruch","Siegen-Wittgenstein_970","HilchenbachStadt_020","Dahlbruch_1626"]
["970","Siegen-Wittgenstein","020","Hilchenbach,Stadt","1627","Grund","Siegen-Wittgenstein_970","HilchenbachStadt_020","Grund_1627"]
["970","Siegen-Wittgenstein","020","Hilchenbach,Stadt","1629","Hadem","Siegen-Wittgenstein_970","HilchenbachStadt_020","Hadem_1629"]
["970","Siegen-Wittgenstein","020","Hilchenbach,Stadt","1630","Helberhausen","Siegen-Wittgenstein_970","HilchenbachStadt_020","Helberhausen_1630"]
["970","Siegen-Wittgenstein","020","Hilchenbach,Stadt","1638","Hilchenbach","Siegen-Wittgenstein_970","HilchenbachStadt_020","Hilchenbach_1638"]
["970","Siegen-Wittgenstein","020","Hilchenbach,Stadt","1632","Lützel","Siegen-Wittgenstein_970","HilchenbachStadt_020","Lützel_1632"]
["970","Siegen-Wittgenstein","020","Hilchenbach,Stadt","1633","Müsen","Siegen-Wittgenstein_970","HilchenbachStadt_020","Müsen_1633"]
["970","Siegen-Wittgenstein","020","Hilchenbach,Stadt","1634","Oberndorf","Siegen-Wittgenstein_970","HilchenbachStadt_020","Oberndorf_1634"]
["970","Siegen-Wittgenstein","020","Hilchenbach,Stadt","1635","Oechelhausen","Siegen-Wittgenstein_970","HilchenbachStadt_020","Oechelhausen_1635"]
["970","Siegen-Wittgenstein","020","Hilchenbach,Stadt","1636","Ruckersfeld","Siegen-Wittgenstein_970","HilchenbachStadt_020","Ruckersfeld_1636"]
["970","Siegen-Wittgenstein","020","Hilchenbach,Stadt","1637","Vormwald","Siegen-Wittgenstein_970","HilchenbachStadt_020","Vormwald_1637"]
["970","Siegen-Wittgenstein","024","Kreuztal,Stadt","1591","Burgholdinghausen","Siegen-Wittgenstein_970","KreuztalStadt_024","Burgholdinghausen_1591"]
["970","Siegen-Wittgenstein","024","Kreuztal,Stadt","1592","Buschhütten","Siegen-Wittgenstein_970","KreuztalStadt_024","Buschhütten_1592"]
["970","Siegen-Wittgenstein","024","Kreuztal,Stadt","1595","Eichen","Siegen-Wittgenstein_970","KreuztalStadt_024","Eichen_1595"]
["970","Siegen-Wittgenstein","024","Kreuztal,Stadt","1597","Fellinghausen","Siegen-Wittgenstein_970","KreuztalStadt_024","Fellinghausen_1597"]
["970","Siegen-Wittgenstein","024","Kreuztal,Stadt","1598","Ferndorf","Siegen-Wittgenstein_970","KreuztalStadt_024","Ferndorf_1598"]
["970","Siegen-Wittgenstein","024","Kreuztal,Stadt","1615","Hees","Siegen-Wittgenstein_970","KreuztalStadt_024","Hees_1615"]
["970","Siegen-Wittgenstein","024","Kreuztal,Stadt","1599","Kredenbach","Siegen-Wittgenstein_970","KreuztalStadt_024","Kredenbach_1599"]
["970","Siegen-Wittgenstein","024","Kreuztal,Stadt","1596","Kreuztal","Siegen-Wittgenstein_970","KreuztalStadt_024","Kreuztal_1596"]
["970","Siegen-Wittgenstein","024","Kreuztal,Stadt","1593","Krombach","Siegen-Wittgenstein_970","KreuztalStadt_024","Krombach_1593"]
["970","Siegen-Wittgenstein","024","Kreuztal,Stadt","1600","Littfeld","Siegen-Wittgenstein_970","KreuztalStadt_024","Littfeld_1600"]
["970","Siegen-Wittgenstein","024","Kreuztal,Stadt","1601","Osthelden","Siegen-Wittgenstein_970","KreuztalStadt_024","Osthelden_1601"]
["970","Siegen-Wittgenstein","032","Netphen","1639","Afholderbach","Siegen-Wittgenstein_970","Netphen_032","Afholderbach_1639"]
["970","Siegen-Wittgenstein","032","Netphen","1641","Beienbach","Siegen-Wittgenstein_970","Netphen_032","Beienbach_1641"]
["970","Siegen-Wittgenstein","032","Netphen","1642","Brauersdorf","Siegen-Wittgenstein_970","Netphen_032","Brauersdorf_1642"]
["970","Siegen-Wittgenstein","032","Netphen","1644","Deuz","Siegen-Wittgenstein_970","Netphen_032","Deuz_1644"]
["970","Siegen-Wittgenstein","032","Netphen","1645","Dreistiefenbach","Siegen-Wittgenstein_970","Netphen_032","Dreistiefenbach_1645"]
["970","Siegen-Wittgenstein","032","Netphen","1646","Eckmannshausen","Siegen-Wittgenstein_970","Netphen_032","Eckmannshausen_1646"]
["970","Siegen-Wittgenstein","032","Netphen","1647","Eschenbach","Siegen-Wittgenstein_970","Netphen_032","Eschenbach_1647"]
["970","Siegen-Wittgenstein","032","Netphen","1650","Frohnhausen","Siegen-Wittgenstein_970","Netphen_032","Frohnhausen_1650"]
["970","Siegen-Wittgenstein","032","Netphen","1652","Grissenbach","Siegen-Wittgenstein_970","Netphen_032","Grissenbach_1652"]
["970","Siegen-Wittgenstein","032","Netphen","1653","Hainchen","Siegen-Wittgenstein_970","Netphen_032","Hainchen_1653"]
["970","Siegen-Wittgenstein","032","Netphen","1654","Helgersdorf","Siegen-Wittgenstein_970","Netphen_032","Helgersdorf_1654"]
["970","Siegen-Wittgenstein","032","Netphen","1655","Herzhausen","Siegen-Wittgenstein_970","Netphen_032","Herzhausen_1655"]
["970","Siegen-Wittgenstein","032","Netphen","1656","Irmgarteichen","Siegen-Wittgenstein_970","Netphen_032","Irmgarteichen_1656"]
["970","Siegen-Wittgenstein","032","Netphen","1657","Nauholz","Siegen-Wittgenstein_970","Netphen_032","Nauholz_1657"]
["970","Siegen-Wittgenstein","032","Netphen","1658","Nenkersdorf","Siegen-Wittgenstein_970","Netphen_032","Nenkersdorf_1658"]
["970","Siegen-Wittgenstein","032","Netphen","1659","Niedernetphen","Siegen-Wittgenstein_970","Netphen_032","Niedernetphen_1659"]
["970","Siegen-Wittgenstein","032","Netphen","1661","Obernau","Siegen-Wittgenstein_970","Netphen_032","Obernau_1661"]
["970","Siegen-Wittgenstein","032","Netphen","1662","Obernetphen","Siegen-Wittgenstein_970","Netphen_032","Obernetphen_1662"]
["970","Siegen-Wittgenstein","032","Netphen","1664","Oelgershausen","Siegen-Wittgenstein_970","Netphen_032","Oelgershausen_1664"]
["970","Siegen-Wittgenstein","032","Netphen","1666","Salchendorf","Siegen-Wittgenstein_970","Netphen_032","Salchendorf_1666"]
["970","Siegen-Wittgenstein","032","Netphen","1667","Sohlbach","Siegen-Wittgenstein_970","Netphen_032","Sohlbach_1667"]
["970","Siegen-Wittgenstein","032","Netphen","1668","Unglinghausen","Siegen-Wittgenstein_970","Netphen_032","Unglinghausen_1668"]
["970","Siegen-Wittgenstein","032","Netphen","1669","Walpersdorf","Siegen-Wittgenstein_970","Netphen_032","Walpersdorf_1669"]
["970","Siegen-Wittgenstein","032","Netphen","1670","Werthenbach","Siegen-Wittgenstein_970","Netphen_032","Werthenbach_1670"]
["970","Siegen-Wittgenstein","036","Neunkirchen","1582","Altenseelbach","Siegen-Wittgenstein_970","Neunkirchen_036","Altenseelbach_1582"]
["970","Siegen-Wittgenstein","036","Neunkirchen","1578","Neunkirchen","Siegen-Wittgenstein_970","Neunkirchen_036","Neunkirchen_1578"]
["970","Siegen-Wittgenstein","036","Neunkirchen","1581","Salchendorf","Siegen-Wittgenstein_970","Neunkirchen_036","Salchendorf_1581"]
["970","Siegen-Wittgenstein","036","Neunkirchen","1583","Struthütten","Siegen-Wittgenstein_970","Neunkirchen_036","Struthütten_1583"]
["970","Siegen-Wittgenstein","036","Neunkirchen","1585","Wiederstein","Siegen-Wittgenstein_970","Neunkirchen_036","Wiederstein_1585"]
["970","Siegen-Wittgenstein","036","Neunkirchen","1588","Zeppenfeld","Siegen-Wittgenstein_970","Neunkirchen_036","Zeppenfeld_1588"]
["970","Siegen-Wittgenstein","040","Siegen,Stadt","1643","Breitenbach","Siegen-Wittgenstein_970","SiegenStadt_040","Breitenbach_1643"]
["970","Siegen-Wittgenstein","040","Siegen,Stadt","1590","Buchen","Siegen-Wittgenstein_970","SiegenStadt_040","Buchen_1590"]
["970","Siegen-Wittgenstein","040","Siegen,Stadt","1674","Bürbach","Siegen-Wittgenstein_970","SiegenStadt_040","Bürbach_1674"]
["970","Siegen-Wittgenstein","040","Siegen,Stadt","1678","Eiserfeld","Siegen-Wittgenstein_970","SiegenStadt_040","Eiserfeld_1678"]
["970","Siegen-Wittgenstein","040","Siegen,Stadt","1687","Eisern","Siegen-Wittgenstein_970","SiegenStadt_040","Eisern_1687"]
["970","Siegen-Wittgenstein","040","Siegen,Stadt","1648","Feuersbach","Siegen-Wittgenstein_970","SiegenStadt_040","Feuersbach_1648"]
["970","Siegen-Wittgenstein","040","Siegen,Stadt","1679","Gosenbach","Siegen-Wittgenstein_970","SiegenStadt_040","Gosenbach_1679"]
["970","Siegen-Wittgenstein","040","Siegen,Stadt","1611","Langenholdinghausen","Siegen-Wittgenstein_970","SiegenStadt_040","Langenholdinghausen_1611"]
["970","Siegen-Wittgenstein","040","Siegen,Stadt","1614","Meiswinkel","Siegen-Wittgenstein_970","SiegenStadt_040","Meiswinkel_1614"]
["970","Siegen-Wittgenstein","040","Siegen,Stadt","1660","Niedersetzen","Siegen-Wittgenstein_970","SiegenStadt_040","Niedersetzen_1660"]
["970","Siegen-Wittgenstein","040","Siegen,Stadt","1623","Oberschelden","Siegen-Wittgenstein_970","SiegenStadt_040","Oberschelden_1623"]
["970","Siegen-Wittgenstein","040","Siegen,Stadt","1663","Obersetzen","Siegen-Wittgenstein_970","SiegenStadt_040","Obersetzen_1663"]
["970","Siegen-Wittgenstein","040","Siegen,Stadt","1682","Seelbach","Siegen-Wittgenstein_970","SiegenStadt_040","Seelbach_1682"]
["970","Siegen-Wittgenstein","040","Siegen,Stadt","1683","Sohlbach","Siegen-Wittgenstein_970","SiegenStadt_040","Sohlbach_1683"]
["970","Siegen-Wittgenstein","040","Siegen,Stadt","1684","Trupbach","Siegen-Wittgenstein_970","SiegenStadt_040","Trupbach_1684"]
["970","Siegen-Wittgenstein","040","Siegen,Stadt","1685","Volnsberg","Siegen-Wittgenstein_970","SiegenStadt_040","Volnsberg_1685"]
["970","Siegen-Wittgenstein","044","Wilnsdorf","1640","Anzhausen","Siegen-Wittgenstein_970","Wilnsdorf_044","Anzhausen_1640"]
["970","Siegen-Wittgenstein","044","Wilnsdorf","1649","Flammersbach","Siegen-Wittgenstein_970","Wilnsdorf_044","Flammersbach_1649"]
["970","Siegen-Wittgenstein","044","Wilnsdorf","1651","Gernsdorf","Siegen-Wittgenstein_970","Wilnsdorf_044","Gernsdorf_1651"]
["970","Siegen-Wittgenstein","044","Wilnsdorf","1688","Niederdielfen","Siegen-Wittgenstein_970","Wilnsdorf_044","Niederdielfen_1688"]
["970","Siegen-Wittgenstein","044","Wilnsdorf","1689","Oberdielfen","Siegen-Wittgenstein_970","Wilnsdorf_044","Oberdielfen_1689"]
["970","Siegen-Wittgenstein","044","Wilnsdorf","1690","Obersdorf","Siegen-Wittgenstein_970","Wilnsdorf_044","Obersdorf_1690"]
["970","Siegen-Wittgenstein","044","Wilnsdorf","1691","Rinsdorf","Siegen-Wittgenstein_970","Wilnsdorf_044","Rinsdorf_1691"]
["970","Siegen-Wittgenstein","044","Wilnsdorf","1665","Rudersdorf","Siegen-Wittgenstein_970","Wilnsdorf_044","Rudersdorf_1665"]
["970","Siegen-Wittgenstein","044","Wilnsdorf","1586","Wilden","Siegen-Wittgenstein_970","Wilnsdorf_044","Wilden_1586"]
["970","Siegen-Wittgenstein","044","Wilnsdorf","1692","Wilgersdorf","Siegen-Wittgenstein_970","Wilnsdorf_044","Wilgersdorf_1692"]
["970","Siegen-Wittgenstein","044","Wilnsdorf","1693","Wilnsdorf","Siegen-Wittgenstein_970","Wilnsdorf_044","Wilnsdorf_1693"]
["974","Soest","004","Anröchte","1442","Altengeseke","Soest_974","Anröchte_004","Altengeseke_1442"]
["974","Soest","004","Anröchte","1443","Altenmellrich","Soest_974","Anröchte_004","Altenmellrich_1443"]
["974","Soest","004","Anröchte","1444","Anröchte","Soest_974","Anröchte_004","Anröchte_1444"]
["974","Soest","004","Anröchte","1446","Berge","Soest_974","Anröchte_004","Berge_1446"]
["974","Soest","004","Anröchte","1472","Effeln","Soest_974","Anröchte_004","Effeln_1472"]
["974","Soest","004","Anröchte","1450","Klieve","Soest_974","Anröchte_004","Klieve_1450"]
["974","Soest","004","Anröchte","1451","Mellrich","Soest_974","Anröchte_004","Mellrich_1451"]
["974","Soest","004","Anröchte","1454","Robringhausen","Soest_974","Anröchte_004","Robringhausen_1454"]
["974","Soest","004","Anröchte","1458","Uelde","Soest_974","Anröchte_004","Uelde_1458"]
["974","Soest","004","Anröchte","1459","Waltringhausen","Soest_974","Anröchte_004","Waltringhausen_1459"]
["974","Soest","008","Bad Sassendorf","1757","Bettinghausen","Soest_974","Bad Sassendorf_008","Bettinghausen_1757"]
["974","Soest","008","Bad Sassendorf","1743","Beusingsen","Soest_974","Bad Sassendorf_008","Beusingsen_1743"]
["974","Soest","008","Bad Sassendorf","1745","Elfsen","Soest_974","Bad Sassendorf_008","Elfsen_1745"]
["974","Soest","008","Bad Sassendorf","1746","Enkesen Im Klei","Soest_974","Bad Sassendorf_008","Enkesen Im Klei_1746"]
["974","Soest","008","Bad Sassendorf","1925","Gabrechten","Soest_974","Bad Sassendorf_008","Gabrechten_1925"]
["974","Soest","008","Bad Sassendorf","1747","Heppen","Soest_974","Bad Sassendorf_008","Heppen_1747"]
["974","Soest","008","Bad Sassendorf","1748","Herringsen","Soest_974","Bad Sassendorf_008","Herringsen_1748"]
["974","Soest","008","Bad Sassendorf","1751","Lohne","Soest_974","Bad Sassendorf_008","Lohne_1751"]
["974","Soest","008","Bad Sassendorf","1753","Neuengeseke","Soest_974","Bad Sassendorf_008","Neuengeseke_1753"]
["974","Soest","008","Bad Sassendorf","1754","Opmünden","Soest_974","Bad Sassendorf_008","Opmünden_1754"]
["974","Soest","008","Bad Sassendorf","1766","Ostinghausen","Soest_974","Bad Sassendorf_008","Ostinghausen_1766"]
["974","Soest","008","Bad Sassendorf","1756","Sassendorf","Soest_974","Bad Sassendorf_008","Sassendorf_1756"]
["974","Soest","008","Bad Sassendorf","1709","Weslarn","Soest_974","Bad Sassendorf_008","Weslarn_1709"]
["974","Soest","012","Ense","1711","Bilme","Soest_974","Ense_012","Bilme_1711"]
["974","Soest","012","Ense","1712","Bittingen","Soest_974","Ense_012","Bittingen_1712"]
["974","Soest","012","Ense","1714","Bremen","Soest_974","Ense_012","Bremen_1714"]
["974","Soest","012","Ense","1720","Gerlingen","Soest_974","Ense_012","Gerlingen_1720"]
["974","Soest","012","Ense","1724","Höingen","Soest_974","Ense_012","Höingen_1724"]
["974","Soest","012","Ense","1725","Hünningen","Soest_974","Ense_012","Hünningen_1725"]
["974","Soest","012","Ense","1728","Lüttringen","Soest_974","Ense_012","Lüttringen_1728"]
["974","Soest","012","Ense","1729","Niederense","Soest_974","Ense_012","Niederense_1729"]
["974","Soest","012","Ense","1730","Oberense","Soest_974","Ense_012","Oberense_1730"]
["974","Soest","012","Ense","1731","Parsit","Soest_974","Ense_012","Parsit_1731"]
["974","Soest","012","Ense","1732","Ruhne","Soest_974","Ense_012","Ruhne_1732"]
["974","Soest","012","Ense","1733","Sieveringen","Soest_974","Ense_012","Sieveringen_1733"]
["974","Soest","012","Ense","1736","Volbringen","Soest_974","Ense_012","Volbringen_1736"]
["974","Soest","012","Ense","1738","Waltringen","Soest_974","Ense_012","Waltringen_1738"]
["974","Soest","016","Erwitte,Stadt","1467","Bad Westernkotten","Soest_974","ErwitteStadt_016","Bad Westernkotten_1467"]
["974","Soest","016","Erwitte,Stadt","1445","Berenbrock","Soest_974","ErwitteStadt_016","Berenbrock_1445"]
["974","Soest","016","Erwitte,Stadt","1447","Böckum","Soest_974","ErwitteStadt_016","Böckum_1447"]
["974","Soest","016","Erwitte,Stadt","1448","Ebbinghausen","Soest_974","ErwitteStadt_016","Ebbinghausen_1448"]
["974","Soest","016","Erwitte,Stadt","1461","Eikeloh","Soest_974","ErwitteStadt_016","Eikeloh_1461"]
["974","Soest","016","Erwitte,Stadt","1462","Erwitte","Soest_974","ErwitteStadt_016","Erwitte_1462"]
["974","Soest","016","Erwitte,Stadt","1449","Horn","Soest_974","ErwitteStadt_016","Horn_1449"]
["974","Soest","016","Erwitte,Stadt","1452","Merklinghausen","Soest_974","ErwitteStadt_016","Merklinghausen_1452"]
["974","Soest","016","Erwitte,Stadt","1453","Norddorf","Soest_974","ErwitteStadt_016","Norddorf_1453"]
["974","Soest","016","Erwitte,Stadt","1455","Schallern","Soest_974","ErwitteStadt_016","Schallern_1455"]
["974","Soest","016","Erwitte,Stadt","1456","Schmerlecke","Soest_974","ErwitteStadt_016","Schmerlecke_1456"]
["974","Soest","016","Erwitte,Stadt","1457","Seringhausen","Soest_974","ErwitteStadt_016","Seringhausen_1457"]
["974","Soest","016","Erwitte,Stadt","1464","Stirpe","Soest_974","ErwitteStadt_016","Stirpe_1464"]
["974","Soest","016","Erwitte,Stadt","1465","Völlinghausen","Soest_974","ErwitteStadt_016","Völlinghausen_1465"]
["974","Soest","016","Erwitte,Stadt","1466","Weckinghausen","Soest_974","ErwitteStadt_016","Weckinghausen_1466"]
["974","Soest","020","Geseke,Stadt","1488","Bönninghausen","Soest_974","GesekeStadt_020","Bönninghausen_1488"]
["974","Soest","020","Geseke,Stadt","1490","Ehringhausen","Soest_974","GesekeStadt_020","Ehringhausen_1490"]
["974","Soest","020","Geseke,Stadt","1917","Eringerfeld","Soest_974","GesekeStadt_020","Eringerfeld_1917"]
["974","Soest","020","Geseke,Stadt","1919","Ermsinghausen","Soest_974","GesekeStadt_020","Ermsinghausen_1919"]
["974","Soest","020","Geseke,Stadt","1468","Geseke","Soest_974","GesekeStadt_020","Geseke_1468"]
["974","Soest","020","Geseke,Stadt","1918","Langeneicke","Soest_974","GesekeStadt_020","Langeneicke_1918"]
["974","Soest","020","Geseke,Stadt","1493","Mönninghausen","Soest_974","GesekeStadt_020","Mönninghausen_1493"]
["974","Soest","020","Geseke,Stadt","1495","Störmede","Soest_974","GesekeStadt_020","Störmede_1495"]
["974","Soest","024","Lippetal","1698","Brockhausen","Soest_974","Lippetal_024","Brockhausen_1698"]
["974","Soest","024","Lippetal","1759","Heintrop","Soest_974","Lippetal_024","Heintrop_1759"]
["974","Soest","024","Lippetal","1862","Herzfeld","Soest_974","Lippetal_024","Herzfeld_1862"]
["974","Soest","024","Lippetal","1760","Hovestadt","Soest_974","Lippetal_024","Hovestadt_1760"]
["974","Soest","024","Lippetal","1761","Hultrop","Soest_974","Lippetal_024","Hultrop_1761"]
["974","Soest","024","Lippetal","1762","Krewinkel","Soest_974","Lippetal_024","Krewinkel_1762"]
["974","Soest","024","Lippetal","1863","Lippborg","Soest_974","Lippetal_024","Lippborg_1863"]
["974","Soest","024","Lippetal","1764","Niederbauer","Soest_974","Lippetal_024","Niederbauer_1764"]
["974","Soest","024","Lippetal","1926","Nordwald","Soest_974","Lippetal_024","Nordwald_1926"]
["974","Soest","024","Lippetal","1765","Oestinghausen","Soest_974","Lippetal_024","Oestinghausen_1765"]
["974","Soest","024","Lippetal","1767","Schoneberg","Soest_974","Lippetal_024","Schoneberg_1767"]
["974","Soest","028","Lippstadt,Stadt","1882","Bad Waldliesborn","Soest_974","LippstadtStadt_028","Bad Waldliesborn_1882"]
["974","Soest","028","Lippstadt,Stadt","1460","Benninghausen","Soest_974","LippstadtStadt_028","Benninghausen_1460"]
["974","Soest","028","Lippstadt,Stadt","1487","Bökenförde","Soest_974","LippstadtStadt_028","Bökenförde_1487"]
["974","Soest","028","Lippstadt,Stadt","1915","Cappel","Soest_974","LippstadtStadt_028","Cappel_1915"]
["974","Soest","028","Lippstadt,Stadt","1489","Dedinghausen","Soest_974","LippstadtStadt_028","Dedinghausen_1489"]
["974","Soest","028","Lippstadt,Stadt","1758","Eickelborn","Soest_974","LippstadtStadt_028","Eickelborn_1758"]
["974","Soest","028","Lippstadt,Stadt","1491","Esbeck","Soest_974","LippstadtStadt_028","Esbeck_1491"]
["974","Soest","028","Lippstadt,Stadt","1879","Garfeln","Soest_974","LippstadtStadt_028","Garfeln_1879"]
["974","Soest","028","Lippstadt,Stadt","1463","Hellinghausen","Soest_974","LippstadtStadt_028","Hellinghausen_1463"]
["974","Soest","028","Lippstadt,Stadt","1913","Herringhausen","Soest_974","LippstadtStadt_028","Herringhausen_1913"]
["974","Soest","028","Lippstadt,Stadt","1880","Hörste","Soest_974","LippstadtStadt_028","Hörste_1880"]
["974","Soest","028","Lippstadt,Stadt","1916","Lipperode","Soest_974","LippstadtStadt_028","Lipperode_1916"]
["974","Soest","028","Lippstadt,Stadt","1469","Lippstadt","Soest_974","LippstadtStadt_028","Lippstadt_1469"]
["974","Soest","028","Lippstadt,Stadt","1763","Lohe","Soest_974","LippstadtStadt_028","Lohe_1763"]
["974","Soest","028","Lippstadt,Stadt","1914","Overhagen","Soest_974","LippstadtStadt_028","Overhagen_1914"]
["974","Soest","028","Lippstadt,Stadt","1881","Rebbeke","Soest_974","LippstadtStadt_028","Rebbeke_1881"]
["974","Soest","028","Lippstadt,Stadt","1494","Rixbeck","Soest_974","LippstadtStadt_028","Rixbeck_1494"]
["974","Soest","032","Möhnesee","1710","Berlingsen","Soest_974","Möhnesee_032","Berlingsen_1710"]
["974","Soest","032","Möhnesee","1715","Brüllingsen","Soest_974","Möhnesee_032","Brüllingsen_1715"]
["974","Soest","032","Möhnesee","1716","Büecke","Soest_974","Möhnesee_032","Büecke_1716"]
["974","Soest","032","Möhnesee","1717","Delecke","Soest_974","Möhnesee_032","Delecke_1717"]
["974","Soest","032","Möhnesee","1718","Echtrop","Soest_974","Möhnesee_032","Echtrop_1718"]
["974","Soest","032","Möhnesee","1719","Ellingsen","Soest_974","Möhnesee_032","Ellingsen_1719"]
["974","Soest","032","Möhnesee","1721","Günne","Soest_974","Möhnesee_032","Günne_1721"]
["974","Soest","032","Möhnesee","1722","Hewingsen","Soest_974","Möhnesee_032","Hewingsen_1722"]
["974","Soest","032","Möhnesee","1727","Körbecke","Soest_974","Möhnesee_032","Körbecke_1727"]
["974","Soest","032","Möhnesee","1734","Stockum","Soest_974","Möhnesee_032","Stockum_1734"]
["974","Soest","032","Möhnesee","1735","Theiningsen","Soest_974","Möhnesee_032","Theiningsen_1735"]
["974","Soest","032","Möhnesee","1737","Völlinghausen/Möhne","Soest_974","Möhnesee_032","Völlinghausen/Möhne_1737"]
["974","Soest","032","Möhnesee","1739","Wamel","Soest_974","Möhnesee_032","Wamel_1739"]
["974","Soest","032","Möhnesee","1740","Westrich","Soest_974","Möhnesee_032","Westrich_1740"]
["974","Soest","032","Möhnesee","1741","Wippringsen","Soest_974","Möhnesee_032","Wippringsen_1741"]
["974","Soest","036","Rüthen,Stadt","1470","Altenrüthen","Soest_974","RüthenStadt_036","Altenrüthen_1470"]
["974","Soest","036","Rüthen,Stadt","1471","Drewer","Soest_974","RüthenStadt_036","Drewer_1471"]
["974","Soest","036","Rüthen,Stadt","1473","Hemmern","Soest_974","RüthenStadt_036","Hemmern_1473"]
["974","Soest","036","Rüthen,Stadt","1474","Hoinkhausen","Soest_974","RüthenStadt_036","Hoinkhausen_1474"]
["974","Soest","036","Rüthen,Stadt","1475","Kallenhardt","Soest_974","RüthenStadt_036","Kallenhardt_1475"]
["974","Soest","036","Rüthen,Stadt","1476","Kellinghausen","Soest_974","RüthenStadt_036","Kellinghausen_1476"]
["974","Soest","036","Rüthen,Stadt","1477","Kneblinghausen","Soest_974","RüthenStadt_036","Kneblinghausen_1477"]
["974","Soest","036","Rüthen,Stadt","1478","Langenstraße","Soest_974","RüthenStadt_036","Langenstraße_1478"]
["974","Soest","036","Rüthen,Stadt","1480","Meiste","Soest_974","RüthenStadt_036","Meiste_1480"]
["974","Soest","036","Rüthen,Stadt","1479","Menzel","Soest_974","RüthenStadt_036","Menzel_1479"]
["974","Soest","036","Rüthen,Stadt","1481","Nettelstädt","Soest_974","RüthenStadt_036","Nettelstädt_1481"]
["974","Soest","036","Rüthen,Stadt","1482","Oestereiden","Soest_974","RüthenStadt_036","Oestereiden_1482"]
["974","Soest","036","Rüthen,Stadt","1486","Rüthen","Soest_974","RüthenStadt_036","Rüthen_1486"]
["974","Soest","036","Rüthen,Stadt","1484","Weickede","Soest_974","RüthenStadt_036","Weickede_1484"]
["974","Soest","036","Rüthen,Stadt","1485","Westereiden","Soest_974","RüthenStadt_036","Westereiden_1485"]
["974","Soest","040","Soest,Stadt","1768","Ampen","Soest_974","SoestStadt_040","Ampen_1768"]
["974","Soest","040","Soest,Stadt","1742","Bergede","Soest_974","SoestStadt_040","Bergede_1742"]
["974","Soest","040","Soest,Stadt","1744","Deiringsen","Soest_974","SoestStadt_040","Deiringsen_1744"]
["974","Soest","040","Soest,Stadt","1772","Enkesen Bei Paradiese","Soest_974","SoestStadt_040","Enkesen Bei Paradiese_1772"]
["974","Soest","040","Soest,Stadt","1773","Epsingsen","Soest_974","SoestStadt_040","Epsingsen_1773"]
["974","Soest","040","Soest,Stadt","1775","Hattrop","Soest_974","SoestStadt_040","Hattrop_1775"]
["974","Soest","040","Soest,Stadt","1701","Hattropholsen","Soest_974","SoestStadt_040","Hattropholsen_1701"]
["974","Soest","040","Soest,Stadt","1749","Hiddingsen","Soest_974","SoestStadt_040","Hiddingsen_1749"]
["974","Soest","040","Soest,Stadt","1702","Katrop","Soest_974","SoestStadt_040","Katrop_1702"]
["974","Soest","040","Soest,Stadt","1750","Lendringsen","Soest_974","SoestStadt_040","Lendringsen_1750"]
["974","Soest","040","Soest,Stadt","1703","Meckingsen","Soest_974","SoestStadt_040","Meckingsen_1703"]
["974","Soest","040","Soest,Stadt","1777","Meiningsen","Soest_974","SoestStadt_040","Meiningsen_1777"]
["974","Soest","040","Soest,Stadt","1752","Müllingsen","Soest_974","SoestStadt_040","Müllingsen_1752"]
["974","Soest","040","Soest,Stadt","1780","Ostönnen","Soest_974","SoestStadt_040","Ostönnen_1780"]
["974","Soest","040","Soest,Stadt","1927","Paradiese","Soest_974","SoestStadt_040","Paradiese_1927"]
["974","Soest","040","Soest,Stadt","1782","Röllingsen","Soest_974","SoestStadt_040","Röllingsen_1782"]
["974","Soest","040","Soest,Stadt","1755","Ruploh","Soest_974","SoestStadt_040","Ruploh_1755"]
["974","Soest","040","Soest,Stadt","1785","Soest","Soest_974","SoestStadt_040","Soest_1785"]
["974","Soest","040","Soest,Stadt","1706","Thöningsen","Soest_974","SoestStadt_040","Thöningsen_1706"]
["974","Soest","044","Warstein,Stadt","1074","Allagen","Soest_974","WarsteinStadt_044","Allagen_1074"]
["974","Soest","044","Warstein,Stadt","1075","Belecke","Soest_974","WarsteinStadt_044","Belecke_1075"]
["974","Soest","044","Warstein,Stadt","1076","Hirschberg","Soest_974","WarsteinStadt_044","Hirschberg_1076"]
["974","Soest","044","Warstein,Stadt","1077","Mülheim","Soest_974","WarsteinStadt_044","Mülheim_1077"]
["974","Soest","044","Warstein,Stadt","1910","Sichtigvor","Soest_974","WarsteinStadt_044","Sichtigvor_1910"]
["974","Soest","044","Warstein,Stadt","1483","Suttrop","Soest_974","WarsteinStadt_044","Suttrop_1483"]
["974","Soest","044","Warstein,Stadt","1911","Waldhausen","Soest_974","WarsteinStadt_044","Waldhausen_1911"]
["974","Soest","044","Warstein,Stadt","1078","Warstein","Soest_974","WarsteinStadt_044","Warstein_1078"]
["974","Soest","048","Welver","1694","Balksen","Soest_974","Welver_048","Balksen_1694"]
["974","Soest","048","Welver","1695","Berwicke","Soest_974","Welver_048","Berwicke_1695"]
["974","Soest","048","Welver","1696","Blumroth","Soest_974","Welver_048","Blumroth_1696"]
["974","Soest","048","Welver","1697","Borgeln","Soest_974","Welver_048","Borgeln_1697"]
["974","Soest","048","Welver","1699","Dinker","Soest_974","Welver_048","Dinker_1699"]
["974","Soest","048","Welver","1708","Dorfwelver","Soest_974","Welver_048","Dorfwelver_1708"]
["974","Soest","048","Welver","1769","Ehningsen","Soest_974","Welver_048","Ehningsen_1769"]
["974","Soest","048","Welver","1700","Eilmsen","Soest_974","Welver_048","Eilmsen_1700"]
["974","Soest","048","Welver","1770","Einecke","Soest_974","Welver_048","Einecke_1770"]
["974","Soest","048","Welver","1771","Eineckerholsen","Soest_974","Welver_048","Eineckerholsen_1771"]
["974","Soest","048","Welver","1774","Flerke","Soest_974","Welver_048","Flerke_1774"]
["974","Soest","048","Welver","1929","Illingen","Soest_974","Welver_048","Illingen_1929"]
["974","Soest","048","Welver","1784","Kirchwelver","Soest_974","Welver_048","Kirchwelver_1784"]
["974","Soest","048","Welver","1776","Klotingen","Soest_974","Welver_048","Klotingen_1776"]
["974","Soest","048","Welver","1778","Merklingsen","Soest_974","Welver_048","Merklingsen_1778"]
["974","Soest","048","Welver","1779","Meyerich","Soest_974","Welver_048","Meyerich_1779"]
["974","Soest","048","Welver","1704","Nateln","Soest_974","Welver_048","Nateln_1704"]
["974","Soest","048","Welver","1781","Recklingsen","Soest_974","Welver_048","Recklingsen_1781"]
["974","Soest","048","Welver","1928","Scheidingen","Soest_974","Welver_048","Scheidingen_1928"]
["974","Soest","048","Welver","1783","Schwefe","Soest_974","Welver_048","Schwefe_1783"]
["974","Soest","048","Welver","1705","Stocklarn","Soest_974","Welver_048","Stocklarn_1705"]
["974","Soest","048","Welver","1707","Vellinghausen","Soest_974","Welver_048","Vellinghausen_1707"]
["974","Soest","052","Werl,Stadt","1713","Blumenthal","Soest_974","WerlStadt_052","Blumenthal_1713"]
["974","Soest","052","Werl,Stadt","1786","Budberg","Soest_974","WerlStadt_052","Budberg_1786"]
["974","Soest","052","Werl,Stadt","1381","Hilbeck","Soest_974","WerlStadt_052","Hilbeck_1381"]
["974","Soest","052","Werl,Stadt","1788","Holtum","Soest_974","WerlStadt_052","Holtum_1788"]
["974","Soest","052","Werl,Stadt","1789","Mawicke","Soest_974","WerlStadt_052","Mawicke_1789"]
["974","Soest","052","Werl,Stadt","1790","Niederbergstraße","Soest_974","WerlStadt_052","Niederbergstraße_1790"]
["974","Soest","052","Werl,Stadt","1791","Oberbergstraße","Soest_974","WerlStadt_052","Oberbergstraße_1791"]
["974","Soest","052","Werl,Stadt","1787","Ostbüderich","Soest_974","WerlStadt_052","Ostbüderich_1787"]
["974","Soest","052","Werl,Stadt","1389","Sönnern","Soest_974","WerlStadt_052","Sönnern_1389"]
["974","Soest","052","Werl,Stadt","1797","Werl","Soest_974","WerlStadt_052","Werl_1797"]
["974","Soest","052","Werl,Stadt","1930","Westbüderich","Soest_974","WerlStadt_052","Westbüderich_1930"]
["974","Soest","052","Werl,Stadt","1794","Westönnen","Soest_974","WerlStadt_052","Westönnen_1794"]
["974","Soest","056","Wickede (Ruhr)","1058","Echthausen","Soest_974","Wickede (Ruhr)_056","Echthausen_1058"]
["974","Soest","056","Wickede (Ruhr)","1793","Schlückingen","Soest_974","Wickede (Ruhr)_056","Schlückingen_1793"]
["974","Soest","056","Wickede (Ruhr)","1795","Wickede","Soest_974","Wickede (Ruhr)_056","Wickede_1795"]
["974","Soest","056","Wickede (Ruhr)","1796","Wiehagen","Soest_974","Wickede (Ruhr)_056","Wiehagen_1796"]
["974","Soest","056","Wickede (Ruhr)","1440","Wimbern","Soest_974","Wickede (Ruhr)_056","Wimbern_1440"]
["122","Solingen,Stadt","000","Solingen,Stadt","3257","Burg","SolingenStadt_122","SolingenStadt_000","Burg_3257"]
["566","Steinfurt","004","Altenberge","5211","Altenberge","Steinfurt_566","Altenberge_004","Altenberge_5211"]
["566","Steinfurt","008","Emsdetten,Stadt","5208","Emsdetten","Steinfurt_566","EmsdettenStadt_008","Emsdetten_5208"]
["566","Steinfurt","012","Greven,Stadt","5025","Gimbte","Steinfurt_566","GrevenStadt_012","Gimbte_5025"]
["566","Steinfurt","012","Greven,Stadt","5024","Greven","Steinfurt_566","GrevenStadt_012","Greven_5024"]
["566","Steinfurt","020","Hopsten","5262","Halverde","Steinfurt_566","Hopsten_020","Halverde_5262"]
["566","Steinfurt","020","Hopsten","5031","Hopsten","Steinfurt_566","Hopsten_020","Hopsten_5031"]
["566","Steinfurt","020","Hopsten","5032","Schale","Steinfurt_566","Hopsten_020","Schale_5032"]
["566","Steinfurt","016","Hörstel,Stadt","5029","Bevergern","Steinfurt_566","HörstelStadt_016","Bevergern_5029"]
["566","Steinfurt","016","Hörstel,Stadt","5030","Dreierwalde","Steinfurt_566","HörstelStadt_016","Dreierwalde_5030"]
["566","Steinfurt","016","Hörstel,Stadt","5261","Hörstel","Steinfurt_566","HörstelStadt_016","Hörstel_5261"]
["566","Steinfurt","016","Hörstel,Stadt","5028","Riesenbeck","Steinfurt_566","HörstelStadt_016","Riesenbeck_5028"]
["566","Steinfurt","024","Horstmar,Stadt","5195","Horstmar","Steinfurt_566","HorstmarStadt_024","Horstmar_5195"]
["566","Steinfurt","028","Ibbenbüren,Stadt","5027","Ibbenbüren","Steinfurt_566","IbbenbürenStadt_028","Ibbenbüren_5027"]
["566","Steinfurt","032","Ladbergen","5043","Ladbergen","Steinfurt_566","Ladbergen_032","Ladbergen_5043"]
["566","Steinfurt","036","Laer","5213","Laer","Steinfurt_566","Laer_036","Laer_5213"]
["566","Steinfurt","040","Lengerich,Stadt","5042","Lengerich","Steinfurt_566","LengerichStadt_040","Lengerich_5042"]
["566","Steinfurt","044","Lienen","5047","Lienen","Steinfurt_566","Lienen_044","Lienen_5047"]
["566","Steinfurt","048","Lotte","5038","Lotte","Steinfurt_566","Lotte_048","Lotte_5038"]
["566","Steinfurt","048","Lotte","5039","Wersen","Steinfurt_566","Lotte_048","Wersen_5039"]
["566","Steinfurt","052","Metelen","5196","Metelen","Steinfurt_566","Metelen_052","Metelen_5196"]
["566","Steinfurt","056","Mettingen","5034","Mettingen","Steinfurt_566","Mettingen_056","Mettingen_5034"]
["566","Steinfurt","060","Neuenkirchen","5206","Neuenkirchen","Steinfurt_566","Neuenkirchen_060","Neuenkirchen_5206"]
["566","Steinfurt","064","Nordwalde","5212","Nordwalde","Steinfurt_566","Nordwalde_064","Nordwalde_5212"]
["566","Steinfurt","068","Ochtrup,Stadt","5199","Ochtrup","Steinfurt_566","OchtrupStadt_068","Ochtrup_5199"]
["566","Steinfurt","072","Recke","5033","Recke","Steinfurt_566","Recke_072","Recke_5033"]
["566","Steinfurt","076","Rheine,Stadt","5259","Elte","Steinfurt_566","RheineStadt_076","Elte_5259"]
["566","Steinfurt","076","Rheine,Stadt","5207","Mesum","Steinfurt_566","RheineStadt_076","Mesum_5207"]
["566","Steinfurt","076","Rheine,Stadt","5205","Rheine L.D. Ems","Steinfurt_566","RheineStadt_076","Rheine L.D. Ems_5205"]
["566","Steinfurt","076","Rheine,Stadt","5204","Rheine R.D. Ems","Steinfurt_566","RheineStadt_076","Rheine R.D. Ems_5204"]
["566","Steinfurt","076","Rheine,Stadt","5203","Rheine-Stadt","Steinfurt_566","RheineStadt_076","Rheine-Stadt_5203"]
["566","Steinfurt","080","Saerbeck","5026","Saerbeck","Steinfurt_566","Saerbeck_080","Saerbeck_5026"]
["566","Steinfurt","084","Steinfurt,Stadt","5192","Borghorst","Steinfurt_566","SteinfurtStadt_084","Borghorst_5192"]
["566","Steinfurt","084","Steinfurt,Stadt","5190","Burgsteinfurt","Steinfurt_566","SteinfurtStadt_084","Burgsteinfurt_5190"]
["566","Steinfurt","088","Tecklenburg,Stadt","5041","Brochterbeck","Steinfurt_566","TecklenburgStadt_088","Brochterbeck_5041"]
["566","Steinfurt","088","Tecklenburg,Stadt","5036","Ledde","Steinfurt_566","TecklenburgStadt_088","Ledde_5036"]
["566","Steinfurt","088","Tecklenburg,Stadt","5037","Leeden","Steinfurt_566","TecklenburgStadt_088","Leeden_5037"]
["566","Steinfurt","088","Tecklenburg,Stadt","5035","Tecklenburg","Steinfurt_566","TecklenburgStadt_088","Tecklenburg_5035"]
["566","Steinfurt","092","Westerkappeln","5040","Westerkappeln","Steinfurt_566","Westerkappeln_092","Westerkappeln_5040"]
["566","Steinfurt","096","Wettringen","5202","Wettringen","Steinfurt_566","Wettringen_096","Wettringen_5202"]
["978","Unna","004","Bergkamen,Stadt","1361","Heil","Unna_978","BergkamenStadt_004","Heil_1361"]
["978","Unna","004","Bergkamen,Stadt","1366","Overberge","Unna_978","BergkamenStadt_004","Overberge_1366"]
["978","Unna","008","Bönen","1357","Bönen","Unna_978","Bönen_008","Bönen_1357"]
["978","Unna","008","Bönen","1382","Bramey-Lenningsen","Unna_978","Bönen_008","Bramey-Lenningsen_1382"]
["978","Unna","008","Bönen","1377","Flierich","Unna_978","Bönen_008","Flierich_1377"]
["978","Unna","008","Bönen","1364","Nordbögge","Unna_978","Bönen_008","Nordbögge_1364"]
["978","Unna","008","Bönen","1365","Osterbönen","Unna_978","Bönen_008","Osterbönen_1365"]
["978","Unna","008","Bönen","1372","Westerbönen","Unna_978","Bönen_008","Westerbönen_1372"]
["978","Unna","012","Fröndenberg,Stadt","1940","Altendorf","Unna_978","FröndenbergStadt_012","Altendorf_1940"]
["978","Unna","012","Fröndenberg,Stadt","1938","Ardey","Unna_978","FröndenbergStadt_012","Ardey_1938"]
["978","Unna","012","Fröndenberg,Stadt","1352","Bausenhagen","Unna_978","FröndenbergStadt_012","Bausenhagen_1352"]
["978","Unna","012","Fröndenberg,Stadt","1934","Bentrop","Unna_978","FröndenbergStadt_012","Bentrop_1934"]
["978","Unna","012","Fröndenberg,Stadt","1353","Dellwig","Unna_978","FröndenbergStadt_012","Dellwig_1353"]
["978","Unna","012","Fröndenberg,Stadt","1932","Frohnhausen","Unna_978","FröndenbergStadt_012","Frohnhausen_1932"]
["978","Unna","012","Fröndenberg,Stadt","1354","Frömern","Unna_978","FröndenbergStadt_012","Frömern_1354"]
["978","Unna","012","Fröndenberg,Stadt","1355","Fröndenberg","Unna_978","FröndenbergStadt_012","Fröndenberg_1355"]
["978","Unna","012","Fröndenberg,Stadt","1936","Langschede","Unna_978","FröndenbergStadt_012","Langschede_1936"]
["978","Unna","012","Fröndenberg,Stadt","1931","Neimen","Unna_978","FröndenbergStadt_012","Neimen_1931"]
["978","Unna","012","Fröndenberg,Stadt","1942","Ostbüren","Unna_978","FröndenbergStadt_012","Ostbüren_1942"]
["978","Unna","012","Fröndenberg,Stadt","1933","Stentrop","Unna_978","FröndenbergStadt_012","Stentrop_1933"]
["978","Unna","012","Fröndenberg,Stadt","1937","Strickherdicke","Unna_978","FröndenbergStadt_012","Strickherdicke_1937"]
["978","Unna","012","Fröndenberg,Stadt","1935","Warmen","Unna_978","FröndenbergStadt_012","Warmen_1935"]
["978","Unna","016","Holzwickede","1231","Hengsen","Unna_978","Holzwickede_016","Hengsen_1231"]
["978","Unna","016","Holzwickede","1235","Opherdicke","Unna_978","Holzwickede_016","Opherdicke_1235"]
["978","Unna","020","Kamen,Stadt","1360","Derne","Unna_978","KamenStadt_020","Derne_1360"]
["978","Unna","020","Kamen,Stadt","1368","Rottum","Unna_978","KamenStadt_020","Rottum_1368"]
["978","Unna","020","Kamen,Stadt","1411","Wasserkurl","Unna_978","KamenStadt_020","Wasserkurl_1411"]
["978","Unna","024","Lünen,Stadt","1867","Altlünen","Unna_978","LünenStadt_024","Altlünen_1867"]
["978","Unna","028","Schwerte,Stadt","1872","Altlichtendorf","Unna_978","SchwerteStadt_028","Altlichtendorf_1872"]
["978","Unna","028","Schwerte,Stadt","1417","Ergste","Unna_978","SchwerteStadt_028","Ergste_1417"]
["978","Unna","028","Schwerte,Stadt","1300","Geisecke","Unna_978","SchwerteStadt_028","Geisecke_1300"]
["978","Unna","028","Schwerte,Stadt","1304","Villigst","Unna_978","SchwerteStadt_028","Villigst_1304"]
["978","Unna","032","Selm,Stadt","1868","Bork","Unna_978","SelmStadt_032","Bork_1868"]
["978","Unna","032","Selm,Stadt","1869","Selm","Unna_978","SelmStadt_032","Selm_1869"]
["978","Unna","036","Unna,Stadt","1397","Afferde","Unna_978","UnnaStadt_036","Afferde_1397"]
["978","Unna","036","Unna,Stadt","1939","Billmerich","Unna_978","UnnaStadt_036","Billmerich_1939"]
["978","Unna","036","Unna,Stadt","1399","Hemmerde","Unna_978","UnnaStadt_036","Hemmerde_1399"]
["978","Unna","036","Unna,Stadt","1941","Kessebüren","Unna_978","UnnaStadt_036","Kessebüren_1941"]
["978","Unna","036","Unna,Stadt","1400","Lünern","Unna_978","UnnaStadt_036","Lünern_1400"]
["978","Unna","036","Unna,Stadt","1406","Massen","Unna_978","UnnaStadt_036","Massen_1406"]
["978","Unna","036","Unna,Stadt","1402","Mühlhausen","Unna_978","UnnaStadt_036","Mühlhausen_1402"]
["978","Unna","036","Unna,Stadt","1407","Siddinghausen","Unna_978","UnnaStadt_036","Siddinghausen_1407"]
["978","Unna","036","Unna,Stadt","1408","Stockum","Unna_978","UnnaStadt_036","Stockum_1408"]
["978","Unna","036","Unna,Stadt","1410","Uelzen","Unna_978","UnnaStadt_036","Uelzen_1410"]
["978","Unna","036","Unna,Stadt","1396","Unna","Unna_978","UnnaStadt_036","Unna_1396"]
["978","Unna","036","Unna,Stadt","1414","Westhemmerde","Unna_978","UnnaStadt_036","Westhemmerde_1414"]
["978","Unna","040","Werne,Stadt","1870","Werne-Stadt","Unna_978","WerneStadt_040","Werne-Stadt_1870"]
["978","Unna","040","Werne,Stadt","1871","Werne-Stockum","Unna_978","WerneStadt_040","Werne-Stockum_1871"]
["166","Viersen","004","Brüggen","3234","Bracht","Viersen_166","Brüggen_004","Bracht_3234"]
["166","Viersen","004","Brüggen","3236","Brüggen","Viersen_166","Brüggen_004","Brüggen_3236"]
["166","Viersen","008","Grefrath","3242","Grefrath","Viersen_166","Grefrath_008","Grefrath_3242"]
["166","Viersen","008","Grefrath","3250","Oedt","Viersen_166","Grefrath_008","Oedt_3250"]
["166","Viersen","012","Kempen,Stadt","3246","Kempen","Viersen_166","KempenStadt_012","Kempen_3246"]
["166","Viersen","012","Kempen,Stadt","3247","Schmalbroich","Viersen_166","KempenStadt_012","Schmalbroich_3247"]
["166","Viersen","012","Kempen,Stadt","3251","St.Hubert","Viersen_166","KempenStadt_012","St.Hubert_3251"]
["166","Viersen","012","Kempen,Stadt","3255","Tönisberg","Viersen_166","KempenStadt_012","Tönisberg_3255"]
["166","Viersen","016","Nettetal,Stadt","3235","Breyell","Viersen_166","NettetalStadt_016","Breyell_3235"]
["166","Viersen","016","Nettetal,Stadt","3164","Hinsbeck","Viersen_166","NettetalStadt_016","Hinsbeck_3164"]
["166","Viersen","016","Nettetal,Stadt","3245","Kaldenkirchen","Viersen_166","NettetalStadt_016","Kaldenkirchen_3245"]
["166","Viersen","016","Nettetal,Stadt","3173","Leuth","Viersen_166","NettetalStadt_016","Leuth_3173"]
["166","Viersen","016","Nettetal,Stadt","3249","Lobberich","Viersen_166","NettetalStadt_016","Lobberich_3249"]
["166","Viersen","020","Niederkrüchten","3378","Elmpt","Viersen_166","Niederkrüchten_020","Elmpt_3378"]
["166","Viersen","020","Niederkrüchten","3379","Niederkrüchten","Viersen_166","Niederkrüchten_020","Niederkrüchten_3379"]
["166","Viersen","024","Schwalmtal","3230","Amern","Viersen_166","Schwalmtal_024","Amern_3230"]
["166","Viersen","024","Schwalmtal","3239","Waldniel","Viersen_166","Schwalmtal_024","Waldniel_3239"]
["166","Viersen","028","Tönisvorst,Stadt","3253","St.Tönis","Viersen_166","TönisvorstStadt_028","St.Tönis_3253"]
["166","Viersen","028","Tönisvorst,Stadt","3256","Vorst","Viersen_166","TönisvorstStadt_028","Vorst_3256"]
["166","Viersen","032","Viersen,Stadt","3233","Boisheim","Viersen_166","ViersenStadt_032","Boisheim_3233"]
["166","Viersen","032","Viersen,Stadt","3240","Dülken","Viersen_166","ViersenStadt_032","Dülken_3240"]
["166","Viersen","032","Viersen,Stadt","3254","Süchteln","Viersen_166","ViersenStadt_032","Süchteln_3254"]
["166","Viersen","032","Viersen,Stadt","3203","Viersen","Viersen_166","ViersenStadt_032","Viersen_3203"]
["166","Viersen","036","Willich,Stadt","3044","Anrath","Viersen_166","WillichStadt_036","Anrath_3044"]
["166","Viersen","036","Willich,Stadt","3196","Neersen","Viersen_166","WillichStadt_036","Neersen_3196"]
["166","Viersen","036","Willich,Stadt","3202","Schiefbahn","Viersen_166","WillichStadt_036","Schiefbahn_3202"]
["166","Viersen","036","Willich,Stadt","3062","Willich","Viersen_166","WillichStadt_036","Willich_3062"]
["570","Warendorf","004","Ahlen,Stadt","5218","Ahlen","Warendorf_570","AhlenStadt_004","Ahlen_5218"]
["570","Warendorf","004","Ahlen,Stadt","5082","Vorhelm","Warendorf_570","AhlenStadt_004","Vorhelm_5082"]
["570","Warendorf","008","Beckum,Stadt","5291","Beckum","Warendorf_570","BeckumStadt_008","Beckum_5291"]
["570","Warendorf","012","Beelen","5056","Beelen","Warendorf_570","Beelen_012","Beelen_5056"]
["570","Warendorf","016","Drensteinfurt,Stadt","5087","Drensteinfurt","Warendorf_570","DrensteinfurtStadt_016","Drensteinfurt_5087"]
["570","Warendorf","016","Drensteinfurt,Stadt","5016","Rinkerode","Warendorf_570","DrensteinfurtStadt_016","Rinkerode_5016"]
["570","Warendorf","016","Drensteinfurt,Stadt","5091","Walstedde","Warendorf_570","DrensteinfurtStadt_016","Walstedde_5091"]
["570","Warendorf","020","Ennigerloh,Stadt","5083","Enniger","Warendorf_570","EnnigerlohStadt_020","Enniger_5083"]
["570","Warendorf","020","Ennigerloh,Stadt","5062","Ennigerloh","Warendorf_570","EnnigerlohStadt_020","Ennigerloh_5062"]
["570","Warendorf","020","Ennigerloh,Stadt","5061","Ostenfelde","Warendorf_570","EnnigerlohStadt_020","Ostenfelde_5061"]
["570","Warendorf","020","Ennigerloh,Stadt","5060","Westkirchen","Warendorf_570","EnnigerlohStadt_020","Westkirchen_5060"]
["570","Warendorf","024","Everswinkel","5014","Alverskirchen","Warendorf_570","Everswinkel_024","Alverskirchen_5014"]
["570","Warendorf","024","Everswinkel","5058","Everswinkel","Warendorf_570","Everswinkel_024","Everswinkel_5058"]
["570","Warendorf","028","Oelde,Stadt","5292","Oelde","Warendorf_570","OeldeStadt_028","Oelde_5292"]
["570","Warendorf","032","Ostbevern","5044","Ostbevern","Warendorf_570","Ostbevern_032","Ostbevern_5044"]
["570","Warendorf","036","Sassenberg,Stadt","5049","Dackmar","Warendorf_570","SassenbergStadt_036","Dackmar_5049"]
["570","Warendorf","036","Sassenberg,Stadt","5051","Füchtorf","Warendorf_570","SassenbergStadt_036","Füchtorf_5051"]
["570","Warendorf","036","Sassenberg,Stadt","5263","Gröblingen","Warendorf_570","SassenbergStadt_036","Gröblingen_5263"]
["570","Warendorf","036","Sassenberg,Stadt","5052","Sassenberg","Warendorf_570","SassenbergStadt_036","Sassenberg_5052"]
["570","Warendorf","040","Sendenhorst,Stadt","5015","Albersloh","Warendorf_570","SendenhorstStadt_040","Albersloh_5015"]
["570","Warendorf","040","Sendenhorst,Stadt","5084","Sendenhorst","Warendorf_570","SendenhorstStadt_040","Sendenhorst_5084"]
["570","Warendorf","044","Telgte,Stadt","5009","Telgte-Kirchspiel","Warendorf_570","TelgteStadt_044","Telgte-Kirchspiel_5009"]
["570","Warendorf","044","Telgte,Stadt","5008","Telgte-Stadt","Warendorf_570","TelgteStadt_044","Telgte-Stadt_5008"]
["570","Warendorf","044","Telgte,Stadt","5010","Westbevern","Warendorf_570","TelgteStadt_044","Westbevern_5010"]
["570","Warendorf","048","Wadersloh","5293","Wadersloh","Warendorf_570","Wadersloh_048","Wadersloh_5293"]
["570","Warendorf","052","Warendorf,Stadt","5046","Einen","Warendorf_570","WarendorfStadt_052","Einen_5046"]
["570","Warendorf","052","Warendorf,Stadt","5057","Freckenhorst","Warendorf_570","WarendorfStadt_052","Freckenhorst_5057"]
["570","Warendorf","052","Warendorf,Stadt","5059","Hoetmar","Warendorf_570","WarendorfStadt_052","Hoetmar_5059"]
["570","Warendorf","052","Warendorf,Stadt","5045","Milte","Warendorf_570","WarendorfStadt_052","Milte_5045"]
["570","Warendorf","052","Warendorf,Stadt","5264","Velsen","Warendorf_570","WarendorfStadt_052","Velsen_5264"]
["570","Warendorf","052","Warendorf,Stadt","5265","Vohren","Warendorf_570","WarendorfStadt_052","Vohren_5265"]
["570","Warendorf","052","Warendorf,Stadt","5048","Warendorf","Warendorf_570","WarendorfStadt_052","Warendorf_5048"]
["170","Wesel","004","Alpen","3284","Alpen","Wesel_170","Alpen_004","Alpen_3284"]
["170","Wesel","004","Alpen","3334","Bönning","Wesel_170","Alpen_004","Bönning_3334"]
["170","Wesel","004","Alpen","3286","Bönninghardt","Wesel_170","Alpen_004","Bönninghardt_3286"]
["170","Wesel","004","Alpen","3287","Drüpt","Wesel_170","Alpen_004","Drüpt_3287"]
["170","Wesel","004","Alpen","3288","Huck","Wesel_170","Alpen_004","Huck_3288"]
["170","Wesel","004","Alpen","3335","Menzelen","Wesel_170","Alpen_004","Menzelen_3335"]
["170","Wesel","004","Alpen","3336","Veen","Wesel_170","Alpen_004","Veen_3336"]
["170","Wesel","008","Dinslaken,Stadt","3064","Hiesfeld","Wesel_170","DinslakenStadt_008","Hiesfeld_3064"]
["170","Wesel","012","Hamminkeln","3396","Brünen","Wesel_170","Hamminkeln_012","Brünen_3396"]
["170","Wesel","012","Hamminkeln","3238","Dingden","Wesel_170","Hamminkeln_012","Dingden_3238"]
["170","Wesel","012","Hamminkeln","3393","Hamminkeln","Wesel_170","Hamminkeln_012","Hamminkeln_3393"]
["170","Wesel","012","Hamminkeln","3376","Loikum","Wesel_170","Hamminkeln_012","Loikum_3376"]
["170","Wesel","012","Hamminkeln","3248","Mehrhoog","Wesel_170","Hamminkeln_012","Mehrhoog_3248"]
["170","Wesel","012","Hamminkeln","3394","Ringenberg","Wesel_170","Hamminkeln_012","Ringenberg_3394"]
["170","Wesel","012","Hamminkeln","3377","Wertherbruch","Wesel_170","Hamminkeln_012","Wertherbruch_3377"]
["170","Wesel","016","Hünxe","3068","Bruckhausen","Wesel_170","Hünxe_016","Bruckhausen_3068"]
["170","Wesel","016","Hünxe","3069","Bucholtwelmen","Wesel_170","Hünxe_016","Bucholtwelmen_3069"]
["170","Wesel","016","Hünxe","3400","Drevenack","Wesel_170","Hünxe_016","Drevenack_3400"]
["170","Wesel","016","Hünxe","3071","Gartrop-Bühl","Wesel_170","Hünxe_016","Gartrop-Bühl_3071"]
["170","Wesel","016","Hünxe","3072","Hünxe","Wesel_170","Hünxe_016","Hünxe_3072"]
["170","Wesel","016","Hünxe","3397","Krudenburg","Wesel_170","Hünxe_016","Krudenburg_3397"]
["170","Wesel","020","Kamp-Lintfort,Stadt","3307","Hoerstgen","Wesel_170","Kamp-LintfortStadt_020","Hoerstgen_3307"]
["170","Wesel","020","Kamp-Lintfort,Stadt","3295","Kamp","Wesel_170","Kamp-LintfortStadt_020","Kamp_3295"]
["170","Wesel","020","Kamp-Lintfort,Stadt","3338","Kamperbruch","Wesel_170","Kamp-LintfortStadt_020","Kamperbruch_3338"]
["170","Wesel","020","Kamp-Lintfort,Stadt","3339","Lintfort","Wesel_170","Kamp-LintfortStadt_020","Lintfort_3339"]
["170","Wesel","020","Kamp-Lintfort,Stadt","3340","Rossenray","Wesel_170","Kamp-LintfortStadt_020","Rossenray_3340"]
["170","Wesel","020","Kamp-Lintfort,Stadt","3341","Saalhoff","Wesel_170","Kamp-LintfortStadt_020","Saalhoff_3341"]
["170","Wesel","024","Moers,Stadt","3296","Kapellen","Wesel_170","MoersStadt_024","Kapellen_3296"]
["170","Wesel","028","Neukirchen-Vluyn,Stadt","3318","Neukirchen","Wesel_170","Neukirchen-VluynStadt_028","Neukirchen_3318"]
["170","Wesel","028","Neukirchen-Vluyn,Stadt","3327","Rayen","Wesel_170","Neukirchen-VluynStadt_028","Rayen_3327"]
["170","Wesel","028","Neukirchen-Vluyn,Stadt","3342","Vluyn","Wesel_170","Neukirchen-VluynStadt_028","Vluyn_3342"]
["170","Wesel","028","Neukirchen-Vluyn,Stadt","3329","Vluynbusch","Wesel_170","Neukirchen-VluynStadt_028","Vluynbusch_3329"]
["170","Wesel","032","Rheinberg,Stadt","3285","Alpsray","Wesel_170","RheinbergStadt_032","Alpsray_3285"]
["170","Wesel","032","Rheinberg,Stadt","3321","Borth","Wesel_170","RheinbergStadt_032","Borth_3321"]
["170","Wesel","032","Rheinberg,Stadt","3291","Budberg","Wesel_170","RheinbergStadt_032","Budberg_3291"]
["170","Wesel","032","Rheinberg,Stadt","3292","Eversael","Wesel_170","RheinbergStadt_032","Eversael_3292"]
["170","Wesel","032","Rheinberg,Stadt","3289","Millingen","Wesel_170","RheinbergStadt_032","Millingen_3289"]
["170","Wesel","032","Rheinberg,Stadt","3320","Orsoy-Land","Wesel_170","RheinbergStadt_032","Orsoy-Land_3320"]
["170","Wesel","032","Rheinberg,Stadt","3319","Orsoy-Stadt","Wesel_170","RheinbergStadt_032","Orsoy-Stadt_3319"]
["170","Wesel","032","Rheinberg,Stadt","3322","Ossenberg","Wesel_170","RheinbergStadt_032","Ossenberg_3322"]
["170","Wesel","032","Rheinberg,Stadt","3325","Rheinberg","Wesel_170","RheinbergStadt_032","Rheinberg_3325"]
["170","Wesel","032","Rheinberg,Stadt","3293","Vierbaum","Wesel_170","RheinbergStadt_032","Vierbaum_3293"]
["170","Wesel","032","Rheinberg,Stadt","3323","Wallach","Wesel_170","RheinbergStadt_032","Wallach_3323"]
["170","Wesel","032","Rheinberg,Stadt","3326","Winterswick","Wesel_170","RheinbergStadt_032","Winterswick_3326"]
["170","Wesel","036","Schermbeck","3337","Altschermbeck","Wesel_170","Schermbeck_036","Altschermbeck_3337"]
["170","Wesel","036","Schermbeck","3395","Bricht","Wesel_170","Schermbeck_036","Bricht_3395"]
["170","Wesel","036","Schermbeck","3398","Damm","Wesel_170","Schermbeck_036","Damm_3398"]
["170","Wesel","036","Schermbeck","3399","Dämmerwald","Wesel_170","Schermbeck_036","Dämmerwald_3399"]
["170","Wesel","036","Schermbeck","3070","Gahlen","Wesel_170","Schermbeck_036","Gahlen_3070"]
["170","Wesel","036","Schermbeck","3401","Overbeck","Wesel_170","Schermbeck_036","Overbeck_3401"]
["170","Wesel","036","Schermbeck","3402","Schermbeck","Wesel_170","Schermbeck_036","Schermbeck_3402"]
["170","Wesel","036","Schermbeck","3403","Weselerwald","Wesel_170","Schermbeck_036","Weselerwald_3403"]
["170","Wesel","040","Sonsbeck","3331","Hamb","Wesel_170","Sonsbeck_040","Hamb_3331"]
["170","Wesel","040","Sonsbeck","3308","Labbeck","Wesel_170","Sonsbeck_040","Labbeck_3308"]
["170","Wesel","040","Sonsbeck","3332","Sonsbeck","Wesel_170","Sonsbeck_040","Sonsbeck_3332"]
["170","Wesel","044","Voerde (Niederrhein),Stadt","3073","Görsicker","Wesel_170","Voerde (Niederrhein)Stadt_044","Görsicker_3073"]
["170","Wesel","044","Voerde (Niederrhein),Stadt","3074","Löhnen","Wesel_170","Voerde (Niederrhein)Stadt_044","Löhnen_3074"]
["170","Wesel","044","Voerde (Niederrhein),Stadt","3075","Mehrum","Wesel_170","Voerde (Niederrhein)Stadt_044","Mehrum_3075"]
["170","Wesel","044","Voerde (Niederrhein),Stadt","3076","Möllen","Wesel_170","Voerde (Niederrhein)Stadt_044","Möllen_3076"]
["170","Wesel","044","Voerde (Niederrhein),Stadt","3077","Spellen","Wesel_170","Voerde (Niederrhein)Stadt_044","Spellen_3077"]
["170","Wesel","044","Voerde (Niederrhein),Stadt","3078","Voerde","Wesel_170","Voerde (Niederrhein)Stadt_044","Voerde_3078"]
["170","Wesel","048","Wesel,Stadt","3390","Bislich","Wesel_170","WeselStadt_048","Bislich_3390"]
["170","Wesel","048","Wesel,Stadt","3294","Büderich","Wesel_170","WeselStadt_048","Büderich_3294"]
["170","Wesel","048","Wesel,Stadt","3391","Diersfordt","Wesel_170","WeselStadt_048","Diersfordt_3391"]
["170","Wesel","048","Wesel,Stadt","3392","Flüren","Wesel_170","WeselStadt_048","Flüren_3392"]
["170","Wesel","048","Wesel,Stadt","3368","Lackhausen","Wesel_170","WeselStadt_048","Lackhausen_3368"]
["170","Wesel","048","Wesel,Stadt","3383","Obrighoven","Wesel_170","WeselStadt_048","Obrighoven_3383"]
["170","Wesel","048","Wesel,Stadt","3409","Wesel","Wesel_170","WeselStadt_048","Wesel_3409"]
["170","Wesel","052","Xanten,Stadt","3333","Birten","Wesel_170","XantenStadt_052","Birten_3333"]
["170","Wesel","052","Xanten,Stadt","3309","Marienbaum","Wesel_170","XantenStadt_052","Marienbaum_3309"]
["170","Wesel","052","Xanten,Stadt","3310","Obermörmter","Wesel_170","XantenStadt_052","Obermörmter_3310"]
["170","Wesel","052","Xanten,Stadt","3311","Vynen","Wesel_170","XantenStadt_052","Vynen_3311"]
["170","Wesel","052","Xanten,Stadt","3343","Wardt","Wesel_170","XantenStadt_052","Wardt_3343"]
["170","Wesel","052","Xanten,Stadt","3344","Xanten","Wesel_170","XantenStadt_052","Xanten_3344"]
["124","Wuppertal,Stadt","000","Wuppertal,Stadt","3485","Beyenburg","WuppertalStadt_124","WuppertalStadt_000","Beyenburg_3485"]
["124","Wuppertal,Stadt","000","Wuppertal,Stadt","3278","Dönberg","WuppertalStadt_124","WuppertalStadt_000","Dönberg_3278"]

{"sheet":"Liste1","index":20,"n_rows":52,"n_cols":3,"rows_kept":52,"cut":false,"hidden":true,"merged":[]}
["Einzelunternehmen"]
["Familien-GbR"]
["Sonstige GbR"]
["Sonstige Personengesellschaft"]
["Kapitalgesellschaft"]
["eingetr. Verein"]
["Genossenschaft"]
["Sonstige Rechtsform"]
[]
[1,"Kreisstellen Höxter, Lippe, Paderborn","33034 Brakel, Bohlenweg 3"]
[2,"Kreisstellen Rhein-Erft-Kreis, Rhein-Kreis Neuss, Rhein-Sieg-Kreis","50765 Köln-Auweiler, Gartenstraße 11"]
[3,"Kreisstelle Steinfurt","48369 Saerbeck, Hembergener Straße 10"]
[]
[]
[]
[]
[]
[]
[]
[]
[]
[]
[]
[]
[]
[]
[]
[]
[]
[]
[]
[]
[]
[]
[]
[]
[]
[]
[]
[]
[]
[]
["Einzelunternehmen"]
["GbR"]
["OHG"]
["Kommanditgesellschaft (KG)"]
["GmbH & Co.KG"]
["Genossenschaft"]
[]
["GmbH"]
["AG"]
["KGaA"]

{"sheet":"Betreuer","index":21,"n_rows":54,"n_cols":12,"rows_kept":54,"cut":false,"hidden":true,"merged":[]}
["AF08_BETREUER_NR","AF08_NAME","AF08_VORNAME","AF08_STRASSE","AF08_PLZ","AF08_ORT","AF08_TELEFON","AF08_KRST_NR","AF08_EMAIL","AF08_BETREUER_NR"]
[{"$f":"J2","v":0},"ohne Betreuer","","",null,"","",499,null,0]
[70,"BSt. Coesfeld - Frau Göcke","Clara","Borkener Str. 25",48653,"Coesfeld","0251/2376-359",611,"clara.goecke@lwk.nrw.de",70,null,"0160 96537248"]
[62,"BSt.Steinfurt-Fr.Jürgensmeier","Susanne","Hembergener Str. 10",48369,"Saerbeck","02574/9277-26",618,"susanne.juergensmeier-lotz@lwk.nrw.de",62]
[34,"Weifels","Klaus","Im Rottfeld 25",41462,"Neuss","02131/541296",499,"heinz.anette.weifels@t-online.de",34]
[65,"agrar man GmbH-Frau Schonvogel","","Wiefelsteder Straße 171",26316,"Varel-Bramloge","04456/899870",400,"info@agrarman.de",65]
[26,"LUB GmbH - Frau Beaupoil","Maria","Elsenpaß 5",47533,"Kleve","02821/996208",415,"Maria.Beaupoil@lwk.nrw.de",26]
[37,"LUB GmbH - Frau Biermann","Dorothee","Dünnefeldweg 13",59872,"Meschede","0291/991562",606,"Dorothee.Biermann@lwk.nrw.de",37]
[5,"LUB GmbH - Herrn Fry","Burkhard","Nevinghoff 40",48147,"Münster","0251/2376-326",499,"Burkhard.Fry@lwk.nrw.de",5]
[1,"GVAgrar West-Herrn Kemmerling","Christian","Feldstr. 6",46414,"Rhede","02872/9329914",400,"gvagrar-west@gvagrar.de",1]
[2,"LBB - Herrn Dreimann","Wilhelm","Wellentruper Str. 14",33813,"Oerlinghausen","0171/7280027",null,"wilhelm@dreimann.net",2]
[8,"LUB GmbH - Herrn M. Hoffmann","Marco","Nevinghoff 40",48147,"Münster","0251 2376 861",611,"Marco.Hoffmann@lwk.nrw.de",8]
[9,"LUB GmbH - Herrn Kersting","Josef","Dünnefeldweg 12",59872,"Meschede","0291/9915-34",606,"Josef.Kersting@lwk.nrw.de",9]
[66,"LUB NRW GmbH - Herr Krane","Antonius","Dünnefeldweg 13",59872,"Meschede","0291 9915-51",606,"Antonius.Krane@lwk.nrw.de",66]
[24,"LUB GmbH - Herrn Nagelschmitz","Andreas","Gartenstraße 11 a",50765,"Köln-Auweiler","0221/5340-118",402,"Andreas.Nagelschmitz@lwk.nrw.de",24]
[67,"LUB GmbH - Herr Mester","Wolfgang","Gartenstr. 11a",50765,"Köln-Auweiler","0221 5340-124",402,"Wolfgang.Mester@lwk.nrw.de",67,null,"0162 5128010"]
[{"$f":"J17","v":28},"LUB GmbH - Herrn Ostermann ","Gerhard","Nevinghoff 40",48147,"Münster","0251/2376-406",611,"Gerhard.Ostermann@lwk.nrw.de",28]
[51,"LUB NRW GmbH - Herr Uhlenbrock","Lukas","Nevinghoff 40",48147,"Münster","0291 9915 51",611,"lukas.uhlenbrock@lwk.nrw.de",51]
[69,"LUB NRW GmbH - Herr Bernsmann","Jan-Bernd","",null,"","0251 2376-338",415,"Jan-Bernd.Bernsmann@LWK.NRW.DE",69]
[52,"Thamm Unternehmensberatung ","Andreas","Scholer Weg 109",27252,"Schwaförden","04277/1212",400,"andreas.thamm@thamm-beratung.de",52]
[30,"LBB Brandenburg","Ingenieurbüro Hottelmann und C","Dorfstraße 18",14476,"Satzkorn","",499,"",30]
[31,"LUM - Herr Erkelenz","Lutz","Grünscheid 25",42799,"Leichlingen","02175 /166206",499,"",31]
[33,"Mews","Klaus","Gildehauser Weg 239",48529,"Nordhorn","05921/13120",499,"klaus.mews@t-online.de",33]
[35,"Telle","Martin","Timbergstrasse 51",58513,"Lüdenscheid","02351 14215",499,"",35]
[38,"BGL Baubetreuung - Herr Vaupel","Bernd","Rudolf-Harbig-Straße 4",34576,"Homberg/Efze","05681 / 7706-61",null,"bernd.vaupel@bgl-baubetreuung.de ",38]
[68,"Karbstein, ThüBeLa mbH","Thomas ","Alfred- Hess- Straße 8",99094,"Erfurt","036126253294",618,"karbstein@thuebela.de",68]
[99,"ohne Betreuer","","",null,"","",null,"",99]
[3,"LUB GmbH - Herr Deitermann","Bernhard","Bohlenweg 3",33034,"Brakel","05272/3701221",607,"Bernhard.Deitermann@lwk.nrw.de",3,"andere Funktion"]
[10,"LUB GmbH - Herr U. Kalthoff","Uwe","Gartenstraße 11 a",50765,"Köln-Auweiler","0221/5340119",402,"",10,"andere Funktion"]
[13,"LUB GmbH - Frau Stelten","Gerda","Gereonstraße 80",41747,"Viersen","02162/370663",416,"Gerda.Stelten@lwk.nrw.de",13,"andere Funktion"]
[15,"LUB GmbH - Herrn Brunsiek","Falk","Bohlenweg 3",33034,"Brakel","05272/3701222",607,"Falk.Brunsiek@lwk.nrw.de",15,"andere Funktion"]
[17,"LUB GmbH - Frau Willebrand","Christiane","Waldenburger Straße 6",48231,"Warendorf","02581/637934",619,"Christiane.Willebrand@lwk.nrw.de",17,"andere Funktion"]
[19,"LUB GmbH - Frau Braune","Daniela","",null,"","",null,"",19,"andere Funktion"]
[20,"LUB GmbH - Herr Boerman","Jürgen","Johann-Walling-Strasse 45",46325,"Borken","02861/922739",601,"",20,"andere Funktion"]
[22,"LUB GmbH - Herrn Lauschner","Olaf","Platanenallee 56",59425,"Unna","02303/9616135",615,"",22,"andere Funktion"]
[23,"LUB GmbH - Frau Husmann","Helga","Borkener Straße 25",48653,"Coesfeld","02541/910-241",602,"",23,"andere Funktion"]
[27,"LUB GmbH - Herrn Siegenbrink","Georg","Bohlenweg 3",33034,"Brakel","05272 3701-223",607,"Georg.Siegenbrink@lwk.nrw.de",27,"andere Funktion"]
[29,"LUB GmbH - Herrn Schütte","Stefan","Johann-Walling-Str. 45",46325,"Borken","02861 9227-48",601,"stefan.schuette@lwk.nrw.de",29,"andere Funktion"]
[50,"LUB GmbH - Frau Bergmann","Margret ","Waldenburger Straße 6 ",48231,"Warendorf ","0 25 81 63 79-36",619,"Margret.Bergmann@lwk.nrw.de",50,"andere Funktion"]
[11,"LUB GmbH - Herr Pohl","Georg","Rütger-von-Scheven Str. 44",52349,"Düren","02421/592318",405,"",11,"andere Funktion"]
[61,"BSt. Paderborn - Frau W. Kuck","Walburga","Bleichstr. 41",33102,"Paderborn","05251/1354-55",613,"walburga.kuck@lwk.nrw.de",null,"nicht mehr aktiv"]
[{"$f":"J42","v":60},"BSt. Köln - Frau B. Biermann","Birgit","Gartenstr. 11 a",50765,"Köln-Auweiler","0221/5340-108",402,"birgit.biermann@lwk.nrw.de",60,"nicht mehr aktiv"]
[63,"BSt. Soest - Frau Thörner","Karin","Ostinghausen (Haus Düsse)",59505,"Bad Sassendorf","02945-989 536",617,"karin.thoerner@lwk.nrw.de",63,"nicht mehr aktiv"]
[4,"LUB GmbH - Herr Enning","Rudolf","Hembergener Str. 10",48369,"Saerbeck","02574/927764",618,"",4,"nicht mehr aktiv"]
[6,"LUB GmbH - Herr Hoepfner","Reinhard","Grebbecker Weg 3",58509,"Lüdenscheid","02351/969145",603,"",6,"nicht mehr aktiv"]
[7,"LUB GmbH - Herrn B. Hoffmann","Bernhard","Elsenpaß 5",47533,"Kleve","02821/996208",415,"Bernhard.Hoffmann@lwk.nrw.de",7,"nicht mehr aktiv"]
[12,"LUB GmbH - Herr Sabbert","Stefan","Sedanplatz 9",32791,"Lage","05232/6082-75",608,"",12,"nicht mehr aktiv"]
[14,"LUB Gmb - Herr Schulze Temming","Bernhard","Bohlenweg 3",33034,"Brakel","",400,"",14,"nicht mehr aktiv"]
[16,"LUB GmbH - Frau Gödde","Kathrin","Grebbecker Weg 3",58509,"Lüdenscheid ","02351 969140 ",609,"",16,"nicht mehr aktiv"]
[18,"LUB GmbH - Herr Kühne","Hans","Nevinghoff 40",48147,"Münster","0251/2376-912",611,"",18,"nicht mehr aktiv"]
[21,"LUB GmbH - Frau Chudalla","Frietrud","Gartenstraße 11 a",50765,"Köln-Auweiler","0211/5340111",402,"",21,"nicht mehr aktiv"]
[25,"LUB GmbH- Herr Müller-Rechmann","Thomas","Waldenburger Straße 6",48231,"Warendorf","02581/6379-32",619,"",25,"nicht mehr aktiv"]
[64,"BSt. Coesfeld - Frau Wettels","Hanna","Johann-Walling-Str. 45",45325,"Borken","02861-922 752",601,"hanna.wettels@lwk.nrw.de",64,"nicht mehr aktiv"]
[32,"Massier","Hubert","Asternweg 6",41363,"Jüchen","02182/5538",499,"h.massier@t-online.de",32,"verstorben"]